Workbook

Sheet EF (hidden)
A1: Fin | B1: Función | C1: Sub-función | D1: Dimención del indicador | E1: Tipo | F1: Tipo de programa | G1: Frecuencia | H1: Tipo de indicador | I1: Nivel de MIR
A2: 1. Gobierno | B2: 1.1. Legislación | C2: 1.1.1 Legislación | D2: Eficacia | E2: Estatégico | F2: MIR | G2: Mensual | H2: Cantidad | I2: FIN
A3: 1. Gobierno | B3: 1.1. Legislación | C3: 1.1.2 Fiscalización | D3: Eficiencia | E3: Gestión | F3: Indicador de gestión | G3: Bimestral | H3: Porcentaje | I3: PROPÓSITO
A4: 1. Gobierno | B4: 1.2. Justicia | C4: 1.2.1 Impartición de justicia | D4: Econocmía | G4: Trimestral | H4: Tasa | I4: COMPONENTE
A5: 1. Gobierno | B5: 1.2. Justicia | C5: 1.2.2 Procuración de justicia | D5: Calidad | G5: Cuatrimestral | H5: Razón | I5: ACTIVIDAD
A6: 1. Gobierno | B6: 1.2. Justicia | C6: 1.2.3 Reclusión y readaptación social | G6: Semestral | H6: Promedio | I6: INDICADOR DE GESTIÓN
A7: 1. Gobierno | B7: 1.2. Justicia | C7: 1.2.4 Derechos humanos | G7: Anual | H7: Tasa de variación
A8: 1. Gobierno | B8: 1.3. Coordinación política de gobierno | C8: 1.3.1 Presidencia / Gubernatura | G8: Bienal
A9: 1. Gobierno | B9: 1.3. Coordinación política de gobierno | C9: 1.3.2 Política interior
A10: 1. Gobierno | B10: 1.3. Coordinación política de gobierno | C10: 1.3.3 Preservación y cuidado del patrimonio público
A11: 1. Gobierno | B11: 1.3. Coordinación política de gobierno | C11: 1.3.4 Función pública
A12: 1. Gobierno | B12: 1.3. Coordinación política de gobierno | C12: 1.3.5 Asuntos jurídicos
A13: 1. Gobierno | B13: 1.3. Coordinación política de gobierno | C13: 1.3.6 Organización de procesos electorales
A14: 1. Gobierno | B14: 1.3. Coordinación política de gobierno | C14: 1.3.7 Población
A15: 1. Gobierno | B15: 1.3. Coordinación política de gobierno | C15: 1.3.8 Territorio
A16: 1. Gobierno | B16: 1.3. Coordinación política de gobierno | C16: 1.3.9 Otros
A17: 1. Gobierno | B17: 1.4. Relaciones exteriores | C17: 1.4.1 Relaciones exteriores
A18: 1. Gobierno | B18: 1.5. Asuntos financieros y hacendarios | C18: 1.5.1 Asuntos financieros
A19: 1. Gobierno | B19: 1.5. Asuntos financieros y hacendarios | C19: 1.5.2 Asuntos hacendarios
A20: 1. Gobierno | B20: 1.6 Seguridad nacional | C20: 1.6.1 Defensa
A21: 1. Gobierno | B21: 1.6 Seguridad nacional | C21: 1.6.2 Marina
A22: 1. Gobierno | B22: 1.6 Seguridad nacional | C22: 1.6.3 Inteligencia para la preservación de la seguridad nacional
A23: 1. Gobierno | B23: 1.7. Asuntos de orden público y seguridad interior | C23: 1.7.1 Policía
A24: 1. Gobierno | B24: 1.7. Asuntos de orden público y seguridad interior | C24: 1.7.2 Protección civil
A25: 1. Gobierno | B25: 1.7. Asuntos de orden público y seguridad interior | C25: 1.7.3 Otros asuntos de orden público y seguridad
A26: 1. Gobierno | B26: 1.7. Asuntos de orden público y seguridad interior | C26: 1.7.4 Sistema nacional de seguridad pública
A27: 1. Gobierno | B27: 1.8. Otros servicios generales | C27: 1.8.1 Servicios registrales, administrativos y patrimoniales
A28: 1. Gobierno | B28: 1.8. Otros servicios generales | C28: 1.8.2 Servicios estadísticos
A29: 1. Gobierno | B29: 1.8. Otros servicios generales | C29: 1.8.3 Servicios de comunicación y medios
A30: 1. Gobierno | B30: 1.8. Otros servicios generales | C30: 1.8.4 Acceso a la información pública gubernamental
A31: 1. Gobierno | B31: 1.8. Otros servicios generales | C31: 1.8.5 Otros
A32: 2. Desarrollo social | B32: 2.1. Protección ambiental | C32: 2.1.1 Ordenación de desechos
A33: 2. Desarrollo social | B33: 2.1. Protección ambiental | C33: 2.1.2 Administración del agua
A34: 2. Desarrollo social | B34: 2.1. Protección ambiental | C34: 2.1.3 Ordenación de aguas residuales, drenaje y alcantarillado
A35: 2. Desarrollo social | B35: 2.1. Protección ambiental | C35: 2.1.4 Reducción de la contaminación
A36: 2. Desarrollo social | B36: 2.1. Protección ambiental | C36: 2.1.5 Protección de la diversidad biológica y del paisaje
A37: 2. Desarrollo social | B37: 2.1. Protección ambiental | C37: 2.1.6 Otros de protección ambiental
A38: 2. Desarrollo social | B38: 2.2. Vivienda y servicios a la comunidad | C38: 2.2.1 Urbanización
A39: 2. Desarrollo social | B39: 2.2. Vivienda y servicios a la comunidad | C39: 2.2.2 Desarrollo comunitario
A40: 2. Desarrollo social | B40: 2.2. Vivienda y servicios a la comunidad | C40: 2.2.3 Abastecimiento de agua
A41: 2. Desarrollo social | B41: 2.2. Vivienda y servicios a la comunidad | C41: 2.2.4 Alumbrado público
A42: 2. Desarrollo social | B42: 2.2. Vivienda y servicios a la comunidad | C42: 2.2.5 Vivienda
A43: 2. Desarrollo social | B43: 2.2. Vivienda y servicios a la comunidad | C43: 2.2.6 Servicios comunales
A44: 2. Desarrollo social | B44: 2.2. Vivienda y servicios a la comunidad | C44: 2.2.7 Desarrollo regional
A45: 2. Desarrollo social | B45: 2.3. Salud | C45: 2.3.1 Prestación de servicios de aalud a la comunidad
A46: 2. Desarrollo social | B46: 2.3. Salud | C46: 2.3.2 Prestación de servicios de salud a la persona
A47: 2. Desarrollo social | B47: 2.3. Salud | C47: 2.3.3 Generación de recursos para la salud
A48: 2. Desarrollo social | B48: 2.3. Salud | C48: 2.3.4 Rectoría del sistema de salud
A49: 2. Desarrollo social | B49: 2.3. Salud | C49: 2.3.5 Protección social en salud
A50: 2. Desarrollo social | B50: 2.4. Recreación cultura y otras manifestaciones sociales | C50: 2.4.1 Deporte y recreación
A51: 2. Desarrollo social | B51: 2.4. Recreación cultura y otras manifestaciones sociales | C51: 2.4.2 Cultura
A52: 2. Desarrollo social | B52: 2.4. Recreación cultura y otras manifestaciones sociales | C52: 2.4.3 Radio, televisión y editoriales
A53: 2. Desarrollo social | B53: 2.4. Recreación cultura y otras manifestaciones sociales | C53: 2.4.4 Asuntos religiosos y otras manifestaciones sociales
A54: 2. Desarrollo social | B54: 2.5. Educación | C54: 2.5.1 Educación básica
A55: 2. Desarrollo social | B55: 2.5. Educación | C55: 2.5.2 Educación media superior
A56: 2. Desarrollo social | B56: 2.5. Educación | C56: 2.5.3 Educación superior
A57: 2. Desarrollo social | B57: 2.5. Educación | C57: 2.5.4 Posgrado
A58: 2. Desarrollo social | B58: 2.5. Educación | C58: 2.5.5 Educación para adultos
A59: 2. Desarrollo social | B59: 2.5. Educación | C59: 2.5.6 Otros servicios educativos y actividades inherentes
A60: 2. Desarrollo social | B60: 2.6. Protección social | C60: 2.6.1 Enfermedad e incapacidad
A61: 2. Desarrollo social | B61: 2.6. Protección social | C61: 2.6.2 Edad avanzada
A62: 2. Desarrollo social | B62: 2.6. Protección social | C62: 2.6.3 Familia e hijos
A63: 2. Desarrollo social | B63: 2.6. Protección social | C63: 2.6.4 Desempleo
A64: 2. Desarrollo social | B64: 2.6. Protección social | C64: 2.6.5 Alimentación y nutrición
A65: 2. Desarrollo social | B65: 2.6. Protección social | C65: 2.6.6 Apoyo social para la vivienda
A66: 2. Desarrollo social | B66: 2.6. Protección social | C66: 2.6.7 Indígenas
A67: 2. Desarrollo social | B67: 2.6. Protección social | C67: 2.6.8 Otros grupos vulnerables
A68: 2. Desarrollo social | B68: 2.6. Protección social | C68: 2.6.9 Otros de seguridad social y asistencia social
A69: 2. Desarrollo social | B69: 2.7. Otros asuntos sociales | C69: 2.7.1 Otros asuntos sociales
A70: 3. Desarrollo económico | B70: 3.1. Asuntos económicos comerciales y laborales generales | C70: 3.1.1 Asuntos económicos y comerciales en general
A71: 3. Desarrollo económico | B71: 3.1. Asuntos económicos comerciales y laborales generales | C71: 3.1.2 Asuntos laborales generales
A72: 3. Desarrollo económico | B72: 3.2. Agropecuaria silvicultura pesca y caza | C72: 3.2.1 Agropecuaria
A73: 3. Desarrollo económico | B73: 3.2. Agropecuaria silvicultura pesca y caza | C73: 3.2.2 Silvicultura
A74: 3. Desarrollo económico | B74: 3.2. Agropecuaria silvicultura pesca y caza | C74: 3.2.3 Acuacultura, pesca y caza
A75: 3. Desarrollo económico | B75: 3.2. Agropecuaria silvicultura pesca y caza | C75: 3.2.4 Agroindustrial
A76: 3. Desarrollo económico | B76: 3.2. Agropecuaria silvicultura pesca y caza | C76: 3.2.5 Hidroagrícola
A77: 3. Desarrollo económico | B77: 3.2. Agropecuaria silvicultura pesca y caza | C77: 3.2.6 Apoyo financiero a la banca y seguro agropecuario
A78: 3. Desarrollo económico | B78: 3.3. Combustibles y energía | C78: 3.3.1 Carbón y otros combustibles minerales sólidos
A79: 3. Desarrollo económico | B79: 3.3. Combustibles y energía | C79: 3.3.2 Petróleo y gas natural (Hidrocarburos)
A80: 3. Desarrollo económico | B80: 3.3. Combustibles y energía | C80: 3.3.3 Combustibles nucleares
A81: 3. Desarrollo económico | B81: 3.3. Combustibles y energía | C81: 3.3.4 Otros combustibles
A82: 3. Desarrollo económico | B82: 3.3. Combustibles y energía | C82: 3.3.5 Electricidad
A83: 3. Desarrollo económico | B83: 3.3. Combustibles y energía | C83: 3.3.6 Energía no eléctrica
A84: 3. Desarrollo económico | B84: 3.4. Minería manufacturas y construcción | C84: 3.4.1 Extracción de recursos minerales excepto los combustibles minerales
A85: 3. Desarrollo económico | B85: 3.4. Minería manufacturas y construcción | C85: 3.4.2 Manufacturas
A86: 3. Desarrollo económico | B86: 3.4. Minería manufacturas y construcción | C86: 3.4.3 Construcción
A87: 3. Desarrollo económico | B87: 3.5. Transporte | C87: 3.5.1 Transporte por carretera
A88: 3. Desarrollo económico | B88: 3.5. Transporte | C88: 3.5.2 Transporte por agua y puertos
A89: 3. Desarrollo económico | B89: 3.5. Transporte | C89: 3.5.3 Transporte por ferrocarril
A90: 3. Desarrollo económico | B90: 3.5. Transporte | C90: 3.5.4 Transporte aéreo
A91: 3. Desarrollo económico | B91: 3.5. Transporte | C91: 3.5.5 Transporte por oleoductos y gasoductos y otros sistemas de transporte
A92: 3. Desarrollo económico | B92: 3.5. Transporte | C92: 3.5.6 Otros relacionados con transporte
A93: 3. Desarrollo económico | B93: 3.6. Comunicaciones | C93: 3.6.1 Comunicaciones
A94: 3. Desarrollo económico | B94: 3.7. Turismo | C94: 3.7.1 Turismo
A95: 3. Desarrollo económico | B95: 3.7. Turismo | C95: 3.7.2 Hoteles y restaurantes
A96: 3. Desarrollo económico | B96: 3.8. Ciencia tecnología e innovación | C96: 3.8.1 Investigación científica
A97: 3. Desarrollo económico | B97: 3.8. Ciencia tecnología e innovación | C97: 3.8.2 Desarrollo tecnológico
A98: 3. Desarrollo económico | B98: 3.8. Ciencia tecnología e innovación | C98: 3.8.3 Servicios científicos y tecnológicos
A99: 3. Desarrollo económico | B99: 3.8. Ciencia tecnología e innovación | C99: 3.8.4 Innovación
A100: 3. Desarrollo económico | B100: 3.9. Otras industrias y otros asuntos económicos | C100: 3.9.1 Comercio, distribución, almacenamiento y depósito
A101: 3. Desarrollo económico | B101: 3.9. Otras industrias y otros asuntos económicos | C101: 3.9.2 Otras industrias
A102: 3. Desarrollo económico | B102: 3.9. Otras industrias y otros asuntos económicos | C102: 3.9.3 Otros asuntos económicos
A103: 4. Otros no clasificadas en funciones anteriores | B103: 4.1. Transacciones de la deuda financiera y costo financiero deuda | C103: 4.1.1 Deuda pública interna
A104: 4. Otros no clasificadas en funciones anteriores | B104: 4.1. Transacciones de la deuda financiera y costo financiero deuda | C104: 4.1.2 Deuda pública externa
A105: 4. Otros no clasificadas en funciones anteriores | B105: 4.2. Transferencias, participaciones y aportaciones entre diferentes niveles y ordenes de gobierno | C105: 4.2.1 Transferencias entre diferentes niveles y ordenes de gobierno
A106: 4. Otros no clasificadas en funciones anteriores | B106: 4.2. Transferencias, participaciones y aportaciones entre diferentes niveles y ordenes de gobierno | C106: 4.2.2 Participaciones entre diferentes niveles y ordenes de gobierno
A107: 4. Otros no clasificadas en funciones anteriores | B107: 4.2. Transferencias, participaciones y aportaciones entre diferentes niveles y ordenes de gobierno | C107: 4.2.3 Aportaciones entre diferentes niveles y ordenes de gobierno
A108: 4. Otros no clasificadas en funciones anteriores | B108: 4.3. Saneamiento del sistema financiero | C108: 4.3.1 Saneamiento del sistema financiero
A109: 4. Otros no clasificadas en funciones anteriores | B109: 4.3. Saneamiento del sistema financiero | C109: 4.3.2 Apoyos IPAB
A110: 4. Otros no clasificadas en funciones anteriores | B110: 4.3. Saneamiento del sistema financiero | C110: 4.3.3 Banca de desarrollo
A111: 4. Otros no clasificadas en funciones anteriores | B111: 4.3. Saneamiento del sistema financiero | C111: 4.3.4 Apoyo a los programas de reestructura en unidades de inversión (UDIS)
A112: 4. Otros no clasificadas en funciones anteriores | B112: 4.4. Adeudos de ejercicios fiscales anteriores | C112: 4.4.1 Adeudos de ejercicios fiscales anteriores

Sheet BD (hidden)
G1: F1-F1LDF
A2: =MID(G2,1,1) -> 1 | B2: =MID(G2,2,1) -> 0 | C2: =MID(G2,3,1) -> 0 | D2: =MID(G2,4,1) -> 0 | E2: =MID(G2,5,1) -> 0 | G2: 10000 | H2: ='F1'!AF106 -> 455,784,435.90
A3: 1 | B3: 1 | C3: 0 | D3: 0 | E3: 0 | F3: =MID(G3,7,1) ->  | G3: 11000 | H3: ='F1'!AF46 -> 88,444,160.43
A4: 1 | B4: 1 | C4: 1 | D4: 0 | E4: 0 | G4: 11100 | H4: ='F1'!AF8 -> 77,664,477.99
A5: 1 | B5: 1 | C5: 1 | D5: 1 | E5: 0 | G5: 11110 | H5: ='F1'!AF9 -> 297,939.06
A6: 1 | B6: 1 | C6: 1 | D6: 2 | E6: 0 | G6: 11120 | H6: ='F1'!AF10 -> 72,531,938.93
A7: 1 | B7: 1 | C7: 1 | D7: 3 | E7: 0 | G7: 11130 | H7: ='F1'!AF11 -> 0.00
A8: 1 | B8: 1 | C8: 1 | D8: 4 | E8: 0 | G8: 11140 | H8: ='F1'!AF12 -> 0.00
A9: 1 | B9: 1 | C9: 1 | D9: 5 | E9: 0 | G9: 11150 | H9: ='F1'!AF13 -> 0.00
A10: 1 | B10: 1 | C10: 1 | D10: 6 | E10: 0 | G10: 11160 | H10: ='F1'!AF14 -> 0.00
A11: 1 | B11: 1 | C11: 1 | D11: 9 | E11: 0 | G11: 11190 | H11: ='F1'!AF15 -> 4,834,600.00
A12: 1 | B12: 1 | C12: 2 | D12: 0 | E12: 0 | G12: 11200 | H12: ='F1'!AF16 -> 5,706,024.88
A13: 1 | B13: 1 | C13: 2 | D13: 1 | E13: 0 | G13: 11210 | H13: ='F1'!AF17 -> 0.00
A14: 1 | B14: 1 | C14: 2 | D14: 2 | E14: 0 | G14: 11220 | H14: ='F1'!AF18 -> 0.00
A15: 1 | B15: 1 | C15: 2 | D15: 3 | E15: 0 | G15: 11230 | H15: ='F1'!AF19 -> 3,851,900.82
A16: 1 | B16: 1 | C16: 2 | D16: 4 | E16: 0 | G16: 11240 | H16: ='F1'!AF20 -> 0.00
A17: 1 | B17: 1 | C17: 2 | D17: 5 | E17: 0 | G17: 11250 | H17: ='F1'!AF21 -> -25,130.33
A18: 1 | B18: 1 | C18: 2 | D18: 6 | E18: 0 | G18: 11260 | H18: ='F1'!AF22 -> 1,879,254.39
A19: 1 | B19: 1 | C19: 2 | D19: 9 | E19: 0 | G19: 11290 | H19: ='F1'!AF23 -> 0.00
A20: 1 | B20: 1 | C20: 3 | D20: 0 | E20: 0 | G20: 11300 | H20: ='F1'!AF24 -> 5,073,657.56
A21: 1 | B21: 1 | C21: 3 | D21: 1 | E21: 0 | G21: 11310 | H21: ='F1'!AF25 -> 3,436,915.71
A22: 1 | B22: 1 | C22: 3 | D22: 2 | E22: 0 | G22: 11320 | H22: ='F1'!AF26 -> 0.00
A23: 1 | B23: 1 | C23: 3 | D23: 3 | E23: 0 | G23: 11330 | H23: ='F1'!AF27 -> 0.00
A24: 1 | B24: 1 | C24: 3 | D24: 4 | E24: 0 | G24: 11340 | H24: ='F1'!AF28 -> 1,636,741.85
A25: 1 | B25: 1 | C25: 3 | D25: 9 | E25: 0 | G25: 11390 | H25: ='F1'!AF29 -> 0.00
A26: 1 | B26: 1 | C26: 4 | D26: 0 | E26: 0 | G26: 11400 | H26: ='F1'!AF30 -> 0.00
A27: 1 | B27: 1 | C27: 4 | D27: 1 | E27: 0 | G27: 11410 | H27: ='F1'!AF31 -> 
A28: 1 | B28: 1 | C28: 4 | D28: 2 | E28: 0 | G28: 11420 | H28: ='F1'!AF32 -> 
A29: 1 | B29: 1 | C29: 4 | D29: 3 | E29: 0 | G29: 11430 | H29: ='F1'!AF33 -> 
A30: 1 | B30: 1 | C30: 4 | D30: 4 | E30: 0 | G30: 11440 | H30: ='F1'!AF34 -> 
A31: 1 | B31: 1 | C31: 4 | D31: 5 | E31: 0 | G31: 11450 | H31: ='F1'!AF35 -> 
A32: 1 | B32: 1 | C32: 5 | D32: 0 | E32: 0 | G32: 11500 | H32: ='F1'!AF36 -> 0.00
A33: 1 | B33: 1 | C33: 5 | D33: 1 | E33: 0 | G33: 11510 | H33: ='F1'!AF37 -> 0.00
A34: 1 | B34: 1 | C34: 6 | D34: 0 | E34: 0 | G34: 11600 | H34: ='F1'!AF38 -> 0.00
A35: 1 | B35: 1 | C35: 6 | D35: 1 | E35: 0 | G35: 11610 | H35: ='F1'!AF39 -> 0.00
A36: 1 | B36: 1 | C36: 6 | D36: 2 | E36: 0 | G36: 11620 | H36: ='F1'!AF40 -> 0.00
A37: 1 | B37: 1 | C37: 9 | D37: 0 | E37: 0 | G37: 11900 | H37: ='F1'!AF41 -> 0.00
A38: 1 | B38: 1 | C38: 9 | D38: 1 | E38: 0 | G38: 11910 | H38: ='F1'!AF42 -> 0.00
A39: 1 | B39: 1 | C39: 9 | D39: 2 | E39: 0 | G39: 11920 | H39: ='F1'!AF43 -> 0.00
A40: 1 | B40: 1 | C40: 9 | D40: 3 | E40: 0 | G40: 11930 | H40: ='F1'!AF44 -> 0.00
A41: 1 | B41: 1 | C41: 9 | D41: 4 | E41: 0 | G41: 11940 | H41: ='F1'!AF45 -> 0.00
A42: 1 | B42: 2 | C42: 0 | D42: 0 | E42: 0 | G42: 12000 | H42: ='F1'!AF105 -> 367,340,275.50
A43: 1 | B43: 2 | C43: 1 | D43: 0 | E43: 0 | G43: 12100 | H43: ='F1'!AF48 -> -168,473.67
A44: 1 | B44: 2 | C44: 1 | D44: 1 | E44: 0 | G44: 12110 | H44: ='F1'!AF49 -> 0.00
A45: 1 | B45: 2 | C45: 1 | D45: 2 | E45: 0 | G45: 12120 | H45: ='F1'!AF50 -> 0.00
A46: 1 | B46: 2 | C46: 1 | D46: 3 | E46: 0 | G46: 12130 | H46: ='F1'!AF51 -> -168,473.67
A47: 1 | B47: 2 | C47: 1 | D47: 4 | E47: 0 | G47: 12140 | H47: ='F1'!AF52 -> 0.00
A48: 1 | B48: 2 | C48: 2 | D48: 0 | E48: 0 | G48: 12200 | H48: ='F1'!AF53 -> 0.00
A49: 1 | B49: 2 | C49: 2 | D49: 1 | E49: 0 | G49: 12210 | H49: ='F1'!AF54 -> 0.00
A50: 1 | B50: 2 | C50: 2 | D50: 2 | E50: 0 | G50: 12220 | H50: ='F1'!AF55 -> 0.00
A51: 1 | B51: 2 | C51: 2 | D51: 3 | E51: 0 | G51: 12230 | H51: ='F1'!AF56 -> 0.00
A52: 1 | B52: 2 | C52: 2 | D52: 4 | E52: 0 | G52: 12240 | H52: ='F1'!AF57 -> 0.00
A53: 1 | B53: 2 | C53: 2 | D53: 9 | E53: 0 | G53: 12290 | H53: ='F1'!AF58 -> 0.00
A54: 1 | B54: 2 | C54: 3 | D54: 0 | E54: 0 | G54: 12300 | H54: ='F1'!AF59 -> 338,661,390.80
A55: 1 | B55: 2 | C55: 3 | D55: 1 | E55: 0 | G55: 12310 | H55: ='F1'!AF60 -> 26,661,195.01
A56: 1 | B56: 2 | C56: 3 | D56: 2 | E56: 0 | G56: 12320 | H56: ='F1'!AF61 -> 0.00
A57: 1 | B57: 2 | C57: 3 | D57: 3 | E57: 0 | G57: 12330 | H57: ='F1'!AF62 -> 32,456,577.20
A58: 1 | B58: 2 | C58: 3 | D58: 4 | E58: 0 | G58: 12340 | H58: ='F1'!AF63 -> 51,753,242.47
A59: 1 | B59: 2 | C59: 3 | D59: 5 | E59: 0 | G59: 12350 | H59: ='F1'!AF64 -> 227,790,376.10
A60: 1 | B60: 2 | C60: 3 | D60: 6 | E60: 0 | G60: 12360 | H60: ='F1'!AF65 -> 0.00
A61: 1 | B61: 2 | C61: 3 | D61: 9 | E61: 0 | G61: 12390 | H61: ='F1'!AF66 -> 0.00
A62: 1 | B62: 2 | C62: 4 | D62: 0 | E62: 0 | G62: 12400 | H62: ='F1'!AF67 -> 44,440,593.41
A63: 1 | B63: 2 | C63: 4 | D63: 1 | E63: 0 | G63: 12410 | H63: ='F1'!AF68 -> 5,238,965.54
A64: 1 | B64: 2 | C64: 4 | D64: 2 | E64: 0 | G64: 12420 | H64: ='F1'!AF69 -> 894,882.14
A65: 1 | B65: 2 | C65: 4 | D65: 3 | E65: 0 | G65: 12430 | H65: ='F1'!AF70 -> 1,921,564.96
A66: 1 | B66: 2 | C66: 4 | D66: 4 | E66: 0 | G66: 12440 | H66: ='F1'!AF71 -> 29,148,659.02
A67: 1 | B67: 2 | C67: 4 | D67: 5 | E67: 0 | G67: 12450 | H67: ='F1'!AF72 -> 867,562.13
A68: 1 | B68: 2 | C68: 4 | D68: 6 | E68: 0 | G68: 12460 | H68: ='F1'!AF73 -> 5,961,841.16
A69: 1 | B69: 2 | C69: 4 | D69: 7 | E69: 0 | G69: 12470 | H69: ='F1'!AF74 -> 407,118.46
A70: 1 | B70: 2 | C70: 4 | D70: 8 | E70: 0 | G70: 12480 | H70: ='F1'!AF75 -> 0.00
A71: 1 | B71: 2 | C71: 5 | D71: 0 | E71: 0 | G71: 12500 | H71: ='F1'!AF76 -> 2,757,222.70
A72: 1 | B72: 2 | C72: 5 | D72: 1 | E72: 0 | G72: 12510 | H72: ='F1'!AF77 -> 34,678.20
A73: 1 | B73: 2 | C73: 5 | D73: 2 | E73: 0 | G73: 12520 | H73: ='F1'!AF78 -> 0.00
A74: 1 | B74: 2 | C74: 5 | D74: 3 | E74: 0 | G74: 12530 | H74: ='F1'!AF79 -> 0.00
A75: 1 | B75: 2 | C75: 5 | D75: 4 | E75: 0 | G75: 12540 | H75: ='F1'!AF80 -> 2,722,544.50
A76: 1 | B76: 2 | C76: 5 | D76: 9 | E76: 0 | G76: 12590 | H76: ='F1'!AF81 -> 0.00
A77: 1 | B77: 2 | C77: 6 | D77: 0 | E77: 0 | G77: 12600 | H77: ='F1'!AF82 -> -18,350,457.80
A78: 1 | B78: 2 | C78: 6 | D78: 1 | E78: 0 | G78: 12610 | H78: ='F1'!AF83 -> -120,623.78
A79: 1 | B79: 2 | C79: 6 | D79: 2 | E79: 0 | G79: 12620 | H79: ='F1'!AF84 -> 0.00
A80: 1 | B80: 2 | C80: 6 | D80: 3 | E80: 0 | G80: 12630 | H80: ='F1'!AF85 -> -17,893,932.55
A81: 1 | B81: 2 | C81: 6 | D81: 4 | E81: 0 | G81: 12640 | H81: ='F1'!AF86 -> 0.00
A82: 1 | B82: 2 | C82: 6 | D82: 5 | E82: 0 | G82: 12650 | H82: ='F1'!AF87 -> -335,901.47
A83: 1 | B83: 2 | C83: 7 | D83: 0 | E83: 0 | G83: 12700 | H83: ='F1'!AF88 -> 0.00
A84: 1 | B84: 2 | C84: 7 | D84: 1 | E84: 0 | G84: 12710 | H84: ='F1'!AF89 -> 0.00
A85: 1 | B85: 2 | C85: 7 | D85: 2 | E85: 0 | G85: 12720 | H85: ='F1'!AF90 -> 0.00
A86: 1 | B86: 2 | C86: 7 | D86: 3 | E86: 0 | G86: 12730 | H86: ='F1'!AF91 -> 0.00
A87: 1 | B87: 2 | C87: 7 | D87: 4 | E87: 0 | G87: 12740 | H87: ='F1'!AF92 -> 0.00
A88: 1 | B88: 2 | C88: 7 | D88: 5 | E88: 0 | G88: 12750 | H88: ='F1'!AF93 -> 0.00
A89: 1 | B89: 2 | C89: 7 | D89: 9 | E89: 0 | G89: 12790 | H89: ='F1'!AF94 -> 0.00
A90: 1 | B90: 2 | C90: 8 | D90: 0 | E90: 0 | G90: 12800 | H90: ='F1'!AF95 -> 0.00
A91: 1 | B91: 2 | C91: 8 | D91: 1 | E91: 0 | G91: 12810 | H91: ='F1'!AF96 -> 0.00
A92: 1 | B92: 2 | C92: 8 | D92: 2 | E92: 0 | G92: 12820 | H92: ='F1'!AF97 -> 0.00
A93: 1 | B93: 2 | C93: 8 | D93: 3 | E93: 0 | G93: 12830 | H93: ='F1'!AF98 -> 0.00
A94: 1 | B94: 2 | C94: 8 | D94: 4 | E94: 0 | G94: 12840 | H94: ='F1'!AF99 -> 0.00
A95: 1 | B95: 2 | C95: 8 | D95: 9 | E95: 0 | G95: 12890 | H95: ='F1'!AF100 -> 0.00
A96: 1 | B96: 2 | C96: 9 | D96: 0 | E96: 0 | G96: 12900 | H96: ='F1'!AF101 -> 0.00
A97: 1 | B97: 2 | C97: 9 | D97: 1 | E97: 0 | G97: 12910 | H97: ='F1'!AF102 -> 0.00
A98: 1 | B98: 2 | C98: 9 | D98: 2 | E98: 0 | G98: 12920 | H98: ='F1'!AF103 -> 0.00
A99: 1 | B99: 2 | C99: 9 | D99: 3 | E99: 0 | G99: 12930 | H99: ='F1'!AF104 -> 0.00
A100: 2 | B100: 0 | C100: 0 | D100: 0 | E100: 0 | G100: 20000 | H100: ='F1'!BM80 -> 28,037,165.03
A101: 2 | B101: 1 | C101: 0 | D101: 0 | E101: 0 | G101: 21000 | H101: ='F1'!BM48 -> -496,751.23
A102: 2 | B102: 1 | C102: 1 | D102: 0 | E102: 0 | G102: 21100 | H102: ='F1'!BM8 -> -1,229,153.88
A103: 2 | B103: 1 | C103: 1 | D103: 1 | E103: 0 | G103: 21110 | H103: ='F1'!BM9 -> 0.00
A104: 2 | B104: 1 | C104: 1 | D104: 2 | E104: 0 | G104: 21120 | H104: ='F1'!BM10 -> 17,734.19
A105: 2 | B105: 1 | C105: 1 | D105: 3 | E105: 0 | G105: 21130 | H105: ='F1'!BM11 -> 0.00
A106: 2 | B106: 1 | C106: 1 | D106: 4 | E106: 0 | G106: 21140 | H106: ='F1'!BM12 -> 0.00
A107: 2 | B107: 1 | C107: 1 | D107: 5 | E107: 0 | G107: 21150 | H107: ='F1'!BM13 -> 0.00
A108: 2 | B108: 1 | C108: 1 | D108: 6 | E108: 0 | G108: 21160 | H108: ='F1'!BM14 -> 0.00
A109: 2 | B109: 1 | C109: 1 | D109: 7 | E109: 0 | G109: 21170 | H109: ='F1'!BM15 -> -1,246,888.07
A110: 2 | B110: 1 | C110: 1 | D110: 8 | E110: 0 | G110: 21180 | H110: ='F1'!BM16 -> 0.00
A111: 2 | B111: 1 | C111: 1 | D111: 9 | E111: 0 | G111: 21190 | H111: ='F1'!BM17 -> 0.00
A112: 2 | B112: 1 | C112: 2 | D112: 0 | E112: 0 | G112: 21200 | H112: ='F1'!BM18 -> 961.53
A113: 2 | B113: 1 | C113: 2 | D113: 1 | E113: 0 | G113: 21210 | H113: ='F1'!BM19 -> 0.00
A114: 2 | B114: 1 | C114: 2 | D114: 2 | E114: 0 | G114: 21220 | H114: ='F1'!BM20 -> 961.53
A115: 2 | B115: 1 | C115: 2 | D115: 9 | E115: 0 | G115: 21290 | H115: ='F1'!BM21 -> 0.00
A116: 2 | B116: 1 | C116: 3 | D116: 0 | E116: 0 | G116: 21300 | H116: ='F1'!BM22 -> 731,441.12
A117: 2 | B117: 1 | C117: 3 | D117: 1 | E117: 0 | G117: 21310 | H117: ='F1'!BM23 -> 731,441.12
A118: 2 | B118: 1 | C118: 3 | D118: 2 | E118: 0 | G118: 21320 | H118: ='F1'!BM24 -> 
A119: 2 | B119: 1 | C119: 3 | D119: 3 | E119: 0 | G119: 21330 | H119: ='F1'!BM25 -> 0.00
A120: 2 | B120: 1 | C120: 4 | D120: 0 | E120: 0 | G120: 21400 | H120: ='F1'!BM26 -> 0.00
A121: 2 | B121: 1 | C121: 4 | D121: 1 | E121: 0 | G121: 21410 | H121: ='F1'!BM27 -> 0.00
A122: 2 | B122: 1 | C122: 4 | D122: 2 | E122: 0 | G122: 21420 | H122: ='F1'!BM28 -> 
A123: 2 | B123: 1 | C123: 5 | D123: 0 | E123: 0 | G123: 21500 | H123: ='F1'!BM29 -> 0.00
A124: 2 | B124: 1 | C124: 5 | D124: 1 | E124: 0 | G124: 21510 | H124: ='F1'!BM30 -> 0.00
A125: 2 | B125: 1 | C125: 5 | D125: 2 | E125: 0 | G125: 21520 | H125: ='F1'!BM31 -> 0.00
A126: 2 | B126: 1 | C126: 5 | D126: 9 | E126: 0 | G126: 21590 | H126: ='F1'!BM32 -> 0.00
A127: 2 | B127: 1 | C127: 6 | D127: 0 | E127: 0 | G127: 21600 | H127: ='F1'!BM33 -> 0.00
A128: 2 | B128: 1 | C128: 6 | D128: 1 | E128: 0 | G128: 21610 | H128: ='F1'!BM34 -> 0.00
A129: 2 | B129: 1 | C129: 6 | D129: 2 | E129: 0 | G129: 21620 | H129: ='F1'!BM35 -> 0.00
A130: 2 | B130: 1 | C130: 6 | D130: 3 | E130: 0 | G130: 21630 | H130: ='F1'!BM36 -> 0.00
A131: 2 | B131: 1 | C131: 6 | D131: 4 | E131: 0 | G131: 21640 | H131: ='F1'!BM37 -> 0.00
A132: 2 | B132: 1 | C132: 6 | D132: 5 | E132: 0 | G132: 21650 | H132: ='F1'!BM38 -> 0.00
A133: 2 | B133: 1 | C133: 6 | D133: 6 | E133: 0 | G133: 21660 | H133: ='F1'!BM39 -> 0.00
A134: 2 | B134: 1 | C134: 7 | D134: 0 | E134: 0 | G134: 21700 | H134: ='F1'!BM40 -> 0.00
A135: 2 | B135: 1 | C135: 7 | D135: 1 | E135: 0 | G135: 21710 | H135: ='F1'!BM41 -> 0.00
A136: 2 | B136: 1 | C136: 7 | D136: 2 | E136: 0 | G136: 21720 | H136: ='F1'!BM42 -> 0.00
A137: 2 | B137: 1 | C137: 7 | D137: 9 | E137: 0 | G137: 21790 | H137: ='F1'!BM43 -> 0.00
A138: 2 | B138: 1 | C138: 9 | D138: 0 | E138: 0 | G138: 21900 | H138: ='F1'!BM44 -> 0.00
A139: 2 | B139: 1 | C139: 9 | D139: 1 | E139: 0 | G139: 21910 | H139: ='F1'!BM45 -> 0.00
A140: 2 | B140: 1 | C140: 9 | D140: 2 | E140: 0 | G140: 21920 | H140: ='F1'!BM46 -> 0.00
A141: 2 | B141: 1 | C141: 9 | D141: 9 | E141: 0 | G141: 21990 | H141: ='F1'!BM47 -> 0.00
A142: 2 | B142: 2 | C142: 0 | D142: 0 | E142: 0 | G142: 22000 | H142: ='F1'!BM79 -> 28,533,916.26
A143: 2 | B143: 2 | C143: 1 | D143: 0 | E143: 0 | G143: 22100 | H143: ='F1'!BM50 -> 0.00
A144: 2 | B144: 2 | C144: 1 | D144: 1 | E144: 0 | G144: 22110 | H144: ='F1'!BM51 -> 0.00
A145: 2 | B145: 2 | C145: 1 | D145: 2 | E145: 0 | G145: 22120 | H145: ='F1'!BM52 -> 0.00
A146: 2 | B146: 2 | C146: 2 | D146: 0 | E146: 0 | G146: 22200 | H146: ='F1'!BM53 -> 0.00
A147: 2 | B147: 2 | C147: 2 | D147: 1 | E147: 0 | G147: 22210 | H147: ='F1'!BM54 -> 0.00
A148: 2 | B148: 2 | C148: 2 | D148: 2 | E148: 0 | G148: 22220 | H148: ='F1'!BM55 -> 0.00
A149: 2 | B149: 2 | C149: 2 | D149: 9 | E149: 0 | G149: 22290 | H149: ='F1'!BM56 -> 0.00
A150: 2 | B150: 2 | C150: 3 | D150: 0 | E150: 0 | G150: 22300 | H150: ='F1'!BM57 -> 28,533,916.26
A151: 2 | B151: 2 | C151: 3 | D151: 1 | E151: 0 | G151: 22310 | H151: ='F1'!BM58 -> 0.00
A152: 2 | B152: 2 | C152: 3 | D152: 2 | E152: 0 | G152: 22320 | H152: ='F1'!BM59 -> 
A153: 2 | B153: 2 | C153: 3 | D153: 3 | E153: 0 | G153: 22330 | H153: ='F1'!BM60 -> 28,533,916.26
A154: 2 | B154: 2 | C154: 3 | D154: 4 | E154: 0 | G154: 22340 | H154: ='F1'!BM61 -> 
A155: 2 | B155: 2 | C155: 3 | D155: 5 | E155: 0 | G155: 22350 | H155: ='F1'!BM62 -> 0.00
A156: 2 | B156: 2 | C156: 4 | D156: 0 | E156: 0 | G156: 22400 | H156: ='F1'!BM63 -> 0.00
A157: 2 | B157: 2 | C157: 4 | D157: 1 | E157: 0 | G157: 22410 | H157: ='F1'!BM64 -> 0.00
A158: 2 | B158: 2 | C158: 4 | D158: 2 | E158: 0 | G158: 22420 | H158: ='F1'!BM65 -> 0.00
A159: 2 | B159: 2 | C159: 4 | D159: 9 | E159: 0 | G159: 22490 | H159: ='F1'!BM66 -> 0.00
A160: 2 | B160: 2 | C160: 5 | D160: 0 | E160: 0 | G160: 22500 | H160: ='F1'!BM67 -> 0.00
A161: 2 | B161: 2 | C161: 5 | D161: 1 | E161: 0 | G161: 22510 | H161: ='F1'!BM68 -> 0.00
A162: 2 | B162: 2 | C162: 5 | D162: 2 | E162: 0 | G162: 22520 | H162: ='F1'!BM69 -> 0.00
A163: 2 | B163: 2 | C163: 5 | D163: 3 | E163: 0 | G163: 22530 | H163: ='F1'!BM70 -> 0.00
A164: 2 | B164: 2 | C164: 5 | D164: 4 | E164: 0 | G164: 22540 | H164: ='F1'!BM71 -> 0.00
A165: 2 | B165: 2 | C165: 5 | D165: 5 | E165: 0 | G165: 22550 | H165: ='F1'!BM72 -> 0.00
A166: 2 | B166: 2 | C166: 5 | D166: 6 | E166: 0 | G166: 22560 | H166: ='F1'!BM73 -> 0.00
A167: 2 | B167: 2 | C167: 6 | D167: 0 | E167: 0 | G167: 22600 | H167: ='F1'!BM74 -> 0.00
A168: 2 | B168: 2 | C168: 6 | D168: 1 | E168: 0 | G168: 22610 | H168: ='F1'!BM75 -> 0.00
A169: 2 | B169: 2 | C169: 6 | D169: 2 | E169: 0 | G169: 22620 | H169: ='F1'!BM76 -> 0.00
A170: 2 | B170: 2 | C170: 6 | D170: 3 | E170: 0 | G170: 22630 | H170: ='F1'!BM77 -> 0.00
A171: 2 | B171: 2 | C171: 6 | D171: 9 | E171: 0 | G171: 22690 | H171: ='F1'!BM78 -> 0.00
A172: 3 | B172: 0 | C172: 0 | D172: 0 | E172: 0 | G172: 30000 | H172: ='F1'!BM105 -> 427,747,270.90
A173: 3 | B173: 1 | C173: 0 | D173: 0 | E173: 0 | G173: 31000 | H173: ='F1'!BM82 -> 0.00
A174: 3 | B174: 1 | C174: 1 | D174: 0 | E174: 0 | G174: 31100 | H174: ='F1'!BM83 -> 0.00
A175: 3 | B175: 1 | C175: 2 | D175: 0 | E175: 0 | G175: 31200 | H175: ='F1'!BM84 -> 0.00
A176: 3 | B176: 1 | C176: 3 | D176: 0 | E176: 0 | G176: 31300 | H176: ='F1'!BM85 -> 0.00
A177: 3 | B177: 2 | C177: 0 | D177: 0 | E177: 0 | G177: 32000 | H177: ='F1'!BM86 -> 427,747,270.90
A178: 3 | B178: 2 | C178: 1 | D178: 0 | E178: 0 | G178: 32100 | H178: ='F1'!BM87 -> 20,091,410.26
A179: 3 | B179: 2 | C179: 2 | D179: 0 | E179: 0 | G179: 32200 | H179: ='F1'!BM88 -> 407,655,860.60
A180: 3 | B180: 2 | C180: 3 | D180: 0 | E180: 0 | G180: 32300 | H180: ='F1'!BM89 -> 0.00
A181: 3 | B181: 2 | C181: 3 | D181: 1 | E181: 0 | G181: 32310 | H181: ='F1'!BM90 -> 0.00
A182: 3 | B182: 2 | C182: 3 | D182: 2 | E182: 0 | G182: 32320 | H182: ='F1'!BM91 -> 0.00
A183: 3 | B183: 2 | C183: 3 | D183: 3 | E183: 0 | G183: 32330 | H183: ='F1'!BM92 -> 0.00
A184: 3 | B184: 2 | C184: 3 | D184: 9 | E184: 0 | G184: 32390 | H184: ='F1'!BM93 -> 0.00
A185: 3 | B185: 2 | C185: 4 | D185: 0 | E185: 0 | G185: 32400 | H185: ='F1'!BM94 -> 0.00
A186: 3 | B186: 2 | C186: 4 | D186: 1 | E186: 0 | G186: 32410 | H186: ='F1'!BM95 -> 0.00
A187: 3 | B187: 2 | C187: 4 | D187: 2 | E187: 0 | G187: 32420 | H187: ='F1'!BM96 -> 0.00
A188: 3 | B188: 2 | C188: 4 | D188: 3 | E188: 0 | G188: 32430 | H188: ='F1'!BM97 -> 0.00
A189: 3 | B189: 2 | C189: 5 | D189: 0 | E189: 0 | G189: 32500 | H189: ='F1'!BM98 -> 0.00
A190: 3 | B190: 2 | C190: 5 | D190: 1 | E190: 0 | G190: 32510 | H190: ='F1'!BM99 -> 0.00
A191: 3 | B191: 2 | C191: 5 | D191: 2 | E191: 0 | G191: 32520 | H191: ='F1'!BM100 -> 0.00
A192: 3 | B192: 3 | C192: 0 | D192: 0 | E192: 0 | G192: 33000 | H192: ='F1'!BM102 -> 0.00
A193: 3 | B193: 3 | C193: 1 | D193: 0 | E193: 0 | G193: 33100 | H193: ='F1'!BM103 -> 0.00
A194: 3 | B194: 3 | C194: 2 | D194: 0 | E194: 0 | G194: 33200 | H194: ='F1'!BM104 -> 0.00
G195: F6
A196: =MID(G196,1,1) -> 4 | B196: =MID(G196,2,1) -> 0 | C196: =MID(G196,3,1) -> 0 | D196: =MID(G196,4,1) -> 0 | E196: =MID(G196,5,1) -> 0 | F196: =MID(G196,7,1) ->  | G196: 40000 | H196: ='F6'!AX184 -> 35,851,995.47
A197: 4 | B197: 1 | C197: 0 | D197: 0 | E197: 0 | G197: 41000 | H197: ='F6'!AX7 -> 17,127,648.98
A198: 4 | B198: 1 | C198: 1 | D198: 0 | E198: 0 | G198: 41100 | H198: ='F6'!AX8 -> 8,334,338.87
A199: 4 | B199: 1 | C199: 1 | D199: 1 | E199: 0 | G199: 41110 | H199: ='F6'!AX9 -> 0.00
A200: 4 | B200: 1 | C200: 1 | D200: 1 | E200: 0 | F200: 1 | G200: 41110-1 | H200: ='F6'!AX10 -> 0.00
... 1873 more rows

Sheet Validacion (hidden)
A1: NOMBRE DEL ENTE PÚBLICO | AG1: ="Versión "&F185&".01" -> Versión 2025.01
A2: Ixtlahuacán de los Membrillos
A5: INFORMACIÓN
A6: Nombre del presidente municipal o titular de la entidad pública
A7: LIC. JOSE HERIBERTO GARCIA MURILLO
A8: Nombre del encargado de la hacienda pública o finanzas de la entidad pública
A9: LAE BRUNO GERMAN ENCISO GUILLEN
A10: Mes o corte a informar
A11: ENERO | AM11: =IF(A11="ENERO",1,IF(A11="FEBRERO",2,IF(A11="MARZO",3,IF(A11="ABRIL",4,IF(A11="MAYO",5,IF(A11="JUNIO, 1er. Informe de Avance de Gestión Financiera y Corte Semestral",6,IF(A11="JULIO",7,IF(A11="AGOSTO",8,IF(A11="SEPTIEMBRE",9,IF(A11="OCTUBRE",10,IF(A11="NOVIEMBRE",11,IF(A11="DICIEMBRE, 2do. Informe de Avance de Gestión Financiera y Corte Anual",12,"")))))))))))) -> 1
A12: VERIFICACIÓN DE ESTADOS E INFORMES FINANCIEROS
A13: Estados e informes contables:
A14: =IF(AM14=1,"",IF(ROUND(SUM(A50:L52),2)>0,IF(ROUND((M50),2)=ROUND((M51+M52),2),IF(ROUND(A50,2)=ROUND((A51+A52),2),"X",""),""),"")) -> X | B14: Estado de situación financiera (F1A) | AM14: =IF(AND(C64="", C65="", C66="",C67="",C68="",C69="",C73="", C74="", C75="",C76=""),"",1) -> 
A15: =IF(AM15=1,"",IF(ROUND('F2'!G33,2)=0,"","X")) -> X | B15: Estado de variación de la hacienda pública (F2) | AM15: =IF(AND(C64="", C65="", C66="",C67="",C68="",C69="",C77="", C78="", C79="",C80="",C81=""),"",1) -> 
A16: =IF(AM16=1,"",IF(ROUND('F3'!F60,2)>0,"X","")) ->  | B16: Estado de flujo de efectivo (F3) | AM16: =IF(AND(C64="", C65="", C66="",C67="",C68="",C69="",C101="", C102="", C103=""),"",1) -> 1
A17: =IF(AM17=1,"",IF(ROUND(F4A1!D18,2)>0,"X","")) ->  | B17: Conciliación entre los ingresos presupuestarios y contables (F4A1) | AM17: =IF(AND(C64="", C65="", C66="",C67="",C68="",C69="",C70="", C71="", C72="",C82="",C83="",C84="",C85="",C86="",C87="", C88="", C89="",C90="",C91=""),"",1) -> 1
A18: =IF(AM18=1,"",IF(ROUND(F4A2!D37,2)>0,"X","")) ->  | B18: Conciliación entre los egresos presupuestarios y los gastos contables (F4A2) | AM18: =IF(AND(C64="", C65="", C66="",C67="",C68="",C69="",C70="", C71="", C72="",C92="",C93="",C94="",C95="",C96=""),"",1) -> 1
A19: =IF(AM19=1,"",IF(ROUND('F5'!H6,2)>0,"X","")) -> X | B19: Estado analítico del activo (F5) | AM19: =IF(AND(C64="", C65="", C66="",C67="",C68="",C69="",C104="", C105="", C106=""),"",1) -> 
A20: =IF(AM20=1,"",IF(ROUND(SUM(A53:L54),2)>0,IF(ROUND(M53,2)>0,"X",""),"")) -> X | B20: Estado de actividades (F6A) | AM20: =IF(AND(C64="", C65="", C66="",C67="",C68="",C69=""),"",1) -> 
A21: =IF(AM21=1,"",IF(ROUND('F16'!E4,2)-ROUND('F16'!F4,2)=0,IF('F16'!E4+'F16'!F4>0,"X",""),"")) -> X | B21: Estado de cambios en la situación financiera (F16) | AM21: =IF(AND(C64="", C65="", C66="",C67="",C68="",C69="",C97="", C98="", C99="",C100=""),"",1) -> 
A22: =IF('F11'!A6>0,"X","") -> X | B22: Informe sobre pasivos contingentes (F11)
A23: Estados e informes presupuestarios:
A24: =IF(AM24=1,"",IF(ROUND(SUM('F7'!E70:F70),2)>0,"X","")) ->  | B24: Estado analítico de ingresos por clasificación por rubro de ingresos (F7) | AM24: =IF(AND(C70="", C71="", C72=""),"",1) -> 
A25: =IF(AM25=1,"",IF(ROUND(SUM(F7A!F23:G23),2)>0,"X","")) ->  | B25: Estado analítico de ingresos por clasificación por fuente de financiamiento (F7A) | AM25: =IF(AND(C70="", C71="", C72=""),"",1) -> 
A26: =IF(AM26=1,"",IF(ROUND(SUM('F8'!E80:F80),2)>0,"X","")) ->  | B26: Estado analítico del ejercicio del presupuesto de egresos por clasificación por objeto del gasto (F8) | AM26: =IF(AND(C70="", C71="", C72=""),"",1) -> 
A27: =IF(AM27=1,"",IF(ROUND(SUM('F17'!E13:F13),2)>0,"X","")) ->  | B27: Estado analítico del ejercicio del presupuesto de egresos por clasificación por tipo de gasto (F17) | AM27: =IF(AND(C70="", C71="", C72=""),"",1) -> 
A28: =IF(ROUND(SUM('F18'!D58:E58),2)>0,"X","") ->  | B28: Estado analítico del ejercicio del presupuesto de egresos por clasificación administrativa (F18)
A29: =IF(ROUND(SUM('F19'!E40:F40),2)>0,"X","") ->  | B29: Estado analítico del ejercicio del presupuesto de egresos por clasificación funcional (F19)
A30: Estados e informes de la Ley de Disciplina Financiera:
A31: =IF(AM31=1,"",IF(ROUND(SUM(A50:L52),2)>0,IF(ROUND(M50,2)=ROUND((M51+M52),2),IF(ROUND(A50,2)=ROUND((A51+A52),2),"X",""),""),"")) -> X | B31: Estado de situación financiera detallado - LDF (F1LDF) | AM31: =IF(AND(C64="", C65="", C66="",C67="",C68="",C69="",C73="", C74="", C75="",C76=""),"",1) -> 
A32: =IF(AM32=1,"",IF('F9-IDP'!J3>0,"X","")) -> X | B32: Informe analítico de la deuda pública y otros pasivos (F9-EDP) | AM32: =IF(AND(C64="", C65="", C66="",C67="",C68="",C69="",C107="", C108="", C109="",C110="",C111="",C112="",C113="",C114="",C115="", C116="", C117=""),"",1) -> 
A33: =IF(AM33=1,"",IF('F9-IAO'!C12>0,"X","")) -> X | B33: Informe analítico de obligaciones diferentes de financiamiento (F9-IAO) | AM33: =IF(AND(C64="", C65="", C66="",C67="",C68="",C69=""),"",1) -> 
A34: =IF(AM34=1,"",IF(ROUND(SUM('F22'!F10:G10),2)>0,"X","")) ->  | B34: Balance presupuestario - LDF (F22) | AM34: =IF(AND(C70="", C71="", C72="",C160="",C161="",C162="",C163="", C164="", C165=""),"",1) -> 
A35: =IF(AM35=1,"",IF(ROUND(SUM(F7B!E64:F64),2)>0,"X","")) ->  | B35: Estado analítico de ingresos detallados - LDF (F7B) | AM35: =IF(AND(C70="", C71="", C72="",C124="",C125="",C126="",C127="", C128="", C129="",C130="",C131=""),"",1) -> 
A36: =IF(AM36=1,"",IF(ROUND(SUM(F8B!F155:G155),2)>0,"X","")) ->  | B36: Estado analítico del ejercicio del presupuesto de egresos detallado - LDF por clasificación por objeto del gasto (F8B) | AM36: =IF(AND(C70="", C71="", C72="",C132="",C133="",C134="",C135=""),"",1) -> 
A37: =IF(AM37=1,"",IF(ROUND(SUM(F18A!F62:G62),2)>0,"X","")) ->  | B37: Estado analítico del ejercicio del presupuesto de egresos detallado - LDF por clasificación administrativa (F18A) | AM37: =IF(AND(C148="", C149="", C150="",C151="",C152="",C153="",C154="", C155="", C156="",C157="",C158="",C159=""),"",1) -> 
A38: =IF(AM38=1,"",IF(ROUND(SUM(F19A!F76:G76),2)>0,"X","")) ->  | B38: Estado analítico del ejercicio del presupuesto de egresos detallado - LDF por clasificación funcional (F19A) | AM38: =IF(AND(C136="", C137="", C138="",C139="",C140="",C141="",C142="", C143="", C144="",C145="",C146="",C147=""),"",1) -> 
A39: =IF(ROUND(SUM('F21'!F32:G32),2)>0,"X","") ->  | B39: Estado analítico del ejercicio del presupuesto de egresos detallado - LDF por servicios personales por categoría (F21)
A40: Informes complementarios:
A41: =IF(AM41=1,"",IF(ROUND(SUM(A50:L52),2)>0,IF(ROUND((M50),2)=ROUND((M51+M52),2),IF(ROUND(A50,2)=ROUND((A51+A52),2),"X",""),""),"")) -> X | B41: Estado analítico de situación financiera (F1) | AM41: =IF(AND(C64="", C65="", C66="",C67="",C68="",C69="",C73="", C74="", C75="",C76=""),"",1) -> 
A42: =IF(AM42=1,"",IF(ROUND(SUM(A53:L54),2)>0,IF(ROUND(M53,2)>0,"X",""),"")) -> X | B42: Estado analítico de actividades (F6) | AM42: =IF(AND(C64="", C65="", C66="",C67="",C68="",C69=""),"",1) -> 
A43: =IF('F10'!B6>0,"X","") -> X | B43: Informativa de proveedores (F10)
A44: =IF('F23'!A9>0,"X","") ->  | B44: Informativa de obra pública (F23)
A45: Informe de Avances de Gestión Financiera
A46: =IF(AM46=1,"",IF(ROUND(SUM('F12'!E30:F30),2)>0,"X","")) ->  | B46: Flujo contable de ingresos y egresos (F12) | AM46: =IF(AND(C70="", C71="",C72="",C118="",C119="",C120="", C121="", C122="",C123=""),"",1) -> 
A47: =IF(AM47=1,"",IF(ROUND(SUM('F13'!AA6:AI6),2)>0,"X","")) ->  | B47: Avance de programas y/o procesos concluidos (F13) | AM47: =IF(AND(C70="", C71="", C72="",C166="",C167="",C168="",C169="", C170="", C171="",C172="",C173="",C174="",C175="",C176="",C177="", C178="", C179="",C180="",C181="",C182="",C183=""),"",1) -> 
A48: INFORMACIÓN FINANCIERA GENERAL
A49: ="EJERCICIO "&F185 -> EJERCICIO 2025 | M49: ="EJERCICIO "&F186 -> EJERCICIO 2024 | Y49: CONCEPTO
A50: =ROUND('F1'!AF106,2) -> 455,784,435.90 | M50: =ROUND('F1'!AG106,2) -> 435,993,845.40 | Y50: Activo
A51: =ROUND('F1'!BM80,2) -> 28,037,165.03 | M51: =ROUND('F1'!BN80,2) -> 28,337,984.82 | Y51: Pasivo
A52: =ROUND('F1'!BM105,2) -> 427,747,270.90 | M52: =ROUND('F1'!BN105,2) -> 407,655,860.60 | Y52: Hacienda pública/patrimonio
A53: =ROUND('F6'!AX184,2) -> 35,851,995.47 | M53: =ROUND('F6'!AY184,2) -> 331,683,212.70 | Y53: Ingresos
A54: =ROUND('F6'!AX539,2) -> 15,760,585.21 | M54: =ROUND('F6'!AY539,2) -> 246,899,546.10 | Y54: Egresos
A55: =ROUND('F6'!AX540,2) -> 20,091,410.26 | M55: =ROUND('F6'!AY540,2) -> 84,783,666.63 | Y55: Ahorro/desahorro
A56: F1 | G56: F9-EDP | M56: F1 | S56: F9-EDP | Y56: CONCEPTO
A57: =ROUND('F1'!BM23,2) -> 731,441.12 | G57: =ROUND('F9-EDP'!AP12,2) -> 731,441.12 | M57: =ROUND('F1'!BN23+'F1'!BN60,2) -> 29,327,028.44 | S57: =ROUND('F9-EDP'!N12,2) -> 793,112.18 | Y57: Deuda pública instituciones de crédito C/P
A58: =ROUND('F1'!BM60,2) -> 28,533,916.26 | G58: =ROUND('F9-EDP'!AP16,2) -> 28,533,916.26 | S58: =ROUND('F9-EDP'!N16,2) -> 28,533,916.26 | Y58: Deuda pública instituciones de crédito L/P
A59: =ROUND('F1'!BM27,2) -> 0.00 | G59: =ROUND('F9-EDP'!AP13,2) -> 0.00 | M59: =ROUND('F1'!BN27+'F1'!BN58,2) -> 0.00 | S59: =ROUND('F9-EDP'!N13,2) -> 0.00 | Y59: Deuda pública títulos y valores C/P
A60: =ROUND('F1'!BM58,2) -> 0.00 | G60: =ROUND('F9-EDP'!AP17,2) -> 0.00 | S60: =ROUND('F9-EDP'!N17,2) -> 0.00 | Y60: Deuda pública títulos y valores L/P
A61: =ROUND('F1'!BM25,2) -> 0.00 | G61: =ROUND('F9-EDP'!AP14,2) -> 0.00 | M61: =ROUND('F1'!BN25+'F1'!BN62,2) -> 0.00 | S61: =ROUND('F9-EDP'!N14,2) -> 0.00 | Y61: Deuda pública arrendamiento financiero C/P
A62: =ROUND('F1'!BM62,2) -> 0.00 | G62: =ROUND('F9-EDP'!AP18,2) -> 0.00 | S62: =ROUND('F9-EDP'!N18,2) -> 0.00 | Y62: Deuda pública arrendamiento financiero L/P
A63: INCONSISTENCIAS
A64: 1. Validación a la balanza de comprobación (contable) | C64: =IF(ROUND(Balanza!$C$754,2)=ROUND(Balanza!$D$754,2),"","1.1. BALANZA DE COMPROBACIÓN (contable) descuadrada en el SALDO INICIAL.") -> 
C65: =IF(ROUND(Balanza!$E$754,2)=ROUND(Balanza!$F$754,2),"","1.2. BALANZA DE COMPROBACIÓN (contable) descuadrada en los MOVIMIENTOS DE CARGO y ABONO.") -> 
C66: =IF(ROUND(Balanza!$G$754,2)=ROUND(Balanza!$H$754,2),"","1.3. BALANZA DE COMPROBACIÓN (contable) descuadrada en el SALDO FINAL.") -> 
A67: 2. Validación a la balanza de comprobación (orden género 7) | C67: =IF(ROUND(Balanza!$C$793,2)=ROUND(Balanza!$D$793,2),"","2.1. BALANZA DE COMPROBACIÓN (cuentas de orden) descuadrada en el SALDO INICIAL.") -> 
C68: =IF(ROUND(Balanza!$E$793,2)=ROUND(Balanza!$F$793,2),"","2.2. BALANZA DE COMPROBACIÓN (cuentas de orden) descuadrada en los MOVIMIENTOS DE CARGO y ABONO.") -> 
C69: =IF(ROUND(Balanza!$G$793,2)=ROUND(Balanza!$H$793,2),"","2.3. BALANZA DE COMPRBACIÓN (cuentas de orden) descuadrada en el SALDO FINAL.") -> 
A70: 3. Validación a la balanza de comprobación (orden presupuestal) | C70: =IF(ROUND(Balanza!$C$2223,2)=ROUND(Balanza!$D$2223,2),"","3.1. BALANZA DE COMPROBACIÓN (cuentas de orden presupuestal) descuadrada en el SALDO INICIAL.") -> 
C71: =IF(ROUND(Balanza!$E$2223,2)=ROUND(Balanza!$F$2223,2),"","3.2. BALANZA DE COMPROBACIÓN (cuentas de orden presupuestal) descuadrada en los MOVIMIENTOS DE CARGO y ABONO.") -> 
C72: =IF(ROUND(Balanza!$G$2223,2)=ROUND(Balanza!$H$2223,2),"","3.3. BALANZA DE COMPROBACIÓN (cuentas de orden presupuestal) descuadrada en el SALDO FINAL.") -> 
A73: 4. Validación al estado de situación financiera (F1, F1A y F1LDF) | C73: =IF(ROUND($M$50,2)=ROUND(($M$51+$M$52),2),"","4.1. En el ESTADO DE SITUACIÓN FINANCIERA (FI, F1A, F1LDF) columna ejercicio "&F186&", no es igual el TOTAL DEL ACTIVO y el TOTAL DEL PASIVO MÁS LA HACIENDA PÚBLICA/PATRIMONIO.") -> 
C74: =IF(ROUND($A$50,2)=ROUND(($A$51+$A$52),2),"","4.2. En el ESTADO DE SITUACIÓN FINANCIERA (F1, F1A, F1LDF) columna ejercicio "&F185&", no es igual el TOTAL DEL ACTIVO y el TOTAL DEL PASIVO MÁS LA HACIENDA PÚBLICA/PATRIMONIO.") -> 
C75: =IF(ROUND('F6'!$AY$540,2)=ROUND('F1'!$BN$87,2),"","4.3. El RESULTADO DEL EJERCICIO (AHORRO/DESAHORRO) del ESTADO DE ACTIVIDADES (F6, F6A) no es igual al RESULTADO DEL EJERCICIO del ESTADO DE SITUACIÓN FINANCIERA (F1, F1A, F1LDF) ejercicio "&F186&".") -> 
C76: =IF(ROUND('F6'!$AX$540,2)=ROUND('F1'!$BM$87,2),"","4.4. El RESULTADO DEL EJERCICIO (AHORRO/DESAHORRO) del ESTADO DE ACTIVIDADES (F6, F6A) no es igual al RESULTADO DEL EJERCICIO del ESTADO DE SITUACIÓN FINANCIERA (F1, F1A, F1LDF) ejercicio "&F185&".") -> 
A77: 5. Validación al estado de variación en la hacienda pública (F2) | C77: =IF(ROUND('F2'!C6,2)=ROUND(F1A!BN27,2),"","5.1. El saldo de la HACIENDA PÚBLICA/PATRIMONIO CONTRIBUIDO NETO de "&F186&" en el ESTADO DE VARIACIÓN EN LA HACIENDA PÚBLICA (F2), no es igual a la HACIENDA PÚBLICA/PATRIMONIO CONTRIBUIDO del ESTADO DE SITUACIÓN FINANCIERA (F1A) en la columna ejercicio "&F186&".") -> 
C78: =IF(ROUND('F2'!G10,2)=ROUND(F1A!BN31,2),"","5.2. El saldo de la HACIENDA PÚBLICA/PATRIMONIO GENERADO NETO del "&F186&" de la columna total en el ESTADO DE VARIACIÓN EN LA HACIENDA PÚBLICA (F2), no es igual a la HACIENDA PÚBLICA/PATRIMONIO GENERADO "&"del ESTADO DE SITUACIÓN FINANCIERA (F1A) en la columna ejercicio "&F186&".") -> 
C79: =IF(ROUND('F2'!G16,2)=ROUND(F1A!BN37,2),"","5.3. El saldo del EXCESO O INSUFICIENCIA EN LA ACTUALIZACIÓN EN LA HACIENDA PÚBLICA/PATRIMONIO NETO de "&F186&" de la columna TOTAL en el ESTADO DE VARIACIÓN EN LA HACIENDA PÚBLICA (F2),"&" no es igual al EXCESO O INSUFICIENCIA EN LA ACTUALIZACIÓN DE LA HACIENDA PÚBLICA/PATRIMONIO del ESTADO DE SITUACIÓN FINANCIERA (F1A) en la columna ejercicio "&F186&".") -> 
C80: =IF(ROUND('F2'!G19,2)=ROUND(F1A!BN40,2),"","5.4. El saldo de la HACIENDA PÚBLICA/PATRIMONIO NETO FINAL DE "&F186&" de la columna TOTAL en el ESTADO DE VARIACIÓN EN LA HACIENDA PÚBLICA (F2),"&" no es igual al TOTAL DE LA HACIENDA PÚBLICA/PATRIMONIO del ESTADO DE SITUACIÓN FINANCIERA (F1A) en la columna ejercicio "&F186&".") -> 
C81: =IF(ROUND('F2'!G33,2)=ROUND(F1A!BM40,2),"","5.5. El saldo de la HACIENDA PÚBLICA/PATRIMONIO NETO FINAL DE "&F185&" de la columna TOTAL en el ESTADO DE VARIACIÓN EN LA HACIENDA PÚBLICA (F2),"&" no es igual al TOTAL DE LA HACIENDA PÚBLICA/PATRIMONIO del ESTADO DE SITUACIÓN FINANCIERA (F1A) en la columna ejercicio "&F185&".") -> 
A82: 6A. Validación de conciliaciones prespu. vs conta. (F4A1) | C82: =IF(ROUND(F4A1!D18,2)=ROUND(F6A!AX24,2),"","6A.1. El TOTAL DE INGRESO CONTABLES de la CONCILIACIÓN ENTRE LOS INGRESOS PRESUPUESTAL Y CONTABLE (F4A1),"&" no es igual al TOTAL DE INGRESOS del ESTADO DE ACTIVIDADES (F6A) en la columna ejercicio "&F185&".") -> 6A.1. El TOTAL DE INGRESO CONTABLES de la CONCILIACIÓN ENTRE LOS INGRESOS PRESUPUESTAL Y CONTABLE (F4A1), no es igual al TOTAL DE INGRESOS del ESTADO DE ACTIVIDADES (F6A) en la columna ejercicio 2025.
C83: =IF(ROUND('F7'!$F$7,2)=ROUND(F6A!$AX$8,2),"","6A.2. El total de IMPUESTOS en su momento devengado del ESTADO ANALÍTICO DE INGRESOS (F7),"&" no es igual a los IMPUESTOS del ESTADO DE ACTIVIDADES (F6A) en la columna ejercicio "&F185&".") -> 6A.2. El total de IMPUESTOS en su momento devengado del ESTADO ANALÍTICO DE INGRESOS (F7), no es igual a los IMPUESTOS del ESTADO DE ACTIVIDADES (F6A) en la columna ejercicio 2025.
C84: =IF(ROUND('F7'!$F$17,2)=ROUND(F6A!$AX$9,2),"","6A.3. El total de CUOTAS Y APORTACIONES DE SEGURIDAD SOCIAL en su momento devengado del ESTADO ANALÍTICO DE INGRESOS (F7),"&" no es igual a las CUOTAS Y APORTACIONES DE SEGURIDAD SOCIAL del ESTADO DE ACTIVIDADES (F6A) en la columna ejercicio "&F185&".") -> 
C85: =IF(ROUND('F7'!$F$23,2)=ROUND(F6A!$AX$10,2),"","6A.4. El total de CONTRIBUCIONES DE MEJORAS en su momento devengado del ESTADO ANALÍTICO DE INGRESOS (F7),"&" no es igual a las CONTRIBUCIONES DE MEJORAS del ESTADO DE ACTIVIDADES (F6A) en la columna ejercicio "&F185&".") -> 
C86: =IF(ROUND('F7'!$F$26,2)=ROUND(F6A!$AX$11,2),"","6A.5. El total de DERECHOS en su momento devengado del ESTADO ANALÍTICO DE INGRESOS (F7),"&" no es igual a los DERECHOS del ESTADO DE ACTIVIDADES (F6A) en la columna ejercicio "&F185&".") -> 6A.5. El total de DERECHOS en su momento devengado del ESTADO ANALÍTICO DE INGRESOS (F7), no es igual a los DERECHOS del ESTADO DE ACTIVIDADES (F6A) en la columna ejercicio 2025.
C87: =IF(ROUND('F7'!$F$33,2)=ROUND(F6A!$AX$12,2),"","6A.6. El total de PRODUCTOS en su momento devengado del ESTADO ANALÍTICO DE INGRESOS (F7),"&" no es igual a los PRODUCTOS del ESTADO DE ACTIVIDADES (F6A) en la columna ejercicio "&F185&".") -> 6A.6. El total de PRODUCTOS en su momento devengado del ESTADO ANALÍTICO DE INGRESOS (F7), no es igual a los PRODUCTOS del ESTADO DE ACTIVIDADES (F6A) en la columna ejercicio 2025.
C88: =IF(ROUND('F7'!$F$37,2)=ROUND(F6A!$AX$13+F4A1!$C$15+F4A1!C17,2),"","6A.7. El total de APROVECHAMIENTOS en su momento devengado del ESTADO ANALÍTICO DE INGRESOS (F7),"&" no es igual a los APROVECHAMIENTOS del ESTADO DE ACTIVIDADES (F6A) en la columna ejercicio "&F185&".") -> 6A.7. El total de APROVECHAMIENTOS en su momento devengado del ESTADO ANALÍTICO DE INGRESOS (F7), no es igual a los APROVECHAMIENTOS del ESTADO DE ACTIVIDADES (F6A) en la columna ejercicio 2025.
C89: =IF(ROUND('F7'!$F$42,2)=ROUND(F6A!$AX$14,2),"","6A.8. El total de INGRESOS POR VENTA DE BIENES Y PRESTACIÓN DE SERVICIOS en su momento devengado del ESTADO ANALÍTICO DE INGRESOS (F7),"&" no es igual a los INGRESOS POR VENTA DE BIENES Y PRESTACIÓN DE SERVICIOS del ESTADO DE ACTIVIDADES (F6A) en la columna ejercicio "&F185&".") -> 
C90: =IF(ROUND('F7'!$F$52,2)=ROUND(F6A!$AX$16,2),"","6A.9. El total de PARTICIPACIONES, APORTACIONES, CONVENIOS, INCENTIVOS DERIVADOS DE LA COLABORACIÓN FISCAL, FONDOS DISTINTOS DE APORTACIONES en su momento devengado del ESTADO ANALÍTICO DE INGRESOS (F7),"&" no es igual a las PARTICIPACIONES, APORTACIONES, CONVENIOS, INCENTIVOS DERIVADOS DE LA COLABORACIÓN FISCAL, FONDOS DISTINTOS DE APORTACIONES del ESTADO DE ACTIVIDADES (F6A) en la columna ejercicio "&F185&".") -> 6A.9. El total de PARTICIPACIONES, APORTACIONES, CONVENIOS, INCENTIVOS DERIVADOS DE LA COLABORACIÓN FISCAL, FONDOS DISTINTOS DE APORTACIONES en su momento devengado del ESTADO ANALÍTICO DE INGRESOS (F7), no es igual a las PARTICIPACIONES, APORTACIONES, CONVENIOS, INCENTIVOS DERIVADOS DE LA COLABORACIÓN FISCAL, FONDOS DISTINTOS DE APORTACIONES del ESTADO DE ACTIVIDADES (F6A) en la columna ejercicio 2025.
C91: =IF(ROUND('F7'!$F$58,2)=ROUND(F6A!$AX$17,2),"","6A.10. El total de TRANSFERENCIAS, ASIGNACIONES, SUBSIDIOS Y SUBVENCIONES, PENSIONES Y JUBILACIONES en su momento devengado del ESTADO ANALÍTICO DE INGRESOS (F7),"&" no es igual a las TRANSFERENCIAS, ASIGNACIONES, SUBSIDIOS Y SUBVENCIONES, PENSIONES Y JUBILACIONES del ESTADO DE ACTIVIDADES (F6A) en la columna ejercicio "&F185&".") -> 
A92: 6B. Validación de conciliaciones prespu. vs conta. (F4A2) | C92: =IF(ROUND(F4A2!$D$37,2)=ROUND(F6A!$AX$57,2),"","6B.1. El TOTAL DE GASTOS CONTABLES de la CONCILIACIÓN ENTRE LOS EGRESOS PRESUPUESTARIOS Y LOS GASTOS CONTABLES (F4A2),"&" no es igual al TOTAL DE GASTOS Y OTRAS PERDIDAS del ESTADO DE ACTIVIDADES (F6A) en la columna ejercicio "&F185&".") -> 6B.1. El TOTAL DE GASTOS CONTABLES de la CONCILIACIÓN ENTRE LOS EGRESOS PRESUPUESTARIOS Y LOS GASTOS CONTABLES (F4A2), no es igual al TOTAL DE GASTOS Y OTRAS PERDIDAS del ESTADO DE ACTIVIDADES (F6A) en la columna ejercicio 2025.
C93: =IF(ROUND('F8'!$F$8,2)=ROUND(F6A!$AX$27,2),"","6B.2. El total de SERVICIOS PERSONALES en su momento devengado del ESTADO ANALÍTICO DEL EJERCICIO DEL PRESUPUESTO DE EGRESOS (F8),"&" no es igual en SERVICIOS PERSONALES del ESTADO DE ACTIVIDADES (F6A) en la columna ejercicio "&F185&".") -> 6B.2. El total de SERVICIOS PERSONALES en su momento devengado del ESTADO ANALÍTICO DEL EJERCICIO DEL PRESUPUESTO DE EGRESOS (F8), no es igual en SERVICIOS PERSONALES del ESTADO DE ACTIVIDADES (F6A) en la columna ejercicio 2025.
C94: =IF(ROUND('F8'!$F$16,2)=ROUND(F6A!$AX$28,2),"","6B.3. El total de MATERIALES Y SUMINISTROS en su momento devengado del ESTADO ANALÍTICO DEL EJERCICIO DEL PRESUPUESTO DE EGRESOS (F8),"&" no es igual en MATERIALES Y SUMINISTROS del ESTADO DE ACTIVIDADES (F6A) en la columna ejercicio "&F185&".") -> 6B.3. El total de MATERIALES Y SUMINISTROS en su momento devengado del ESTADO ANALÍTICO DEL EJERCICIO DEL PRESUPUESTO DE EGRESOS (F8), no es igual en MATERIALES Y SUMINISTROS del ESTADO DE ACTIVIDADES (F6A) en la columna ejercicio 2025.
C95: =IF(ROUND('F8'!$F$26,2)=ROUND(F6A!$AX$29,2),"","6B.4. El total de SERVICIOS GENERALES en su momento devengado del ESTADO ANALÍTICO DEL EJERCICIO DEL PRESUPUESTO DE EGRESOS (F8),"&" no es igual en SERVICIOS GENERALES del ESTADO DE ACTIVIDADES (F6A) en la columna ejercicio "&F185&".") -> 6B.4. El total de SERVICIOS GENERALES en su momento devengado del ESTADO ANALÍTICO DEL EJERCICIO DEL PRESUPUESTO DE EGRESOS (F8), no es igual en SERVICIOS GENERALES del ESTADO DE ACTIVIDADES (F6A) en la columna ejercicio 2025.
C96: =IF(ROUND('F8'!$F$36,2)=ROUND(F6A!$AX$30,2),"","6B.5. El total de TRANSFERENCIAS, ASIGNACIONES, SUBSIDIOS Y OTRAS AYUDAS en su momento devengado del ESTADO ANALÍTICO DEL EJERCICIO DEL PRESUPUESTO DE EGRESOS (F8),"&" no es igual en TRANSFERENCIAS, ASIGNACIONES, SUBSIDIOS Y OTRAS AYUDAS del ESTADO DE ACTIVIDADES (F6A) en la columna ejercicio "&F185&".") -> 6B.5. El total de TRANSFERENCIAS, ASIGNACIONES, SUBSIDIOS Y OTRAS AYUDAS en su momento devengado del ESTADO ANALÍTICO DEL EJERCICIO DEL PRESUPUESTO DE EGRESOS (F8), no es igual en TRANSFERENCIAS, ASIGNACIONES, SUBSIDIOS Y OTRAS AYUDAS del ESTADO DE ACTIVIDADES (F6A) en la columna ejercicio 2025.
A97: 7. Validación al estado de cambios de la situación financiera (F16) | C97: =IF(ROUND(ABS('F16'!E43-'F16'!F43),2)=ROUND(ABS('F2'!C20),2),"","7.1. El saldo de la HACIENDA PÚBLICA/PATRIMONIO CONTRIBUIDO NETO DEL "&F186&" del ESTADO DE VARIACIÓN EN LA HACIENDA PÚBLICA (F2), "&"es diferente a la HACIENDA PÚBLICA/PATRIMONIO CONTRIBUIDO del ESTADO DE CAMBIOS DE LA SITUACIÓN FINANCIERA (F16) en la columna ejercicio "&F185&".") -> 
C98: =IF(ROUND(ABS(SUM('F16'!E50:E52)-SUM('F16'!F50:F52)),2)=ROUND(ABS(SUM('F2'!E27:E29)),2),"","7.2. La suma de las filas de REVALÚOS, RESERVAS Y RECLASIFICACIONES DE RESULTADOS DE EJERCICIOS ANTERIORES "&F186&", del ESTADO DE VARIACIÓN EN LA HACIENDA PÚBLICA (F2), "&"es diferente a la que se muestra en estos rubros del ESTADO DE CAMBIOS DE LA SITUACIÓN FINANCIERA (F16) en la columna ejercicio "&F185&".") -> 
C99: =IF(ROUND(ABS('F16'!E49+'F16'!F49),2)=ROUND(ABS('F2'!D24),2),"","7.3. El saldo del RESULTADO DE EJERCICIOS ANTERIORES del apartado VARIACIONES DE LA HACIENDA PÚBLICA/PATRIMONIO CONTRIBUIDO NETO DE "&F185&" del ESTADO DE VARIACIÓN EN LA HACIENDA PÚBLICA (F2), "&"es diferente al apartado de EJERCICIOS ANTERIORES del ESTADO DE CAMBIOS DE LA SITUACIÓN FINANCIERA (F16) en la columna ejercicio "&F185&".") -> 
C100: =IF(ROUND(ABS('F16'!E53-'F16'!F53),2)=ROUND(ABS('F2'!F30),2),"","7.4. El saldo del EXCESO O INSUFICIENCIA EN LA ACTUALIZACIÓN DE LA HACIENDA PÚBLICA/PATRIMONIO NETO "&F185&", del ESTADO DE VARIACIÓN EN LA HACIENDA PÚBLICA (F2), "&"es diferente al apartado del EXCESO O INSUFICIENCIA EN LA ACTUALIZACIÓN DE LA HACIENDA PÚBLICA/PATRIMONIO del ESTADO DE CAMBIOS DE LA SITUACIÓN FINANCIERA (F16) en la columna ejercicio "&F185&".") -> 
A101: 8. Validación al estado de flujo de efectivo (F3) | C101: =IF(ROUND(ABS('F3'!F58),2)=ROUND(ABS('F16'!E8+'F16'!F8),2),"","8.1. El INCREMENTO/DISMINUCIÓN NETA EN EL EFECTIVO Y EQUIVALENTES del FLUJO DE EFECTIVO (F3) de la columna "&F185&", no es igual al que se muestra en el ESTADO DE "&"CAMBIOS EN LA SITUACIÓN FINANCIERA (F16) en la fila de EFECTIVO Y EQUIVALENTES de la columna de origen o aplicación.") -> 8.1. El INCREMENTO/DISMINUCIÓN NETA EN EL EFECTIVO Y EQUIVALENTES del FLUJO DE EFECTIVO (F3) de la columna 2025, no es igual al que se muestra en el ESTADO DE CAMBIOS EN LA SITUACIÓN FINANCIERA (F16) en la fila de EFECTIVO Y EQUIVALENTES de la columna de origen o aplicación.
C102: =IF(ROUND('F3'!G60,2)=ROUND(F1A!AG8,2),"","8.2. El EFECTIVO Y EQUIVALENTES AL EFECTIVO AL FINAL DEL EJERCICIO columna "&F186&", del ESTADO DE FLUJO DE EFECTIVO (F3), es diferente al saldo del"&" rubro de EFECTIVO Y EQUIVALENTES de la columna "&F185&" del ESTADO DE SITUACIÓN FINANCIERA (F1A).") -> 8.2. El EFECTIVO Y EQUIVALENTES AL EFECTIVO AL FINAL DEL EJERCICIO columna 2024, del ESTADO DE FLUJO DE EFECTIVO (F3), es diferente al saldo del rubro de EFECTIVO Y EQUIVALENTES de la columna 2025 del ESTADO DE SITUACIÓN FINANCIERA (F1A).
C103: =IF(ROUND('F3'!F60,2)=ROUND(F1A!AF8,2),"","8.3. El EFECTIVO Y EQUIVALENTES AL EFECTIVO AL FINAL DEL EJERCICIO columna "&F185&", del ESTADO DE FLUJO DE EFECTIVO (F3), es diferente al saldo del"&" rubro de EFECTIVO Y EQUIVALENTES de la columna "&F185&" del ESTADO DE SITUACIÓN FINANCIERA (F1A).") -> 8.3. El EFECTIVO Y EQUIVALENTES AL EFECTIVO AL FINAL DEL EJERCICIO columna 2025, del ESTADO DE FLUJO DE EFECTIVO (F3), es diferente al saldo del rubro de EFECTIVO Y EQUIVALENTES de la columna 2025 del ESTADO DE SITUACIÓN FINANCIERA (F1A).
A104: 9. Validación al estado analítico del activo (F5) | C104: =IF(ROUND('F5'!E6,2)=ROUND(F1A!AG27,2),"","9.1. El TOTAL DEL ACTIVO del ESTADO ANALÍTICO DEL ACTIVO (F5) en la columna de SALDO INICIAL, es diferente al TOTAL DEL ACTIVO en el ESTADO DE SITUACIÓN FINANCIERA (F1A), en la columna correspondiente al ejercicio "&F186) -> 
C105: =IF(ROUND('F5'!H6,2)=ROUND(F1A!AF27,2),"","9.2. El TOTAL DEL ACTIVO del ESTADO ANALÍTICO DEL ACTIVO (F5) en la columna de SALDO FINAL, es diferente al TOTAL DEL ACTIVO en el ESTADO DE SITUACIÓN FINANCIERA (F1A), en la columna correspondiente al ejercicio "&F185) -> 
C106: =IF(ROUND(ABS('F5'!I6),2)=ROUND(ABS('F16'!E6-'F16'!F6),2),"","9.3. La cifra de la fila del rubro de ACTIVO de la columna de VARIACIÓN DEL PERIODO del ESTADO ANALÍTICO DEL ACTIVO (F5), es diferente a los rubros del ACTIVO en las columnas de ORIGEN O APLICACIÓN del ESTADO DE CAMBIOS EN LA SITUACIÓN FINANCIERA (F16)") -> 
A107: 10. Validación al estado analítico de la deuda y otros pasivos (F9) | C107: =IF(ROUND((S57+S58),2)=ROUND(M57,2),"","10.1. El SALDO AL 1° DE ENERO DE "&F185&" con INSTITUCIONES DE CRÉDITO a corto y largo plazo del ESTADO E INFORME ANALÍTICO DE LA DEUDA PÚBLICA Y "&"OTROS PASIVOS (F9-EDP), no es igual a la suma de los rubros 2131 y 2233 de la DEUDA PÚBLICA INTERNA POR PAGAR a corto y largo plazo columna ejercicio "&F186&" del ESTADO ANALÍTICO DE SITUACIÓN FINANCIERA (F1).") -> 
C108: =IF(ROUND((S59+S60),2)=ROUND(M59,2),"","10.2. El SALDO AL 1° DE ENERO DE "&F185&" en TÍTULOS Y VALORES de corto y largo plazo, del ESTADO E INFORME ANALÍTICO DE LA DEUDA PÚBLICA Y OTROS "&"PASIVOS (F9-EDP), no es igual a la suma de los rubro 2141 y 2231 TÍTULOS Y VALORES por pagar a corto y largo plazo columna ejercicio "&F185&" del ESTADO ANALÍTICO DE SITUACIÓN FINANCIERA (F1).") -> 
C109: =IF(ROUND((S61+S62),2)=ROUND(M61,2),"","10.3. El SALDO AL 1° DE ENERO DE "&F185&" en ARRENDAMIENTO FINANCIERO de corto y largo plazo, del ESTADO E INFORME ANALÍTICO DE LA DEUDA PÚBLICA Y "&"OTROS PASIVOS (F9-EDP), no es igual a los rubro de2133 Y 2235 ARRENDAMIENTO FINANCIERO por pagar a corto y largo plazo columna ejercicio "&F186&" del ESTADO ANALÍTICO DE SITUACIÓN FINANCIERA (F1).") -> 
C110: =IF(ROUND(A57,2)=ROUND(G57,2),"","10.4. El SALDO DEL PERIODO con INSTITUCIONES DE CRÉDITO a corto plazo, del ESTADO E INFORME ANALÍTICO DE LA DEUDA PÚBLICA Y OTROS PASIVOS (F9-EDP), "&"no es igual al rubro 2131 PORCIÓN DE LA DEUDA PÚBLICA INTERNA POR PAGAR A CORTO PLAZO columna ejercicio "&F185&" del ESTADO ANALÍTICO DE SITUACIÓN FINANCIERA (F1).") -> 
C111: =IF(ROUND(A58,2)=ROUND(G58,2),"","10.5. El SALDO DEL PERIODO con INSTITUCIONES DE CRÉDITO a largo plazo, del ESTADO ANALÍTICO DE LA DEUDA PÚBLICA Y OTROS PASIVOS (F9-EDP), "&"no es igual al rubro 2233 de PRÉSTAMOS DE LA DEUDA PÚBLICA INTERNA POR PAGAR A LARGO PLAZO columna ejercicio "&F185&" del ESTADO ANALÍTICO DE SITUACIÓN FINANCIERA (F1).") -> 
C112: =IF(ROUND(A59,2)=ROUND(G59,2),"","10.6. El SALDO DEL PERIODO en TÍTULOS Y VALORES a corto plazo, del ESTADO E INFORME ANALÍTICO DE LA DEUDA PÚBLICA Y OTROS PASIVOS (F9-EDP), no es "&"igual al rubro 2141 de TÍTULOS Y VALORES DE LA EUDA PÚBLICA INTERNA POR PAGAR A CORTO PLAZO columna ejercicio "&F185&" del ESTADO ANALÍTICO DE SITUACIÓN FINANCIERA (F1).") -> 
C113: =IF(ROUND(A60,2)=ROUND(G60,2),"","10.7. El SALDO DEL PERIODO en TÍTULOS Y VALORES a largo plazo, del ESTADO E INFORME ANALÍTICO DE LA DEUDA PÚBLICA Y OTROS PASIVOS (F9-EDP), no es "&"igual al rubro 2231 de TÍTULOS Y VALORES DE LA DEUDA PÚBLICA INTERNA POR PAGAR A LARGO PLAZO columna ejercicio "&F185&" del ESTADO ANALÍTICO DE SITUACIÓN FINANCIERA (F1).") -> 
C114: =IF(ROUND(A61,2)=ROUND(G61,2),"","10.8. El SALDO DEL PERIODO en ARRENDAMIENTO FINANCIERO a corto plazo, del ESTADO E INFORME ANALÍTICO DE LA DEUDA PÚBLICA Y OTROS PASIVOS"&" (F9-EDP), no es igual al rubro 2133 de la PORCIÓN DE ARRENDAMIENTO FINANCIERO DE LA DEUDA PÚBLICA INTERGA POR PAGAR A CORTO PLAZO columna ejercicio "&F185&" del ESTADO ANALÍTICO DE SITUACIÓN FINANCIERA (F1).") -> 
C115: =IF(ROUND(A62,2)=ROUND(G62,2),"","10.9. El SALDO DEL PERIODO en ARRENDAMIENTO FINANCIERO A LARGO PLAZO del ESTADO E INFORME ANALÍTICO DE LA DEUDA PÚBLICA Y OTROS PASIVOS (F9-EDP), "&"no es igual al rubro 2235 de ARRENDAMIENTO FINANCIERO DE LA DEUDA PÚBLICA INTERNA POR PAGAR A LARGO PLAZO columna ejercicio "&F185&" del ESTADO DE SITUACIÓN FINANCIERA (F1).") -> 
C116: =IF(ROUND('F9-EDP'!N20,2)=ROUND('F1'!BN80,2),"","10.10. El TOTAL DE LA DEUDA PÚBLICA Y OTROS PASIVOS al inicio del ejercicio "&F185&" del ESTADO E INFORME ANALÍTICO DE LA DEUDA PÚBLICA Y OTROS PASIVOS (F9-EDP), "&"no es igua al TOTAL DEL PASIVO columna del ejercicio "&F186&" del ESTADO DE SITUACIÓN FINANCIERA (F1).") -> 
C117: =IF(ROUND('F9-EDP'!AP20,2)=ROUND('F1'!BM80,2),"","10.11. El TOTAL DE LA DEUDA PÚBLICA Y OTROS PASIVOS del ejercicio "&F185&" del ESTADO E INFORME ANALÍTICO DE LA DEUDA PÚLICA Y OTROS PASIVOS (F9-EDP), no es igua al TOTAL DEL PASIVO columna del ejercicio "&F185&" en el ESTADO DE SITUACIÓN FINANCIERA (F1).") -> 
A118: 11. Validación flujo contable de ingresos y egresos (F12) | C118: =IF(ROUND('F7'!C70,2)=ROUND('F12'!C17,2),"","11.1. El TOTAL DE INGRESOS momento ESTIMADO del ESTADO ANALÍTICO DE INGRESOS (F7),"&" no es igual al TOTAL INGRESOS del FLUJO CONTABLE DE INGRESOS Y EGRESOS (F12) columna ESTIMADO.") -> 
C119: =IF(ROUND('F7'!D70,2)=ROUND('F12'!D17,2),"","11.2. El TOTAL DE INGRESOS de la AMPLIACIONES Y REDUCCIONES del ESTADO ANALÍTICO DE INGRESOS (F7),"&" no es igual al TOTAL INGRESOS del FLUJO CONTABLE DE INGRESOS Y EGRESOS (F12) columna AMPLIACIÓN Y REDUCCIÓN.") -> 
C120: =IF(ROUND('F7'!F70,2)=ROUND('F12'!F17,2),"","11.3. El TOTAL DE INGRESOS del momento DEVENGADO del ESTADO ANALÍTICO DE INGRESOS (F7),"&" no es igual al TOTAL INGRESOS del FLUJO CONTABLE DE INGRESOS Y EGRESOS (F12) columna DEVENGADO.") -> 
C121: =IF(ROUND('F8'!C80,2)=ROUND('F12'!C30,2),"","11.4. El TOTAL DE EGRESOS del momento APROBADO del ESTADO ANALÍTICO DEL EJERCICIO DEL PRESUPUESTO DE EGRESOS (F8),"&" no es igual al TOTAL DE EGRESOS del FLUJO CONTABLE DE INGRESOS Y EGRESOS (F12) columna APROBADO.") -> 
C122: =IF(ROUND('F8'!D80,2)=ROUND('F12'!D30,2),"","11.5. El TOTAL DE EGRESOS de las AMPLIACIONES Y REDUCCIONES del ESTADO ANALÍTICO DEL EJERCICIO DEL PRESUPUESTO DE EGRESOS (F8),"&" no es igual al TOTAL EGRESOS del FLUJO CONTABLE DE INGRESOS Y EGRESOS (F12) columna AMPLIACIÓN Y REDUCCIÓN.") -> 
C123: =IF(ROUND('F8'!F80,2)=ROUND('F12'!F30,2),"","11.6. El TOTAL DE EGRESOS del momento DEVENGADO del ESTADO ANALÍTICO DEL EJERCICIO DEL PRESUPUESTO DE EGRESOS (F8),"&" no es igual al TOTAL EGRESOS del FLUJO CONTABLE DE INGRESOS Y EGRESOS (F12) columna DEVENGADO.") -> 
A124: 12. Validación Estado Analítico del Ingreso - LDF (F7B) | C124: =IF(ROUND('F7'!C70,2)=ROUND(F7B!C64,2),"","12.1. El TOTAL DE INGRESOS del momento ESTIMADO del ESTADO ANALÍTICO DE INGRESOS DETALLADO - LDF (F7B),"&" no es igual al ESTADO ANALÍTICO DE INGRESOS (F7) columna ESTIMADO.") -> 
C125: =IF(ROUND('F7'!D70,2)=ROUND(F7B!D64,2),"","12.2. El TOTAL DE INGRESOS del momento MODIFICADO del ESTADO ANALÍTICO DE INGRESOS DETALLADO - LDF (F7B),"&" no es igual al ESTADO ANALÍTICO DE INGRESOS (F7) columna MODIFICADO.") -> 
C126: =IF(ROUND('F7'!F70,2)=ROUND(F7B!F64,2),"","12.3. El TOTAL DE INGRESOS del momento DEVENGADO del ESTADO ANALÍTICO DE INGRESOS DETALLADO - LDF (F7B),"&" no es igual al ESTADO ANALÍTICO DE INGRESOS (F7) columna DEVENGADO.") -> 
C127: =IF(ROUND('F7'!G70,2)=ROUND(F7B!G64,2),"","12.4. El TOTAL DE INGRESOS del momento RECAUDADO del ESTADO ANALÍTICO DE INGRESOS DETALLADO - LDF (F7B),"&" no es igual al ESTADO ANALÍTICO DE INGRESOS (F7) columna RECAUDADO.") -> 
C128: =IF(ROUND(F7B!C39,2)+ROUND(F7B!C68,2)=ROUND(F8B!D80,2),"","12.5. No existe equilibro entre los ingresos ESTIMADO de recursos no etiquetados del ESTADO ANALÍTICO DE INGRESOS DETALLADO - LDF (F7B),"&" y el ESTADO ANALÍTICO DEL EJERCICIO DEL PRESUPUESTO DE EGRESOS DETALLADO - LDF (F8B) columna APROBADO de recurso no etiquetado.") -> 
C129: =IF(ROUND(F7B!C61,2)=ROUND(F8B!D154,2),"","12.6. No existe equilibrio entre los ingresos ESTIMADO de recursos etiquetados del ESTADO ANALÍTICO DE INGRESOS DETALLADO - LDF (F7B),"&" y el ESTADO ANALÍTICO DEL EJERCICIO DEL PRESUPUESTO DE EGRESOS DETALLADO - LDF (F8B) columna APROBADO de recurso etiquetado.") -> 
C130: =IF(ROUND(F7B!F39,2)>0,IF(ROUND(F8B!G80,2)>0,"","12.7. Se tiene ingresos DEVENGADO de recursos no etiquetados en el ESTADO ANALÍTICO DE INGRESOS DETALLADO - LDF (F7B),"&" y en el ESTADO ANALÍTICO DEL EJERCICIO DEL PRESUPUESTO DE EGRESOS DETALLADO - LDF (F8B) columna DEVENGADO no existen erogaciones con recursos no etiquetados."),"") -> 
C131: =IF(ROUND(F7B!F61,2)>0,IF(ROUND(F8B!G154,2)>0,"","12.8. Se tiene ingresos DEVENGADO de recursos etiquetados en el ESTADO ANALÍTICO DE INGRESOS DETALLADO - LDF (F7B),"&" y en el ESTADO ANALÍTICO DEL EJERCICIO DEL PRESUPUESTO DE EGRESOS DETALLADO - LDF (F8B) columna DEVENGADO no existe erogaciones con recursos etiquetados."),"") -> 
A132: 13. Validación Estado Analítico del Egreso (COG) - LDF (F8B) | C132: =IF(ROUND(F8B!D155,2)=ROUND('F8'!C80,2),"","13.1. El TOTAL DEL GASTO en lo correspondiente al APROBADO del ESTADO ANALÍTICO DEL EJERCICIO DEL PRESUPUESTO DE EGRESOS DETALLADO - LDF (F8B),"&" no es igual al ESTADO ANALÍTICO DEL EJERCICIO DEL PRESUPUESTO DE EGRESOS (F8) columna APROBADO.") -> 
C133: =IF(ROUND(F8B!F155,2)=ROUND('F8'!E80,2),"","13.2. El TOTAL DEL GASTO en lo correspondiente al MODIFICADO del ESTADO ANALÍTICO DEL EJERCICIO DEL PRESUPUESTO DE EGRESOS DETALLADO - LDF (F8B),"&" no es igual al ESTADO ANALÍTICO DEL EJERCICIO DEL PRESUPUESTO DE EGRESOS (F8) columna MODIFICADO.") -> 
C134: =IF(ROUND(F8B!G155,2)=ROUND('F8'!F80,2),"","13.3. El TOTAL DEL GASTO en lo correspondiente al DEVENGADO del ESTADO ANALÍTICO DEL EJERCICIO DEL PRESUPUESTO DE EGRESOS DETALLADO - LDF (F8B),"&" no es igual al ESTADO ANALÍTICO DEL EJERCICIO DEL PRESUPUESTO DE EGRESOS (F8) columna DEVENGADO.") -> 
C135: =IF(ROUND(F8B!H155,2)=ROUND('F8'!G80,2),"","13.4. El TOTAL DEL GASTO en lo correspondiente al PAGADO del ESTADO ANALÍTICO DEL EJERCICIO DEL PRESPUESTO DE EGRESOS DETALLADO - LDF (F8B),"&" no es igual al ESTADO ANALÍTICO DEL EJERCICIO DEL PRESPUESTO DE EGRESOS (F8) columna PAGADO.") -> 
A136: 14. Validación Estado Analítico del Egreso (CF) - (F19A) | C136: =IF(ROUND(F19A!D76,2)=ROUND('F19'!C40,2),"","14.1. El TOTAL DEL GASTO en lo correspondiente al APROBADO del ESTADO ANALÍTICO DEL EJERCICIO DEL PRESUPUESTO DE EGRESOS DETALLADO - LDF (F19A),"&" no es igual al ESTADO ANALÍTICO DEL EJERCICIO DEL PRESUPUESTO DE EGRESOS (F19) columna APROBADO.") -> 
C137: =IF(ROUND(F19A!F76,2)=ROUND('F19'!E40,2),"","14.2. El TOTAL DEL GASTO en lo correspondiente al MODIFICADO del ESTADO ANALÍTICO DEL EJERCICIO DEL PRESUPUESTO DE EGRESOS DETALLADO - LDF (F19A),"&" no es igual al ESTADO ANALÍTICO DEL EJERCICIO DEL PRESUPUESTO DE EGRESOS (F19) columna MODIFICADO.") -> 
C138: =IF(ROUND(F19A!G76,2)=ROUND('F19'!F40,2),"","14.3. El TOTAL DEL GASTO en lo correspondiente al DEVENGADO del ESTADO ANALÍTICO DEL EJERCICIO DEL PRESUPUESTO DE EGRESOS DETALLADO - LDF (F19A),"&" no es igual al ESTADO ANALÍTICO DEL EJERCICIO DEL PRESUPUESTO DE EGRESOS (F19) columna DEVENGADO.") -> 
C139: =IF(ROUND(F19A!H76,2)=ROUND('F19'!G40,2),"","14.4. El TOTAL DEL GASTO en lo correspondiente al PAGADO del ESTADO ANALÍTICO DEL EJERCICIO DEL PRESUPUESTO DE EGRESO DETALLADO - LDF (F19A),"&" no es igual al ESTADO ANALÍTICO DEL EJERCICIO DEL PRESUPUESTO DE EGRESOS (F19) columna PAGADO.") -> 
C140: =IF(ROUND(F19A!$D$41,2)=ROUND(F8B!$D$80,2),"","14.5. El TOTAL DEL GASTO NO ETIQUETADO en lo correspondiente al APROBADO del ESTADO ANALÍTICO DEL EJERCICIO DEL PRESUPUESTO DE EGRESO DETALLADO - LDF (F19A),"&" no es igual al TOTAL DEL GASTO NO ETIQUETADO en el momento APROBADO del ESTADO ANALÍTICO DEL EJERCICIO DEL PRESUPUESTO DE EGRESOS (F8B).") -> 
C141: =IF(ROUND(F19A!$F$41,2)=ROUND(F8B!$F$80,2),"","14.6. El TOTAL DEL GASTO NO ETIQUETADO en lo correspondiente al MODIFICADO del ESTADO ANALÍTICO DEL EJERCICIO DEL PRESUPUESTO DE EGRESO DETALLADO - LDF (F19A),"&" no es igual al TOTAL DEL GASTO NO ETIQUETADO en el momento MODIFICADO del ESTADO ANALÍTICO DEL EJERCICIO DEL PRESUPUESTO DE EGRESOS (F8B).") -> 
C142: =IF(ROUND(F19A!$G$41,2)=ROUND(F8B!$G$80,2),"","14.7. El TOTAL DEL GASTO NO ETIQUETADO en lo correspondiente al DEVENGADO del ESTADO ANALÍTICO DEL EJERCICIO DEL PRESUPUESTO DE EGRESO DETALLADO - LDF (F19A),"&" no es igual al TOTAL DEL GASTO NO ETIQUETADO en el momento DEVENGADO del ESTADO ANALÍTICO DEL EJERCICIO DEL PRESUPUESTO DE EGRESOS (F8B).") -> 
C143: =IF(ROUND(F19A!$H$41,2)=ROUND(F8B!$H$80,2),"","14.8. El TOTAL DEL GASTO NO ETIQUETADO en lo correspondiente al PAGADO del ESTADO ANALÍTICO DEL EJERCICIO DEL PRESUPUESTO DE EGRESO DETALLADO - LDF (F19A),"&" no es igual al TOTAL DEL GASTO NO ETIQUETADO en el momento PAGADO del ESTADO ANALÍTICO DEL EJERCICIO DEL PRESUPUESTO DE EGRESOS (F8B).") -> 
C144: =IF(ROUND(F19A!$D$75,2)=ROUND(F8B!$D$154,2),"","14.9. El TOTAL DEL GASTO ETIQUETADO en lo correspondiente al APROBADO del ESTADO ANALÍTICO DEL EJERCICIO DEL PRESUPUESTO DE EGRESO DETALLADO - LDF (F19A),"&" no es igual al TOTAL DEL GASTO ETIQUETADO en el momento APROBADO del ESTADO ANALÍTICO DEL EJERCICIO DEL PRESUPUESTO DE EGRESOS (F8B).") -> 
C145: =IF(ROUND(F19A!$F$75,2)=ROUND(F8B!$F$154,2),"","14.10. El TOTAL DEL GASTO ETIQUETADO en lo correspondiente al MODIFICADO del ESTADO ANALÍTICO DEL EJERCICIO DEL PRESUPUESTO DE EGRESO DETALLADO - LDF (F19A),"&" no es igual al TOTAL DEL GASTO ETIQUETADO en el momento MODIFICADO del ESTADO ANALÍTICO DEL EJERCICIO DEL PRESUPUESTO DE EGRESOS (F8B).") -> 
C146: =IF(ROUND(F19A!$G$75,2)=ROUND(F8B!$G$154,2),"","14.11. El TOTAL DEL GASTO ETIQUETADO en lo correspondiente al DEVENGADO del ESTADO ANALÍTICO DEL EJERCICIO DEL PRESUPUESTO DE EGRESO DETALLADO - LDF (F19A),"&" no es igual al TOTAL DEL GASTO ETIQUETADO en el momento DEVENGADO del ESTADO ANALÍTICO DEL EJERCICIO DEL PRESUPUESTO DE EGRESOS (F8B).") -> 
C147: =IF(ROUND(F19A!$H$75,2)=ROUND(F8B!$H$154,2),"","14.12. El TOTAL DEL GASTO ETIQUETADO en lo correspondiente al PAGADO del ESTADO ANALÍTICO DEL EJERCICIO DEL PRESUPUESTO DE EGRESO DETALLADO - LDF (F19A),"&" no es igual al TOTAL DEL GASTO ETIQUETADO en el momento PAGADO del ESTADO ANALÍTICO DEL EJERCICIO DEL PRESUPUESTO DE EGRESOS (F8B).") -> 
A148: 15. Validación Estado Analítico del Egreso (CA) - LDF (F18A) | C148: =IF(ROUND(F18A!B62,2)=ROUND('F18'!B58,2),"","15.1. El TOTAL DEL GASTO del momento APROBADO del ESTADO ANALÍTICO DEL EJERCICIO DEL PRESUPUESTO DE EGRESOS DETALLADO - LDF (F18A),"&" no es igual al ESTADO ANALÍTICO DEL EJERCICIO DEL PRESUPUESTO DE EGRESOS (F18) columna APROBADO.") -> 
C149: =IF(ROUND(F18A!C62,2)=ROUND('F18'!C58,2),"","15.2. El TOTAL DEL GASTO del momento MODIFICADO del ESTADO ANALÍTICO DEL EJERCICIO DEL PRESUPUESTO DE EGRESOS DETALLADO - LDF (F18A),"&" no es igual al ESTADO ANALÍTICO DEL EJERCICIO DEL PRESUPUESTO DE EGRESOS (F18) columna MODIFICADO.") -> 
C150: =IF(ROUND(F18A!E62,2)=ROUND('F18'!E58,2),"","15.3. El TOTAL DEL GASTO del momento DEVENGADO del ESTADO ANALÍTICO DEL EJERCICIO DEL PRESUPUESTO DE EGRESOS DETALLADO - LDF (F18A),"&" no es igual al ESTADO ANALÍTICO DEL EJERCICIO DEL PRESUPUESTO DE EGRESOS (F18) columna DEVENGADO.") -> 
C151: =IF(ROUND(F18A!F62,2)=ROUND('F18'!F58,2),"","15.4. El TOTAL DEL GASTO del momento PAGADO del ESTADO ANALÍTICO DEL EJERCICIO DEL PRESUPUESTO DE EGRESOS DETALLADO - LDF (F18A),"&" no es igual al ESTADO ANALÍTICO DEL EJERCICIO DEL PRESUPUESTO DE EGRESOS (F18) columna PAGADO.") -> 
C152: =IF(ROUND(F18A!$B$34,2)=ROUND(F8B!$D$80,2),"","15.5. El TOTAL DEL GASTO NO ETIQUETADO en lo correspondiente al APROBADO del ESTADO ANALÍTICO DEL EJERCICIO DEL PRESUPUESTO DE EGRESO DETALLADO - LDF (F18A),"&" no es igual al TOTAL DEL GASTO NO ETIQUETADO en el momento APROBADO del ESTADO ANALÍTICO DEL EJERCICIO DEL PRESUPUESTO DE EGRESOS (F8B).") -> 
C153: =IF(ROUND(F18A!$D$34,2)=ROUND(F8B!$F$80,2),"","15.6. El TOTAL DEL GASTO NO ETIQUETADO en lo correspondiente al MODIFICADO del ESTADO ANALÍTICO DEL EJERCICIO DEL PRESUPUESTO DE EGRESO DETALLADO - LDF (F18A),"&" no es igual al TOTAL DEL GASTO NO ETIQUETADO en el momento MODIFICADO del ESTADO ANALÍTICO DEL EJERCICIO DEL PRESUPUESTO DE EGRESOS (F8B).") -> 
C154: =IF(ROUND(F18A!$E$34,2)=ROUND(F8B!$G$80,2),"","15.7. El TOTAL DEL GASTO NO ETIQUETADO en lo correspondiente al DEVENGADO del ESTADO ANALÍTICO DEL EJERCICIO DEL PRESUPUESTO DE EGRESO DETALLADO - LDF (F18A),"&" no es igual al TOTAL DEL GASTO NO ETIQUETADO en el momento DEVENGADO del ESTADO ANALÍTICO DEL EJERCICIO DEL PRESUPUESTO DE EGRESOS (F8B).") -> 
C155: =IF(ROUND(F18A!$F$34,2)=ROUND(F8B!$H$80,2),"","15.8. El TOTAL DEL GASTO NO ETIQUETADO en lo correspondiente al PAGADO del ESTADO ANALÍTICO DEL EJERCICIO DEL PRESUPUESTO DE EGRESO DETALLADO - LDF (F18A),"&" no es igual al TOTAL DEL GASTO NO ETIQUETADO en el momento PAGADO del ESTADO ANALÍTICO DEL EJERCICIO DEL PRESUPUESTO DE EGRESOS (F8B).") -> 
C156: =IF(ROUND(F18A!$B$61,2)=ROUND(F8B!$D$154,2),"","15.9. El TOTAL DEL GASTO ETIQUETADO en lo correspondiente al APROBADO del ESTADO ANALÍTICO DEL EJERCICIO DEL PRESUPUESTO DE EGRESO DETALLADO - LDF (F18A),"&" no es igual al TOTAL DEL GASTO ETIQUETADO en el momento APROBADO del ESTADO ANALÍTICO DEL EJERCICIO DEL PRESUPUESTO DE EGRESOS (F8B).") -> 
C157: =IF(ROUND(F18A!$D$61,2)=ROUND(F8B!$F$154,2),"","15.10. El TOTAL DEL GASTO ETIQUETADO en lo correspondiente al MODIFICADO del ESTADO ANALÍTICO DEL EJERCICIO DEL PRESUPUESTO DE EGRESO DETALLADO - LDF (F18A),"&" no es igual al TOTAL DEL GASTO ETIQUETADO en el momento MODIFICADO del ESTADO ANALÍTICO DEL EJERCICIO DEL PRESUPUESTO DE EGRESOS (F8B).") -> 
C158: =IF(ROUND(F18A!$E$61,2)=ROUND(F8B!$G$154,2),"","15.11. El TOTAL DEL GASTO ETIQUETADO en lo correspondiente al DEVENGADO del ESTADO ANALÍTICO DEL EJERCICIO DEL PRESUPUESTO DE EGRESO DETALLADO - LDF (F18A),"&" no es igual al TOTAL DEL GASTO ETIQUETADO en el momento DEVENGADO del ESTADO ANALÍTICO DEL EJERCICIO DEL PRESUPUESTO DE EGRESOS (F8B).") -> 
C159: =IF(ROUND(F18A!$F$61,2)=ROUND(F8B!$H$154,2),"","15.12. El TOTAL DEL GASTO ETIQUETADO en lo correspondiente al PAGADO del ESTADO ANALÍTICO DEL EJERCICIO DEL PRESUPUESTO DE EGRESO DETALLADO - LDF (F18A),"&" no es igual al TOTAL DEL GASTO ETIQUETADO en el momento PAGADO del ESTADO ANALÍTICO DEL EJERCICIO DEL PRESUPUESTO DE EGRESOS (F8B).") -> 
A160: 16. Validación Balance Presupuestario - LDF (F22) | C160: =IF(ROUND(SUM('F22'!E7:E8)+('F22'!E27),2)=ROUND('F7'!C70,2),"","16.1. El importe de INGRESOS TOTALES del momento ESTIMADO del BALANCE PRESUPUESTARIO - LDF (F22),"&" no es igual al ESTADO ANALÍTICO DE INGRESOS (F7) columna ESTIMADO.") -> 
C161: =IF(ROUND(SUM('F22'!F7:F8)+('F22'!F27),2)=ROUND('F7'!F70,2),"","16.2. El importe de INGRESOS TOTALES del momento DEVENGADO del BALANCE PRESUPUESTARIO - LDF (F22),"&" no es igual al ESTADO ANALÍTICO DE INGRESOS (F7) columna DEVENGADO.") -> 
C162: =IF(ROUND(SUM('F22'!G7:G8)+('F22'!G27),2)=ROUND('F7'!G70,2),"","16.3. El importe de INGRESOS TOTALES del momento RECAUDADO del BALANCE PRESUPUESTARIO - LDF (F22),"&" no es igual al ESTADO ANALÍTICO DE INGRESOS (F7) columna RECAUDADO.") -> 
C163: =IF(ROUND(('F22'!E10+'F22'!E30),2)=ROUND('F8'!C80,2),"","16.4. El importe de EGRESOS PRESUPUESTARIOS del momento APROBADO del BALANCE PRESUPUESTARIO - LDF (F22),"&" no es igual al ESTADO ANALÍTICO DEL EJERCICIO DEL PRESUPUESTO DE EGRESOS (F8) columna APROBADO.") -> 
C164: =IF(ROUND(('F22'!F10+'F22'!F30),2)=ROUND('F8'!F80,2),"","16.5. El importe de EGRESOS PRESUPUESTARIOS del momento DEVENGADO del BALANCE PRESUPUESTARIO - LDF (F22),"&" no es igual al ESTADO ANALÍTICO DEL EJERCICIO DEL PRESUPUESTO DE EGRESOS (F8) columna DEVENGADO.") -> 
C165: =IF(ROUND(('F22'!G10+'F22'!G30),2)=ROUND('F8'!G80,2),"","16.6. El importe de EGRESOS PRESUPUESTARIOS del momento PAGADO del BALANCE PRESUPUESTARIO - LDF (F22),"&" no es igual al ESTADO ANALÍTICO DEL EJERCICIO DEL PRESUPUESTO DE EGRESOS (F8) columna PAGADO.") -> 
A166: 17. Validación Avance de programas y/o procesos concluidos (F13) | C166: =IF(ROUND('F13'!$P$6,2)=ROUND('F12'!$E$21,2),"","17.1. El total del CAPÍTULO 1000 del AVANCE DE PROGRAMAS Y/O PROCESOS CONCLUIDOS (F13),"&" no es igual al informado en el FLUJO CONTABLE DE INGRESOS Y EGRESOS (F12) columna MODIFICADO.") -> 
C167: =IF(ROUND('F13'!$Q$6,2)=ROUND('F12'!$E$22,2),"","17.2. El total del CAPÍTULO 2000 del AVANCE DE PROGRAMAS Y/O PROCESOS CONCLUIDOS (F13),"&" no es igual al informado en el FLUJO CONTABLE DE INGRESOS Y EGRESOS (F12) columna MODIFICADO.") -> 
C168: =IF(ROUND('F13'!$R$6,2)=ROUND('F12'!$E$23,2),"","17.3. El total del CAPÍTULO 3000 del AVANCE DE PROGRAMAS Y/O PROCESOS CONCLUIDOS (F13),"&" no es igual al informado en el FLUJO CONTABLE DE INGRESOS Y EGRESOS (F12) columna MODIFICADO.") -> 
C169: =IF(ROUND('F13'!$S$6,2)=ROUND('F12'!$E$24,2),"","17.4. El total del CAPÍTULO 4000 del AVANCE DE PROGRAMAS Y/O PROCESOS CONCLUIDOS (F13),"&" no es igual al informado en el FLUJO CONTABLE DE INGRESOS Y EGRESOS (F12) columna MODIFICADO.") -> 
C170: =IF(ROUND('F13'!$T$6,2)=ROUND('F12'!$E$25,2),"","17.5. El total del CAPÍTULO 5000 del AVANCE DE PROGRAMAS Y/O PROCESOS CONCLUIDOS (F13),"&" no es igual al informado en el FLUJO CONTABLE DE INGRESOS Y EGRESOS (F12) columna MODIFICADO.") -> 
C171: =IF(ROUND('F13'!$U$6,2)=ROUND('F12'!$E$26,2),"","17.6. El total del CAPÍTULO 6000 del AVANCE DE PROGRAMAS Y/O PROCESOS CONCLUIDOS (F13),"&" no es igual al informado en el FLUJO CONTABLE DE INGRESOS Y EGRESOS (F12) columna MODIFICADO.") -> 
C172: =IF(ROUND('F13'!$V$6,2)=ROUND('F12'!$E$27,2),"","17.7. El total del CAPÍTULO 7000 del AVANCE DE PROGRAMAS Y/O PROCESOS CONCLUIDOS (F13),"&" no es igual al informado en el FLUJO CONTABLE DE INGRESOS Y EGRESOS (F12) columna MODIFICADO.") -> 
C173: =IF(ROUND('F13'!$W$6,2)=ROUND('F12'!$E$28,2),"","17.8. El total del CAPÍTULO 8000 del AVANCE DE PROGRAMAS Y/O PROCESOS CONCLUIDOS (F13),"&" no es igual al informado en el FLUJO CONTABLE DE INGRESOS Y EGRESOS (F12) columna MODIFICADO.") -> 
C174: =IF(ROUND('F13'!$X$6,2)=ROUND('F12'!$E$29,2),"","17.9. El total del CAPÍTULO 9000 del AVANCE DE PROGRAMAS Y/O PROCESOS CONCLUIDOS (F13),"&" no es igual al informado en el FLUJO CONTABLE DE INGRESOS Y EGRESOS (F12) columna MODIFICADO.") -> 
C175: =IF(ROUND('F13'!$AA$6,2)=ROUND('F12'!$F$21,2),"","17.10. El total del CAPÍTULO 1000 del AVANCE DE PROGRAMAS Y/O PROCESOS CONCLUIDOS (F13),"&" no es igual al informado en el FLUJO CONTABLE DE INGRESOS Y EGRESOS (F12) columna DEVENGADO.") -> 
C176: =IF(ROUND('F13'!$AB$6,2)=ROUND('F12'!$F$22,2),"","17.11. El total del CAPÍTULO 2000 del AVANCE DE PROGRAMAS Y/O PROCESOS CONCLUIDOS (F13),"&" no es igual al informado en el FLUJO CONTABLE DE INGRESOS Y EGRESOS (F12) columna DEVENGADO.") -> 
C177: =IF(ROUND('F13'!$AC$6,2)=ROUND('F12'!$F$23,2),"","17.12. El total del CAPÍTULO 3000 del AVANCE DE PROGRAMAS Y/O PROCESOS CONCLUIDOS (F13),"&" no es igual al informado en el FLUJO CONTABLE DE INGRESOS Y EGRESOS (F12) columna DEVENGADO.") -> 
C178: =IF(ROUND('F13'!$AD$6,2)=ROUND('F12'!$F$24,2),"","17.13. El total del CAPÍTULO 4000 del AVANCE DE PROGRAMAS Y/O PROCESOS CONCLUIDOS (F13),"&" no es igual al informado en el FLUJO CONTABLE DE INGRESOS Y EGRESOS (F12) columna DEVENGADO.") -> 
C179: =IF(ROUND('F13'!$AE$6,2)=ROUND('F12'!$F$25,2),"","17.14. El total del CAPÍTULO 5000 del AVANCE DE PROGRAMAS Y/O PROCESOS CONCLUIDOS (F13),"&" no es igual al informado en el FLUJO CONTABLE DE INGRESOS Y EGRESOS (F12) columna DEVENGADO.") -> 
C180: =IF(ROUND('F13'!$AF$6,2)=ROUND('F12'!$F$26,2),"","17.15. El total del CAPÍTULO 6000 del AVANCE DE PROGRAMAS Y/O PROCESOS CONCLUIDOS (F13),"&" no es igual al informado en el FLUJO CONTABLE DE INGRESOS Y EGRESOS (F12) columna DEVENGADO.") -> 
C181: =IF(ROUND('F13'!$AG$6,2)=ROUND('F12'!$F$27,2),"","17.16. El total del CAPÍTULO 7000 del AVANCE DE PROGRAMAS Y/O PROCESOS CONCLUIDOS (F13),"&" no es igual al informado en el FLUJO CONTABLE DE INGRESOS Y EGRESOS (F12) columna DEVENGADO.") -> 
C182: =IF(ROUND('F13'!$AH$6,2)=ROUND('F12'!$F$28,2),"","17.17. El total del CAPÍTULO 8000 del AVANCE DE PROGRAMAS Y/O PROCESOS CONCLUIDOS (F13),"&" no es igual al informado en el FLUJO CONTABLE DE INGRESOS Y EGRESOS (F12) columna DEVENGADO.") -> 
C183: =IF(ROUND('F13'!$AI$6,2)=ROUND('F12'!$F$29,2),"","17.18. El total del CAPÍTULO 9000 del AVANCE DE PROGRAMAS Y/O PROCESOS CONCLUIDOS (F13),"&" no es igual al informado en el FLUJO CONTABLE DE INGRESOS Y EGRESOS (F12) columna DEVENGADO.") -> 
B185: Acatic | C185: ENERO | D185: ="31 de Enero de "&F185 -> 31 de Enero de 2025 | E185: ="Del 1° al 31 de Enero de "&F185 -> Del 1° al 31 de Enero de 2025 | F185: 2025 | T185: Indicaciones para actualizar el archivo de importar de cada año:
B186: Acatlán de Juárez | C186: FEBRERO | D186: ="28 de Febrero de "&F185 -> 28 de Febrero de 2025 | E186: ="Del 1° al 28 de Febrero de "&F185 -> Del 1° al 28 de Febrero de 2025 | F186: 2024 | U186: Actualizar el catálogo de entidades
B187: Administración de Estacionómetros para la Asistencia Social del Municipio de Zapotlán el Grande | C187: MARZO | D187: ="31 de Marzo de "&F185 -> 31 de Marzo de 2025 | E187: ="Del 1° al 31 de Marzo de "&F185 -> Del 1° al 31 de Marzo de 2025 | U187: Cambiar conforme a los días de febrero
B188: Agencia Metropolitana de Bosques Urbanos del Área Metropolitana de Guadalajara | C188: ABRIL | D188: ="30 de Abril de "&F185 -> 30 de Abril de 2025 | E188: ="Del 1° al 30 de Abril de "&F185 -> Del 1° al 30 de Abril de 2025 | U188: Corresponde el primero al año de la cuenta y el segundo al anterior
B189: Agencia Metropolitana de Servicios de Infraestructura para la Movilidad del Área Metropolitana de Guadalajara | C189: MAYO | D189: ="31 de Mayo de "&F185 -> 31 de Mayo de 2025 | E189: ="Del 1° al 31 de Mayo de "&F185 -> Del 1° al 31 de Mayo de 2025
B190: Agua y Saneamiento del Municipio de Tepatitlán de Morelos, Jalisco (ASTEPA) | C190: JUNIO, 1er. Informe de Avance de Gestión Financiera y Corte Semestral | D190: ="30 de Junio de "&F185 -> 30 de Junio de 2025 | E190: ="Del 1° al 30 de Junio de "&F185 -> Del 1° al 30 de Junio de 2025
B191: Ahualulco de Mercado | C191: JULIO | D191: ="31 de Julio de "&F185 -> 31 de Julio de 2025 | E191: ="Del 1° al 31 de Julio de "&F185 -> Del 1° al 31 de Julio de 2025
B192: Albergue Las Cuadritas "Fray Antonio Alcalde" | C192: AGOSTO | D192: ="31 de Agosto de "&F185 -> 31 de Agosto de 2025 | E192: ="Del 1° al 31 de Agosto de "&F185 -> Del 1° al 31 de Agosto de 2025
B193: Amacueca | C193: SEPTIEMBRE | D193: ="30 de Septiembre de "&F185 -> 30 de Septiembre de 2025 | E193: ="Del 1° al 30 de Septiembre de "&F185 -> Del 1° al 30 de Septiembre de 2025
B194: Amatitán | C194: OCTUBRE | D194: ="31 de Octubre de "&F185 -> 31 de Octubre de 2025 | E194: ="Del 1° al 31 de Octubre de "&F185 -> Del 1° al 31 de Octubre de 2025
B195: Ameca | C195: NOVIEMBRE | D195: ="30 de Noviembre de "&F185 -> 30 de Noviembre de 2025 | E195: ="Del 1° al 30 de Noviembre de "&F185 -> Del 1° al 30 de Noviembre de 2025
B196: Arandas | C196: DICIEMBRE, 2do. Informe de Avance de Gestión Financiera y Corte Anual | D196: ="31 de Diciembre de "&F185 -> 31 de Diciembre de 2025 | E196: ="Del 1° al 31 de Diciembre de "&F185 -> Del 1° al 31 de Diciembre de 2025
B197: Asociación Intermunicipal para la Protección del Medio Ambiente y el Desarrollo Sustentable del Lago de Chapala
B198: Atemajac de Brizuela
B199: Atengo
B200: Atenguillo
B201: Atotonilco el Alto
B202: Atoyac
B203: Autlán de Navarro
... 364 more rows

Sheet Balanza (hidden)
A1: No. DE CUENTA | B1: NOMBRE DE LA CUENTA | C1: ="SALDO AL 31 DE DICIEMBRE DE "&Validacion!F186 -> SALDO AL 31 DE DICIEMBRE DE 2024 | E1: MOVIMIENTO | G1: ="SALDO FINAL DEL PERIODO A INFORMAR EJERCICIO "&Validacion!F185 -> SALDO FINAL DEL PERIODO A INFORMAR EJERCICIO 2025
C2: DEUDOR | D2: ACREEDOR | E2: DEUDOR | F2: ACREEDOR | G2: DEUDOR | H2: ACREEDOR
A3: 10000 | B3: ACTIVO | C3: =C4+C43 -> 435,993,845.40 | E3: =E4+E43 -> 48,547,704.25 | F3: 28,757,113.78 | G3: 455,784,435.90
A4: 11000 | B4: ACTIVO CIRCULANTE | C4: =C5+C13+C21+C27+C33+C35+C38 -> 73,154,456.79 | E4: =E5+E13+E21+E27+E33+E35+E38 -> 42,247,062.90 | F4: 26,957,359.26 | G4: 88,444,160.43
A5: 11100 | B5: EFECTIVO Y EQUIVALENTES | C5: =SUM(C6:C12) -> 62,441,985.37 | E5: =SUM(E6:E12) -> 40,140,772.33 | F5: 24,918,279.71 | G5: 77,664,477.99
A6: 11110 | B6: Efectivo | C6: 297,939.06 | G6: =ROUND(C6+E6-F6,2) -> 297,939.06
A7: 11120 | B7: Bancos/Tesorería | C7: 57,309,446.31 | E7: 40,140,772.33 | F7: 24,918,279.71 | G7: 72,531,938.93
A8: 11130 | B8: Bancos/Dependencias y otros | G8: 0.00
A9: 11140 | B9: Inversiones temporales (hasta 3 meses) | G9: 0.00
A10: 11150 | B10: Fondos con afectación específica | G10: 0.00
A11: 11160 | B11: Depósitos de fondos de terceros en garantía y/o administración | G11: 0.00
A12: 11190 | B12: Otros efectivos y equivalentes | C12: 4,834,600.00 | G12: 4,834,600.00
A13: 11200 | B13: DERECHOS A RECIBIR EFECTIVO O EQUIVALENTES | C13: =SUM(C14:C20) -> 5,216,121.51 | E13: =SUM(E14:E20) -> 1,704,210.60 | F13: 1,214,307.23 | G13: 5,706,024.88
A14: 11210 | B14: Inversiones financieras de corto plazo | G14: =ROUND(C14+E14-F14,2) -> 0.00
A15: 11220 | B15: Cuentas por cobrar a corto plazo | G15: 0.00
A16: 11230 | B16: Deudores diversos por cobrar a corto plazo | C16: 4,056,968.30 | E16: 203,493.00 | F16: 408,560.48 | G16: 3,851,900.82
A17: 11240 | B17: Ingresos por recuperar a corto plazo | G17: 0.00
A18: 11250 | B18: Deudores por anticipos de la tesorería a corto plazo | C18: -25,130.33 | G18: -25,130.33
A19: 11260 | B19: Préstamos otorgados a corto plazo | C19: 1,184,283.54 | E19: 1,500,717.60 | F19: 805,746.75 | G19: 1,879,254.39
A20: 11290 | B20: Otros derechos a recibir efectivo o equivalentes a corto plazo | G20: 0.00
A21: 11300 | B21: DERECHOS A RECIBIR BIENES O SERVICIOS | C21: =SUM(C22:C26) -> 5,496,349.91 | E21: =SUM(E22:E26) -> 402,079.97 | F21: 824,772.32 | G21: 5,073,657.56
A22: 11310 | B22: Anticipo a proveedores por adquisición de bienes y prestación de servicios a corto plazo | C22: 3,110,726.83 | E22: 402,079.97 | F22: 75,891.09 | G22: =ROUND(C22+E22-F22,2) -> 3,436,915.71
A23: 11320 | B23: Anticipo a proveedores por adquisición de bienes inmuebles y muebles a corto plazo | G23: 0.00
A24: 11330 | B24: Anticipo a proveedores por adquisición de bienes intangibles a corto plazo | G24: 0.00
A25: 11340 | B25: Anticipo a contratistas por obras públicas a corto plazo | C25: 2,385,623.08 | F25: 748,881.23 | G25: 1,636,741.85
A26: 11390 | B26: Otros derechos a recibir bienes o servicios a corto plazo | G26: 0.00
A27: 11400 | B27: INVENTARIOS | C27: =SUM(C28:C32) -> 0.00 | E27: =SUM(E28:E32) -> 0.00 | F27: 0.00 | G27: 0.00
A28: 11410 | B28: Inventario de mercancías para venta
A29: 11420 | B29: Inventario de mercancías terminadas
A30: 11430 | B30: Inventario de mercancías en proceso de elaboración
A31: 11440 | B31: Inventario de materias primas, materiales y suministros para producción
A32: 11450 | B32: Bienes en tránsito
A33: 11500 | B33: ALMACENES | C33: =SUM(C34) -> 0.00 | E33: =SUM(E34) -> 0.00 | F33: 0.00 | G33: 0.00
A34: 11510 | B34: Almacén de materiales y suministros de consumo | G34: =ROUND(C34+E34-F34,2) -> 0.00
A35: 11600 | B35: ESTIMACIÓN POR PÉRDIDA O DETERIORO DE ACTIVOS CIRCULANTES | C35: =SUM(C36:C37) -> 0.00 | E35: =SUM(E36:E37) -> 0.00 | F35: 0.00 | G35: 0.00
A36: 11610 | B36: Estimaciones para cuentas incobrables por derechos a recibir efectivo o equivalentes | G36: =ROUND(C36+E36-F36,2) -> 0.00
A37: 11620 | B37: Estimación por deterioro de inventarios | G37: 0.00
A38: 11900 | B38: OTROS ACTIVOS CIRCULANTES | C38: =SUM(C39:C42) -> 0.00 | E38: =SUM(E39:E42) -> 0.00 | F38: 0.00 | G38: 0.00
A39: 11910 | B39: Valores en garantía | G39: =ROUND(C39+E39-F39,2) -> 0.00
A40: 11920 | B40: Bienes en garantía (excluye depósitos de fondos) | G40: 0.00
A41: 11930 | B41: Bienes derivados de embargos, decomisos, aseguramientos y dación en pago | G41: 0.00
A42: 11940 | B42: Adquisición con fondos de terceros | G42: 0.00
A43: 12000 | B43: ACTIVO NO CIRCULANTE | C43: =C44+C49+C55+C63+C72+C78+C84+C91+C97-D43 -> 362,839,388.60 | D43: =D44+D49+D55+D63+D72+D78+D84+D91+D97 -> 18,350,457.80 | E43: 6,300,641.35 | F43: 1,799,754.52 | G43: =G44+G49+G55+G63+G72+G78+G84+G91+G97-H43 -> 367,340,275.50 | H43: =H44+H49+H55+H63+H72+H78+H84+H91+H97 -> 18,350,457.80
A44: 12100 | B44: INVERSIONES FINANCIERAS A LARGO PLAZO | C44: =SUM(C45:C48) -> -187,388.76 | E44: =SUM(E45:E48) -> 1,818,669.61 | F44: 1,799,754.52 | G44: -168,473.67
A45: 12110 | B45: Inversiones a largo plazo | G45: =ROUND(C45+E45-F45,2) -> 0.00
A46: 12120 | B46: Títulos y valores a largo plazo | G46: 0.00
A47: 12130 | B47: Fideicomisos, mandatos y contratos análogos | C47: -187,388.76 | E47: 1,818,669.61 | F47: 1,799,754.52 | G47: -168,473.67
A48: 12140 | B48: Participaciones y aportaciones de capital | G48: 0.00
A49: 12200 | B49: DERECHOS A RECIBIR EFECTIVO O EQUIVALENTES A LARGO PLAZO | C49: =SUM(C50:C54) -> 0.00 | E49: =SUM(E50:E54) -> 0.00 | F49: 0.00 | G49: 0.00
A50: 12210 | B50: Documentos por cobrar a largo plazo | G50: =ROUND(C50+E50-F50,2) -> 0.00
A51: 12220 | B51: Deudores diversos a largo plazo | G51: 0.00
A52: 12230 | B52: Ingresos por recuperar a largo plazo | G52: 0.00
A53: 12240 | B53: Préstamos otorgados a largo plazo | G53: 0.00
A54: 12290 | B54: Otros derechos a recibir efectivo o equivalentes a largo plazo | G54: 0.00
A55: 12300 | B55: BIENES INMUEBLES, INFRAESTRUCTURA Y CONSTRUCCIONES EN PROCESO | C55: =SUM(C56:C62) -> 334,935,354.20 | E55: =SUM(E56:E62) -> 3,726,036.63 | F55: 0.00 | G55: 338,661,390.80
A56: 12310 | B56: Terrenos | C56: 26,661,195.01 | G56: =ROUND(C56+E56-F56,2) -> 26,661,195.01
A57: 12320 | B57: Viviendas | G57: 0.00
A58: 12330 | B58: Edificios no habitacionales | C58: 32,456,577.20 | G58: 32,456,577.20
A59: 12340 | B59: Infraestructura | C59: 51,753,242.47 | G59: 51,753,242.47
A60: 12350 | B60: Construcciones en proceso en bienes de dominio público | C60: 224,064,339.50 | E60: 3,726,036.63 | G60: 227,790,376.10
A61: 12360 | B61: Construcciones en proceso en bienes propios | G61: 0.00
A62: 12390 | B62: Otros bienes inmuebles | G62: 0.00
A63: 12400 | B63: BIENES MUEBLES | C63: =SUM(C64:C71) -> 43,684,658.30 | E63: =SUM(E64:E71) -> 755,935.11 | F63: 0.00 | G63: 44,440,593.41
A64: 12410 | B64: Mobiliario y equipo de administración | C64: 5,169,365.54 | E64: 69,600.00 | G64: =ROUND(C64+E64-F64,2) -> 5,238,965.54
A65: 12420 | B65: Mobiliario y equipo educacional y recreativo | C65: 894,882.14 | G65: 894,882.14
A66: 12430 | B66: Equipo e instrumental médico y de laboratorio | C66: 1,921,564.96 | G66: 1,921,564.96
A67: 12440 | B67: Vehículos y equipo de transporte | C67: 28,833,659.02 | E67: 315,000.00 | G67: 29,148,659.02
A68: 12450 | B68: Equipo de defensa y seguridad | C68: 867,562.13 | G68: 867,562.13
A69: 12460 | B69: Maquinaria, otros equipos y herramientas | C69: 5,590,506.05 | E69: 371,335.11 | G69: 5,961,841.16
A70: 12470 | B70: Colecciones, obras de arte y objetos valiosos | C70: 407,118.46 | G70: 407,118.46
A71: 12480 | B71: Activos biológicos | G71: 0.00
A72: 12500 | B72: ACTIVOS INTANGIBLES | C72: =SUM(C73:C77) -> 2,757,222.70 | E72: =SUM(E73:E77) -> 0.00 | F72: 0.00 | G72: 2,757,222.70
A73: 12510 | B73: Software | C73: 34,678.20 | G73: =ROUND(C73+E73-F73,2) -> 34,678.20
A74: 12520 | B74: Patentes, marcas y derechos | G74: 0.00
A75: 12530 | B75: Concesiones y franquicias | G75: 0.00
A76: 12540 | B76: Licencias | C76: 2,722,544.50 | G76: 2,722,544.50
A77: 12590 | B77: Otros activos intangibles | G77: 0.00
A78: 12600 | B78: DEPRECIACIÓN, DETERIORO Y AMORTIZACIÓN ACUMULADA DE BIENES | D78: =SUM(D79:D83) -> 18,350,457.80 | E78: 0.00 | F78: 0.00 | H78: =D78+F78-E78 -> 18,350,457.80
A79: 12610 | B79: Depreciación acumulada de bienes inmuebles | D79: 120,623.78 | H79: =ROUND(D79+F79-E79,2) -> 120,623.78
A80: 12620 | B80: Depreciación acumulada de infraestructura | H80: 0.00
A81: 12630 | B81: Depreciación acumulada de bienes muebles | D81: 17,893,932.55 | H81: 17,893,932.55
A82: 12640 | B82: Deterioro acumulado de bienes | H82: 0.00
A83: 12650 | B83: Amortización acumulada de activos intangibles | D83: 335,901.47 | H83: 335,901.47
A84: 12700 | B84: ACTIVOS DIFERIDOS | C84: =SUM(C85:C90) -> 0.00 | E84: =SUM(E85:E90) -> 0.00 | F84: 0.00 | G84: 0.00
A85: 12710 | B85: Estudios, formulación y evaluación de proyectos | G85: =ROUND(C85+E85-F85,2) -> 0.00
A86: 12720 | B86: Derechos sobre bienes en régimen de arrendamiento financiero | G86: 0.00
A87: 12730 | B87: Gastos pagados por adelantado a largo plazo | G87: 0.00
A88: 12740 | B88: Anticipos a largo plazo | G88: 0.00
A89: 12750 | B89: Beneficios al retiro de empleados pagados por adelantado | G89: 0.00
A90: 12790 | B90: Otros activos diferidos | G90: 0.00
A91: 12800 | B91: ESTIMACIÓN POR PÉRDIDA O DETERIORO DE ACTIVOS NO CIRCULANTES | D91: =SUM(D92:D96) -> 0.00 | E91: 0.00 | F91: 0.00 | H91: =D91+F91-E91 -> 0.00
A92: 12810 | B92: Estimaciones por pérdida de cuentas incobrables de documentos por cobrar a largo plazo | H92: =ROUND(D92+F92-E92,2) -> 0.00
A93: 12820 | B93: Estimaciones por pérdida de cuentas incobrables de deudores diversos por cobrar a largo plazo | H93: 0.00
A94: 12830 | B94: Estimaciones por pérdida de cuentas incobrables de ingresos por cobrar a largo plazo | H94: 0.00
A95: 12840 | B95: Estimaciones por pérdida de cuentas incobrables de préstamos otorgados a largo plazo | H95: 0.00
A96: 12890 | B96: Estimaciones por pérdida de otras cuentas incobrables a largo plazo | H96: 0.00
A97: 12900 | B97: OTROS ACTIVOS NO CIRCULANTES | C97: =SUM(C98:C100) -> 0.00 | E97: =SUM(E98:E100) -> 0.00 | F97: 0.00 | G97: 0.00
A98: 12910 | B98: Bienes en concesión | G98: =ROUND(C98+E98-F98,2) -> 0.00
A99: 12920 | B99: Bienes en arrendamiento financiero | G99: 0.00
A100: 12930 | B100: Bienes en comodato | G100: 0.00
A101: 20000 | B101: PASIVO | D101: =D102+D143 -> 28,337,984.82 | E101: 18,041,167.98 | F101: 17,740,348.19 | H101: =H102+H143 -> 28,037,165.03
A102: 21000 | B102: PASIVO CIRCULANTE | D102: =D103+D113+D117+D121+D124+D128+D135+D139 -> -989,043.62 | E102: 17,248,055.80 | F102: 17,740,348.19 | H102: =H103+H113+H117+H121+H124+H128+H135+H139 -> -496,751.23
A103: 21100 | B103: CUENTAS POR PAGAR A CORTO PLAZO | D103: =SUM(D104:D112) -> -990,005.15 | E103: 14,222,061.90 | F103: 13,982,913.17 | H103: =SUM(H104:H112) -> -1,229,153.88
A104: 21110 | B104: Servicios personales por pagar a corto plazo | E104: 4,324,359.92 | F104: 4,324,359.92 | H104: =ROUND(D104+F104-E104,2) -> 0.00
A105: 21120 | B105: Proveedores por pagar a corto plazo | D105: 256,699.13 | E105: 9,176,906.11 | F105: 8,937,941.17 | H105: 17,734.19
A106: 21130 | B106: Contratistas por obras públicas por pagar a corto plazo | H106: 0.00
A107: 21140 | B107: Participaciones y aportaciones por pagar a corto plazo | H107: 0.00
A108: 21150 | B108: Transferencias otorgadas por pagar a corto plazo | H108: 0.00
A109: 21160 | B109: Intereses, comisiones y otros gastos de la deuda pública por pagar a corto plazo | H109: 0.00
A110: 21170 | B110: Retenciones y contribuciones por pagar a corto plazo | D110: -1,246,704.28 | E110: 720,795.87 | F110: 720,612.08 | H110: -1,246,888.07
A111: 21180 | B111: Devoluciones de la ley de ingresos por pagar a corto plazo | H111: 0.00
A112: 21190 | B112: Otras cuentas por pagar a corto plazo | H112: 0.00
A113: 21200 | B113: DOCUMENTOS POR PAGAR A CORTO PLAZO | D113: =SUM(D114:D116) -> 961.53 | E113: 2,964,322.84 | F113: 2,964,322.84 | H113: =SUM(H114:H116) -> 961.53
A114: 21210 | B114: Documentos comerciales por pagar a corto plazo | H114: =ROUND(D114+F114-E114,2) -> 0.00
A115: 21220 | B115: Documentos con contratistas por obras públicas por pagar a corto plazo | D115: 961.53 | E115: 2,964,322.84 | F115: 2,964,322.84 | H115: 961.53
A116: 21290 | B116: Otros documentos por pagar a corto plazo | H116: 0.00
A117: 21300 | B117: PORCIÓN A CORTO PLAZO DE LA DEUDA PÚBLICA A LARGO PLAZO | D117: =SUM(D118+D120) -> 0.00 | E117: 61,671.06 | F117: 793,112.18 | H117: =SUM(H118+H120) -> 731,441.12
A118: 21310 | B118: Porción a corto plazo de la deuda pública interna | E118: 61,671.06 | F118: 793,112.18 | H118: =ROUND(D118+F118-E118,2) -> 731,441.12
A119: 21320 | B119: Porción a corto plazo de la deuda pública externa
A120: 21330 | B120: Porción a corto plazo de arrendamiento financiero | H120: =ROUND(D120+F120-E120,2) -> 0.00
A121: 21400 | B121: TÍTULOS Y VALORES A CORTO PLAZO | D121: =SUM(D122) -> 0.00 | E121: 0.00 | F121: 0.00 | H121: =SUM(H122) -> 0.00
A122: 21410 | B122: Títulos y valores de la deuda pública interna a corto plazo | H122: =ROUND(D122+F122-E122,2) -> 0.00
A123: 21420 | B123: Títulos y valores de la deuda pública externa a corto plazo
A124: 21500 | B124: PASIVOS DIFERIDOS A CORTO PLAZO | D124: =SUM(D125:D127) -> 0.00 | E124: 0.00 | F124: 0.00 | H124: =SUM(H125:H127) -> 0.00
A125: 21510 | B125: Ingresos cobrados por adelantado a corto plazo | H125: =ROUND(D125+F125-E125,2) -> 0.00
A126: 21520 | B126: Intereses cobrados por adelantado a corto plazo | H126: 0.00
A127: 21590 | B127: Otros pasivos diferidos a corto plazo | H127: 0.00
A128: 21600 | B128: FONDOS Y BIENES DE TERCEROS EN GARANTÍA Y/O ADMINISTRACIÓN A CORTO PLAZO | D128: =SUM(D129:D134) -> 0.00 | E128: 0.00 | F128: 0.00 | H128: =SUM(H129:H134) -> 0.00
A129: 21610 | B129: Fondos en garantía a corto plazo | H129: =ROUND(D129+F129-E129,2) -> 0.00
A130: 21620 | B130: Fondos en administración a corto plazo | H130: 0.00
A131: 21630 | B131: Fondos contingentes a corto plazo | H131: 0.00
A132: 21640 | B132: Fondos de fideicomisos, mandatos y contratos análogos a corto plazo | H132: 0.00
A133: 21650 | B133: Otros fondos de terceros en garantía y/o administración a corto plazo | H133: 0.00
A134: 21660 | B134: Valores y bienes en garantía a corto plazo | H134: 0.00
A135: 21700 | B135: PROVISIONES A CORTO PLAZO | D135: =SUM(D136:D138) -> 0.00 | E135: 0.00 | F135: 0.00 | H135: =SUM(H136:H138) -> 0.00
A136: 21710 | B136: Provisión para demandas y juicios a corto plazo | H136: =ROUND(D136+F136-E136,2) -> 0.00
A137: 21720 | B137: Provisión para contingencias a corto plazo | H137: 0.00
A138: 21790 | B138: Otras provisiones a corto plazo | H138: 0.00
A139: 21900 | B139: OTROS PASIVOS A CORTO PLAZO | D139: =SUM(D140:D142) -> 0.00 | E139: 0.00 | F139: 0.00 | H139: =SUM(H140:H142) -> 0.00
A140: 21910 | B140: Ingresos por clasificar | H140: =ROUND(D140+F140-E140,2) -> 0.00
A141: 21920 | B141: Recaudación por participar | H141: 0.00
A142: 21990 | B142: Otros pasivos circulantes | H142: 0.00
A143: 22000 | B143: PASIVO NO CIRCULANTE | D143: =SUM(D144+D147+D151+D157+D161+D168) -> 29,327,028.44 | E143: 793,112.18 | F143: 0.00 | H143: =SUM(H144+H147+H151+H157+H161+H168) -> 28,533,916.26
A144: 22100 | B144: CUENTAS POR PAGAR A LARGO PLAZO | D144: =SUM(D145:D146) -> 0.00 | E144: 0.00 | F144: 0.00 | H144: =SUM(H145:H146) -> 0.00
A145: 22110 | B145: Proveedores por pagar a largo plazo | H145: =ROUND(D145+F145-E145,2) -> 0.00
A146: 22120 | B146: Contratistas por obras públicas por pagar a largo plazo | H146: 0.00
A147: 22200 | B147: DOCUMENTOS POR PAGAR A LARGO PLAZO | D147: =SUM(D148:D150) -> 0.00 | E147: 0.00 | F147: 0.00 | H147: =SUM(H148:H150) -> 0.00
A148: 22210 | B148: Documentos comerciales por pagar a largo plazo | H148: =ROUND(D148+F148-E148,2) -> 0.00
A149: 22220 | B149: Documentos con contratistas por obras públicas por pagar a largo plazo | H149: 0.00
A150: 22290 | B150: Otros documentos por pagar a largo plazo | H150: 0.00
A151: 22300 | B151: DEUDA PÚBLICA A LARGO PLAZO | D151: =SUM(D152:D156) -> 29,327,028.44 | E151: 793,112.18 | F151: 0.00 | H151: =SUM(H152:H156) -> 28,533,916.26
A152: 22310 | B152: Títulos y valores de la deuda pública interna a largo plazo | H152: =ROUND(D152+F152-E152,2) -> 0.00
A153: 22320 | B153: Títulos y valores de la deuda pública externa a largo plazo
A154: 22330 | B154: Préstamos de la deuda pública interna por pagar a largo plazo | D154: 29,327,028.44 | E154: 793,112.18 | H154: =ROUND(D154+F154-E154,2) -> 28,533,916.26
A155: 22340 | B155: Préstamos de la deuda pública externa por pagar a largo plazo
A156: 22350 | B156: Arrendamiento financiero por pagar a largo plazo | H156: =ROUND(D156+F156-E156,2) -> 0.00
A157: 22400 | B157: PASIVOS DIFERIDOS A LARGO PLAZO | D157: =SUM(D158:D160) -> 0.00 | E157: 0.00 | F157: 0.00 | H157: =SUM(H158:H160) -> 0.00
A158: 22410 | B158: Créditos diferidos a largo plazo | H158: =ROUND(D158+F158-E158,2) -> 0.00
A159: 22420 | B159: Intereses cobrados por adelantado a largo plazo | H159: 0.00
A160: 22490 | B160: Otros pasivos diferidos a largo plazo | H160: 0.00
A161: 22500 | B161: FONDOS Y BIENES DE TERCEROS EN GARANTÍA Y/O ADMINISTRACIÓN A LARGO PLAZO | D161: =SUM(D162:D167) -> 0.00 | E161: 0.00 | F161: 0.00 | H161: =SUM(H162:H167) -> 0.00
A162: 22510 | B162: Fondos en garantía a largo plazo | H162: =ROUND(D162+F162-E162,2) -> 0.00
A163: 22520 | B163: Fondos en administración a largo plazo | H163: 0.00
A164: 22530 | B164: Fondos contingentes a largo plazo | H164: 0.00
A165: 22540 | B165: Fondos de fideicomisos, mandatos y contratos análogos a largo plazo | H165: 0.00
A166: 22550 | B166: Otros fondos de terceros en garantía y/o administración a largo plazo | H166: 0.00
A167: 22560 | B167: Valores y bienes en garantía a largo plazo | H167: 0.00
A168: 22600 | B168: PROVISIONES A LARGO PLAZO | D168: =SUM(D169:D172) -> 0.00 | E168: 0.00 | F168: 0.00 | H168: =SUM(H169:H172) -> 0.00
A169: 22610 | B169: Provisión para demandas y juicios a largo plazo | H169: =ROUND(D169+F169-E169,2) -> 0.00
A170: 22620 | B170: Provisión para pensiones a largo plazo | H170: 0.00
A171: 22630 | B171: Provisión para contingencias a largo plazo | H171: 0.00
A172: 22690 | B172: Otras provisiones a largo plazo | H172: 0.00
A173: 30000 | B173: HACIENDA PÚBLICA/PATRIMONIO | D173: =D174+D178+D194 -> 407,655,860.60 | E173: 0.00 | F173: 20,091,410.26 | H173: =H174+H178+H194 -> 427,747,270.90
A174: 31000 | B174: HACIENDA PÚBLICA/PATRIMONIO CONTRIBUIDO | D174: =SUM(D175:D177) -> 0.00 | E174: 0.00 | F174: 0.00 | H174: =SUM(H175:H177) -> 0.00
A175: 31100 | B175: APORTACIONES | H175: =ROUND(D175+F175-E175,2) -> 0.00
A176: 31200 | B176: DONACIONES DE CAPITAL | H176: 0.00
A177: 31300 | B177: ACTUALIZACIÓN DE LA HACIENDA PÚBLICA/PATRIMONIO | H177: 0.00
A178: 32000 | B178: HACIENDA PÚBLICA/PATRIMONIO GENERADO | D178: =D179+D180+D181+D186+D190 -> 407,655,860.60 | E178: 0.00 | F178: 20,091,410.26 | H178: =H179+H180+H181+H186+H190 -> 427,747,270.90
A179: 32100 | B179: RESULTADOS DEL EJERCICIO (AHORRO/ DESAHORRO) | D179: =IF(C752>D753,C752,(D753)*-1) -> 84,783,666.63 | E179: =F753 -> 0.00 | F179: =E752 -> 20,091,410.26 | H179: =ROUND(F179-E179,2) -> 20,091,410.26
A180: 32200 | B180: RESULTADOS DE EJERCICIOS ANTERIORES | D180: 322,872,193.96 | H180: =ROUND(D179+D180+F180-E180,2) -> 407,655,860.60
A181: 32300 | B181: REVALÚOS | D181: =SUM(D182:D185) -> 0.00 | E181: 0.00 | F181: 0.00 | H181: =SUM(H182:H185) -> 0.00
A182: 32310 | B182: Revalúo de bienes inmuebles | H182: =ROUND(D182+F182-E182,2) -> 0.00
A183: 32320 | B183: Revalúo de bienes muebles | H183: 0.00
A184: 32330 | B184: Revalúo de bienes intangibles | H184: 0.00
A185: 32390 | B185: Otros revalúos | H185: 0.00
A186: 32400 | B186: RESERVAS | D186: =SUM(D187:D189) -> 0.00 | E186: 0.00 | F186: 0.00 | H186: =SUM(H187:H189) -> 0.00
A187: 32410 | B187: Reservas de patrimonio | H187: =ROUND(D187+F187-E187,2) -> 0.00
A188: 32420 | B188: Reservas territoriales | H188: 0.00
A189: 32430 | B189: Reservas por contingencias | H189: 0.00
A190: 32500 | B190: RECTIFICACIONES DE RESULTADOS DE EJERCICIOS ANTERIORES | D190: =SUM(D191:D193) -> 0.00 | E190: 0.00 | F190: 0.00 | H190: =SUM(H191:H193) -> 0.00
A191: 32510 | B191: Cambios en políticas contables | H191: =ROUND(D191+F191-E191,2) -> 0.00
A192: 32520 | B192: Cambios por errores contables | H192: 0.00
A193: 32530 | B193: Cambios en estimaciones contables | H193: 0.00
A194: 33000 | B194: EXCESO O INSUFICIENCIA EN LA ACTUALIZACIÓN DE LA HACIENDA PÚBLICA/PATRIMONIO | D194: =SUM(D195:D196) -> 0.00 | E194: 0.00 | F194: 0.00 | H194: =SUM(H195:H196) -> 0.00
A195: 33100 | B195: RESULTADO POR POSICIÓN MONETARIA | H195: =ROUND(D195+F195-E195,2) -> 0.00
A196: 33200 | B196: RESULTADO POR TENENCIA DE ACTIVOS NO MONETARIOS | H196: 0.00
A197: 40000 | B197: INGRESOS Y OTROS BENEFICIOS | D197: =D198+D308+D356 -> 331,683,212.70 | E197: 1,196,914.70 | F197: 37,048,910.17 | H197: =H198+H308+H356 -> 35,851,995.47
A198: 41000 | B198: INGRESOS DE GESTIÓN | D198: =D199+D220+D226+D231+D263+D272+D293+D305 -> 116,292,811.90 | E198: 1,196,914.70 | F198: 18,324,563.68 | H198: =H199+H220+H226+H231+H263+H272+H293+H305 -> 17,127,648.98
A199: 41100 | B199: IMPUESTOS | D199: =D200+D202+D206+D207+D208+D209+D210+D216+D218 -> 55,545,174.20 | E199: 1,196,914.70 | F199: 9,531,253.57 | H199: =H200+H202+H206+H207+H208+H209+H210+H216+H218 -> 8,334,338.87
A200: 41110 | B200: Impuestos sobre los ingresos | D200: =SUM(D201) -> 4,000.00 | E200: 0.00 | F200: 0.00 | H200: =SUM(H201) -> 0.00
... 2023 more rows

Sheet F3 (hidden)
A1: ="Nombre del Ente Público: "&Validacion!A2 -> Nombre del Ente Público: Ixtlahuacán de los Membrillos
A2: Estado de Flujo de Efectivo
A3: ='F6'!A3 -> DEL 1° DE ENERO AL 31 DE ENERO DE 2025
A4: (Cifras en pesos)
A5: Concepto | F5: =Validacion!F185 -> 2025 | G5: =Validacion!F186 -> 2024
A6: Flujos de Efectivo de las Actividades de Operación
B7: Origen | F7: =SUM(F8:F17) -> 0.00 | G7: 0.00
C8: Impuestos
C9: Cuotas y Aportaciones de Seguridad Social
C10: Contribuciones de Mejoras
C11: Derechos
C12: Productos
C13: Aprovechamientos
C14: Ingresos por venta de Bienes y Prestación de Servicios
C15: Participaciones, Aportaciones, Convenios, Incentivos Derivados de la Colaboración Fiscal y Fondos Distintos de Aportaciones
C16: Transferencias, Asignaciones, Subsidios y Subvenciones, y Pensiones y Jubilaciones
C17: Otros Orígenes de Operación
B18: Aplicación | F18: =SUM(F19:F34) -> 0.00 | G18: 0.00
C19: Servicios Personales
C20: Materiales y Suministros
C21: Servicios Generales
C22: Transferencias Internas y Asignaciones al Sector Público
C23: Transferencias al Resto del Sector Público
C24: Subsidios y Subvenciones
C25: Ayudas Sociales
C26: Pensiones y Jubilaciones
C27: Transferencias a Fideicomisos, Mandatos y Contratos Análogos
C28: Transferencias a la Seguridad Social
C29: Donativos
C30: Transferencias al Exterior
C31: Participaciones
C32: Aportaciones
C33: Convenios
C34: Otros Aplicaciones de Operación
A35: Flujos Netos de Efectivo por Actividades de Operación | F35: =F7-F18 -> 0.00 | G35: 0.00
A36: Flujos de Efectivo de las Actividades de Inversión
B37: Origen | F37: =SUM(F38:F40) -> 0.00 | G37: 0.00
C38: Bienes Inmuebles, Infraestructura y Construcciones en Proceso
C39: Bienes Muebles
C40: Otros Orígenes de Inversión
B41: Aplicación | F41: =SUM(F42:F44) -> 0.00 | G41: 0.00
C42: Bienes Inmuebles, Infraestructura y Construcciones en Proceso
C43: Bienes Muebles
C44: Otras Aplicaciones de Inversión
A45: Flujos Netos de Efectivo por Actividades de Inversión | F45: =F37-F41 -> 0.00 | G45: 0.00
A46: Flujo de Efectivo de las Actividades de Financiamiento
B47: Origen | F47: =F48+F51 -> 0.00 | G47: 0.00
C48: Endeudamiento Neto | F48: =F49+F50 -> 0.00 | G48: 0.00
C49: Interno
C50: Externo
C51: Otros Orígenes de Financiamiento
B52: Aplicación | F52: =F53+F56 -> 0.00 | G52: 0.00
C53: Servicios de la Deuda | F53: =F54+F55 -> 0.00 | G53: 0.00
C54: Interno
C55: Externo
C56: Otras Aplicaciones de Financiamiento
A57: Flujos Netos de Efectivo por Actividades de Financiamiento | F57: =F47-F52 -> 0.00 | G57: 0.00
A58: Incremento/Disminución Neta en el Efectivo y Equivalentes al Efectivo | F58: =F35+F45+F57 -> 0.00 | G58: 0.00
A59: Efectivo y Equivalentes al Efectivo al Inicio del Ejercicio | F59: =G60 -> 0.00
A60: Efectivo y Equivalentes al Efectivo al Final del Ejercicio | F60: =F58+F59 -> 0.00 | G60: =+G58+G59 -> 0.00
A62: Bajo protesta de decir verdad declaramos que los Estados Financieros y sus notas, son razonablemente correctos y son responsabilidad del emisor.
C67: =Validacion!A7 -> LIC. JOSE HERIBERTO GARCIA MURILLO | E67: =Validacion!A9 -> LAE BRUNO GERMAN ENCISO GUILLEN
C69: Presidente Municipal o Titular del ente público | E69: Encargado de Hacienda Municipal o Responsable de las finanzas del ente público

Sheet F9-IDP
A1: CONCEPTO | J1: No. 1 | AJ1: CONCEPTO | AS1: No. 2 | BS1: CONCEPTO | CB1: No. 3 | DB1: CONCEPTO | DK1: No. 4 | EK1: CONCEPTO | ET1: No. 5 | FT1: CONCEPTO | GC1: No. 6 | HC1: CONCEPTO | HL1: No. 7 | IL1: CONCEPTO | IU1: No. 8 | JU1: CONCEPTO | KD1: No. 9 | LD1: CONCEPTO | LM1: No. 10
A2: TIPO DE OBLIGACIÓN: | J2: =IF(L2="Institución de crédito","1",IF(L2="Títulos y valores","2",IF(L2="Arrendamiento financiero","3",""))) -> 1 | K2: =IF(L2>0,".-","") -> .- | L2: Institución de crédito | AJ2: TIPO DE OBLIGACIÓN: | AS2: =IF(AU2="Institución de crédito","1",IF(AU2="Títulos y valores","2",IF(AU2="Arrendamiento financiero","3",""))) ->  | AT2: =IF(AU2>0,".-","") ->  | BS2: TIPO DE OBLIGACIÓN: | CB2: =IF(CD2="Institución de crédito","1",IF(CD2="Títulos y valores","2",IF(CD2="Arrendamiento financiero","3",""))) ->  | CC2: =IF(CD2>0,".-","") ->  | DB2: TIPO DE OBLIGACIÓN: | DK2: =IF(DM2="Institución de crédito","1",IF(DM2="Títulos y valores","2",IF(DM2="Arrendamiento financiero","3",""))) ->  | DL2: =IF(DM2>0,".-","") ->  | EK2: TIPO DE OBLIGACIÓN: | ET2: =IF(EV2="Institución de crédito","1",IF(EV2="Títulos y valores","2",IF(EV2="Arrendamiento financiero","3",""))) ->  | EU2: =IF(EV2>0,".-","") ->  | FT2: TIPO DE OBLIGACIÓN: | GC2: =IF(GE2="Institución de crédito","1",IF(GE2="Títulos y valores","2",IF(GE2="Arrendamiento financiero","3",""))) ->  | GD2: =IF(GE2>0,".-","") ->  | HC2: TIPO DE OBLIGACIÓN: | HL2: =IF(HN2="Institución de crédito","1",IF(HN2="Títulos y valores","2",IF(HN2="Arrendamiento financiero","3",""))) ->  | HM2: =IF(HN2>0,".-","") ->  | IL2: TIPO DE OBLIGACIÓN: | IU2: =IF(IW2="Institución de crédito","1",IF(IW2="Títulos y valores","2",IF(IW2="Arrendamiento financiero","3",""))) ->  | IV2: =IF(IW2>0,".-","") ->  | JU2: TIPO DE OBLIGACIÓN: | KD2: =IF(KF2="Institución de crédito","1",IF(KF2="Títulos y valores","2",IF(KF2="Arrendamiento financiero","3",""))) ->  | KE2: =IF(KF2>0,".-","") ->  | LD2: TIPO DE OBLIGACIÓN: | LM2: =IF(LO2="Institución de crédito","1",IF(LO2="Títulos y valores","2",IF(LO2="Arrendamiento financiero","3",""))) ->  | LN2: =IF(LO2>0,".-","") -> 
A3: NOMBRE DEL ACREEDOR: | J3: Banco nacional de Obras y Servicios Publicos S.N.C. | AJ3: NOMBRE DEL ACREEDOR: | BS3: NOMBRE DEL ACREEDOR: | DB3: NOMBRE DEL ACREEDOR: | EK3: NOMBRE DEL ACREEDOR: | FT3: NOMBRE DEL ACREEDOR: | HC3: NOMBRE DEL ACREEDOR: | IL3: NOMBRE DEL ACREEDOR: | JU3: NOMBRE DEL ACREEDOR: | LD3: NOMBRE DEL ACREEDOR:
A4: MONTO DISPUESTO: | J4: $32,522,957.76 | R4: FECHA DE INICIO: | Z4: 03 de enero de 2018 | AJ4: MONTO DISPUESTO: | BA4: FECHA DE INICIO: | BS4: MONTO DISPUESTO: | CJ4: FECHA DE INICIO: | DB4: MONTO DISPUESTO: | DS4: FECHA DE INICIO: | EK4: MONTO DISPUESTO: | FB4: FECHA DE INICIO: | FT4: MONTO DISPUESTO: | GK4: FECHA DE INICIO: | HC4: MONTO DISPUESTO: | HT4: FECHA DE INICIO: | IL4: MONTO DISPUESTO: | JC4: FECHA DE INICIO: | JU4: MONTO DISPUESTO: | KL4: FECHA DE INICIO: | LD4: MONTO DISPUESTO: | LU4: FECHA DE INICIO:
R5: FECHA DE VENCIMIENTO: | Z5: 31 de diciembre de 2037 | BA5: FECHA DE VENCIMIENTO: | CJ5: FECHA DE VENCIMIENTO: | DS5: FECHA DE VENCIMIENTO: | FB5: FECHA DE VENCIMIENTO: | GK5: FECHA DE VENCIMIENTO: | HT5: FECHA DE VENCIMIENTO: | JC5: FECHA DE VENCIMIENTO: | KL5: FECHA DE VENCIMIENTO: | LU5: FECHA DE VENCIMIENTO:
A6: ="SALDO AL 1° DE ENERO DE "&Validacion!$F$185&" A CORTO PLAZO:" -> SALDO AL 1° DE ENERO DE 2025 A CORTO PLAZO: | R6: $793,112.18 | AJ6: ="SALDO AL 1° DE ENERO DE "&Validacion!$F$185&" A CORTO PLAZO:" -> SALDO AL 1° DE ENERO DE 2025 A CORTO PLAZO: | BS6: ="SALDO AL 1° DE ENERO DE "&Validacion!$F$185&" A CORTO PLAZO:" -> SALDO AL 1° DE ENERO DE 2025 A CORTO PLAZO: | DB6: ="SALDO AL 1° DE ENERO DE "&Validacion!$F$185&" A CORTO PLAZO:" -> SALDO AL 1° DE ENERO DE 2025 A CORTO PLAZO: | EK6: ="SALDO AL 1° DE ENERO DE "&Validacion!$F$185&" A CORTO PLAZO:" -> SALDO AL 1° DE ENERO DE 2025 A CORTO PLAZO: | FT6: ="SALDO AL 1° DE ENERO DE "&Validacion!$F$185&" A CORTO PLAZO:" -> SALDO AL 1° DE ENERO DE 2025 A CORTO PLAZO: | HC6: ="SALDO AL 1° DE ENERO DE "&Validacion!$F$185&" A CORTO PLAZO:" -> SALDO AL 1° DE ENERO DE 2025 A CORTO PLAZO: | IL6: ="SALDO AL 1° DE ENERO DE "&Validacion!$F$185&" A CORTO PLAZO:" -> SALDO AL 1° DE ENERO DE 2025 A CORTO PLAZO: | JU6: ="SALDO AL 1° DE ENERO DE "&Validacion!$F$185&" A CORTO PLAZO:" -> SALDO AL 1° DE ENERO DE 2025 A CORTO PLAZO: | LD6: ="SALDO AL 1° DE ENERO DE "&Validacion!$F$185&" A CORTO PLAZO:" -> SALDO AL 1° DE ENERO DE 2025 A CORTO PLAZO:
A7: ="SALDO AL 1° DE ENERO DE "&Validacion!$F$185&" A LARGO PLAZO:" -> SALDO AL 1° DE ENERO DE 2025 A LARGO PLAZO: | R7: $28,533,916.26 | AJ7: ="SALDO AL 1° DE ENERO DE "&Validacion!$F$185&" A LARGO PLAZO:" -> SALDO AL 1° DE ENERO DE 2025 A LARGO PLAZO: | BS7: ="SALDO AL 1° DE ENERO DE "&Validacion!$F$185&" A LARGO PLAZO:" -> SALDO AL 1° DE ENERO DE 2025 A LARGO PLAZO: | DB7: ="SALDO AL 1° DE ENERO DE "&Validacion!$F$185&" A LARGO PLAZO:" -> SALDO AL 1° DE ENERO DE 2025 A LARGO PLAZO: | EK7: ="SALDO AL 1° DE ENERO DE "&Validacion!$F$185&" A LARGO PLAZO:" -> SALDO AL 1° DE ENERO DE 2025 A LARGO PLAZO: | FT7: ="SALDO AL 1° DE ENERO DE "&Validacion!$F$185&" A LARGO PLAZO:" -> SALDO AL 1° DE ENERO DE 2025 A LARGO PLAZO: | HC7: ="SALDO AL 1° DE ENERO DE "&Validacion!$F$185&" A LARGO PLAZO:" -> SALDO AL 1° DE ENERO DE 2025 A LARGO PLAZO: | IL7: ="SALDO AL 1° DE ENERO DE "&Validacion!$F$185&" A LARGO PLAZO:" -> SALDO AL 1° DE ENERO DE 2025 A LARGO PLAZO: | JU7: ="SALDO AL 1° DE ENERO DE "&Validacion!$F$185&" A LARGO PLAZO:" -> SALDO AL 1° DE ENERO DE 2025 A LARGO PLAZO: | LD7: ="SALDO AL 1° DE ENERO DE "&Validacion!$F$185&" A LARGO PLAZO:" -> SALDO AL 1° DE ENERO DE 2025 A LARGO PLAZO:
A8: OBLIGACIONES A LARGO PLAZO | AJ8: OBLIGACIONES A LARGO PLAZO | BS8: OBLIGACIONES A LARGO PLAZO | DB8: OBLIGACIONES A LARGO PLAZO | EK8: OBLIGACIONES A LARGO PLAZO | FT8: OBLIGACIONES A LARGO PLAZO | HC8: OBLIGACIONES A LARGO PLAZO | IL8: OBLIGACIONES A LARGO PLAZO | JU8: OBLIGACIONES A LARGO PLAZO | LD8: OBLIGACIONES A LARGO PLAZO
A9: CONCEPTO | E9: DISPOSICIÓN | K9: AMORTIZACIÓN | Q9: REVALUACIONES | W9: INTERÉS | AC9: COMISIONES | AJ9: CONCEPTO | AN9: DISPOSICIÓN | AT9: AMORTIZACIÓN | AZ9: REVALUACIONES | BF9: INTERÉS | BL9: COMISIONES | BS9: CONCEPTO | BW9: DISPOSICIÓN | CC9: AMORTIZACIÓN | CI9: REVALUACIONES | CO9: INTERÉS | CU9: COMISIONES | DB9: CONCEPTO | DF9: DISPOSICIÓN | DL9: AMORTIZACIÓN | DR9: REVALUACIONES | DX9: INTERÉS | ED9: COMISIONES | EK9: CONCEPTO | EO9: DISPOSICIÓN | EU9: AMORTIZACIÓN | FA9: REVALUACIONES | FG9: INTERÉS | FM9: COMISIONES | FT9: CONCEPTO | FX9: DISPOSICIÓN | GD9: AMORTIZACIÓN | GJ9: REVALUACIONES | GP9: INTERÉS | GV9: COMISIONES | HC9: CONCEPTO | HG9: DISPOSICIÓN | HM9: AMORTIZACIÓN | HS9: REVALUACIONES | HY9: INTERÉS | IE9: COMISIONES | IL9: CONCEPTO | IP9: DISPOSICIÓN | IV9: AMORTIZACIÓN | JB9: REVALUACIONES | JH9: INTERÉS | JN9: COMISIONES | JU9: CONCEPTO | JY9: DISPOSICIÓN | KE9: AMORTIZACIÓN | KK9: REVALUACIONES | KQ9: INTERÉS | KW9: COMISIONES | LD9: CONCEPTO | LH9: DISPOSICIÓN | LN9: AMORTIZACIÓN | LT9: REVALUACIONES | LZ9: INTERÉS | MF9: COMISIONES
A10: Largo Plazo | AJ10: Largo Plazo | BS10: Largo Plazo | DB10: Largo Plazo | EK10: Largo Plazo | FT10: Largo Plazo | HC10: Largo Plazo | IL10: Largo Plazo | JU10: Largo Plazo | LD10: Largo Plazo
A11: OBLIGACIONES A CORTO PLAZO | AJ11: OBLIGACIONES A CORTO PLAZO | BS11: OBLIGACIONES A CORTO PLAZO | DB11: OBLIGACIONES A CORTO PLAZO | EK11: OBLIGACIONES A CORTO PLAZO | FT11: OBLIGACIONES A CORTO PLAZO | HC11: OBLIGACIONES A CORTO PLAZO | IL11: OBLIGACIONES A CORTO PLAZO | JU11: OBLIGACIONES A CORTO PLAZO | LD11: OBLIGACIONES A CORTO PLAZO
A12: MES | E12: DISPOSICIÓN | K12: AMORTIZACIÓN | Q12: REVALUACIONES | W12: INTERÉS | AC12: COMISIONES | AJ12: MES | AN12: DISPOSICIÓN | AT12: AMORTIZACIÓN | AZ12: REVALUACIONES | BF12: INTERÉS | BL12: COMISIONES | BS12: MES | BW12: DISPOSICIÓN | CC12: AMORTIZACIÓN | CI12: REVALUACIONES | CO12: INTERÉS | CU12: COMISIONES | DB12: MES | DF12: DISPOSICIÓN | DL12: AMORTIZACIÓN | DR12: REVALUACIONES | DX12: INTERÉS | ED12: COMISIONES | EK12: MES | EO12: DISPOSICIÓN | EU12: AMORTIZACIÓN | FA12: REVALUACIONES | FG12: INTERÉS | FM12: COMISIONES | FT12: MES | FX12: DISPOSICIÓN | GD12: AMORTIZACIÓN | GJ12: REVALUACIONES | GP12: INTERÉS | GV12: COMISIONES | HC12: MES | HG12: DISPOSICIÓN | HM12: AMORTIZACIÓN | HS12: REVALUACIONES | HY12: INTERÉS | IE12: COMISIONES | IL12: MES | IP12: DISPOSICIÓN | IV12: AMORTIZACIÓN | JB12: REVALUACIONES | JH12: INTERÉS | JN12: COMISIONES | JU12: MES | JY12: DISPOSICIÓN | KE12: AMORTIZACIÓN | KK12: REVALUACIONES | KQ12: INTERÉS | KW12: COMISIONES | LD12: MES | LH12: DISPOSICIÓN | LN12: AMORTIZACIÓN | LT12: REVALUACIONES | LZ12: INTERÉS | MF12: COMISIONES
A13: ENE | K13: 61,671.06 | W13: 296,553.20 | AJ13: ENE | BS13: ENE | DB13: ENE | EK13: ENE | FT13: ENE | HC13: ENE | IL13: ENE | JU13: ENE | LD13: ENE
A14: FEB | AJ14: FEB | BS14: FEB | DB14: FEB | EK14: FEB | FT14: FEB | HC14: FEB | IL14: FEB | JU14: FEB | LD14: FEB
A15: MAR | AJ15: MAR | BS15: MAR | DB15: MAR | EK15: MAR | FT15: MAR | HC15: MAR | IL15: MAR | JU15: MAR | LD15: MAR
A16: ABR | AJ16: ABR | BS16: ABR | DB16: ABR | EK16: ABR | FT16: ABR | HC16: ABR | IL16: ABR | JU16: ABR | LD16: ABR
A17: MAY | AJ17: MAY | BS17: MAY | DB17: MAY | EK17: MAY | FT17: MAY | HC17: MAY | IL17: MAY | JU17: MAY | LD17: MAY
A18: JUN | AJ18: JUN | BS18: JUN | DB18: JUN | EK18: JUN | FT18: JUN | HC18: JUN | IL18: JUN | JU18: JUN | LD18: JUN
A19: JUL | AJ19: JUL | BS19: JUL | DB19: JUL | EK19: JUL | FT19: JUL | HC19: JUL | IL19: JUL | JU19: JUL | LD19: JUL
A20: AGO | AJ20: AGO | BS20: AGO | DB20: AGO | EK20: AGO | FT20: AGO | HC20: AGO | IL20: AGO | JU20: AGO | LD20: AGO
A21: SEP | AJ21: SEP | BS21: SEP | DB21: SEP | EK21: SEP | FT21: SEP | HC21: SEP | IL21: SEP | JU21: SEP | LD21: SEP
A22: OCT | AJ22: OCT | BS22: OCT | DB22: OCT | EK22: OCT | FT22: OCT | HC22: OCT | IL22: OCT | JU22: OCT | LD22: OCT
A23: NOV | AJ23: NOV | BS23: NOV | DB23: NOV | EK23: NOV | FT23: NOV | HC23: NOV | IL23: NOV | JU23: NOV | LD23: NOV
A24: DIC | AJ24: DIC | BS24: DIC | DB24: DIC | EK24: DIC | FT24: DIC | HC24: DIC | IL24: DIC | JU24: DIC | LD24: DIC
A25: SUMA | E25: =SUM(E13:J24) -> 0.00 | K25: =SUM(K13:P24) -> 61,671.06 | Q25: =SUM(Q13:V24) -> 0.00 | W25: =SUM(W13:AB24) -> 296,553.20 | AC25: =SUM(AC13:AH24) -> 0.00 | AJ25: SUMA | AN25: =SUM(AN13:AS24) -> 0.00 | AT25: =SUM(AT13:AY24) -> 0.00 | AZ25: =SUM(AZ13:BE24) -> 0.00 | BF25: =SUM(BF13:BK24) -> 0.00 | BL25: =SUM(BL13:BQ24) -> 0.00 | BS25: SUMA | BW25: =SUM(BW13:CB24) -> 0.00 | CC25: =SUM(CC13:CH24) -> 0.00 | CI25: =SUM(CI13:CN24) -> 0.00 | CO25: =SUM(CO13:CT24) -> 0.00 | CU25: =SUM(CU13:CZ24) -> 0.00 | DB25: SUMA | DF25: =SUM(DF13:DK24) -> 0.00 | DL25: =SUM(DL13:DQ24) -> 0.00 | DR25: =SUM(DR13:DW24) -> 0.00 | DX25: =SUM(DX13:EC24) -> 0.00 | ED25: =SUM(ED13:EI24) -> 0.00 | EK25: SUMA | EO25: =SUM(EO13:ET24) -> 0.00 | EU25: =SUM(EU13:EZ24) -> 0.00 | FA25: =SUM(FA13:FF24) -> 0.00 | FG25: =SUM(FG13:FL24) -> 0.00 | FM25: =SUM(FM13:FR24) -> 0.00 | FT25: SUMA | FX25: =SUM(FX13:GC24) -> 0.00 | GD25: =SUM(GD13:GI24) -> 0.00 | GJ25: =SUM(GJ13:GO24) -> 0.00 | GP25: =SUM(GP13:GU24) -> 0.00 | GV25: =SUM(GV13:HA24) -> 0.00 | HC25: SUMA | HG25: =SUM(HG13:HL24) -> 0.00 | HM25: =SUM(HM13:HR24) -> 0.00 | HS25: =SUM(HS13:HX24) -> 0.00 | HY25: =SUM(HY13:ID24) -> 0.00 | IE25: =SUM(IE13:IJ24) -> 0.00 | IL25: SUMA | IP25: =SUM(IP13:IU24) -> 0.00 | IV25: =SUM(IV13:JA24) -> 0.00 | JB25: =SUM(JB13:JG24) -> 0.00 | JH25: =SUM(JH13:JM24) -> 0.00 | JN25: =SUM(JN13:JS24) -> 0.00 | JU25: SUMA | JY25: =SUM(JY13:KD24) -> 0.00 | KE25: =SUM(KE13:KJ24) -> 0.00 | KK25: =SUM(KK13:KP24) -> 0.00 | KQ25: =SUM(KQ13:KV24) -> 0.00 | KW25: =SUM(KW13:LB24) -> 0.00 | LD25: SUMA | LH25: =SUM(LH13:LM24) -> 0.00 | LN25: =SUM(LN13:LS24) -> 0.00 | LT25: =SUM(LT13:LY24) -> 0.00 | LZ25: =SUM(LZ13:ME24) -> 0.00 | MF25: =SUM(MF13:MK24) -> 0.00

Sheet F9-EDP
A1: MUNICIPIO IXTLAHUACÁN DE LOS MEMBRILLOS
A2: Informe Analítico de la Deuda Pública y Otros Pasivos - LDF
A3: DEL 1° DE ENERO AL 31 DE ENERO DE 2025
A4: (PESOS)
A5: Denominación de la Deuda Pública y Otros Pasivos | N5: ="Saldo al 31 de diciembre de "&Validacion!F186 -> Saldo al 31 de diciembre de 2024 | U5: Disposiciones del Periodo | AB5: Amortizaciones del Periodo | AI5: Revaluaciones, Reclasificaciones y Otros Ajustes | AP5: Saldo Final del Periodo | AW5: Pago de Intereses del Periodo | BD5: Pago de Comisiones y demás costos asociados durante el Periodo
A10: 1. Deuda Pública
B11: A. Corto Plazo | N11: =SUM(N12:T14) -> 793,112.18 | U11: =SUM(U12:AA14) -> 0.00 | AB11: =SUM(AB12:AH14) -> 61,671.06 | AI11: =SUM(AI12:AO14) -> 0.00 | AP11: =SUM(AP12:AV14) -> 731,441.12 | AW11: =SUM(AW12:BC14) -> 296,553.20 | BD11: =SUM(BD12:BJ14) -> 0.00
C12: a1) Instituciones de Crédito | N12: =IF('F9-IDP'!$J$2="1",'F9-IDP'!$R$6,0)+IF('F9-IDP'!$AS$2="1",'F9-IDP'!$BA$6,0)+IF('F9-IDP'!$CB$2="1",'F9-IDP'!$CJ$6,0)+IF('F9-IDP'!$DK$2="1",'F9-IDP'!$DS$6,0)+IF('F9-IDP'!$ET$2="1",'F9-IDP'!$FB$6,0)+IF('F9-IDP'!$GC$2="1",'F9-IDP'!$GK$6,0)+IF('F9-IDP'!$HL$2="1",'F9-IDP'!$HT$6,0)+IF('F9-IDP'!$IU$2="1",'F9-IDP'!$JC$6,0)+IF('F9-IDP'!$KD$2="1",'F9-IDP'!$KL$6,0)+IF('F9-IDP'!$LM$2="1",'F9-IDP'!$LU$6,0) -> 793,112.18 | U12: =IF('F9-IDP'!$J$2="1",'F9-IDP'!$E$25,0)+IF('F9-IDP'!$AS$2="1",'F9-IDP'!$AN$25,0)+IF('F9-IDP'!$CB$2="1",'F9-IDP'!$BW$25,0)+IF('F9-IDP'!$DK$2="1",'F9-IDP'!$DF$25,0)+IF('F9-IDP'!$ET$2="1",'F9-IDP'!$EO$25,0)+IF('F9-IDP'!$GC$2="1",'F9-IDP'!$FX$25,0)+IF('F9-IDP'!$HL$2="1",'F9-IDP'!$HG$25,0)+IF('F9-IDP'!$IU$2="1",'F9-IDP'!$IP$25,0)+IF('F9-IDP'!$KD$2="1",'F9-IDP'!$JY$25,0)+IF('F9-IDP'!$LM$2="1",'F9-IDP'!$LH$25,0) -> 0.00 | AB12: =IF('F9-IDP'!$J$2="1",'F9-IDP'!$K$25,0)+IF('F9-IDP'!$AS$2="1",'F9-IDP'!$AT$25,0)+IF('F9-IDP'!$CB$2="1",'F9-IDP'!$CC$25,0)+IF('F9-IDP'!$DK$2="1",'F9-IDP'!$DL$25,0)+IF('F9-IDP'!$ET$2="1",'F9-IDP'!$EU$25,0)+IF('F9-IDP'!$GC$2="1",'F9-IDP'!$GD$25,0)+IF('F9-IDP'!$HL$2="1",'F9-IDP'!$HM$25,0)+IF('F9-IDP'!$IU$2="1",'F9-IDP'!$IV$25,0)+IF('F9-IDP'!$KD$2="1",'F9-IDP'!$KE$25,0)+IF('F9-IDP'!$LM$2="1",'F9-IDP'!$LN$25,0) -> 61,671.06 | AI12: =IF('F9-IDP'!$J$2="1",'F9-IDP'!$Q$25,0)+IF('F9-IDP'!$AS$2="1",'F9-IDP'!$AZ$25,0)+IF('F9-IDP'!$CB$2="1",'F9-IDP'!$CI$25,0)+IF('F9-IDP'!$DK$2="1",'F9-IDP'!$DR$25,0)+IF('F9-IDP'!$ET$2="1",'F9-IDP'!$FA$25,0)+IF('F9-IDP'!$GC$2="1",'F9-IDP'!$GJ$25,0)+IF('F9-IDP'!$HL$2="1",'F9-IDP'!$HS$25,0)+IF('F9-IDP'!$IU$2="1",'F9-IDP'!$JB$25,0)+IF('F9-IDP'!$KD$2="1",'F9-IDP'!$KK$25,0)+IF('F9-IDP'!$LM$2="1",'F9-IDP'!$LT$25,0) -> 0.00 | AP12: =N12+U12-AB12+AI12 -> 731,441.12 | AW12: =IF('F9-IDP'!$J$2="1",'F9-IDP'!$W$25,0)+IF('F9-IDP'!$AS$2="1",'F9-IDP'!$BF$25,0)+IF('F9-IDP'!$CB$2="1",'F9-IDP'!$CO$25,0)+IF('F9-IDP'!$DK$2="1",'F9-IDP'!$DX$25,0)+IF('F9-IDP'!$ET$2="1",'F9-IDP'!$FG$25,0)+IF('F9-IDP'!$GC$2="1",'F9-IDP'!$GP$25,0)+IF('F9-IDP'!$HL$2="1",'F9-IDP'!$HY$25,0)+IF('F9-IDP'!$IU$2="1",'F9-IDP'!$JH$25,0)+IF('F9-IDP'!$KD$2="1",'F9-IDP'!$KQ$25,0)+IF('F9-IDP'!$LM$2="1",'F9-IDP'!$LZ$25,0) -> 296,553.20 | BD12: =IF('F9-IDP'!$J$2="1",'F9-IDP'!$AC$25,0)+IF('F9-IDP'!$AS$2="1",'F9-IDP'!$BL$25,0)+IF('F9-IDP'!$CB$2="1",'F9-IDP'!$CU$25,0)+IF('F9-IDP'!$DK$2="1",'F9-IDP'!$ED$25,0)+IF('F9-IDP'!$ET$2="1",'F9-IDP'!$FM$25,0)+IF('F9-IDP'!$GC$2="1",'F9-IDP'!$GV$25,0)+IF('F9-IDP'!$HL$2="1",'F9-IDP'!$IE$25,0)+IF('F9-IDP'!$IU$2="1",'F9-IDP'!$JN$25,0)+IF('F9-IDP'!$KD$2="1",'F9-IDP'!$KW$25,0)+IF('F9-IDP'!$LM$2="1",'F9-IDP'!$MF$25,0) -> 0.00
C13: a2) Títulos y Valores | N13: =IF('F9-IDP'!$J$2="2",'F9-IDP'!$R$6,0)+IF('F9-IDP'!$AS$2="2",'F9-IDP'!$BA$6,0)+IF('F9-IDP'!$CB$2="2",'F9-IDP'!$CJ$6,0)+IF('F9-IDP'!$DK$2="2",'F9-IDP'!$DS$6,0)+IF('F9-IDP'!$ET$2="2",'F9-IDP'!$FB$6,0)+IF('F9-IDP'!$GC$2="2",'F9-IDP'!$GK$6,0)+IF('F9-IDP'!$HL$2="2",'F9-IDP'!$HT$6,0)+IF('F9-IDP'!$IU$2="2",'F9-IDP'!$JC$6,0)+IF('F9-IDP'!$KD$2="2",'F9-IDP'!$KL$6,0)+IF('F9-IDP'!$LM$2="2",'F9-IDP'!$LU$6,0) -> 0.00 | U13: =IF('F9-IDP'!$J$2="2",'F9-IDP'!$E$25,0)+IF('F9-IDP'!$AS$2="2",'F9-IDP'!$AN$25,0)+IF('F9-IDP'!$CB$2="2",'F9-IDP'!$BW$25,0)+IF('F9-IDP'!$DK$2="2",'F9-IDP'!$DF$25,0)+IF('F9-IDP'!$ET$2="2",'F9-IDP'!$EO$25,0)+IF('F9-IDP'!$GC$2="2",'F9-IDP'!$FX$25,0)+IF('F9-IDP'!$HL$2="2",'F9-IDP'!$HG$25,0)+IF('F9-IDP'!$IU$2="2",'F9-IDP'!$IP$25,0)+IF('F9-IDP'!$KD$2="2",'F9-IDP'!$JY$25,0)+IF('F9-IDP'!$LM$2="2",'F9-IDP'!$LH$25,0) -> 0.00 | AB13: =IF('F9-IDP'!$J$2="2",'F9-IDP'!$K$25,0)+IF('F9-IDP'!$AS$2="2",'F9-IDP'!$AT$25,0)+IF('F9-IDP'!$CB$2="2",'F9-IDP'!$CC$25,0)+IF('F9-IDP'!$DK$2="2",'F9-IDP'!$DL$25,0)+IF('F9-IDP'!$ET$2="2",'F9-IDP'!$EU$25,0)+IF('F9-IDP'!$GC$2="2",'F9-IDP'!$GD$25,0)+IF('F9-IDP'!$HL$2="2",'F9-IDP'!$HM$25,0)+IF('F9-IDP'!$IU$2="2",'F9-IDP'!$IV$25,0)+IF('F9-IDP'!$KD$2="2",'F9-IDP'!$KE$25,0)+IF('F9-IDP'!$LM$2="2",'F9-IDP'!$LN$25,0) -> 0.00 | AI13: =IF('F9-IDP'!$J$2="2",'F9-IDP'!$Q$25,0)+IF('F9-IDP'!$AS$2="2",'F9-IDP'!$AZ$25,0)+IF('F9-IDP'!$CB$2="2",'F9-IDP'!$CI$25,0)+IF('F9-IDP'!$DK$2="2",'F9-IDP'!$DR$25,0)+IF('F9-IDP'!$ET$2="2",'F9-IDP'!$FA$25,0)+IF('F9-IDP'!$GC$2="2",'F9-IDP'!$GJ$25,0)+IF('F9-IDP'!$HL$2="2",'F9-IDP'!$HS$25,0)+IF('F9-IDP'!$IU$2="2",'F9-IDP'!$JB$25,0)+IF('F9-IDP'!$KD$2="2",'F9-IDP'!$KK$25,0)+IF('F9-IDP'!$LM$2="2",'F9-IDP'!$LT$25,0) -> 0.00 | AP13: 0.00 | AW13: =IF('F9-IDP'!$J$2="2",'F9-IDP'!$W$25,0)+IF('F9-IDP'!$AS$2="2",'F9-IDP'!$BF$25,0)+IF('F9-IDP'!$CB$2="2",'F9-IDP'!$CO$25,0)+IF('F9-IDP'!$DK$2="2",'F9-IDP'!$DX$25,0)+IF('F9-IDP'!$ET$2="2",'F9-IDP'!$FG$25,0)+IF('F9-IDP'!$GC$2="2",'F9-IDP'!$GP$25,0)+IF('F9-IDP'!$HL$2="2",'F9-IDP'!$HY$25,0)+IF('F9-IDP'!$IU$2="2",'F9-IDP'!$JH$25,0)+IF('F9-IDP'!$KD$2="2",'F9-IDP'!$KQ$25,0)+IF('F9-IDP'!$LM$2="2",'F9-IDP'!$LZ$25,0) -> 0.00 | BD13: =IF('F9-IDP'!$J$2="2",'F9-IDP'!$AC$25,0)+IF('F9-IDP'!$AS$2="2",'F9-IDP'!$BL$25,0)+IF('F9-IDP'!$CB$2="2",'F9-IDP'!$CU$25,0)+IF('F9-IDP'!$DK$2="2",'F9-IDP'!$ED$25,0)+IF('F9-IDP'!$ET$2="2",'F9-IDP'!$FM$25,0)+IF('F9-IDP'!$GC$2="2",'F9-IDP'!$GV$25,0)+IF('F9-IDP'!$HL$2="2",'F9-IDP'!$IE$25,0)+IF('F9-IDP'!$IU$2="2",'F9-IDP'!$JN$25,0)+IF('F9-IDP'!$KD$2="2",'F9-IDP'!$KW$25,0)+IF('F9-IDP'!$LM$2="2",'F9-IDP'!$MF$25,0) -> 0.00
C14: a3) Arrendamientos Financieros | N14: =IF('F9-IDP'!$J$2="3",'F9-IDP'!$R$6,0)+IF('F9-IDP'!$AS$2="3",'F9-IDP'!$BA$6,0)+IF('F9-IDP'!$CB$2="3",'F9-IDP'!$CJ$6,0)+IF('F9-IDP'!$DK$2="3",'F9-IDP'!$DS$6,0)+IF('F9-IDP'!$ET$2="3",'F9-IDP'!$FB$6,0)+IF('F9-IDP'!$GC$2="3",'F9-IDP'!$GK$6,0)+IF('F9-IDP'!$HL$2="3",'F9-IDP'!$HT$6,0)+IF('F9-IDP'!$IU$2="3",'F9-IDP'!$JC$6,0)+IF('F9-IDP'!$KD$2="3",'F9-IDP'!$KL$6,0)+IF('F9-IDP'!$LM$2="3",'F9-IDP'!$LU$6,0) -> 0.00 | U14: =IF('F9-IDP'!$J$2="3",'F9-IDP'!$E$25,0)+IF('F9-IDP'!$AS$2="3",'F9-IDP'!$AN$25,0)+IF('F9-IDP'!$CB$2="3",'F9-IDP'!$BW$25,0)+IF('F9-IDP'!$DK$2="3",'F9-IDP'!$DF$25,0)+IF('F9-IDP'!$ET$2="3",'F9-IDP'!$EO$25,0)+IF('F9-IDP'!$GC$2="3",'F9-IDP'!$FX$25,0)+IF('F9-IDP'!$HL$2="3",'F9-IDP'!$HG$25,0)+IF('F9-IDP'!$IU$2="3",'F9-IDP'!$IP$25,0)+IF('F9-IDP'!$KD$2="3",'F9-IDP'!$JY$25,0)+IF('F9-IDP'!$LM$2="3",'F9-IDP'!$LH$25,0) -> 0.00 | AB14: =IF('F9-IDP'!$J$2="3",'F9-IDP'!$K$25,0)+IF('F9-IDP'!$AS$2="3",'F9-IDP'!$AT$25,0)+IF('F9-IDP'!$CB$2="3",'F9-IDP'!$CC$25,0)+IF('F9-IDP'!$DK$2="3",'F9-IDP'!$DL$25,0)+IF('F9-IDP'!$ET$2="3",'F9-IDP'!$EU$25,0)+IF('F9-IDP'!$GC$2="3",'F9-IDP'!$GD$25,0)+IF('F9-IDP'!$HL$2="3",'F9-IDP'!$HM$25,0)+IF('F9-IDP'!$IU$2="3",'F9-IDP'!$IV$25,0)+IF('F9-IDP'!$KD$2="3",'F9-IDP'!$KE$25,0)+IF('F9-IDP'!$LM$2="3",'F9-IDP'!$LN$25,0) -> 0.00 | AI14: =IF('F9-IDP'!$J$2="3",'F9-IDP'!$Q$25,0)+IF('F9-IDP'!$AS$2="3",'F9-IDP'!$AZ$25,0)+IF('F9-IDP'!$CB$2="3",'F9-IDP'!$CI$25,0)+IF('F9-IDP'!$DK$2="3",'F9-IDP'!$DR$25,0)+IF('F9-IDP'!$ET$2="3",'F9-IDP'!$FA$25,0)+IF('F9-IDP'!$GC$2="3",'F9-IDP'!$GJ$25,0)+IF('F9-IDP'!$HL$2="3",'F9-IDP'!$HS$25,0)+IF('F9-IDP'!$IU$2="3",'F9-IDP'!$JB$25,0)+IF('F9-IDP'!$KD$2="3",'F9-IDP'!$KK$25,0)+IF('F9-IDP'!$LM$2="3",'F9-IDP'!$LT$25,0) -> 0.00 | AP14: 0.00 | AW14: =IF('F9-IDP'!$J$2="3",'F9-IDP'!$W$25,0)+IF('F9-IDP'!$AS$2="3",'F9-IDP'!$BF$25,0)+IF('F9-IDP'!$CB$2="3",'F9-IDP'!$CO$25,0)+IF('F9-IDP'!$DK$2="3",'F9-IDP'!$DX$25,0)+IF('F9-IDP'!$ET$2="3",'F9-IDP'!$FG$25,0)+IF('F9-IDP'!$GC$2="3",'F9-IDP'!$GP$25,0)+IF('F9-IDP'!$HL$2="3",'F9-IDP'!$HY$25,0)+IF('F9-IDP'!$IU$2="3",'F9-IDP'!$JH$25,0)+IF('F9-IDP'!$KD$2="3",'F9-IDP'!$KQ$25,0)+IF('F9-IDP'!$LM$2="3",'F9-IDP'!$LZ$25,0) -> 0.00 | BD14: =IF('F9-IDP'!$J$2="3",'F9-IDP'!$AC$25,0)+IF('F9-IDP'!$AS$2="3",'F9-IDP'!$BL$25,0)+IF('F9-IDP'!$CB$2="3",'F9-IDP'!$CU$25,0)+IF('F9-IDP'!$DK$2="3",'F9-IDP'!$ED$25,0)+IF('F9-IDP'!$ET$2="3",'F9-IDP'!$FM$25,0)+IF('F9-IDP'!$GC$2="3",'F9-IDP'!$GV$25,0)+IF('F9-IDP'!$HL$2="3",'F9-IDP'!$IE$25,0)+IF('F9-IDP'!$IU$2="3",'F9-IDP'!$JN$25,0)+IF('F9-IDP'!$KD$2="3",'F9-IDP'!$KW$25,0)+IF('F9-IDP'!$LM$2="3",'F9-IDP'!$MF$25,0) -> 0.00
B15: B. Largo Plazo | N15: =SUM(N16:T18) -> 28,533,916.26 | U15: =SUM(U16:AA18) -> 0.00 | AB15: =SUM(AB16:AH18) -> 0.00 | AI15: =SUM(AI16:AO18) -> 0.00 | AP15: =SUM(AP16:AV18) -> 28,533,916.26 | AW15: =SUM(AW16:BC18) -> 0.00 | BD15: =SUM(BD16:BJ18) -> 0.00
C16: b1) Instituciones de Crédito | N16: =IF('F9-IDP'!$J$2="1",'F9-IDP'!$R$7,0)+IF('F9-IDP'!$AS$2="1",'F9-IDP'!$BA$7,0)+IF('F9-IDP'!$CB$2="1",'F9-IDP'!$CJ$7,0)+IF('F9-IDP'!$DK$2="1",'F9-IDP'!$DS$7,0)+IF('F9-IDP'!$ET$2="1",'F9-IDP'!$FB$7,0)+IF('F9-IDP'!$GC$2="1",'F9-IDP'!$GK$7,0)+IF('F9-IDP'!$HL$2="1",'F9-IDP'!$HT$7,0)+IF('F9-IDP'!$IU$2="1",'F9-IDP'!$JC$7,0)+IF('F9-IDP'!$KD$2="1",'F9-IDP'!$KL$7,0)+IF('F9-IDP'!$LM$2="1",'F9-IDP'!$LU$7,0) -> 28,533,916.26 | U16: =IF('F9-IDP'!$J$2="1",'F9-IDP'!$E$10,0)+IF('F9-IDP'!$AS$2="1",'F9-IDP'!$AN$10,0)+IF('F9-IDP'!$CB$2="1",'F9-IDP'!$BW$10,0)+IF('F9-IDP'!$DK$2="1",'F9-IDP'!$DF$10,0)+IF('F9-IDP'!$ET$2="1",'F9-IDP'!$EO$10,0)+IF('F9-IDP'!$GC$2="1",'F9-IDP'!$FX$10,0)+IF('F9-IDP'!$HL$2="1",'F9-IDP'!$HG$10,0)+IF('F9-IDP'!$IU$2="1",'F9-IDP'!$IP$10,0)+IF('F9-IDP'!$KD$2="1",'F9-IDP'!$JY$10,0)+IF('F9-IDP'!$LM$2="1",'F9-IDP'!$LH$10,0) -> 0.00 | AB16: =IF('F9-IDP'!$J$2="1",'F9-IDP'!$K$10,0)+IF('F9-IDP'!$AS$2="1",'F9-IDP'!$AT$10,0)+IF('F9-IDP'!$CB$2="1",'F9-IDP'!$CC$10,0)+IF('F9-IDP'!$DK$2="1",'F9-IDP'!$DL$10,0)+IF('F9-IDP'!$ET$2="1",'F9-IDP'!$EU$10,0)+IF('F9-IDP'!$GC$2="1",'F9-IDP'!$GD$10,0)+IF('F9-IDP'!$HL$2="1",'F9-IDP'!$HM$10,0)+IF('F9-IDP'!$IU$2="1",'F9-IDP'!$IV$10,0)+IF('F9-IDP'!$KD$2="1",'F9-IDP'!$KE$10,0)+IF('F9-IDP'!$LM$2="1",'F9-IDP'!$LN$10,0) -> 0.00 | AI16: =IF('F9-IDP'!$J$2="1",'F9-IDP'!$Q$10,0)+IF('F9-IDP'!$AS$2="1",'F9-IDP'!$AZ$10,0)+IF('F9-IDP'!$CB$2="1",'F9-IDP'!$CI$10,0)+IF('F9-IDP'!$DK$2="1",'F9-IDP'!$DR$10,0)+IF('F9-IDP'!$ET$2="1",'F9-IDP'!$FA$10,0)+IF('F9-IDP'!$GC$2="1",'F9-IDP'!$GJ$10,0)+IF('F9-IDP'!$HL$2="1",'F9-IDP'!$HS$10,0)+IF('F9-IDP'!$IU$2="1",'F9-IDP'!$JB$10,0)+IF('F9-IDP'!$KD$2="1",'F9-IDP'!$KK$10,0)+IF('F9-IDP'!$LM$2="1",'F9-IDP'!$LT$10,0) -> 0.00 | AP16: =N16+U16-AB16+AI16 -> 28,533,916.26 | AW16: =IF('F9-IDP'!$J$2="1",'F9-IDP'!$W$10,0)+IF('F9-IDP'!$AS$2="1",'F9-IDP'!$BF$10,0)+IF('F9-IDP'!$CB$2="1",'F9-IDP'!$CO$10,0)+IF('F9-IDP'!$DK$2="1",'F9-IDP'!$DX$10,0)+IF('F9-IDP'!$ET$2="1",'F9-IDP'!$FG$10,0)+IF('F9-IDP'!$GC$2="1",'F9-IDP'!$GP$10,0)+IF('F9-IDP'!$HL$2="1",'F9-IDP'!$HY$10,0)+IF('F9-IDP'!$IU$2="1",'F9-IDP'!$JH$10,0)+IF('F9-IDP'!$KD$2="1",'F9-IDP'!$KQ$10,0)+IF('F9-IDP'!$LM$2="1",'F9-IDP'!$LZ$10,0) -> 0.00 | BD16: =IF('F9-IDP'!$J$2="1",'F9-IDP'!$AC$10,0)+IF('F9-IDP'!$AS$2="1",'F9-IDP'!$BL$10,0)+IF('F9-IDP'!$CB$2="1",'F9-IDP'!$CU$10,0)+IF('F9-IDP'!$DK$2="1",'F9-IDP'!$ED$10,0)+IF('F9-IDP'!$ET$2="1",'F9-IDP'!$FM$10,0)+IF('F9-IDP'!$GC$2="1",'F9-IDP'!$GV$10,0)+IF('F9-IDP'!$HL$2="1",'F9-IDP'!$IE$10,0)+IF('F9-IDP'!$IU$2="1",'F9-IDP'!$JN$10,0)+IF('F9-IDP'!$KD$2="1",'F9-IDP'!$KW$10,0)+IF('F9-IDP'!$LM$2="1",'F9-IDP'!$MF$10,0) -> 0.00
C17: b2) Títulos y Valores | N17: =IF('F9-IDP'!$J$2="2",'F9-IDP'!$R$7,0)+IF('F9-IDP'!$AS$2="2",'F9-IDP'!$BA$7,0)+IF('F9-IDP'!$CB$2="2",'F9-IDP'!$CJ$7,0)+IF('F9-IDP'!$DK$2="2",'F9-IDP'!$DS$7,0)+IF('F9-IDP'!$ET$2="2",'F9-IDP'!$FB$7,0)+IF('F9-IDP'!$GC$2="2",'F9-IDP'!$GK$7,0)+IF('F9-IDP'!$HL$2="2",'F9-IDP'!$HT$7,0)+IF('F9-IDP'!$IU$2="2",'F9-IDP'!$JC$7,0)+IF('F9-IDP'!$KD$2="2",'F9-IDP'!$KL$7,0)+IF('F9-IDP'!$LM$2="2",'F9-IDP'!$LU$7,0) -> 0.00 | U17: =IF('F9-IDP'!$J$2="2",'F9-IDP'!$E$10,0)+IF('F9-IDP'!$AS$2="2",'F9-IDP'!$AN$10,0)+IF('F9-IDP'!$CB$2="2",'F9-IDP'!$BW$10,0)+IF('F9-IDP'!$DK$2="2",'F9-IDP'!$DF$10,0)+IF('F9-IDP'!$ET$2="2",'F9-IDP'!$EO$10,0)+IF('F9-IDP'!$GC$2="2",'F9-IDP'!$FX$10,0)+IF('F9-IDP'!$HL$2="2",'F9-IDP'!$HG$10,0)+IF('F9-IDP'!$IU$2="2",'F9-IDP'!$IP$10,0)+IF('F9-IDP'!$KD$2="2",'F9-IDP'!$JY$10,0)+IF('F9-IDP'!$LM$2="2",'F9-IDP'!$LH$10,0) -> 0.00 | AB17: =IF('F9-IDP'!$J$2="2",'F9-IDP'!$K$10,0)+IF('F9-IDP'!$AS$2="2",'F9-IDP'!$AT$10,0)+IF('F9-IDP'!$CB$2="2",'F9-IDP'!$CC$10,0)+IF('F9-IDP'!$DK$2="2",'F9-IDP'!$DL$10,0)+IF('F9-IDP'!$ET$2="2",'F9-IDP'!$EU$10,0)+IF('F9-IDP'!$GC$2="2",'F9-IDP'!$GD$10,0)+IF('F9-IDP'!$HL$2="2",'F9-IDP'!$HM$10,0)+IF('F9-IDP'!$IU$2="2",'F9-IDP'!$IV$10,0)+IF('F9-IDP'!$KD$2="2",'F9-IDP'!$KE$10,0)+IF('F9-IDP'!$LM$2="2",'F9-IDP'!$LN$10,0) -> 0.00 | AI17: =IF('F9-IDP'!$J$2="2",'F9-IDP'!$Q$10,0)+IF('F9-IDP'!$AS$2="2",'F9-IDP'!$AZ$10,0)+IF('F9-IDP'!$CB$2="2",'F9-IDP'!$CI$10,0)+IF('F9-IDP'!$DK$2="2",'F9-IDP'!$DR$10,0)+IF('F9-IDP'!$ET$2="2",'F9-IDP'!$FA$10,0)+IF('F9-IDP'!$GC$2="2",'F9-IDP'!$GJ$10,0)+IF('F9-IDP'!$HL$2="2",'F9-IDP'!$HS$10,0)+IF('F9-IDP'!$IU$2="2",'F9-IDP'!$JB$10,0)+IF('F9-IDP'!$KD$2="2",'F9-IDP'!$KK$10,0)+IF('F9-IDP'!$LM$2="2",'F9-IDP'!$LT$10,0) -> 0.00 | AP17: 0.00 | AW17: =IF('F9-IDP'!$J$2="2",'F9-IDP'!$W$10,0)+IF('F9-IDP'!$AS$2="2",'F9-IDP'!$BF$10,0)+IF('F9-IDP'!$CB$2="2",'F9-IDP'!$CO$10,0)+IF('F9-IDP'!$DK$2="2",'F9-IDP'!$DX$10,0)+IF('F9-IDP'!$ET$2="2",'F9-IDP'!$FG$10,0)+IF('F9-IDP'!$GC$2="2",'F9-IDP'!$GP$10,0)+IF('F9-IDP'!$HL$2="2",'F9-IDP'!$HY$10,0)+IF('F9-IDP'!$IU$2="2",'F9-IDP'!$JH$10,0)+IF('F9-IDP'!$KD$2="2",'F9-IDP'!$KQ$10,0)+IF('F9-IDP'!$LM$2="2",'F9-IDP'!$LZ$10,0) -> 0.00 | BD17: =IF('F9-IDP'!$J$2="2",'F9-IDP'!$AC$10,0)+IF('F9-IDP'!$AS$2="2",'F9-IDP'!$BL$10,0)+IF('F9-IDP'!$CB$2="2",'F9-IDP'!$CU$10,0)+IF('F9-IDP'!$DK$2="2",'F9-IDP'!$ED$10,0)+IF('F9-IDP'!$ET$2="2",'F9-IDP'!$FM$10,0)+IF('F9-IDP'!$GC$2="2",'F9-IDP'!$GV$10,0)+IF('F9-IDP'!$HL$2="2",'F9-IDP'!$IE$10,0)+IF('F9-IDP'!$IU$2="2",'F9-IDP'!$JN$10,0)+IF('F9-IDP'!$KD$2="2",'F9-IDP'!$KW$10,0)+IF('F9-IDP'!$LM$2="2",'F9-IDP'!$MF$10,0) -> 0.00
C18: b3) Arrendamientos Financieros | N18: =IF('F9-IDP'!$J$2="3",'F9-IDP'!$R$7,0)+IF('F9-IDP'!$AS$2="3",'F9-IDP'!$BA$7,0)+IF('F9-IDP'!$CB$2="3",'F9-IDP'!$CJ$7,0)+IF('F9-IDP'!$DK$2="3",'F9-IDP'!$DS$7,0)+IF('F9-IDP'!$ET$2="3",'F9-IDP'!$FB$7,0)+IF('F9-IDP'!$GC$2="3",'F9-IDP'!$GK$7,0)+IF('F9-IDP'!$HL$2="3",'F9-IDP'!$HT$7,0)+IF('F9-IDP'!$IU$2="3",'F9-IDP'!$JC$7,0)+IF('F9-IDP'!$KD$2="3",'F9-IDP'!$KL$7,0)+IF('F9-IDP'!$LM$2="3",'F9-IDP'!$LU$7,0) -> 0.00 | U18: =IF('F9-IDP'!$J$2="3",'F9-IDP'!$E$10,0)+IF('F9-IDP'!$AS$2="3",'F9-IDP'!$AN$10,0)+IF('F9-IDP'!$CB$2="3",'F9-IDP'!$BW$10,0)+IF('F9-IDP'!$DK$2="3",'F9-IDP'!$DF$10,0)+IF('F9-IDP'!$ET$2="3",'F9-IDP'!$EO$10,0)+IF('F9-IDP'!$GC$2="3",'F9-IDP'!$FX$10,0)+IF('F9-IDP'!$HL$2="3",'F9-IDP'!$HG$10,0)+IF('F9-IDP'!$IU$2="3",'F9-IDP'!$IP$10,0)+IF('F9-IDP'!$KD$2="3",'F9-IDP'!$JY$10,0)+IF('F9-IDP'!$LM$2="3",'F9-IDP'!$LH$10,0) -> 0.00 | AB18: =IF('F9-IDP'!$J$2="3",'F9-IDP'!$K$10,0)+IF('F9-IDP'!$AS$2="3",'F9-IDP'!$AT$10,0)+IF('F9-IDP'!$CB$2="3",'F9-IDP'!$CC$10,0)+IF('F9-IDP'!$DK$2="3",'F9-IDP'!$DL$10,0)+IF('F9-IDP'!$ET$2="3",'F9-IDP'!$EU$10,0)+IF('F9-IDP'!$GC$2="3",'F9-IDP'!$GD$10,0)+IF('F9-IDP'!$HL$2="3",'F9-IDP'!$HM$10,0)+IF('F9-IDP'!$IU$2="3",'F9-IDP'!$IV$10,0)+IF('F9-IDP'!$KD$2="3",'F9-IDP'!$KE$10,0)+IF('F9-IDP'!$LM$2="3",'F9-IDP'!$LN$10,0) -> 0.00 | AI18: =IF('F9-IDP'!$J$2="3",'F9-IDP'!$Q$10,0)+IF('F9-IDP'!$AS$2="3",'F9-IDP'!$AZ$10,0)+IF('F9-IDP'!$CB$2="3",'F9-IDP'!$CI$10,0)+IF('F9-IDP'!$DK$2="3",'F9-IDP'!$DR$10,0)+IF('F9-IDP'!$ET$2="3",'F9-IDP'!$FA$10,0)+IF('F9-IDP'!$GC$2="3",'F9-IDP'!$GJ$10,0)+IF('F9-IDP'!$HL$2="3",'F9-IDP'!$HS$10,0)+IF('F9-IDP'!$IU$2="3",'F9-IDP'!$JB$10,0)+IF('F9-IDP'!$KD$2="3",'F9-IDP'!$KK$10,0)+IF('F9-IDP'!$LM$2="3",'F9-IDP'!$LT$10,0) -> 0.00 | AP18: 0.00 | AW18: =IF('F9-IDP'!$J$2="3",'F9-IDP'!$W$10,0)+IF('F9-IDP'!$AS$2="3",'F9-IDP'!$BF$10,0)+IF('F9-IDP'!$CB$2="3",'F9-IDP'!$CO$10,0)+IF('F9-IDP'!$DK$2="3",'F9-IDP'!$DX$10,0)+IF('F9-IDP'!$ET$2="3",'F9-IDP'!$FG$10,0)+IF('F9-IDP'!$GC$2="3",'F9-IDP'!$GP$10,0)+IF('F9-IDP'!$HL$2="3",'F9-IDP'!$HY$10,0)+IF('F9-IDP'!$IU$2="3",'F9-IDP'!$JH$10,0)+IF('F9-IDP'!$KD$2="3",'F9-IDP'!$KQ$10,0)+IF('F9-IDP'!$LM$2="3",'F9-IDP'!$LZ$10,0) -> 0.00 | BD18: =IF('F9-IDP'!$J$2="3",'F9-IDP'!$AC$10,0)+IF('F9-IDP'!$AS$2="3",'F9-IDP'!$BL$10,0)+IF('F9-IDP'!$CB$2="3",'F9-IDP'!$CU$10,0)+IF('F9-IDP'!$DK$2="3",'F9-IDP'!$ED$10,0)+IF('F9-IDP'!$ET$2="3",'F9-IDP'!$FM$10,0)+IF('F9-IDP'!$GC$2="3",'F9-IDP'!$GV$10,0)+IF('F9-IDP'!$HL$2="3",'F9-IDP'!$IE$10,0)+IF('F9-IDP'!$IU$2="3",'F9-IDP'!$JN$10,0)+IF('F9-IDP'!$KD$2="3",'F9-IDP'!$KW$10,0)+IF('F9-IDP'!$LM$2="3",'F9-IDP'!$MF$10,0) -> 0.00
A19: 2. Otros Pasivos | N19: =Balanza!D101-'F9-EDP'!N11:T11-'F9-EDP'!N15:T15 -> -989,043.62 | AP19: =Balanza!H101-'F9-EDP'!AP11:AV11-'F9-EDP'!AP15:AV15 -> -1,228,192.35
A20: 3. Total de la Deuda Pública y Otros Pasivos | N20: =N11+N19+N15 -> 28,337,984.82 | U20: =U11+U19+U15 -> 0.00 | AB20: =AB11+AB19+AB15 -> 61,671.06 | AI20: =AI11+AI19+AI15 -> 0.00 | AP20: =AP11+AP19+AP15 -> 28,037,165.03 | AW20: =AW11+AW19+AW15 -> 296,553.20 | BD20: =BD11+BD19+BD15 -> 0.00
A22: 4. Deuda Contingente (informativo)
A23: A. | AP23: =N23+U23-AB23+AI23 -> 0.00
A24: B. | AP24: 0.00
A25: C. | AP25: 0.00
A27: 5. Valor de Instrumentos Bonos Cupón Cero (Informativo)
A28: A. | AP28: =N28+U28-AB28+AI28 -> 0.00
A29: B. | AP29: 0.00
A30: C. | AP30: 0.00
A32: Obligaciones a Corto Plazo | N32: Monto Contratado | X32: Plazo Pactado | AH32: Tasa de Interés | AR32: Comisiones y Costos Relacionados | BB32: Tasa Efectiva
A34: 6. Obligaciones a Corto Plazo (Informativo)
A35: A.
A36: B.
A37: C.
C51: Bajo protesta de decir verdad declaramos que los Estados Financieros y sus notas, son razonablemente correctos y responsabilidad del emisor.
F56: LIC. JOSE HERIBERTO GARCIA MURILLO | AG56: LAE BRUNO GERMAN ENCISO GUILLEN
F57: PRESIDENTE MUNICIPAL | AG57: ENCRAGADO DE LA HACIENDA MUNICIPAL
V58: ASEJ2025-01-19-03-2025-1

Sheet F9-IAO
A1: MUNICIPIO IXTLAHUACÁN DE LOS MEMBRILLOS
A2: Informe Analítico de Obligaciones Diferentes de Financiamiento - LDF
A3: DEL 1° DE ENERO AL 31 DE ENERO DE 2025
A4: (PESOS)
A5: Denominación de las Obligaciones Diferentes de Financiamiento | N5: Fecha del Contrato | S5: Fecha de inicio de operaciones del proyecto | X5: Fecha de vencimiento | AC5: Monto de la inversión pactado | AI5: Plazo pactado | AN5: Monto promedio mensual del pago de la contraprestación | AT5: Monto promedio mensual del pago de la contraprestación correspondiente al pago de inversión | AZ5: ="Monto pagado de la inversión al "&INDEX(Validacion!D185:D196,MATCH(Validacion!A11,Validacion!C185:C196,0)) -> Monto pagado de la inversión al 31 de Enero de 2025 | BF5: ="Monto pagado de la inversión actualizado al "&INDEX(Validacion!D185:D196,MATCH(Validacion!A11,Validacion!C185:C196,0)) -> Monto pagado de la inversión actualizado al 31 de Enero de 2025 | BL5: ="Saldo pendiente por pagar de la inversión al "&INDEX(Validacion!D185:D196,MATCH(Validacion!A11,Validacion!C185:C196,0)) -> Saldo pendiente por pagar de la inversión al 31 de Enero de 2025
A11: A. Asociaciones Público Privadas (APP´s) | AC11: =SUM(AC12:AH15) -> 0.00 | AN11: =SUM(AN12:AS15) -> 0.00 | AT11: =SUM(AT12:AY15) -> 0.00 | AZ11: =SUM(AZ12:BE15) -> 0.00 | BF11: =SUM(BF12:BK15) -> 0.00 | BL11: =SUM(BL12:BQ15) -> 0.00
B12: a) | C12: NO APLICA | BL12: =AC12-BF12 -> 0.00
B13: b) | BL13: 0.00
B14: c) | BL14: 0.00
B15: d) | BL15: 0.00
A16: B. Otros Instrumentos | AC16: =SUM(AC17:AH20) -> 0.00 | AN16: =SUM(AN17:AS20) -> 0.00 | AT16: =SUM(AT17:AY20) -> 0.00 | AZ16: =SUM(AZ17:BE20) -> 0.00 | BF16: =SUM(BF17:BK20) -> 0.00 | BL16: =SUM(BL17:BQ20) -> 0.00
B17: a) | BL17: =AC17-BF17 -> 0.00
B18: b) | BL18: 0.00
B19: c) | BL19: 0.00
B20: d) | BL20: 0.00
A21: C. Total de Obligaciones Diferentes de Financiamiento | AC21: =AC11+AC16 -> 0.00 | AN21: =AN11+AN16 -> 0.00 | AT21: =AT11+AT16 -> 0.00 | AZ21: =AZ11+AZ16 -> 0.00 | BF21: =BF11+BF16 -> 0.00 | BL21: =BL11+BL16 -> 0.00
C24: Bajo protesta de decir verdad declaramos que los Estados Financieros y sus notas, son razonablemente correctos y responsabilidad del emisor.
F29: LIC. JOSE HERIBERTO GARCIA MURILLO | AP29: LAE BRUNO GERMAN ENCISO GUILLEN
F30: PRESIDENTE MUNICIPAL | AP30: ENCRAGADO DE LA HACIENDA MUNICIPAL
W31: ASEJ2025-01-19-03-2025-1

Sheet F10
A1: MUNICIPIO IXTLAHUACÁN DE LOS MEMBRILLOS
A2: INFORMATIVA DE PROVEEDORES
A3: DEL 1° AL 31 DE ENERO DE 2025
A4: (Cifras en pesos)
A5: N° | B5: PROVEEDOR Y/O PRESTADOR | C5: R.F.C. | D5: DOMICILIO | E5: CIUDAD | F5: CODIGO POSTAL | G5: FUENTE DE FINANCIAMIENTO | H5: ORIGEN DEL RECURSO POR CUENTA BANCARIA | I5: FORMA DE PAGO | J5: DESCRIPCIÓN DEL GASTO | K5: IMPORTE | L5: FECHA DE LA FACTURA | M5: FOLIO DE FACTURA
A6: 1 | B6: ALEJANDRO AMBRIZ CABRERA | C6: AICA740709N13 | D6: CIRCUITO VALLE DORADO 124L-3 | E6: TLAJOMULCO DE ZUÑIGA | F6: 45653 | G6: 1.1 | H6: Cta. 01720129762312 IMTOS. (NO ETIQ) | I6: Transferencia | J6: MEDICAMENTO PARA CLINICA DE SMM | K6: 85,794.31 | L6: 2025-01-06 | M6: 2c740dd5-353a-4a7e-9ca4-15dd4fc3616b
A7: 2 | B7: ALEJANDRO AMBRIZ CABRERA | C7: AICA740709N13 | D7: CIRCUITO VALLE DORADO 124L-3 | E7: TLAJOMULCO DE ZUÑIGA | F7: 45653 | G7: 1.1 | H7: Cta. 01720129762312 IMTOS. (NO ETIQ) | I7: Transferencia | J7: MEDICAMENTO PARA CLINICA DE SMM | K7: 12,711.89 | L7: 2025-01-09 | M7: fde1ccdd-e25d-4ce7-83b3-de7841b05d1b
A8: 3 | B8: ALEJANDRO AMBRIZ CABRERA | C8: AICA740709N13 | D8: CIRCUITO VALLE DORADO 124L-3 | E8: TLAJOMULCO DE ZUÑIGA | F8: 45653 | G8: 1.1 | H8: Cta. 01720129762312 IMTOS. (NO ETIQ) | I8: Transferencia | J8: MEDICAMENTO PARA CLINICA DE SMM | K8: 5,594.00 | L8: 2025-01-09 | M8: 72cbed43-38ce-4691-9928-161dcd6a695f
A9: 4 | B9: ALEJANDRO AMBRIZ CABRERA | C9: AICA740709N13 | D9: CIRCUITO VALLE DORADO 124L-3 | E9: TLAJOMULCO DE ZUÑIGA | F9: 45653 | G9: 1.1 | H9: Cta. 01720129762312 IMTOS. (NO ETIQ) | I9: Transferencia | J9: MEDICAMENTO PARA CLINICA DE SMM | K9: 27,101.89 | L9: 2025-01-31
A10: 5 | B10: ALEJANDRO AMBRIZ CABRERA | C10: AICA740709N13 | D10: CIRCUITO VALLE DORADO 124L-3 | E10: TLAJOMULCO DE ZUÑIGA | F10: 45653 | G10: 1.1 | H10: Cta. 01720129762312 IMTOS. (NO ETIQ) | I10: Transferencia | J10: MEDICAMENTO PARA CLINICA DE SMM | K10: 43,325.01 | L10: 2025-01-24 | M10: 79f8a24d-fdf4-462e-946b-853a8d109e58
A11: 6 | B11: ALEJANDRO AMBRIZ CABRERA | C11: AICA740709N13 | D11: CIRCUITO VALLE DORADO 124L-3 | E11: TLAJOMULCO DE ZUÑIGA | F11: 45653 | G11: 1.1 | H11: Cta. 01720129762312 IMTOS. (NO ETIQ) | I11: Transferencia | J11: MEDICAMENTO PARA CLINICA DE SMM | K11: 5,049.92 | L11: 2025-01-24 | M11: 6c890942-5b46-4094-96cd-70b85061ac0f
A12: 7 | B12: AFA PROYECTOS | C12: APR181128GV1 | D12: SANTA JULIA 1165 VICENTE GUERRERO | E12: GUADALAJARA | F12: 44690 | G12: 1.1 | H12: Cta. 01720129762312 IMTOS. (NO ETIQ) | I12: Transferencia | J12: MATERIAL ELECTRONICO PARA MTTO DE ALUMBRADO PUBLICO | K12: 106,163.20 | L12: 2025-01-03 | M12: 7895B204-798E-4E40-9592-80F08CB504DC
A13: 8 | B13: AFA PROYECTOS | C13: APR181128GV1 | D13: SANTA JULIA 1165 VICENTE GUERRERO | E13: GUADALAJARA | F13: 44690 | G13: 1.1 | H13: Cta. 01720129762312 IMTOS. (NO ETIQ) | I13: Transferencia | J13: MATERIAL ELECTRICO PARA MTTO DE ALUMBRADO PUBLICO | K13: 36,604.03 | L13: 2025-01-24 | M13: E82C9D70-BF55-48A5-A431-08EA47E1088B
A14: 9 | B14: AFA PROYECTOS | C14: APR181128GV1 | D14: SANTA JULIA 1165 VICENTE GUERRERO | E14: GUADALAJARA | F14: 44690 | G14: 1.1 | H14: Cta. 01720129762312 IMTOS. (NO ETIQ) | I14: Transferencia | J14: MATERIAL ELECTRICO PARA MTTO DE ALUMBRADO PUBLICO | K14: 15,249.36 | L14: 2025-01-31 | M14: 8525C3B1-C284-4DA0-96A3-4C1195CB0F86
A15: 10 | B15: AFA PROYECTOS | C15: APR181128GV1 | D15: SANTA JULIA 1165 VICENTE GUERRERO | E15: GUADALAJARA | F15: 44690 | G15: 1.1 | H15: Cta. 01720129762312 IMTOS. (NO ETIQ) | I15: Transferencia | J15: MATERIAL ELECTRICO PARA MTTO DE ALUMBRADO PUBLICO | K15: 183,272.58 | L15: 2025-01-31 | M15: D03A07BF-AEA5-431C-B22A-3A290528EED7
A16: 11 | B16: ARMY UNIFORMES . | C16: AUN0812172P7 | D16: GRECIA 14 CENTRO | E16: GUADALAJARA | F16: 44100 | G16: 1.1 | H16: Cta. 01720129762312 IMTOS. (NO ETIQ) | I16: Transferencia | J16: UNIFORMES PARA ELEMENTOS DE VIALIDA. | K16: 133,638.96 | L16: 2025-01-22 | M16: 23C20524-3165-46D6-84AC-5EDEC6B78F2F
A17: 12 | B17: Camarena Automotriz de Occidente s.a. de c.v. | C17: CAO850307HY1 | D17: AV. 8 DE JULIO 2206, ESQ. LÁZARO CÁRDENAS 206 ZONA IND. | E17: GUADALAJARA | F17: 44940 | G17: 1.1 | H17: Cta. 01720129762312 IMTOS. (NO ETIQ) | I17: Transferencia | J17: MTTO DE UNIDAD DE VIALIDAD | K17: 5,950.00 | L17: 2025-01-23 | M17: 00f19bcf-1d1d-41ea-9170-7ee8abb1bb3f
A18: 13 | B18: Camarena Automotriz de Occidente s.a. de c.v. | C18: CAO850307HY1 | D18: AV. 8 DE JULIO 2206, ESQ. LÁZARO CÁRDENAS 206 ZONA IND. | E18: GUADALAJARA | F18: 44940 | G18: 1.1 | H18: Cta. 01720129762312 IMTOS. (NO ETIQ) | I18: Transferencia | J18: MTTO DE UNIDAD DE VIALIDAD | K18: 6,554.00 | L18: 2025-01-23 | M18: 350afc43-7d56-45d6-87c0-237c032404f4
A19: 14 | B19: Carlos Elias Sanchez Soto | C19: SASC561014M26 | D19: N/P | E19: N/P | F19: 45550 | G19: 1.1 | H19: Cta. 01720129762312 IMTOS. (NO ETIQ) | I19: Transferencia | J19: RECIBOS DE CUOTA PARA SMM | K19: 10,324.00 | L19: 2025-01-03 | M19: 776D3467-CA04-11EF-898E-00155D014009
A20: 15 | B20: Carlos Elias Sanchez Soto | C20: SASC561014M26 | D20: N/P | E20: N/P | F20: 45550 | G20: 1.1 | H20: Cta. 01720129762312 IMTOS. (NO ETIQ) | I20: Transferencia | J20: RECIBOS OFICIALES PARA TESORERIA | K20: 5,812.76 | L20: 2025-01-16 | M20: 897252A5-D469-11EF-898E-00155D014009
A21: 16 | B21: Carlos Elias Sanchez Soto | C21: SASC561014M26 | D21: N/P | E21: N/P | F21: 45550 | G21: 1.1 | H21: Cta. 01720129762312 IMTOS. (NO ETIQ) | I21: Transferencia | J21: RECIBOS CATASTRALES PARA CATASTRO | K21: 5,920.64 | L21: 2025-01-16 | M21: 24E72F52-D469-11EF-B358-00155D012007
A22: 17 | B22: Carlos Elias Sanchez Soto | C22: SASC561014M26 | D22: N/P | E22: N/P | F22: 45550 | G22: 1.1 | H22: Cta. 01720129762312 IMTOS. (NO ETIQ) | I22: Transferencia | J22: RECIBOS OFICIALES, CATASTRALES Y PREDIALES | K22: 92,232.01 | L22: 2025-01-21 | M22: E10B32CB-D82D-11EF-A83D-00155D012007
A23: 18 | B23: Chubb Seguros Mexico sa | C23: ASE901221SM4 | D23: N/P | E23: N/P | F23: 660 | G23: 1.1 | H23: Cta. 01720129762312 IMTOS. (NO ETIQ) | I23: Transferencia | J23: SEGUROS DE MAQUINARIA DE OBRAS | K23: 158,197.14 | L23: 2025-01-21 | M23: 3e1bf236-f885-47ed-981b-5233f258243e
A24: 19 | B24: COFIDUE COMERCIOS Y SERVICIOS | C24: CCS231127G27 | D24: MARISANO OTERO 3643 LA CALMA | E24: ZAPOPAN | F24: 45070 | G24: 1.1 | H24: Cta. 01720129762312 IMTOS. (NO ETIQ) | I24: Transferencia | J24: PAPELERIA PARA VARIAS UR . | K24: 37,829.78 | L24: 2025-01-24 | M24: a02e0530-ef02-4176-bdc0-36b644003af0
A25: 20 | B25: COFIDUE COMERCIOS Y SERVICIOS | C25: CCS231127G27 | D25: MARISANO OTERO 3643 LA CALMA | E25: ZAPOPAN | F25: 45070 | G25: 1.1 | H25: Cta. 01720129762312 IMTOS. (NO ETIQ) | I25: Transferencia | J25: PAPELERIA PARA VARIAS UR . | K25: 43,867.45 | L25: 2025-01-24 | M25: b55a0e27-3278-4570-90fd-e80fa8611855
A26: 21 | B26: CR Formas SA de CV | C26: CFO101206HJ7 | D26: VOLCAN PARICUTIN 6595 EL COLLI URBANO | E26: ZAPOPAN | F26: 45070 | G26: 1.1 | H26: Cta. 01720129762312 IMTOS. (NO ETIQ) | I26: Transferencia | J26: 2500 ACTAS DE NACIMIEENTO PARA REGISTRO CIVIL | K26: 44,950.00 | L26: 2025-01-06 | M26: DE8CDE54-E569-4704-8135-51262033FC30
A27: 22 | B27: CR Formas SA de CV | C27: CFO101206HJ7 | D27: VOLCAN PARICUTIN 6595 EL COLLI URBANO | E27: ZAPOPAN | F27: 45070 | G27: 1.1 | H27: Cta. 01720129762312 IMTOS. (NO ETIQ) | I27: Transferencia | J27: 2500 ACTAS DE NACIMIENTO PARA REGISTRO CIVIL | K27: 44,950.00 | L27: 2025-01-06 | M27: 95CB19A7-7D31-497F-B15A-98E3E2A3C65C
A28: 23 | B28: CR Formas SA de CV | C28: CFO101206HJ7 | D28: VOLCAN PARICUTIN 6595 EL COLLI URBANO | E28: ZAPOPAN | F28: 45070 | G28: 1.1 | H28: Cta. 01720129762312 IMTOS. (NO ETIQ) | I28: Transferencia | J28: 5000 RECIBOS CATASTRALES | K28: 16,216.80 | L28: 2025-01-21 | M28: FC64C9AA-18DD-4D66-B018-7D82FF479415
A29: 24 | B29: CR Formas SA de CV | C29: CFO101206HJ7 | D29: VOLCAN PARICUTIN 6595 EL COLLI URBANO | E29: ZAPOPAN | F29: 45070 | G29: 1.1 | H29: Cta. 01720129762312 IMTOS. (NO ETIQ) | I29: Transferencia | J29: 10,000 RECIBOS PREDIALES | K29: 28,025.60 | L29: 2025-01-22 | M29: B05FC20D-BE43-4CE0-A472-72B9EDC10A18
A30: 25 | B30: DISTRIBUIDORA UDAM | C30: DUD2101226I9 | D30: N/P | E30: N/P | F30: 45050 | G30: 1.1 | H30: Cta. 01720129762312 IMTOS. (NO ETIQ) | I30: No Aplica | J30: TONERS PARA IMPRESORAS DE VARIAS UR | K30: 70,247.69 | L30: 2025-01-31
A31: 26 | B31: Edgar Jesus Ascencio Torres | C31: AETE9310224V5 | D31: N/P | E31: IXTLAHUACAN DE LOS MEMBRILLOS | F31: 45850 | G31: 1.1 | H31: Cta. 01720129762312 IMTOS. (NO ETIQ) | I31: Transferencia | J31: RENTA DE MUEBLE PARA EVENTO EN CEDROS | K31: 6,728.00 | L31: 2025-01-13 | M31: AAA14703-9F1F-47AE-9D71-113BC6E5BD8B
A32: 27 | B32: ELEAZAR VALDIVIA OLIVARES | C32: VAOE891203BG8 | D32: N/P | E32: N/P | F32: 45860 | G32: 1.1 | H32: Cta. 01720129762312 IMTOS. (NO ETIQ) | I32: Transferencia | J32: HOSTING BUSINES WEB-IMEMBRILLO.GOB.MX | K32: 18,123.42 | L32: 2025-01-07 | M32: AAA1F268-CCC1-466F-A3FF-E167665427B9
A33: 28 | B33: ELEAZAR VALDIVIA OLIVARES | C33: VAOE891203BG8 | D33: N/P | E33: N/P | F33: 45860 | G33: 1.1 | H33: Cta. 01720129762312 IMTOS. (NO ETIQ) | I33: Transferencia | J33: SERVIDORES PARA DOMINIO ANUAL DE LAS PLATAFORMAS DIGITALES DE LA DIRECCION DE CATASTRO | K33: 96,048.00 | L33: 2025-01-31 | M33: AAA1DB91-ED41-43DD-BCFE-CD2950F3B4D6
A34: 29 | B34: Enrique Enciso Diaz | C34: EIDE520706MUA | D34: AV. SANTIAGO 30 CENTRO | E34: XTLAHUACAN DE LOS MEMBRILLOS | F34: 45850 | G34: 1.5 | H34: Cta. 0720129762277 FGP (NO ETIQ) | I34: Transferencia | J34: COMBUSTIBLE DE VEHICULOS OFICIALES DEL 01-07 ENE 2025. | K34: 395,054.75 | L34: 2025-01-08 | M34: A44A2346-280B-43B4-85FC-C2094350B1D0
A35: 30 | B35: Enrique Enciso Diaz | C35: EIDE520706MUA | D35: AV. SANTIAGO 30 CENTRO | E35: XTLAHUACAN DE LOS MEMBRILLOS | F35: 45850 | G35: 1.5 | H35: Cta. 0720129762277 FGP (NO ETIQ) | I35: Transferencia | J35: COMBUSTIBLE DE VEHICULOS OFICIALES DEL 8-14 ENE 2025. | K35: 415,846.95 | L35: 2025-01-16 | M35: E2CFECD9-51B0-4C5F-9E5F-7CE1D99B9187
A36: 31 | B36: Enrique Enciso Diaz | C36: EIDE520706MUA | D36: AV. SANTIAGO 30 CENTRO | E36: XTLAHUACAN DE LOS MEMBRILLOS | F36: 45850 | G36: 1.5 | H36: Cta. 0720129762277 FGP (NO ETIQ) | I36: Transferencia | J36: COMBUSTIBLE DE VEHICULOS OFICIALES DEL 15-21 ENE 2025. | K36: 43,724.78 | L36: 2025-01-23 | M36: BA659252-AEAE-430C-A518-57D27E1F7434
A37: 32 | B37: Enrique Enciso Diaz | C37: EIDE520706MUA | D37: AV. SANTIAGO 30 CENTRO | E37: XTLAHUACAN DE LOS MEMBRILLOS | F37: 45850 | G37: 1.5 | H37: Cta. 0720129762277 FGP (NO ETIQ) | I37: Transferencia | J37: COMBUSTIBLE DE VEHICULOS OFICIALES DEL 15-21 ENE 2025. | K37: 393,518.01 | L37: 2025-01-23 | M37: BA659252-AEAE-430C-A518-57D27E1F7434
A38: 33 | B38: Enrique Enciso Diaz | C38: EIDE520706MUA | D38: AV. SANTIAGO 30 CENTRO | E38: XTLAHUACAN DE LOS MEMBRILLOS | F38: 45850 | G38: 1.5 | H38: Cta. 0720129762277 FGP (NO ETIQ) | I38: Transferencia | J38: COMBUSTIBLE DE VEHICULOS OFICIALES DEL 22-31 ENE 2025. | K38: 612,738.43 | L38: 2025-01-31 | M38: 039BB146-60D3-4C9F-8B43-061B40CEDB2A
A39: 34 | B39: Felipe Herrera Enciso | C39: HEEF8209061C5 | D39: CUAHUATEMOC CENTRO | E39: IXTLAHUACAN DE LOS MEMBRILLOS | F39: 45850 | G39: 1.1 | H39: Cta. 01720129762312 IMTOS. (NO ETIQ) | I39: Transferencia | J39: VIAJE DE ARENA PARA OBRAS | K39: 8,700.00 | L39: 2025-01-03 | M39: E49560B5-750D-4423-B7A9-E41DF47781B4
A40: 35 | B40: Felipe Herrera Enciso | C40: HEEF8209061C5 | D40: CUAHUATEMOC CENTRO | E40: IXTLAHUACAN DE LOS MEMBRILLOS | F40: 45850 | G40: 1.1 | H40: Cta. 01720129762312 IMTOS. (NO ETIQ) | I40: Transferencia | J40: MATERIALES VARIOS DE FERRETERIA DE VARIS UR . | K40: 90,405.62 | L40: 2025-01-08 | M40: 6879B5CF-2EDF-4E89-AE24-AC4A66160523
A41: 36 | B41: Felipe Herrera Enciso | C41: HEEF8209061C5 | D41: CUAHUATEMOC CENTRO | E41: IXTLAHUACAN DE LOS MEMBRILLOS | F41: 45850 | G41: 1.1 | H41: Cta. 01720129762312 IMTOS. (NO ETIQ) | I41: Transferencia | J41: MATERIALES VARIOS DE FERRETERIA DE VARIS UR . | K41: 34,966.07 | L41: 2025-01-15 | M41: C5C07C75-4215-4E1B-A6AA-E95691DD0988
A42: 37 | B42: Felipe Herrera Enciso | C42: HEEF8209061C5 | D42: CUAHUATEMOC CENTRO | E42: IXTLAHUACAN DE LOS MEMBRILLOS | F42: 45850 | G42: 1.1 | H42: Cta. 01720129762312 IMTOS. (NO ETIQ) | I42: Transferencia | J42: MATERIALES VARIOS DE FERRETERIA DE VARIS UR . | K42: 16,633.94 | L42: 2025-01-23 | M42: BBEDB050-3555-4425-BFFA-61F74018C58A
A43: 38 | B43: Felipe Herrera Enciso | C43: HEEF8209061C5 | D43: CUAHUATEMOC CENTRO | E43: IXTLAHUACAN DE LOS MEMBRILLOS | F43: 45850 | G43: 1.1 | H43: Cta. 01720129762312 IMTOS. (NO ETIQ) | I43: Transferencia | J43: MATERIAL PARA OBRAS | K43: 13,352.86 | L43: 2025-01-16 | M43: BA43EDD1-5A72-44C7-9C48-B33DEF7E4BB7
A44: 39 | B44: Felipe Herrera Enciso | C44: HEEF8209061C5 | D44: CUAHUATEMOC CENTRO | E44: IXTLAHUACAN DE LOS MEMBRILLOS | F44: 45850 | G44: 1.1 | H44: Cta. 01720129762312 IMTOS. (NO ETIQ) | I44: Transferencia | J44: MATERIALES VARIOS DE FERRETERIA DE VARIS UR . | K44: 17,313.31 | L44: 2025-01-28 | M44: EDAFF6D6-E7B5-4721-956C-483D2F2A6EE9
A45: 40 | B45: Francisco Javier Hernandez Cano | C45: HECF811117359 | D45: FLORES MAGON 38 B LAS COLONIAS | E45: CHAPALA | F45: 45930 | G45: 1.1 | H45: Cta. 01720129762312 IMTOS. (NO ETIQ) | I45: Transferencia | J45: INSERCION DE PUBLICIDAD DEL MES DE ENERO | K45: 5,220.00 | L45: 2025-01-13 | M45: A9BFDCD6-FC23-482D-A7C7-63473C5A8F5B
A46: 41 | B46: GOBPAY SA DE CV | C46: GOB2202015T5 | D46: N/P | E46: N/P | F46: 44500 | G46: 1.1 | H46: Cta. 01720129762312 IMTOS. (NO ETIQ) | I46: Transferencia | J46: CIERE PRESUPUESTAL DEL EJERCICIO 2024 | K46: 34,800.00 | L46: 2025-01-21 | M46: ebe69e60-e267-4cd1-a2f9-d3b99508863e
A47: 42 | B47: GRUPO JEXEL PUBLICIDAD | C47: GJP201209S4A | D47: AGUA MARINA NORTE 51769 PARQUES DE ZAPOPAN | E47: ZAPOPAN | F47: 45138 | G47: 1.1 | H47: Cta. 01720129762312 IMTOS. (NO ETIQ) | I47: Transferencia | J47: COORDINACION Y PRODUCCIO DE EVENTO EN EL RODEO | K47: 90,596.00 | L47: 2025-01-13 | M47: F8F93724-1EEB-4D45-89FB-0889E681A495
A48: 43 | B48: GRUPO JEXEL PUBLICIDAD | C48: GJP201209S4A | D48: AGUA MARINA NORTE 51769 PARQUES DE ZAPOPAN | E48: ZAPOPAN | F48: 45138 | G48: 1.1 | H48: Cta. 01720129762312 IMTOS. (NO ETIQ) | I48: Transferencia | J48: ORGANIZACION Y PRODUCCION DE EVENTO CULTURAL EN LA CAÑADA | K48: 133,516.00 | L48: 2025-01-13 | M48: 38845BD5-F677-4762-8995-82821C7DDADC
A49: 44 | B49: GRUPO JEXEL PUBLICIDAD | C49: GJP201209S4A | D49: AGUA MARINA NORTE 51769 PARQUES DE ZAPOPAN | E49: ZAPOPAN | F49: 45138 | G49: 1.1 | H49: Cta. 01720129762312 IMTOS. (NO ETIQ) | I49: Transferencia | J49: COORDINACION Y PRODUCCION DE EVEBNTO CULTURAL EN AGUILILLAS | K49: 124,816.00 | L49: 2025-01-16 | M49: 1AFC4547-108F-46C4-B2C4-19BACC104FE7
A50: 45 | B50: GRUPO JEXEL PUBLICIDAD | C50: GJP201209S4A | D50: AGUA MARINA NORTE 51769 PARQUES DE ZAPOPAN | E50: ZAPOPAN | F50: 45138 | G50: 1.1 | H50: Cta. 01720129762312 IMTOS. (NO ETIQ) | I50: Transferencia | J50: ANTICIPO FESTIVAL DEL MEMBRILLO IX EDICION | K50: 290,000.00 | L50: 2025-01-21 | M50: D7FDE4F3-575A-4353-84CD-50D07D11C81B
A51: 46 | B51: GRUPO JEXEL PUBLICIDAD | C51: GJP201209S4A | D51: AGUA MARINA NORTE 51769 PARQUES DE ZAPOPAN | E51: ZAPOPAN | F51: 45138 | G51: 1.1 | H51: Cta. 01720129762312 IMTOS. (NO ETIQ) | I51: Transferencia | J51: COORDINACION Y PRODUCCION DE EVENTO CULTURAL EN BUENAVISTA | K51: 190,356.00 | L51: 2025-01-24 | M51: 5F9DD35C-B2CE-43EE-BD65-AD4AAE241DD7
A52: 47 | B52: GRUPO JEXEL PUBLICIDAD | C52: GJP201209S4A | D52: AGUA MARINA NORTE 51769 PARQUES DE ZAPOPAN | E52: ZAPOPAN | F52: 45138 | G52: 1.1 | H52: Cta. 01720129762312 IMTOS. (NO ETIQ) | I52: Transferencia | J52: CARRERA DE LA BANDERA EDICION 2025 | K52: 48,000.00 | L52: 2025-01-24 | M52: 4B945E5B-B363-4B5A-BC56-FAB35DD6EF3C
A53: 48 | B53: HDI Seguros SA de CV | C53: HSE701218532 | D53: PASEO INSUGENTES | E53: LEON | F53: 44620 | G53: 1.1 | H53: Cta. 01720129762312 IMTOS. (NO ETIQ) | I53: No Aplica | J53: SEGURO DE VEHICULO DE DESARROLLO SOCIAL | K53: 52,365.64 | L53: 2025-01-31
A54: 49 | B54: HECTOR ALFONSO SOLANO MORENO | C54: SOMH640611KV9 | D54: N/P | E54: N/P | F54: 44650 | G54: 1.1 | H54: Cta. 01720129762312 IMTOS. (NO ETIQ) | I54: Transferencia | J54: APOYO DE GASTOS MEDICOS PARA ENCARGAHDO DE ALUMBRADO PUBLICO | K54: 40,000.00 | L54: 2025-01-25 | M54: D8803A44-ABF9-4341-88AF-210E425F4779
A55: 50 | B55: HERTER PRO-SALUD | C55: HPR2312135T4 | D55: PASEO DE LOS CEREZOS 63 MESA DE LOS OCOTES | E55: ZAPOPAN | F55: 45189 | G55: 1.1 | H55: Cta. 01720129762312 IMTOS. (NO ETIQ) | I55: Transferencia | J55: INSUMOS MEDICOS PARA CLINICA DE SMM | K55: 114,850.24 | L55: 2025-01-03 | M55: 32c1335a-417d-443b-a855-fc9c2cc7c822
A56: 51 | B56: HERTER PRO-SALUD | C56: HPR2312135T4 | D56: PASEO DE LOS CEREZOS 63 MESA DE LOS OCOTES | E56: ZAPOPAN | F56: 45189 | G56: 1.1 | H56: Cta. 01720129762312 IMTOS. (NO ETIQ) | I56: Transferencia | J56: INSUMOS MEDICOS PARA CLINICA DE SMM | K56: 8,839.73 | L56: 2025-01-17 | M56: 772a4926-067f-464e-a15b-e8ee8c591e7c
A57: 52 | B57: Imprenta Gorilitas S de RL de CV | C57: IGO210714RL4 | D57: N/P | E57: N/P | F57: 44410 | G57: 1.1 | H57: Cta. 01720129762312 IMTOS. (NO ETIQ) | I57: Transferencia | J57: FORMATOS DE INFRACCION PARA VIALIDAD | K57: 10,440.00 | L57: 2025-01-16 | M57: AAE4D206-D466-11EF-B358-00155D012007
A58: 53 | B58: Imprenta Gorilitas S de RL de CV | C58: IGO210714RL4 | D58: N/P | E58: N/P | F58: 44410 | G58: 1.1 | H58: Cta. 01720129762312 IMTOS. (NO ETIQ) | I58: Transferencia | J58: SELLOS PARA DIFERENTES OFICIOS, CITATORIOS, VALES DE GASOLINA Y REPORTES DE ATENCION CIUDADANA | K58: 42,804.00 | L58: 2025-01-16 | M58: B2532285-D466-11EF-898E-00155D014009
A59: 54 | B59: Imprenta Gorilitas S de RL de CV | C59: IGO210714RL4 | D59: N/P | E59: N/P | F59: 44410 | G59: 1.1 | H59: Cta. 01720129762312 IMTOS. (NO ETIQ) | I59: Transferencia | J59: FORMATOS DE CUOTA DE RECPERACION Y RECETAS PARA CLINICA DE SMM | K59: 32,828.00 | L59: 2025-01-16 | M59: BA4177E3-D466-11EF-B358-00155D012007
A60: 55 | B60: Imprenta Gorilitas S de RL de CV | C60: IGO210714RL4 | D60: N/P | E60: N/P | F60: 44410 | G60: 1.1 | H60: Cta. 01720129762312 IMTOS. (NO ETIQ) | I60: Transferencia | J60: VOLANTES DESCUENTOS, CITATORIOS PARA PADRON Y LICENCIAS | K60: 44,808.48 | L60: 2025-01-24
A61: 56 | B61: Imprenta Gorilitas S de RL de CV | C61: IGO210714RL4 | D61: N/P | E61: N/P | F61: 44410 | G61: 1.1 | H61: Cta. 01720129762312 IMTOS. (NO ETIQ) | I61: Transferencia | J61: CORTE E INSTALACION DE VINIL EN VEHICULO Y FORMATOS PARA VIALIDAD | K61: 10,324.00 | L61: 2025-01-29 | M61: 41F9CB43-DE89-11EF-A462-00155D014009
A62: 57 | B62: Imprenta Gorilitas S de RL de CV | C62: IGO210714RL4 | D62: N/P | E62: N/P | F62: 44410 | G62: 2.5 | H62: Cta 01720178360100 FORTAMUN 2025 | I62: Transferencia | J62: CORTES E INSTALACION DE VINIL EN VEHICULOS DE SEGURIDAD PUBLICA | K62: 19,488.00 | L62: 2025-01-29 | M62: 387FF3BA-DE89-11EF-A83D-00155D012007
A63: 58 | B63: Isabella Navarro Barajas | C63: NABI861120685 | D63: N/P | E63: N/P | F63: 45675 | G63: 1.1 | H63: Cta. 01720129762312 IMTOS. (NO ETIQ) | I63: Transferencia | J63: MATERIAL DE LIMPIEZA | K63: 18,215.64 | L63: 2025-01-27 | M63: AEF914A1-EB9C-4F28-9201-1FA685A4DE86
A64: 59 | B64: Jalisco Motors SA | C64: JMO821210U96 | D64: N/P | E64: N/P | F64: 44140 | G64: 1.1 | H64: Cta. 01720129762312 IMTOS. (NO ETIQ) | I64: Transferencia | J64: MTTO DE VEHICULO ASIGNADO A SECRETARIA GENERAL | K64: 8,200.01 | L64: 2025-01-30 | M64: 9A653EFB-ACC8-40D6-AB05-19975F4B73D4
A65: 60 | B65: Jalisco Motors SA | C65: JMO821210U96 | D65: N/P | E65: N/P | F65: 44140 | G65: 1.1 | H65: Cta. 01720129762312 IMTOS. (NO ETIQ) | I65: Transferencia | J65: MTTO FORD RANGER ASIGNADA A PRESIDENCIA | K65: 57,873.56 | L65: 2025-01-30 | M65: C3624DC3-898C-4683-A6FE-595A081B04B4
A66: 61 | B66: JOSE DE JESUS PEREZ GARCIA | C66: PEGJ530711ND2 | D66: JOSE MARIA VEREA 2676 SAN ANDRES | E66: GUADALAJARA | F66: 44810 | G66: 1.5 | H66: Cta. 0720129762277 FGP (NO ETIQ) | I66: Transferencia | J66: MTTO DE CAMION DE ASEO Y OBRAS Y UNA RETRO | K66: 18,328.00 | L66: 2025-01-10 | M66: 268C8C83-5BCE-48B4-B155-8CD4A0A73D91
A67: 62 | B67: JOSE DE JESUS PEREZ GARCIA | C67: PEGJ530711ND2 | D67: JOSE MARIA VEREA 2676 SAN ANDRES | E67: GUADALAJARA | F67: 44810 | G67: 1.5 | H67: Cta. 0720129762277 FGP (NO ETIQ) | I67: Transferencia | J67: MTTO DE CAMION DE OBRAS, COMPACTADOR DE ASEO Y AMBULANCIA DE SMM | K67: 14,500.00 | L67: 2025-01-24 | M67: 98E6CF84-AF77-45DC-97F1-C20972F607EF
A68: 63 | B68: JOSE DE JESUS PEREZ GARCIA | C68: PEGJ530711ND2 | D68: JOSE MARIA VEREA 2676 SAN ANDRES | E68: GUADALAJARA | F68: 44810 | G68: 1.1 | H68: Cta. 01720129762312 IMTOS. (NO ETIQ) | I68: Cheque | J68: MTTO DE MOTOCONFORMADORA DE OBRAS | K68: 6,032.00 | L68: 2025-01-24 | M68: 4347932F-940E-43FB-800E-1B4EAD8BCBF1
A69: 64 | B69: JOSE DE JESUS PEREZ GARCIA | C69: PEGJ530711ND2 | D69: JOSE MARIA VEREA 2676 SAN ANDRES | E69: GUADALAJARA | F69: 44810 | G69: 1.5 | H69: Cta. 0720129762277 FGP (NO ETIQ) | I69: Transferencia | J69: MTTO DE CAMIONES DE OBRAS | K69: 12,180.00 | L69: 2025-01-24 | M69: 178E3743-05A0-4CCB-8D55-2B9C5DD3FFFE
A70: 65 | B70: Juan Carlos Martinez Garcia | C70: MAGJ950509CG7 | D70: N/P | E70: N/P | F70: 45133 | G70: 1.1 | H70: Cta. 01720129762312 IMTOS. (NO ETIQ) | I70: Transferencia | J70: TONERS PARA OBRAS | K70: 17,169.84 | L70: 2025-01-14 | M70: D8F1DAC6-11C6-49D4-ABA4-377FCBA0EC9B
A71: 66 | B71: Juan Carlos Martinez Garcia | C71: MAGJ950509CG7 | D71: N/P | E71: N/P | F71: 45133 | G71: 1.1 | H71: Cta. 01720129762312 IMTOS. (NO ETIQ) | I71: Transferencia | J71: MEMORIAS, TONERTS Y CONECTORES PARA TESORERIA E INFORMATICA | K71: 12,717.76 | L71: 2025-01-12 | M71: 7A318BDA-B7BA-400F-A537-4FC835CA5745
A72: 67 | B72: Juan Carlos Martinez Garcia | C72: MAGJ950509CG7 | D72: N/P | E72: N/P | F72: 45133 | G72: 1.1 | H72: Cta. 01720129762312 IMTOS. (NO ETIQ) | I72: Transferencia | J72: TONERS PARA SINDUCATURA, OFICIALIA MAYOR, ALUMBRADO Y OBRAS | K72: 20,308.70 | L72: 2025-01-14 | M72: 40471325-A138-4AE5-A675-C09BC4DD5A1E
A73: 68 | B73: Juan Carlos Martinez Garcia | C73: MAGJ950509CG7 | D73: N/P | E73: N/P | F73: 45133 | G73: 1.1 | H73: Cta. 01720129762312 IMTOS. (NO ETIQ) | I73: Transferencia | J73: TONERS PARA OBRAS, DESAR. URBANO PART CIUDADANA, TRANSPARENCIA Y SECRETARIA GENERAL | K73: 14,943.47 | L73: 2025-01-14 | M73: 7CBB90DD-6108-4DFD-9DA5-4E360A364044
A74: 69 | B74: Juan Carlos Martinez Garcia | C74: MAGJ950509CG7 | D74: N/P | E74: N/P | F74: 45133 | G74: 1.1 | H74: Cta. 01720129762312 IMTOS. (NO ETIQ) | I74: Transferencia | J74: ROUTER Y CABLE PARA INFORMATICA | K74: 14,272.64 | L74: 2025-01-24 | M74: 0F50D96D-355A-4E7A-AA1C-C4E456190C13
A75: 70 | B75: Juan Carlos Martinez Garcia | C75: MAGJ950509CG7 | D75: N/P | E75: N/P | F75: 45133 | G75: 1.1 | H75: Cta. 01720129762312 IMTOS. (NO ETIQ) | I75: Transferencia | J75: INSUMOS PARA POLIDEPORTIVO OLIVOS | K75: 26,240.62 | L75: 2025-01-31
A76: 71 | B76: Juan Carlos Martinez Garcia | C76: MAGJ950509CG7 | D76: N/P | E76: N/P | F76: 45133 | G76: 1.1 | H76: Cta. 01720129762312 IMTOS. (NO ETIQ) | I76: Transferencia | J76: ESCRITORIOS, COMPUTADORES Y MATERIALES VARIOS PARA DIFERENTES UNIDADES ADMIVAS | K76: 212,564.00 | L76: 2025-01-31
A77: 72 | B77: Juan Carlos Martinez Garcia | C77: MAGJ950509CG7 | D77: N/P | E77: N/P | F77: 45133 | G77: 1.1 | H77: Cta. 01720129762312 IMTOS. (NO ETIQ) | I77: Transferencia | J77: TONERS PARA CATASTRO | K77: 25,798.40 | L77: 2025-01-31
A78: 73 | B78: Juan Carlos Martinez Garcia | C78: MAGJ950509CG7 | D78: N/P | E78: N/P | F78: 45133 | G78: 1.1 | H78: Cta. 01720129762312 IMTOS. (NO ETIQ) | I78: Transferencia | J78: TINTAS Y TONERS PARA OBRAS Y SEGURIDAD | K78: 30,802.47 | L78: 2025-01-31
A79: 74 | B79: Juan Carlos Martinez Garcia | C79: MAGJ950509CG7 | D79: N/P | E79: N/P | F79: 45133 | G79: 1.1 | H79: Cta. 01720129762312 IMTOS. (NO ETIQ) | I79: Transferencia | J79: COMPUTADORAS LAPTOP ACER PREDATOR HELLOS NEO 16 PARA OBRAS PUBLICAS | K79: 69,600.00 | L79: 2025-01-24 | M79: A071AE59-5765-4B86-BA72-2D0130613CC7
A80: 75 | B80: LABTEC SISTEMAS Y CONTROL | C80: LSC190409LA1 | D80: N/P | E80: N/P | F80: 45120 | G80: 1.1 | H80: Cta. 01720129762312 IMTOS. (NO ETIQ) | I80: Transferencia | J80: ISNTALACION DE INTERNET Y RED PARA PUNTOS PURPURA | K80: 6,960.00 | L80: 2025-01-29 | M80: E3BE26F5-6CFC-49FB-B4B3-2D7100309891
A81: 76 | B81: LUIS OCTAVIO TAVARES CONTRERAS | C81: TACL0112262ZA | D81: N/P | E81: IXTLAHUACAN DE LOS MEMBRILLOS | F81: 45850 | G81: 1.5 | H81: Cta. 0720129762277 FGP (NO ETIQ) | I81: Transferencia | J81: MTTO DE CAMIONES DE OBRAS | K81: 111,104.80 | L81: 2025-01-09 | M81: 61BE5B37-9AB6-4838-AF70-3EC00A61D58A
A82: 77 | B82: LUIS OCTAVIO TAVARES CONTRERAS | C82: TACL0112262ZA | D82: N/P | E82: IXTLAHUACAN DE LOS MEMBRILLOS | F82: 45850 | G82: 1.5 | H82: Cta. 0720129762277 FGP (NO ETIQ) | I82: Transferencia | J82: MTTO DE CAMION DE DESARROLLO SOCIAL | K82: 6,728.00 | L82: 2025-01-09 | M82: CCDA08E4-EDB8-44B0-A5A3-B1B75C65D278
A83: 78 | B83: LUIS OCTAVIO TAVARES CONTRERAS | C83: TACL0112262ZA | D83: N/P | E83: IXTLAHUACAN DE LOS MEMBRILLOS | F83: 45850 | G83: 1.5 | H83: Cta. 0720129762277 FGP (NO ETIQ) | I83: Transferencia | J83: MTTO DE CAMIONES DE ASEO | K83: 70,180.00 | L83: 2025-01-10 | M83: 0954E3BF-C253-4612-9145-2635CE375315
A84: 79 | B84: LUIS OCTAVIO TAVARES CONTRERAS | C84: TACL0112262ZA | D84: N/P | E84: IXTLAHUACAN DE LOS MEMBRILLOS | F84: 45850 | G84: 1.5 | H84: Cta. 0720129762277 FGP (NO ETIQ) | I84: Transferencia | J84: MTTO DE CAMIONES DE OBRAS | K84: 67,870.44 | L84: 2025-01-15 | M84: A49AA0F1-3B09-4AE0-AD7C-EAA2B7658E1F
A85: 80 | B85: LUIS OCTAVIO TAVARES CONTRERAS | C85: TACL0112262ZA | D85: N/P | E85: IXTLAHUACAN DE LOS MEMBRILLOS | F85: 45850 | G85: 1.5 | H85: Cta. 0720129762277 FGP (NO ETIQ) | I85: Transferencia | J85: MTTO DE CAMIONES DE ASEO | K85: 76,467.20 | L85: 2025-01-15 | M85: 216F3532-2858-445B-8F24-BD81178C0647
A86: 81 | B86: LUIS OCTAVIO TAVARES CONTRERAS | C86: TACL0112262ZA | D86: N/P | E86: IXTLAHUACAN DE LOS MEMBRILLOS | F86: 45850 | G86: 1.5 | H86: Cta. 0720129762277 FGP (NO ETIQ) | I86: Transferencia | J86: MTTO DE PIPA DE PARQUES Y JARDINES | K86: 16,878.00 | L86: 2025-01-23 | M86: E4D22A05-4C14-41E8-94D0-EB6E31087630
A87: 82 | B87: LUIS OCTAVIO TAVARES CONTRERAS | C87: TACL0112262ZA | D87: N/P | E87: IXTLAHUACAN DE LOS MEMBRILLOS | F87: 45850 | G87: 1.5 | H87: Cta. 0720129762277 FGP (NO ETIQ) | I87: Transferencia | J87: MTTO DE CAMIONES DE OBRAS PUBLICAS | K87: 85,741.40 | L87: 2025-01-23 | M87: 60440DB9-F5F6-4A1D-B418-B342831DE730
A88: 83 | B88: LUIS OCTAVIO TAVARES CONTRERAS | C88: TACL0112262ZA | D88: N/P | E88: IXTLAHUACAN DE LOS MEMBRILLOS | F88: 45850 | G88: 1.5 | H88: Cta. 0720129762277 FGP (NO ETIQ) | I88: Transferencia | J88: MTTO DE CAMIONES DE ASEO PUBLICO | K88: 101,987.20 | L88: 2025-01-23 | M88: B75A0683-CE34-4DB3-BCE8-BE919722C7EB
A89: 84 | B89: LUIS OCTAVIO TAVARES CONTRERAS | C89: TACL0112262ZA | D89: N/P | E89: IXTLAHUACAN DE LOS MEMBRILLOS | F89: 45850 | G89: 1.5 | H89: Cta. 0720129762277 FGP (NO ETIQ) | I89: Transferencia | J89: FILTROS PARA RETRO DE OBRAS. | K89: 8,808.82 | L89: 2025-01-31 | M89: 7471D041-4340-4EE4-AF52-DE8691AC9481
A90: 85 | B90: LUIS OCTAVIO TAVARES CONTRERAS | C90: TACL0112262ZA | D90: N/P | E90: IXTLAHUACAN DE LOS MEMBRILLOS | F90: 45850 | G90: 1.5 | H90: Cta. 0720129762277 FGP (NO ETIQ) | I90: Transferencia | J90: MTTO DE CAMIONES DE ASEO | K90: 17,252.20 | L90: 2025-01-31
A91: 86 | B91: LUIS OCTAVIO TAVARES CONTRERAS | C91: TACL0112262ZA | D91: N/P | E91: IXTLAHUACAN DE LOS MEMBRILLOS | F91: 45850 | G91: 1.5 | H91: Cta. 0720129762277 FGP (NO ETIQ) | I91: Transferencia | J91: MTTO DE FORD F-150 DE PARQUES Y JARDINES | K91: 5,544.80 | L91: 2025-01-29 | M91: 5B5B7F00-6D2B-42D3-A50A-6523828A4637
A92: 87 | B92: LUIS OCTAVIO TAVARES CONTRERAS | C92: TACL0112262ZA | D92: N/P | E92: IXTLAHUACAN DE LOS MEMBRILLOS | F92: 45850 | G92: 1.5 | H92: Cta. 0720129762277 FGP (NO ETIQ) | I92: Transferencia | J92: MTTO DE CAMIONES DE OBRAS | K92: 70,899.20 | L92: 2025-01-29 | M92: 66F9E7B6-AC36-4A2A-9C76-8A0C237AA586
A93: 88 | B93: LUIS OCTAVIO TAVARES CONTRERAS | C93: TACL0112262ZA | D93: N/P | E93: IXTLAHUACAN DE LOS MEMBRILLOS | F93: 45850 | G93: 2.5 | H93: Cta 01720178360100 FORTAMUN 2025 | I93: Transferencia | J93: MTTO DE VEHICULO DE SEGURIDAD PUBLICA | K93: 28,373.60 | L93: 2025-01-29 | M93: 8E9D800A-DC56-44D3-82EA-E5AB79201786
A94: 89 | B94: LUIS OCTAVIO TAVARES CONTRERAS | C94: TACL0112262ZA | D94: N/P | E94: IXTLAHUACAN DE LOS MEMBRILLOS | F94: 45850 | G94: 1.5 | H94: Cta. 0720129762277 FGP (NO ETIQ) | I94: No Aplica | J94: MTTO DE MOTOBOMBA DE PROTECCION CIVIL | K94: 6,240.80 | L94: 2025-01-31
A95: 90 | B95: MA CRUZ RODRIGUEZ FLORES | C95: ROFC6605037D4 | D95: N/P | E95: IXTLAHUACAN DE LOS MEMBRILLOS | F95: 45850 | G95: 1.1 | H95: Cta. 01720129762312 IMTOS. (NO ETIQ) | I95: Transferencia | J95: REFACCIONES DE CAMIONES DE OBRAS | K95: 60,760.12 | L95: 2025-01-02 | M95: B4248002-52F0-4847-A08C-646926A2CFBD
A96: 91 | B96: MA CRUZ RODRIGUEZ FLORES | C96: ROFC6605037D4 | D96: N/P | E96: IXTLAHUACAN DE LOS MEMBRILLOS | F96: 45850 | G96: 1.1 | H96: Cta. 01720129762312 IMTOS. (NO ETIQ) | I96: Transferencia | J96: REFACCIONES PARA CAMIONES DE ASEO | K96: 59,842.12 | L96: 2025-01-02 | M96: 39E35921-7EA2-4A73-B169-C19C9FE6D578
A97: 92 | B97: MA CRUZ RODRIGUEZ FLORES | C97: ROFC6605037D4 | D97: N/P | E97: IXTLAHUACAN DE LOS MEMBRILLOS | F97: 45850 | G97: 1.1 | H97: Cta. 01720129762312 IMTOS. (NO ETIQ) | I97: Transferencia | J97: REFACCIONES PARA PARQUE VEHICULAR | K97: 55,541.26 | L97: 2025-01-02 | M97: 2A7853DB-752A-4CF1-873D-9D4BC2F82ABB
A98: 93 | B98: MA YOLANDA NAVARRO MARTINEZ | C98: NAMY590111QC6 | D98: N/P | E98: IXTLAHUACAN DE LOS MEMBRILLOS | F98: 45850 | G98: 1.1 | H98: Cta. 01720129762312 IMTOS. (NO ETIQ) | I98: Transferencia | J98: LLAVE PARA VEHICULO DE DESARROLLO SOCIAL | K98: 6,380.00 | L98: 2025-01-15 | M98: B886855B-4139-4D5D-95BA-39B6B2615FD2
A99: 94 | B99: MAQUINARIA Y HERRAMIENTAS PROFESIONALES DE ZAMORA | C99: MHP880324EQ6 | D99: AV 5 DE MAYO SUR 564 JARDINES DE CATEDRAL | E99: ZAMORA | F99: 59670 | G99: 1.1 | H99: Cta. 01720129762312 IMTOS. (NO ETIQ) | I99: Transferencia | J99: DESBROZADORAS Y SOPLADORAS PARA SERVICIOS MEDICOS, ATEQUIZA, SANTA ROSA Y BUENAVISTA | K99: 371,335.12 | L99: 2025-01-29 | M99: DFCF9AD9-8B00-413B-906E-DA9EC9F4AEC3
A100: 95 | B100: Maria Guadalupe Hernandez Garcia | C100: HEGG730212212 | D100: N/P | E100: N/P | F100: 45900 | G100: 1.1 | H100: Cta. 01720129762312 IMTOS. (NO ETIQ) | I100: Transferencia | J100: ANALISI CLINICOS EN CLINICA DE SMM DEL 24 DIC 2024 AL 24 ENERO 2025 | K100: 10,863.40 | L100: 2025-01-29 | M100: 56583485-F5FB-4FC5-94D3-002767CD1D13
A101: 96 | B101: MARIA TERESA RAMIREZ ROSAS | C101: RART590719J39 | D101: AV. SANTIAGO 1 ENTRO | E101: IXTLAHUACAN DE LOS MEMBRILLOS | F101: 45850 | G101: 1.1 | H101: Cta. 01720129762312 IMTOS. (NO ETIQ) | I101: Cheque | J101: PINTURA Y ACCESORIOS PARA SERVICIOS PUBLICOS | K101: 96,101.15 | L101: 2025-01-28 | M101: FDA12581-7148-45B3-902D-044A176FBD9D
A102: 97 | B102: MIGUEL ENCISO DIAZ | C102: EIDM6709242Z5 | D102: N/P | E102: IXTLAHUACAN DE LOS MEMBRILLOS | F102: 45850 | G102: 1.1 | H102: Cta. 01720129762312 IMTOS. (NO ETIQ) | I102: Transferencia | J102: ROSCAS DE REYES PARA PERSONAL DE PRESIDENCIA | K102: 6,150.00 | L102: 2025-01-08 | M102: AAA1BAF9-B8C9-48DC-95EF-CFA0D4CD0B73
A103: 98 | B103: MONUMA JURIDICOS | C103: MJU190624S29 | D103: MANUEL ACUÑA 295210 PRADOS PROVIDENCIA | E103: GUADALAJARA | F103: 44670 | G103: 1.1 | H103: Cta. 01720129762312 IMTOS. (NO ETIQ) | I103: Transferencia | J103: ASESORAMIENTO Y CAPACITACION EN ADMINISTRACIONES PUBLICAS DEL MES DE ENERO 25 | K103: 53,360.00 | L103: 2025-01-07 | M103: 74BDBC65-EF05-45EE-90B9-FC9BE7F85524
A104: 99 | B104: Oscar Alejandro Chavez Jauregui | C104: CAJO720502MD2 | D104: N/P | E104: N/P | F104: 45608 | G104: 1.1 | H104: Cta. 01720129762312 IMTOS. (NO ETIQ) | I104: Transferencia | J104: PRUEBAS DE COVID E INFLUENZA PARA CLINICA DE SMM | K104: 27,840.00 | L104: 2025-01-28 | M104: AAA1E608-4767-46E3-BD09-C23019C5E982
A105: 100 | B105: Pablo Daniel Ramirez Hernandez | C105: RAHP6807206X1 | D105: PRIVADA ZARAGOZA 8 CENTRO | E105: IXTLAHUACAN DE LOS MEMBRILLOS | F105: 45850 | G105: 1.1 | H105: Cta. 01720129762312 IMTOS. (NO ETIQ) | I105: Transferencia | J105: RENTA DE MUEBLE PARA PARTIR ROSCA EN LA PLAZA PRINCIPAL | K105: 5,405.60 | L105: 2025-01-09 | M105: 6F12E857-49FE-46D4-B1C4-137E77145BAA
A106: 101 | B106: Proveedora de Rines y Llantas Monterry sa de cv | C106: PRL1103158E7 | D106: N/P | E106: N/P | F106: 64820 | G106: 1.1 | H106: Cta. 01720129762312 IMTOS. (NO ETIQ) | I106: Transferencia | J106: LLANTAS PARA VEHICULO DE PROTECCION CIVIL | K106: 13,720.00 | L106: 2025-01-13 | M106: F96B80EB-00CF-4147-9CD9-068C8C871A3B
A107: 102 | B107: Proveedora de Rines y Llantas Monterry sa de cv | C107: PRL1103158E7 | D107: N/P | E107: N/P | F107: 64820 | G107: 1.1 | H107: Cta. 01720129762312 IMTOS. (NO ETIQ) | I107: Transferencia | J107: LLANTAS PARA VEHICULOS DE DIFERENTES AREAS | K107: 156,180.00 | L107: 2025-01-29 | M107: F27CCE2A-AA2D-418C-AD6D-B9E3A7E7FE4A
A108: 103 | B108: Qualitas Compañia de Seguros, s.a. de c.v. | C108: QCS931209G49 | D108: N/P | E108: N/P | F108: 5200 | G108: 1.1 | H108: Cta. 01720129762312 IMTOS. (NO ETIQ) | I108: Transferencia | J108: SEGURO DE CAMION DE OBRAS | K108: 41,850.47 | L108: 2025-01-27 | M108: D9FC9252-B045-4FA4-8E28-944A8F55CAFD
A109: 104 | B109: RAFAEL EDURADO VENEGAS DELGADO | C109: VEDR610616RYA | D109: AV TERRANOVA 676208 PRADOS DE PROVIDENCIA | E109: GUADALAJARA | F109: 44670 | G109: 1.1 | H109: Cta. 01720129762312 IMTOS. (NO ETIQ) | I109: No Aplica | J109: APOYO DE GASTOS MEDICOS PARA ELEMENTO DE SEGURIDAD PUBLICA | K109: 11,000.00 | L109: 2025-01-31
A110: 105 | B110: Ramon Ramirez Hernandez | C110: RAHR630324M21 | D110: ZARAGOZA CENTRO | E110: IXTLAHUACAN DE LOS MEMBRILLOS | F110: 45850 | G110: 1.1 | H110: Cta. 01720129762312 IMTOS. (NO ETIQ) | I110: Transferencia | J110: MATERIALES VARIOS DE OFICINA | K110: 7,968.84 | L110: 2025-01-31 | M110: EDE9666F-6C3D-4AF9-80BF-4815D5E48072
A111: 106 | B111: Ramon Ramirez Hernandez | C111: RAHR630324M21 | D111: ZARAGOZA CENTRO | E111: IXTLAHUACAN DE LOS MEMBRILLOS | F111: 45850 | G111: 1.1 | H111: Cta. 01720129762312 IMTOS. (NO ETIQ) | I111: Transferencia | J111: MATERIALES VARIOS DE OFICINA | K111: 5,169.40 | L111: 2025-01-30 | M111: B3950770-3383-459A-9FB2-619D0ED4FAA0
A112: 107 | B112: Ramon Ramirez Hernandez | C112: RAHR630324M21 | D112: ZARAGOZA CENTRO | E112: IXTLAHUACAN DE LOS MEMBRILLOS | F112: 45850 | G112: 1.1 | H112: Cta. 01720129762312 IMTOS. (NO ETIQ) | I112: Transferencia | J112: MATERIALES VARIOS DE OFICINA | K112: 9,915.60 | L112: 2025-01-31 | M112: B888DAC1-0FB5-41B3-BFE9-E92F520E05CE
A113: 108 | B113: RUBEN ARELLANO ULLOA | C113: AEUR8509011E2 | D113: N/P | E113: N/P | F113: 44800 | G113: 1.1 | H113: Cta. 01720129762312 IMTOS. (NO ETIQ) | I113: Cheque | J113: MTTO DE VEHICULO ASIGNADO A ALUMBRADO PUBLICO | K113: 33,408.00 | L113: 2025-01-16 | M113: C79EEA76-5634-43B9-B5B1-197574507A2F
A114: 109 | B114: SAFER GRUPO PUBLICITARIO | C114: SGP210319PC0 | D114: N/P | E114: N/P | F114: 45050 | G114: 1.1 | H114: Cta. 01720129762312 IMTOS. (NO ETIQ) | I114: No Aplica | J114: ORGANIZACION DE EVENTO CULTURAL | K114: 99,110.81 | L114: 2025-01-31
A115: 110 | B115: SUSANA BARON PADILLA | C115: BAPS930411JG1 | D115: N/P | E115: N/P | F115: 45920 | G115: 1.1 | H115: Cta. 01720129762312 IMTOS. (NO ETIQ) | I115: Transferencia | J115: MTTO DESBROZADORAS Y MOTOSIERRAS DE PARQUESY JARDINES | K115: 29,091.64 | L115: 2025-01-10 | M115: 90B7C181-948C-4906-A3FB-001C4033ADD8
A116: 111 | B116: SUSANA BARON PADILLA | C116: BAPS930411JG1 | D116: N/P | E116: N/P | F116: 45920 | G116: 1.1 | H116: Cta. 01720129762312 IMTOS. (NO ETIQ) | I116: Transferencia | J116: MTTO DE DESBROZADORAS Y MOTOSIERRAS DE PARQUES Y JARDINES | K116: 29,271.44 | L116: 2025-01-16 | M116: B5180C82-C04C-4B4C-88ED-A7935B566584
A117: 112 | B117: SUSANA BARON PADILLA | C117: BAPS930411JG1 | D117: N/P | E117: N/P | F117: 45920 | G117: 1.1 | H117: Cta. 01720129762312 IMTOS. (NO ETIQ) | I117: Transferencia | J117: BALONES DE BASQUETBOL PARA EQUIPO MUNICIPAL QUE PARTICIPARA EN ESTATAL | K117: 23,200.00 | L117: 2025-01-31 | M117: FA3B9B18-DED3-4B6E-88B5-5E8E7DC27101
A118: 113 | B118: TECNICOS MEDICOS | C118: TME010316LT7 | D118: PABLO CASALS 956 PROVIDENCIA | E118: GUADALAJARA | F118: 44630 | G118: 1.1 | H118: Cta. 01720129762312 IMTOS. (NO ETIQ) | I118: Cheque | J118: APOYO DE GASTOS MEDICOS PARA PERSONA DE BAJOS RECURSOS | K118: 6,000.00 | L118: 2025-01-08 | M118: D1629F0E-B873-4090-8893-3CEC7BCDA442
A119: 114 | B119: TV Rey de Occidente SA de CV | C119: TRO950518DM2 | D119: N/P | E119: N/P | F119: 59000 | G119: 1.1 | H119: Cta. 01720129762312 IMTOS. (NO ETIQ) | I119: Transferencia | J119: INTERNET DEL MES DE ENERO 2025 | K119: 40,645.75 | L119: 2025-01-21 | M119: 05E580EB-6F11-421D-9005-4F101525E40E
A120: 115 | B120: UNIDAD DE CIRUGIA ESTETICA PROVIDENCIA | C120: UCE1212177Y5 | D120: N/P | E120: N/P | F120: 44680 | G120: 1.1 | H120: Cta. 01720129762312 IMTOS. (NO ETIQ) | I120: Transferencia | J120: APOYO DE GASTOS MEDICOS PARA EMPLEADA DE INFORMATICA | K120: 40,000.00 | L120: 2025-01-22 | M120: 5acaf19f-f2d8-42f5-b509-c36fc175554e
A121: 116 | B121: Urbanizadora y Pavimentadora MONLE SA | C121: UPM1608305A4 | D121: N/P | E121: N/P | F121: 44270 | G121: 1.1 | H121: Cta. 01720129762312 IMTOS. (NO ETIQ) | I121: Transferencia | J121: ADAPTACION DE CONSULTORIO DENTAL EN EL POLIDEPORTIVO | K121: 37,000.00 | L121: 2025-01-10 | M121: B34C4508-5139-4417-854E-A7AE9A28A168
A126: Bajo protesta de decir verdad declaramos que los Estados Financieros y sus Notas son razonablemente correctos y responsabilidad del emisor.
C132: LIC. JOSE HERIBERTO GARCIA MURILLO PRESIDENTE MUNICIPAL | F132: LAE BRUNO GERMAN ENCISO GUILLEN ENCRAGADO DE LA HACIENDA MUNICIPAL | J132: ASEJ2025-01-19-03-2025-1

Sheet F11
A1: MUNICIPIO IXTLAHUACÁN DE LOS MEMBRILLOS
A2: INFORME SOBRE PASIVOS CONTINGENTES
A3: AL 31 DE ENERO DE 2025
A4: (Cifras en pesos)
A5: DESCRIPCIÓN | AE5: IMPORTE
A6: ROSA NAVARRO SIORDIA (LAUDO) | AE6: 657,806.25
A8: MA. DEL REFUGIO RAMIREZ RIVERA (MAGDALENO PELESTOR) (APORT. PENSIONES ESTADO, GASTOS FUNERARIOS) | AE8: 10,148.40
A10: MAGALY LILIANA GOMEZ PEREZ (LAUDO) (1 AÑO DE SUELDO E INTERESES AL 2% MENSUAL HASTA QUE SE LIQUIDE) | AE10: 0.00
A12: IGNACIO CEJA (SE ENCUENTRA PENDIENTE DE LAUDO NO OFRECIERON PRUEBAS) | AE12: 0.00
A14: OLGA KARINA ENCISO SIORDIA (AUN NO SE PRESENTA AUDENCIA DE DESAHOGO) | AE14: 0.00
A16: MIGUEL ANGEL PADILLA RODRIGUEZ (SENTENCIA 29 AGOSTO 2016) | AE16: 0.00
A18: JESUS ORTES SANTILLAS (SE ACABA DE DICTAR SENTENCIA EL 26 NOV. 2019, AUN NO SE NOTIFICA) | AE18: 0.00
A20: JUAN PABLO REAL MARTINEZ (SENTENCIA 30 MARZO 2017) | AE20: 0.00
A22: OLGA KARINA ENCISO SIORDIA (AUN NO SE PRESENTA AUDENCIA DE DESAHOGO) | AE22: 0.00
A24: SUMA TOTAL | AE24: =SUM(AE6:AE23) -> 667,954.65
A28: Bajo protesta de decir verdad declaramos que los Estados Financieros y sus Notas son razonablemente correctos y responsabilidad del emisor.
A36: LIC. JOSE HERIBERTO GARCIA MURILLO PRESIDENTE MUNICIPAL
A44: LAE BRUNO GERMAN ENCISO GUILLEN ENCRAGADO DE LA HACIENDA MUNICIPAL
A48: ASEJ2025-01-19-03-2025-1
A207: Bajo protesta de decir verdad declaramos que los Estados Financieros y sus notas, son razonablemente correctos y resposabilidad del emisor
B210: =Validacion!A7 -> LIC. JOSE HERIBERTO GARCIA MURILLO | W210: =Validacion!A9 -> LAE BRUNO GERMAN ENCISO GUILLEN
B212: Presidente Municipal o Titular del ente público | W212: Encargado de la Hacienda Municipal o Responsable de las finanzas del ente público

Sheet F13 (hidden)
A1: ='F9-EDP'!A1:BJ1 -> MUNICIPIO IXTLAHUACÁN DE LOS MEMBRILLOS
A2: AVANCE DE PROGRAMAS Y/O PROCESOS CONCLUIDOS
A3: ='F9-EDP'!A3:BJ3 -> DEL 1° DE ENERO AL 31 DE ENERO DE 2025
A4: (Cifras en pesos)
A5: ID | B5: Denominación del programa | C5: Tipo de programa | D5: Finalidad | E5: Función | F5: Sub-función | G5: Nivel MIR | H5: Código del nivel MIR | I5: Resumen Narrativo (objetivos) | J5: Nombre del indicador | K5: Método de cálculo del indicador | L5: Valor meta programado 1 (Numerador) | M5: Valor meta programado 2 (Denominador) | N5: Frecuencia de medición del indicador | O5: Tipo de indicador | P5: Capítulo 1000 (Modificado) | Q5: Capítulo 2000 (Modificado) | R5: Capítulo 3000 (Modificado) | S5: Capítulo 4000 (Modificado) | T5: Capítulo 5000 (Modificado) | U5: Capítulo 6000 (Modificado) | V5: Capítulo 7000 (Modificado) | W5: Capítulo 8000 (Modificado) | X5: Capítulo 9000 (Modificado) | Y5: Avance del Valor programado 1 (Numerador) | Z5: Avance del Valor programado 2 (Denominador) | AA5: Avance del Capítulo 1000 (Devengado) | AB5: Avance del Capítulo 2000 (Devengado) | AC5: Avance del Capítulo 3000 (Devengado) | AD5: Avance del Capítulo 4000 (Devengado) | AE5: Avance del Capítulo 5000 (Devengado) | AF5: Avance del Capítulo 6000 (Devengado) | AG5: Avance del Capítulo 7000 (Devengado) | AH5: Avance del Capítulo 8000 (Devengado) | AI5: Avance del Capítulo 9000 (Devengado)
P6: =SUM(P7:P1006) -> 0.00 | Q6: 0.00 | R6: 0.00 | S6: 0.00 | T6: 0.00 | U6: 0.00 | V6: 0.00 | W6: 0.00 | X6: 0.00 | AA6: =SUM(AA7:AA1006) -> 0.00 | AB6: 0.00 | AC6: 0.00 | AD6: 0.00 | AE6: 0.00 | AF6: 0.00 | AG6: 0.00 | AH6: 0.00 | AI6: 0.00
A7: =IF(B7>0,1,"") ->  | D7: =IF(F7="","",INDEX(EF!$A$2:$A$112,MATCH(F7,EF!$C$2:$C$112,0))) ->  | E7: =IF(F7="","",INDEX(EF!$B$2:$B$112,MATCH(F7,EF!$C$2:$C$112,0))) -> 
A8: =IF(B8>0,A7+1,"") ->  | D8: =IF(F8="","",INDEX(EF!$A$2:$A$112,MATCH(F8,EF!$C$2:$C$112,0))) ->  | E8: =IF(F8="","",INDEX(EF!$B$2:$B$112,MATCH(F8,EF!$C$2:$C$112,0))) -> 
D9: =IF(F9="","",INDEX(EF!$A$2:$A$112,MATCH(F9,EF!$C$2:$C$112,0))) ->  | E9: =IF(F9="","",INDEX(EF!$B$2:$B$112,MATCH(F9,EF!$C$2:$C$112,0))) -> 
D10: =IF(F10="","",INDEX(EF!$A$2:$A$112,MATCH(F10,EF!$C$2:$C$112,0))) ->  | E10: =IF(F10="","",INDEX(EF!$B$2:$B$112,MATCH(F10,EF!$C$2:$C$112,0))) -> 
D11: =IF(F11="","",INDEX(EF!$A$2:$A$112,MATCH(F11,EF!$C$2:$C$112,0))) ->  | E11: =IF(F11="","",INDEX(EF!$B$2:$B$112,MATCH(F11,EF!$C$2:$C$112,0))) -> 
D12: =IF(F12="","",INDEX(EF!$A$2:$A$112,MATCH(F12,EF!$C$2:$C$112,0))) ->  | E12: =IF(F12="","",INDEX(EF!$B$2:$B$112,MATCH(F12,EF!$C$2:$C$112,0))) -> 
D13: =IF(F13="","",INDEX(EF!$A$2:$A$112,MATCH(F13,EF!$C$2:$C$112,0))) ->  | E13: =IF(F13="","",INDEX(EF!$B$2:$B$112,MATCH(F13,EF!$C$2:$C$112,0))) -> 
D14: =IF(F14="","",INDEX(EF!$A$2:$A$112,MATCH(F14,EF!$C$2:$C$112,0))) ->  | E14: =IF(F14="","",INDEX(EF!$B$2:$B$112,MATCH(F14,EF!$C$2:$C$112,0))) -> 
D15: =IF(F15="","",INDEX(EF!$A$2:$A$112,MATCH(F15,EF!$C$2:$C$112,0))) ->  | E15: =IF(F15="","",INDEX(EF!$B$2:$B$112,MATCH(F15,EF!$C$2:$C$112,0))) -> 
D16: =IF(F16="","",INDEX(EF!$A$2:$A$112,MATCH(F16,EF!$C$2:$C$112,0))) ->  | E16: =IF(F16="","",INDEX(EF!$B$2:$B$112,MATCH(F16,EF!$C$2:$C$112,0))) -> 
D17: =IF(F17="","",INDEX(EF!$A$2:$A$112,MATCH(F17,EF!$C$2:$C$112,0))) ->  | E17: =IF(F17="","",INDEX(EF!$B$2:$B$112,MATCH(F17,EF!$C$2:$C$112,0))) -> 
D18: =IF(F18="","",INDEX(EF!$A$2:$A$112,MATCH(F18,EF!$C$2:$C$112,0))) ->  | E18: =IF(F18="","",INDEX(EF!$B$2:$B$112,MATCH(F18,EF!$C$2:$C$112,0))) -> 
D19: =IF(F19="","",INDEX(EF!$A$2:$A$112,MATCH(F19,EF!$C$2:$C$112,0))) ->  | E19: =IF(F19="","",INDEX(EF!$B$2:$B$112,MATCH(F19,EF!$C$2:$C$112,0))) -> 
D20: =IF(F20="","",INDEX(EF!$A$2:$A$112,MATCH(F20,EF!$C$2:$C$112,0))) ->  | E20: =IF(F20="","",INDEX(EF!$B$2:$B$112,MATCH(F20,EF!$C$2:$C$112,0))) -> 
D21: =IF(F21="","",INDEX(EF!$A$2:$A$112,MATCH(F21,EF!$C$2:$C$112,0))) ->  | E21: =IF(F21="","",INDEX(EF!$B$2:$B$112,MATCH(F21,EF!$C$2:$C$112,0))) -> 
D22: =IF(F22="","",INDEX(EF!$A$2:$A$112,MATCH(F22,EF!$C$2:$C$112,0))) ->  | E22: =IF(F22="","",INDEX(EF!$B$2:$B$112,MATCH(F22,EF!$C$2:$C$112,0))) -> 
D23: =IF(F23="","",INDEX(EF!$A$2:$A$112,MATCH(F23,EF!$C$2:$C$112,0))) ->  | E23: =IF(F23="","",INDEX(EF!$B$2:$B$112,MATCH(F23,EF!$C$2:$C$112,0))) -> 
D24: =IF(F24="","",INDEX(EF!$A$2:$A$112,MATCH(F24,EF!$C$2:$C$112,0))) ->  | E24: =IF(F24="","",INDEX(EF!$B$2:$B$112,MATCH(F24,EF!$C$2:$C$112,0))) -> 
D25: =IF(F25="","",INDEX(EF!$A$2:$A$112,MATCH(F25,EF!$C$2:$C$112,0))) ->  | E25: =IF(F25="","",INDEX(EF!$B$2:$B$112,MATCH(F25,EF!$C$2:$C$112,0))) -> 
D26: =IF(F26="","",INDEX(EF!$A$2:$A$112,MATCH(F26,EF!$C$2:$C$112,0))) ->  | E26: =IF(F26="","",INDEX(EF!$B$2:$B$112,MATCH(F26,EF!$C$2:$C$112,0))) -> 
D27: =IF(F27="","",INDEX(EF!$A$2:$A$112,MATCH(F27,EF!$C$2:$C$112,0))) ->  | E27: =IF(F27="","",INDEX(EF!$B$2:$B$112,MATCH(F27,EF!$C$2:$C$112,0))) -> 
D28: =IF(F28="","",INDEX(EF!$A$2:$A$112,MATCH(F28,EF!$C$2:$C$112,0))) ->  | E28: =IF(F28="","",INDEX(EF!$B$2:$B$112,MATCH(F28,EF!$C$2:$C$112,0))) -> 
D29: =IF(F29="","",INDEX(EF!$A$2:$A$112,MATCH(F29,EF!$C$2:$C$112,0))) ->  | E29: =IF(F29="","",INDEX(EF!$B$2:$B$112,MATCH(F29,EF!$C$2:$C$112,0))) -> 
D30: =IF(F30="","",INDEX(EF!$A$2:$A$112,MATCH(F30,EF!$C$2:$C$112,0))) ->  | E30: =IF(F30="","",INDEX(EF!$B$2:$B$112,MATCH(F30,EF!$C$2:$C$112,0))) -> 
D31: =IF(F31="","",INDEX(EF!$A$2:$A$112,MATCH(F31,EF!$C$2:$C$112,0))) ->  | E31: =IF(F31="","",INDEX(EF!$B$2:$B$112,MATCH(F31,EF!$C$2:$C$112,0))) -> 
D32: =IF(F32="","",INDEX(EF!$A$2:$A$112,MATCH(F32,EF!$C$2:$C$112,0))) ->  | E32: =IF(F32="","",INDEX(EF!$B$2:$B$112,MATCH(F32,EF!$C$2:$C$112,0))) -> 
D33: =IF(F33="","",INDEX(EF!$A$2:$A$112,MATCH(F33,EF!$C$2:$C$112,0))) ->  | E33: =IF(F33="","",INDEX(EF!$B$2:$B$112,MATCH(F33,EF!$C$2:$C$112,0))) -> 
D34: =IF(F34="","",INDEX(EF!$A$2:$A$112,MATCH(F34,EF!$C$2:$C$112,0))) ->  | E34: =IF(F34="","",INDEX(EF!$B$2:$B$112,MATCH(F34,EF!$C$2:$C$112,0))) -> 
D35: =IF(F35="","",INDEX(EF!$A$2:$A$112,MATCH(F35,EF!$C$2:$C$112,0))) ->  | E35: =IF(F35="","",INDEX(EF!$B$2:$B$112,MATCH(F35,EF!$C$2:$C$112,0))) -> 
D36: =IF(F36="","",INDEX(EF!$A$2:$A$112,MATCH(F36,EF!$C$2:$C$112,0))) ->  | E36: =IF(F36="","",INDEX(EF!$B$2:$B$112,MATCH(F36,EF!$C$2:$C$112,0))) -> 
D37: =IF(F37="","",INDEX(EF!$A$2:$A$112,MATCH(F37,EF!$C$2:$C$112,0))) ->  | E37: =IF(F37="","",INDEX(EF!$B$2:$B$112,MATCH(F37,EF!$C$2:$C$112,0))) -> 
D38: =IF(F38="","",INDEX(EF!$A$2:$A$112,MATCH(F38,EF!$C$2:$C$112,0))) ->  | E38: =IF(F38="","",INDEX(EF!$B$2:$B$112,MATCH(F38,EF!$C$2:$C$112,0))) -> 
D39: =IF(F39="","",INDEX(EF!$A$2:$A$112,MATCH(F39,EF!$C$2:$C$112,0))) ->  | E39: =IF(F39="","",INDEX(EF!$B$2:$B$112,MATCH(F39,EF!$C$2:$C$112,0))) -> 
D40: =IF(F40="","",INDEX(EF!$A$2:$A$112,MATCH(F40,EF!$C$2:$C$112,0))) ->  | E40: =IF(F40="","",INDEX(EF!$B$2:$B$112,MATCH(F40,EF!$C$2:$C$112,0))) -> 
D41: =IF(F41="","",INDEX(EF!$A$2:$A$112,MATCH(F41,EF!$C$2:$C$112,0))) ->  | E41: =IF(F41="","",INDEX(EF!$B$2:$B$112,MATCH(F41,EF!$C$2:$C$112,0))) -> 
D42: =IF(F42="","",INDEX(EF!$A$2:$A$112,MATCH(F42,EF!$C$2:$C$112,0))) ->  | E42: =IF(F42="","",INDEX(EF!$B$2:$B$112,MATCH(F42,EF!$C$2:$C$112,0))) -> 
D43: =IF(F43="","",INDEX(EF!$A$2:$A$112,MATCH(F43,EF!$C$2:$C$112,0))) ->  | E43: =IF(F43="","",INDEX(EF!$B$2:$B$112,MATCH(F43,EF!$C$2:$C$112,0))) -> 
D44: =IF(F44="","",INDEX(EF!$A$2:$A$112,MATCH(F44,EF!$C$2:$C$112,0))) ->  | E44: =IF(F44="","",INDEX(EF!$B$2:$B$112,MATCH(F44,EF!$C$2:$C$112,0))) -> 
D45: =IF(F45="","",INDEX(EF!$A$2:$A$112,MATCH(F45,EF!$C$2:$C$112,0))) ->  | E45: =IF(F45="","",INDEX(EF!$B$2:$B$112,MATCH(F45,EF!$C$2:$C$112,0))) -> 
D46: =IF(F46="","",INDEX(EF!$A$2:$A$112,MATCH(F46,EF!$C$2:$C$112,0))) ->  | E46: =IF(F46="","",INDEX(EF!$B$2:$B$112,MATCH(F46,EF!$C$2:$C$112,0))) -> 
D47: =IF(F47="","",INDEX(EF!$A$2:$A$112,MATCH(F47,EF!$C$2:$C$112,0))) ->  | E47: =IF(F47="","",INDEX(EF!$B$2:$B$112,MATCH(F47,EF!$C$2:$C$112,0))) -> 
D48: =IF(F48="","",INDEX(EF!$A$2:$A$112,MATCH(F48,EF!$C$2:$C$112,0))) ->  | E48: =IF(F48="","",INDEX(EF!$B$2:$B$112,MATCH(F48,EF!$C$2:$C$112,0))) -> 
D49: =IF(F49="","",INDEX(EF!$A$2:$A$112,MATCH(F49,EF!$C$2:$C$112,0))) ->  | E49: =IF(F49="","",INDEX(EF!$B$2:$B$112,MATCH(F49,EF!$C$2:$C$112,0))) -> 
D50: =IF(F50="","",INDEX(EF!$A$2:$A$112,MATCH(F50,EF!$C$2:$C$112,0))) ->  | E50: =IF(F50="","",INDEX(EF!$B$2:$B$112,MATCH(F50,EF!$C$2:$C$112,0))) -> 
D51: =IF(F51="","",INDEX(EF!$A$2:$A$112,MATCH(F51,EF!$C$2:$C$112,0))) ->  | E51: =IF(F51="","",INDEX(EF!$B$2:$B$112,MATCH(F51,EF!$C$2:$C$112,0))) -> 
D52: =IF(F52="","",INDEX(EF!$A$2:$A$112,MATCH(F52,EF!$C$2:$C$112,0))) ->  | E52: =IF(F52="","",INDEX(EF!$B$2:$B$112,MATCH(F52,EF!$C$2:$C$112,0))) -> 
D53: =IF(F53="","",INDEX(EF!$A$2:$A$112,MATCH(F53,EF!$C$2:$C$112,0))) ->  | E53: =IF(F53="","",INDEX(EF!$B$2:$B$112,MATCH(F53,EF!$C$2:$C$112,0))) -> 
D54: =IF(F54="","",INDEX(EF!$A$2:$A$112,MATCH(F54,EF!$C$2:$C$112,0))) ->  | E54: =IF(F54="","",INDEX(EF!$B$2:$B$112,MATCH(F54,EF!$C$2:$C$112,0))) -> 
D55: =IF(F55="","",INDEX(EF!$A$2:$A$112,MATCH(F55,EF!$C$2:$C$112,0))) ->  | E55: =IF(F55="","",INDEX(EF!$B$2:$B$112,MATCH(F55,EF!$C$2:$C$112,0))) -> 
D56: =IF(F56="","",INDEX(EF!$A$2:$A$112,MATCH(F56,EF!$C$2:$C$112,0))) ->  | E56: =IF(F56="","",INDEX(EF!$B$2:$B$112,MATCH(F56,EF!$C$2:$C$112,0))) -> 
D57: =IF(F57="","",INDEX(EF!$A$2:$A$112,MATCH(F57,EF!$C$2:$C$112,0))) ->  | E57: =IF(F57="","",INDEX(EF!$B$2:$B$112,MATCH(F57,EF!$C$2:$C$112,0))) -> 
D58: =IF(F58="","",INDEX(EF!$A$2:$A$112,MATCH(F58,EF!$C$2:$C$112,0))) ->  | E58: =IF(F58="","",INDEX(EF!$B$2:$B$112,MATCH(F58,EF!$C$2:$C$112,0))) -> 
D59: =IF(F59="","",INDEX(EF!$A$2:$A$112,MATCH(F59,EF!$C$2:$C$112,0))) ->  | E59: =IF(F59="","",INDEX(EF!$B$2:$B$112,MATCH(F59,EF!$C$2:$C$112,0))) -> 
D60: =IF(F60="","",INDEX(EF!$A$2:$A$112,MATCH(F60,EF!$C$2:$C$112,0))) ->  | E60: =IF(F60="","",INDEX(EF!$B$2:$B$112,MATCH(F60,EF!$C$2:$C$112,0))) -> 
D61: =IF(F61="","",INDEX(EF!$A$2:$A$112,MATCH(F61,EF!$C$2:$C$112,0))) ->  | E61: =IF(F61="","",INDEX(EF!$B$2:$B$112,MATCH(F61,EF!$C$2:$C$112,0))) -> 
D62: =IF(F62="","",INDEX(EF!$A$2:$A$112,MATCH(F62,EF!$C$2:$C$112,0))) ->  | E62: =IF(F62="","",INDEX(EF!$B$2:$B$112,MATCH(F62,EF!$C$2:$C$112,0))) -> 
D63: =IF(F63="","",INDEX(EF!$A$2:$A$112,MATCH(F63,EF!$C$2:$C$112,0))) ->  | E63: =IF(F63="","",INDEX(EF!$B$2:$B$112,MATCH(F63,EF!$C$2:$C$112,0))) -> 
D64: =IF(F64="","",INDEX(EF!$A$2:$A$112,MATCH(F64,EF!$C$2:$C$112,0))) ->  | E64: =IF(F64="","",INDEX(EF!$B$2:$B$112,MATCH(F64,EF!$C$2:$C$112,0))) -> 
D65: =IF(F65="","",INDEX(EF!$A$2:$A$112,MATCH(F65,EF!$C$2:$C$112,0))) ->  | E65: =IF(F65="","",INDEX(EF!$B$2:$B$112,MATCH(F65,EF!$C$2:$C$112,0))) -> 
D66: =IF(F66="","",INDEX(EF!$A$2:$A$112,MATCH(F66,EF!$C$2:$C$112,0))) ->  | E66: =IF(F66="","",INDEX(EF!$B$2:$B$112,MATCH(F66,EF!$C$2:$C$112,0))) -> 
D67: =IF(F67="","",INDEX(EF!$A$2:$A$112,MATCH(F67,EF!$C$2:$C$112,0))) ->  | E67: =IF(F67="","",INDEX(EF!$B$2:$B$112,MATCH(F67,EF!$C$2:$C$112,0))) -> 
D68: =IF(F68="","",INDEX(EF!$A$2:$A$112,MATCH(F68,EF!$C$2:$C$112,0))) ->  | E68: =IF(F68="","",INDEX(EF!$B$2:$B$112,MATCH(F68,EF!$C$2:$C$112,0))) -> 
D69: =IF(F69="","",INDEX(EF!$A$2:$A$112,MATCH(F69,EF!$C$2:$C$112,0))) ->  | E69: =IF(F69="","",INDEX(EF!$B$2:$B$112,MATCH(F69,EF!$C$2:$C$112,0))) -> 
D70: =IF(F70="","",INDEX(EF!$A$2:$A$112,MATCH(F70,EF!$C$2:$C$112,0))) ->  | E70: =IF(F70="","",INDEX(EF!$B$2:$B$112,MATCH(F70,EF!$C$2:$C$112,0))) -> 
D71: =IF(F71="","",INDEX(EF!$A$2:$A$112,MATCH(F71,EF!$C$2:$C$112,0))) ->  | E71: =IF(F71="","",INDEX(EF!$B$2:$B$112,MATCH(F71,EF!$C$2:$C$112,0))) -> 
D72: =IF(F72="","",INDEX(EF!$A$2:$A$112,MATCH(F72,EF!$C$2:$C$112,0))) ->  | E72: =IF(F72="","",INDEX(EF!$B$2:$B$112,MATCH(F72,EF!$C$2:$C$112,0))) -> 
D73: =IF(F73="","",INDEX(EF!$A$2:$A$112,MATCH(F73,EF!$C$2:$C$112,0))) ->  | E73: =IF(F73="","",INDEX(EF!$B$2:$B$112,MATCH(F73,EF!$C$2:$C$112,0))) -> 
D74: =IF(F74="","",INDEX(EF!$A$2:$A$112,MATCH(F74,EF!$C$2:$C$112,0))) ->  | E74: =IF(F74="","",INDEX(EF!$B$2:$B$112,MATCH(F74,EF!$C$2:$C$112,0))) -> 
D75: =IF(F75="","",INDEX(EF!$A$2:$A$112,MATCH(F75,EF!$C$2:$C$112,0))) ->  | E75: =IF(F75="","",INDEX(EF!$B$2:$B$112,MATCH(F75,EF!$C$2:$C$112,0))) -> 
D76: =IF(F76="","",INDEX(EF!$A$2:$A$112,MATCH(F76,EF!$C$2:$C$112,0))) ->  | E76: =IF(F76="","",INDEX(EF!$B$2:$B$112,MATCH(F76,EF!$C$2:$C$112,0))) -> 
D77: =IF(F77="","",INDEX(EF!$A$2:$A$112,MATCH(F77,EF!$C$2:$C$112,0))) ->  | E77: =IF(F77="","",INDEX(EF!$B$2:$B$112,MATCH(F77,EF!$C$2:$C$112,0))) -> 
D78: =IF(F78="","",INDEX(EF!$A$2:$A$112,MATCH(F78,EF!$C$2:$C$112,0))) ->  | E78: =IF(F78="","",INDEX(EF!$B$2:$B$112,MATCH(F78,EF!$C$2:$C$112,0))) -> 
D79: =IF(F79="","",INDEX(EF!$A$2:$A$112,MATCH(F79,EF!$C$2:$C$112,0))) ->  | E79: =IF(F79="","",INDEX(EF!$B$2:$B$112,MATCH(F79,EF!$C$2:$C$112,0))) -> 
D80: =IF(F80="","",INDEX(EF!$A$2:$A$112,MATCH(F80,EF!$C$2:$C$112,0))) ->  | E80: =IF(F80="","",INDEX(EF!$B$2:$B$112,MATCH(F80,EF!$C$2:$C$112,0))) -> 
D81: =IF(F81="","",INDEX(EF!$A$2:$A$112,MATCH(F81,EF!$C$2:$C$112,0))) ->  | E81: =IF(F81="","",INDEX(EF!$B$2:$B$112,MATCH(F81,EF!$C$2:$C$112,0))) -> 
D82: =IF(F82="","",INDEX(EF!$A$2:$A$112,MATCH(F82,EF!$C$2:$C$112,0))) ->  | E82: =IF(F82="","",INDEX(EF!$B$2:$B$112,MATCH(F82,EF!$C$2:$C$112,0))) -> 
D83: =IF(F83="","",INDEX(EF!$A$2:$A$112,MATCH(F83,EF!$C$2:$C$112,0))) ->  | E83: =IF(F83="","",INDEX(EF!$B$2:$B$112,MATCH(F83,EF!$C$2:$C$112,0))) -> 
D84: =IF(F84="","",INDEX(EF!$A$2:$A$112,MATCH(F84,EF!$C$2:$C$112,0))) ->  | E84: =IF(F84="","",INDEX(EF!$B$2:$B$112,MATCH(F84,EF!$C$2:$C$112,0))) -> 
D85: =IF(F85="","",INDEX(EF!$A$2:$A$112,MATCH(F85,EF!$C$2:$C$112,0))) ->  | E85: =IF(F85="","",INDEX(EF!$B$2:$B$112,MATCH(F85,EF!$C$2:$C$112,0))) -> 
D86: =IF(F86="","",INDEX(EF!$A$2:$A$112,MATCH(F86,EF!$C$2:$C$112,0))) ->  | E86: =IF(F86="","",INDEX(EF!$B$2:$B$112,MATCH(F86,EF!$C$2:$C$112,0))) -> 
D87: =IF(F87="","",INDEX(EF!$A$2:$A$112,MATCH(F87,EF!$C$2:$C$112,0))) ->  | E87: =IF(F87="","",INDEX(EF!$B$2:$B$112,MATCH(F87,EF!$C$2:$C$112,0))) -> 
D88: =IF(F88="","",INDEX(EF!$A$2:$A$112,MATCH(F88,EF!$C$2:$C$112,0))) ->  | E88: =IF(F88="","",INDEX(EF!$B$2:$B$112,MATCH(F88,EF!$C$2:$C$112,0))) -> 
D89: =IF(F89="","",INDEX(EF!$A$2:$A$112,MATCH(F89,EF!$C$2:$C$112,0))) ->  | E89: =IF(F89="","",INDEX(EF!$B$2:$B$112,MATCH(F89,EF!$C$2:$C$112,0))) -> 
D90: =IF(F90="","",INDEX(EF!$A$2:$A$112,MATCH(F90,EF!$C$2:$C$112,0))) ->  | E90: =IF(F90="","",INDEX(EF!$B$2:$B$112,MATCH(F90,EF!$C$2:$C$112,0))) -> 
D91: =IF(F91="","",INDEX(EF!$A$2:$A$112,MATCH(F91,EF!$C$2:$C$112,0))) ->  | E91: =IF(F91="","",INDEX(EF!$B$2:$B$112,MATCH(F91,EF!$C$2:$C$112,0))) -> 
D92: =IF(F92="","",INDEX(EF!$A$2:$A$112,MATCH(F92,EF!$C$2:$C$112,0))) ->  | E92: =IF(F92="","",INDEX(EF!$B$2:$B$112,MATCH(F92,EF!$C$2:$C$112,0))) -> 
D93: =IF(F93="","",INDEX(EF!$A$2:$A$112,MATCH(F93,EF!$C$2:$C$112,0))) ->  | E93: =IF(F93="","",INDEX(EF!$B$2:$B$112,MATCH(F93,EF!$C$2:$C$112,0))) -> 
D94: =IF(F94="","",INDEX(EF!$A$2:$A$112,MATCH(F94,EF!$C$2:$C$112,0))) ->  | E94: =IF(F94="","",INDEX(EF!$B$2:$B$112,MATCH(F94,EF!$C$2:$C$112,0))) -> 
D95: =IF(F95="","",INDEX(EF!$A$2:$A$112,MATCH(F95,EF!$C$2:$C$112,0))) ->  | E95: =IF(F95="","",INDEX(EF!$B$2:$B$112,MATCH(F95,EF!$C$2:$C$112,0))) -> 
D96: =IF(F96="","",INDEX(EF!$A$2:$A$112,MATCH(F96,EF!$C$2:$C$112,0))) ->  | E96: =IF(F96="","",INDEX(EF!$B$2:$B$112,MATCH(F96,EF!$C$2:$C$112,0))) -> 
D97: =IF(F97="","",INDEX(EF!$A$2:$A$112,MATCH(F97,EF!$C$2:$C$112,0))) ->  | E97: =IF(F97="","",INDEX(EF!$B$2:$B$112,MATCH(F97,EF!$C$2:$C$112,0))) -> 
D98: =IF(F98="","",INDEX(EF!$A$2:$A$112,MATCH(F98,EF!$C$2:$C$112,0))) ->  | E98: =IF(F98="","",INDEX(EF!$B$2:$B$112,MATCH(F98,EF!$C$2:$C$112,0))) -> 
D99: =IF(F99="","",INDEX(EF!$A$2:$A$112,MATCH(F99,EF!$C$2:$C$112,0))) ->  | E99: =IF(F99="","",INDEX(EF!$B$2:$B$112,MATCH(F99,EF!$C$2:$C$112,0))) -> 
D100: =IF(F100="","",INDEX(EF!$A$2:$A$112,MATCH(F100,EF!$C$2:$C$112,0))) ->  | E100: =IF(F100="","",INDEX(EF!$B$2:$B$112,MATCH(F100,EF!$C$2:$C$112,0))) -> 
D101: =IF(F101="","",INDEX(EF!$A$2:$A$112,MATCH(F101,EF!$C$2:$C$112,0))) ->  | E101: =IF(F101="","",INDEX(EF!$B$2:$B$112,MATCH(F101,EF!$C$2:$C$112,0))) -> 
D102: =IF(F102="","",INDEX(EF!$A$2:$A$112,MATCH(F102,EF!$C$2:$C$112,0))) ->  | E102: =IF(F102="","",INDEX(EF!$B$2:$B$112,MATCH(F102,EF!$C$2:$C$112,0))) -> 
D103: =IF(F103="","",INDEX(EF!$A$2:$A$112,MATCH(F103,EF!$C$2:$C$112,0))) ->  | E103: =IF(F103="","",INDEX(EF!$B$2:$B$112,MATCH(F103,EF!$C$2:$C$112,0))) -> 
D104: =IF(F104="","",INDEX(EF!$A$2:$A$112,MATCH(F104,EF!$C$2:$C$112,0))) ->  | E104: =IF(F104="","",INDEX(EF!$B$2:$B$112,MATCH(F104,EF!$C$2:$C$112,0))) -> 
D105: =IF(F105="","",INDEX(EF!$A$2:$A$112,MATCH(F105,EF!$C$2:$C$112,0))) ->  | E105: =IF(F105="","",INDEX(EF!$B$2:$B$112,MATCH(F105,EF!$C$2:$C$112,0))) -> 
D106: =IF(F106="","",INDEX(EF!$A$2:$A$112,MATCH(F106,EF!$C$2:$C$112,0))) ->  | E106: =IF(F106="","",INDEX(EF!$B$2:$B$112,MATCH(F106,EF!$C$2:$C$112,0))) -> 
D107: =IF(F107="","",INDEX(EF!$A$2:$A$112,MATCH(F107,EF!$C$2:$C$112,0))) ->  | E107: =IF(F107="","",INDEX(EF!$B$2:$B$112,MATCH(F107,EF!$C$2:$C$112,0))) -> 
D108: =IF(F108="","",INDEX(EF!$A$2:$A$112,MATCH(F108,EF!$C$2:$C$112,0))) ->  | E108: =IF(F108="","",INDEX(EF!$B$2:$B$112,MATCH(F108,EF!$C$2:$C$112,0))) -> 
D109: =IF(F109="","",INDEX(EF!$A$2:$A$112,MATCH(F109,EF!$C$2:$C$112,0))) ->  | E109: =IF(F109="","",INDEX(EF!$B$2:$B$112,MATCH(F109,EF!$C$2:$C$112,0))) -> 
D110: =IF(F110="","",INDEX(EF!$A$2:$A$112,MATCH(F110,EF!$C$2:$C$112,0))) ->  | E110: =IF(F110="","",INDEX(EF!$B$2:$B$112,MATCH(F110,EF!$C$2:$C$112,0))) -> 
D111: =IF(F111="","",INDEX(EF!$A$2:$A$112,MATCH(F111,EF!$C$2:$C$112,0))) ->  | E111: =IF(F111="","",INDEX(EF!$B$2:$B$112,MATCH(F111,EF!$C$2:$C$112,0))) -> 
D112: =IF(F112="","",INDEX(EF!$A$2:$A$112,MATCH(F112,EF!$C$2:$C$112,0))) ->  | E112: =IF(F112="","",INDEX(EF!$B$2:$B$112,MATCH(F112,EF!$C$2:$C$112,0))) -> 
D113: =IF(F113="","",INDEX(EF!$A$2:$A$112,MATCH(F113,EF!$C$2:$C$112,0))) ->  | E113: =IF(F113="","",INDEX(EF!$B$2:$B$112,MATCH(F113,EF!$C$2:$C$112,0))) -> 
D114: =IF(F114="","",INDEX(EF!$A$2:$A$112,MATCH(F114,EF!$C$2:$C$112,0))) ->  | E114: =IF(F114="","",INDEX(EF!$B$2:$B$112,MATCH(F114,EF!$C$2:$C$112,0))) -> 
D115: =IF(F115="","",INDEX(EF!$A$2:$A$112,MATCH(F115,EF!$C$2:$C$112,0))) ->  | E115: =IF(F115="","",INDEX(EF!$B$2:$B$112,MATCH(F115,EF!$C$2:$C$112,0))) -> 
D116: =IF(F116="","",INDEX(EF!$A$2:$A$112,MATCH(F116,EF!$C$2:$C$112,0))) ->  | E116: =IF(F116="","",INDEX(EF!$B$2:$B$112,MATCH(F116,EF!$C$2:$C$112,0))) -> 
D117: =IF(F117="","",INDEX(EF!$A$2:$A$112,MATCH(F117,EF!$C$2:$C$112,0))) ->  | E117: =IF(F117="","",INDEX(EF!$B$2:$B$112,MATCH(F117,EF!$C$2:$C$112,0))) -> 
D118: =IF(F118="","",INDEX(EF!$A$2:$A$112,MATCH(F118,EF!$C$2:$C$112,0))) ->  | E118: =IF(F118="","",INDEX(EF!$B$2:$B$112,MATCH(F118,EF!$C$2:$C$112,0))) -> 
D119: =IF(F119="","",INDEX(EF!$A$2:$A$112,MATCH(F119,EF!$C$2:$C$112,0))) ->  | E119: =IF(F119="","",INDEX(EF!$B$2:$B$112,MATCH(F119,EF!$C$2:$C$112,0))) -> 
D120: =IF(F120="","",INDEX(EF!$A$2:$A$112,MATCH(F120,EF!$C$2:$C$112,0))) ->  | E120: =IF(F120="","",INDEX(EF!$B$2:$B$112,MATCH(F120,EF!$C$2:$C$112,0))) -> 
D121: =IF(F121="","",INDEX(EF!$A$2:$A$112,MATCH(F121,EF!$C$2:$C$112,0))) ->  | E121: =IF(F121="","",INDEX(EF!$B$2:$B$112,MATCH(F121,EF!$C$2:$C$112,0))) -> 
D122: =IF(F122="","",INDEX(EF!$A$2:$A$112,MATCH(F122,EF!$C$2:$C$112,0))) ->  | E122: =IF(F122="","",INDEX(EF!$B$2:$B$112,MATCH(F122,EF!$C$2:$C$112,0))) -> 
D123: =IF(F123="","",INDEX(EF!$A$2:$A$112,MATCH(F123,EF!$C$2:$C$112,0))) ->  | E123: =IF(F123="","",INDEX(EF!$B$2:$B$112,MATCH(F123,EF!$C$2:$C$112,0))) -> 
D124: =IF(F124="","",INDEX(EF!$A$2:$A$112,MATCH(F124,EF!$C$2:$C$112,0))) ->  | E124: =IF(F124="","",INDEX(EF!$B$2:$B$112,MATCH(F124,EF!$C$2:$C$112,0))) -> 
D125: =IF(F125="","",INDEX(EF!$A$2:$A$112,MATCH(F125,EF!$C$2:$C$112,0))) ->  | E125: =IF(F125="","",INDEX(EF!$B$2:$B$112,MATCH(F125,EF!$C$2:$C$112,0))) -> 
D126: =IF(F126="","",INDEX(EF!$A$2:$A$112,MATCH(F126,EF!$C$2:$C$112,0))) ->  | E126: =IF(F126="","",INDEX(EF!$B$2:$B$112,MATCH(F126,EF!$C$2:$C$112,0))) -> 
D127: =IF(F127="","",INDEX(EF!$A$2:$A$112,MATCH(F127,EF!$C$2:$C$112,0))) ->  | E127: =IF(F127="","",INDEX(EF!$B$2:$B$112,MATCH(F127,EF!$C$2:$C$112,0))) -> 
D128: =IF(F128="","",INDEX(EF!$A$2:$A$112,MATCH(F128,EF!$C$2:$C$112,0))) ->  | E128: =IF(F128="","",INDEX(EF!$B$2:$B$112,MATCH(F128,EF!$C$2:$C$112,0))) -> 
D129: =IF(F129="","",INDEX(EF!$A$2:$A$112,MATCH(F129,EF!$C$2:$C$112,0))) ->  | E129: =IF(F129="","",INDEX(EF!$B$2:$B$112,MATCH(F129,EF!$C$2:$C$112,0))) -> 
D130: =IF(F130="","",INDEX(EF!$A$2:$A$112,MATCH(F130,EF!$C$2:$C$112,0))) ->  | E130: =IF(F130="","",INDEX(EF!$B$2:$B$112,MATCH(F130,EF!$C$2:$C$112,0))) -> 
D131: =IF(F131="","",INDEX(EF!$A$2:$A$112,MATCH(F131,EF!$C$2:$C$112,0))) ->  | E131: =IF(F131="","",INDEX(EF!$B$2:$B$112,MATCH(F131,EF!$C$2:$C$112,0))) -> 
D132: =IF(F132="","",INDEX(EF!$A$2:$A$112,MATCH(F132,EF!$C$2:$C$112,0))) ->  | E132: =IF(F132="","",INDEX(EF!$B$2:$B$112,MATCH(F132,EF!$C$2:$C$112,0))) -> 
D133: =IF(F133="","",INDEX(EF!$A$2:$A$112,MATCH(F133,EF!$C$2:$C$112,0))) ->  | E133: =IF(F133="","",INDEX(EF!$B$2:$B$112,MATCH(F133,EF!$C$2:$C$112,0))) -> 
D134: =IF(F134="","",INDEX(EF!$A$2:$A$112,MATCH(F134,EF!$C$2:$C$112,0))) ->  | E134: =IF(F134="","",INDEX(EF!$B$2:$B$112,MATCH(F134,EF!$C$2:$C$112,0))) -> 
D135: =IF(F135="","",INDEX(EF!$A$2:$A$112,MATCH(F135,EF!$C$2:$C$112,0))) ->  | E135: =IF(F135="","",INDEX(EF!$B$2:$B$112,MATCH(F135,EF!$C$2:$C$112,0))) -> 
D136: =IF(F136="","",INDEX(EF!$A$2:$A$112,MATCH(F136,EF!$C$2:$C$112,0))) ->  | E136: =IF(F136="","",INDEX(EF!$B$2:$B$112,MATCH(F136,EF!$C$2:$C$112,0))) -> 
D137: =IF(F137="","",INDEX(EF!$A$2:$A$112,MATCH(F137,EF!$C$2:$C$112,0))) ->  | E137: =IF(F137="","",INDEX(EF!$B$2:$B$112,MATCH(F137,EF!$C$2:$C$112,0))) -> 
D138: =IF(F138="","",INDEX(EF!$A$2:$A$112,MATCH(F138,EF!$C$2:$C$112,0))) ->  | E138: =IF(F138="","",INDEX(EF!$B$2:$B$112,MATCH(F138,EF!$C$2:$C$112,0))) -> 
D139: =IF(F139="","",INDEX(EF!$A$2:$A$112,MATCH(F139,EF!$C$2:$C$112,0))) ->  | E139: =IF(F139="","",INDEX(EF!$B$2:$B$112,MATCH(F139,EF!$C$2:$C$112,0))) -> 
D140: =IF(F140="","",INDEX(EF!$A$2:$A$112,MATCH(F140,EF!$C$2:$C$112,0))) ->  | E140: =IF(F140="","",INDEX(EF!$B$2:$B$112,MATCH(F140,EF!$C$2:$C$112,0))) -> 
D141: =IF(F141="","",INDEX(EF!$A$2:$A$112,MATCH(F141,EF!$C$2:$C$112,0))) ->  | E141: =IF(F141="","",INDEX(EF!$B$2:$B$112,MATCH(F141,EF!$C$2:$C$112,0))) -> 
D142: =IF(F142="","",INDEX(EF!$A$2:$A$112,MATCH(F142,EF!$C$2:$C$112,0))) ->  | E142: =IF(F142="","",INDEX(EF!$B$2:$B$112,MATCH(F142,EF!$C$2:$C$112,0))) -> 
D143: =IF(F143="","",INDEX(EF!$A$2:$A$112,MATCH(F143,EF!$C$2:$C$112,0))) ->  | E143: =IF(F143="","",INDEX(EF!$B$2:$B$112,MATCH(F143,EF!$C$2:$C$112,0))) -> 
D144: =IF(F144="","",INDEX(EF!$A$2:$A$112,MATCH(F144,EF!$C$2:$C$112,0))) ->  | E144: =IF(F144="","",INDEX(EF!$B$2:$B$112,MATCH(F144,EF!$C$2:$C$112,0))) -> 
D145: =IF(F145="","",INDEX(EF!$A$2:$A$112,MATCH(F145,EF!$C$2:$C$112,0))) ->  | E145: =IF(F145="","",INDEX(EF!$B$2:$B$112,MATCH(F145,EF!$C$2:$C$112,0))) -> 
D146: =IF(F146="","",INDEX(EF!$A$2:$A$112,MATCH(F146,EF!$C$2:$C$112,0))) ->  | E146: =IF(F146="","",INDEX(EF!$B$2:$B$112,MATCH(F146,EF!$C$2:$C$112,0))) -> 
D147: =IF(F147="","",INDEX(EF!$A$2:$A$112,MATCH(F147,EF!$C$2:$C$112,0))) ->  | E147: =IF(F147="","",INDEX(EF!$B$2:$B$112,MATCH(F147,EF!$C$2:$C$112,0))) -> 
D148: =IF(F148="","",INDEX(EF!$A$2:$A$112,MATCH(F148,EF!$C$2:$C$112,0))) ->  | E148: =IF(F148="","",INDEX(EF!$B$2:$B$112,MATCH(F148,EF!$C$2:$C$112,0))) -> 
D149: =IF(F149="","",INDEX(EF!$A$2:$A$112,MATCH(F149,EF!$C$2:$C$112,0))) ->  | E149: =IF(F149="","",INDEX(EF!$B$2:$B$112,MATCH(F149,EF!$C$2:$C$112,0))) -> 
D150: =IF(F150="","",INDEX(EF!$A$2:$A$112,MATCH(F150,EF!$C$2:$C$112,0))) ->  | E150: =IF(F150="","",INDEX(EF!$B$2:$B$112,MATCH(F150,EF!$C$2:$C$112,0))) -> 
D151: =IF(F151="","",INDEX(EF!$A$2:$A$112,MATCH(F151,EF!$C$2:$C$112,0))) ->  | E151: =IF(F151="","",INDEX(EF!$B$2:$B$112,MATCH(F151,EF!$C$2:$C$112,0))) -> 
D152: =IF(F152="","",INDEX(EF!$A$2:$A$112,MATCH(F152,EF!$C$2:$C$112,0))) ->  | E152: =IF(F152="","",INDEX(EF!$B$2:$B$112,MATCH(F152,EF!$C$2:$C$112,0))) -> 
D153: =IF(F153="","",INDEX(EF!$A$2:$A$112,MATCH(F153,EF!$C$2:$C$112,0))) ->  | E153: =IF(F153="","",INDEX(EF!$B$2:$B$112,MATCH(F153,EF!$C$2:$C$112,0))) -> 
D154: =IF(F154="","",INDEX(EF!$A$2:$A$112,MATCH(F154,EF!$C$2:$C$112,0))) ->  | E154: =IF(F154="","",INDEX(EF!$B$2:$B$112,MATCH(F154,EF!$C$2:$C$112,0))) -> 
D155: =IF(F155="","",INDEX(EF!$A$2:$A$112,MATCH(F155,EF!$C$2:$C$112,0))) ->  | E155: =IF(F155="","",INDEX(EF!$B$2:$B$112,MATCH(F155,EF!$C$2:$C$112,0))) -> 
D156: =IF(F156="","",INDEX(EF!$A$2:$A$112,MATCH(F156,EF!$C$2:$C$112,0))) ->  | E156: =IF(F156="","",INDEX(EF!$B$2:$B$112,MATCH(F156,EF!$C$2:$C$112,0))) -> 
D157: =IF(F157="","",INDEX(EF!$A$2:$A$112,MATCH(F157,EF!$C$2:$C$112,0))) ->  | E157: =IF(F157="","",INDEX(EF!$B$2:$B$112,MATCH(F157,EF!$C$2:$C$112,0))) -> 
D158: =IF(F158="","",INDEX(EF!$A$2:$A$112,MATCH(F158,EF!$C$2:$C$112,0))) ->  | E158: =IF(F158="","",INDEX(EF!$B$2:$B$112,MATCH(F158,EF!$C$2:$C$112,0))) -> 
D159: =IF(F159="","",INDEX(EF!$A$2:$A$112,MATCH(F159,EF!$C$2:$C$112,0))) ->  | E159: =IF(F159="","",INDEX(EF!$B$2:$B$112,MATCH(F159,EF!$C$2:$C$112,0))) -> 
D160: =IF(F160="","",INDEX(EF!$A$2:$A$112,MATCH(F160,EF!$C$2:$C$112,0))) ->  | E160: =IF(F160="","",INDEX(EF!$B$2:$B$112,MATCH(F160,EF!$C$2:$C$112,0))) -> 
D161: =IF(F161="","",INDEX(EF!$A$2:$A$112,MATCH(F161,EF!$C$2:$C$112,0))) ->  | E161: =IF(F161="","",INDEX(EF!$B$2:$B$112,MATCH(F161,EF!$C$2:$C$112,0))) -> 
D162: =IF(F162="","",INDEX(EF!$A$2:$A$112,MATCH(F162,EF!$C$2:$C$112,0))) ->  | E162: =IF(F162="","",INDEX(EF!$B$2:$B$112,MATCH(F162,EF!$C$2:$C$112,0))) -> 
D163: =IF(F163="","",INDEX(EF!$A$2:$A$112,MATCH(F163,EF!$C$2:$C$112,0))) ->  | E163: =IF(F163="","",INDEX(EF!$B$2:$B$112,MATCH(F163,EF!$C$2:$C$112,0))) -> 
D164: =IF(F164="","",INDEX(EF!$A$2:$A$112,MATCH(F164,EF!$C$2:$C$112,0))) ->  | E164: =IF(F164="","",INDEX(EF!$B$2:$B$112,MATCH(F164,EF!$C$2:$C$112,0))) -> 
D165: =IF(F165="","",INDEX(EF!$A$2:$A$112,MATCH(F165,EF!$C$2:$C$112,0))) ->  | E165: =IF(F165="","",INDEX(EF!$B$2:$B$112,MATCH(F165,EF!$C$2:$C$112,0))) -> 
D166: =IF(F166="","",INDEX(EF!$A$2:$A$112,MATCH(F166,EF!$C$2:$C$112,0))) ->  | E166: =IF(F166="","",INDEX(EF!$B$2:$B$112,MATCH(F166,EF!$C$2:$C$112,0))) -> 
D167: =IF(F167="","",INDEX(EF!$A$2:$A$112,MATCH(F167,EF!$C$2:$C$112,0))) ->  | E167: =IF(F167="","",INDEX(EF!$B$2:$B$112,MATCH(F167,EF!$C$2:$C$112,0))) -> 
D168: =IF(F168="","",INDEX(EF!$A$2:$A$112,MATCH(F168,EF!$C$2:$C$112,0))) ->  | E168: =IF(F168="","",INDEX(EF!$B$2:$B$112,MATCH(F168,EF!$C$2:$C$112,0))) -> 
D169: =IF(F169="","",INDEX(EF!$A$2:$A$112,MATCH(F169,EF!$C$2:$C$112,0))) ->  | E169: =IF(F169="","",INDEX(EF!$B$2:$B$112,MATCH(F169,EF!$C$2:$C$112,0))) -> 
D170: =IF(F170="","",INDEX(EF!$A$2:$A$112,MATCH(F170,EF!$C$2:$C$112,0))) ->  | E170: =IF(F170="","",INDEX(EF!$B$2:$B$112,MATCH(F170,EF!$C$2:$C$112,0))) -> 
D171: =IF(F171="","",INDEX(EF!$A$2:$A$112,MATCH(F171,EF!$C$2:$C$112,0))) ->  | E171: =IF(F171="","",INDEX(EF!$B$2:$B$112,MATCH(F171,EF!$C$2:$C$112,0))) -> 
D172: =IF(F172="","",INDEX(EF!$A$2:$A$112,MATCH(F172,EF!$C$2:$C$112,0))) ->  | E172: =IF(F172="","",INDEX(EF!$B$2:$B$112,MATCH(F172,EF!$C$2:$C$112,0))) -> 
D173: =IF(F173="","",INDEX(EF!$A$2:$A$112,MATCH(F173,EF!$C$2:$C$112,0))) ->  | E173: =IF(F173="","",INDEX(EF!$B$2:$B$112,MATCH(F173,EF!$C$2:$C$112,0))) -> 
D174: =IF(F174="","",INDEX(EF!$A$2:$A$112,MATCH(F174,EF!$C$2:$C$112,0))) ->  | E174: =IF(F174="","",INDEX(EF!$B$2:$B$112,MATCH(F174,EF!$C$2:$C$112,0))) -> 
D175: =IF(F175="","",INDEX(EF!$A$2:$A$112,MATCH(F175,EF!$C$2:$C$112,0))) ->  | E175: =IF(F175="","",INDEX(EF!$B$2:$B$112,MATCH(F175,EF!$C$2:$C$112,0))) -> 
D176: =IF(F176="","",INDEX(EF!$A$2:$A$112,MATCH(F176,EF!$C$2:$C$112,0))) ->  | E176: =IF(F176="","",INDEX(EF!$B$2:$B$112,MATCH(F176,EF!$C$2:$C$112,0))) -> 
D177: =IF(F177="","",INDEX(EF!$A$2:$A$112,MATCH(F177,EF!$C$2:$C$112,0))) ->  | E177: =IF(F177="","",INDEX(EF!$B$2:$B$112,MATCH(F177,EF!$C$2:$C$112,0))) -> 
D178: =IF(F178="","",INDEX(EF!$A$2:$A$112,MATCH(F178,EF!$C$2:$C$112,0))) ->  | E178: =IF(F178="","",INDEX(EF!$B$2:$B$112,MATCH(F178,EF!$C$2:$C$112,0))) -> 
D179: =IF(F179="","",INDEX(EF!$A$2:$A$112,MATCH(F179,EF!$C$2:$C$112,0))) ->  | E179: =IF(F179="","",INDEX(EF!$B$2:$B$112,MATCH(F179,EF!$C$2:$C$112,0))) -> 
D180: =IF(F180="","",INDEX(EF!$A$2:$A$112,MATCH(F180,EF!$C$2:$C$112,0))) ->  | E180: =IF(F180="","",INDEX(EF!$B$2:$B$112,MATCH(F180,EF!$C$2:$C$112,0))) -> 
D181: =IF(F181="","",INDEX(EF!$A$2:$A$112,MATCH(F181,EF!$C$2:$C$112,0))) ->  | E181: =IF(F181="","",INDEX(EF!$B$2:$B$112,MATCH(F181,EF!$C$2:$C$112,0))) -> 
D182: =IF(F182="","",INDEX(EF!$A$2:$A$112,MATCH(F182,EF!$C$2:$C$112,0))) ->  | E182: =IF(F182="","",INDEX(EF!$B$2:$B$112,MATCH(F182,EF!$C$2:$C$112,0))) -> 
D183: =IF(F183="","",INDEX(EF!$A$2:$A$112,MATCH(F183,EF!$C$2:$C$112,0))) ->  | E183: =IF(F183="","",INDEX(EF!$B$2:$B$112,MATCH(F183,EF!$C$2:$C$112,0))) -> 
D184: =IF(F184="","",INDEX(EF!$A$2:$A$112,MATCH(F184,EF!$C$2:$C$112,0))) ->  | E184: =IF(F184="","",INDEX(EF!$B$2:$B$112,MATCH(F184,EF!$C$2:$C$112,0))) -> 
D185: =IF(F185="","",INDEX(EF!$A$2:$A$112,MATCH(F185,EF!$C$2:$C$112,0))) ->  | E185: =IF(F185="","",INDEX(EF!$B$2:$B$112,MATCH(F185,EF!$C$2:$C$112,0))) -> 
D186: =IF(F186="","",INDEX(EF!$A$2:$A$112,MATCH(F186,EF!$C$2:$C$112,0))) ->  | E186: =IF(F186="","",INDEX(EF!$B$2:$B$112,MATCH(F186,EF!$C$2:$C$112,0))) -> 
D187: =IF(F187="","",INDEX(EF!$A$2:$A$112,MATCH(F187,EF!$C$2:$C$112,0))) ->  | E187: =IF(F187="","",INDEX(EF!$B$2:$B$112,MATCH(F187,EF!$C$2:$C$112,0))) -> 
D188: =IF(F188="","",INDEX(EF!$A$2:$A$112,MATCH(F188,EF!$C$2:$C$112,0))) ->  | E188: =IF(F188="","",INDEX(EF!$B$2:$B$112,MATCH(F188,EF!$C$2:$C$112,0))) -> 
D189: =IF(F189="","",INDEX(EF!$A$2:$A$112,MATCH(F189,EF!$C$2:$C$112,0))) ->  | E189: =IF(F189="","",INDEX(EF!$B$2:$B$112,MATCH(F189,EF!$C$2:$C$112,0))) -> 
D190: =IF(F190="","",INDEX(EF!$A$2:$A$112,MATCH(F190,EF!$C$2:$C$112,0))) ->  | E190: =IF(F190="","",INDEX(EF!$B$2:$B$112,MATCH(F190,EF!$C$2:$C$112,0))) -> 
D191: =IF(F191="","",INDEX(EF!$A$2:$A$112,MATCH(F191,EF!$C$2:$C$112,0))) ->  | E191: =IF(F191="","",INDEX(EF!$B$2:$B$112,MATCH(F191,EF!$C$2:$C$112,0))) -> 
D192: =IF(F192="","",INDEX(EF!$A$2:$A$112,MATCH(F192,EF!$C$2:$C$112,0))) ->  | E192: =IF(F192="","",INDEX(EF!$B$2:$B$112,MATCH(F192,EF!$C$2:$C$112,0))) -> 
D193: =IF(F193="","",INDEX(EF!$A$2:$A$112,MATCH(F193,EF!$C$2:$C$112,0))) ->  | E193: =IF(F193="","",INDEX(EF!$B$2:$B$112,MATCH(F193,EF!$C$2:$C$112,0))) -> 
D194: =IF(F194="","",INDEX(EF!$A$2:$A$112,MATCH(F194,EF!$C$2:$C$112,0))) ->  | E194: =IF(F194="","",INDEX(EF!$B$2:$B$112,MATCH(F194,EF!$C$2:$C$112,0))) -> 
D195: =IF(F195="","",INDEX(EF!$A$2:$A$112,MATCH(F195,EF!$C$2:$C$112,0))) ->  | E195: =IF(F195="","",INDEX(EF!$B$2:$B$112,MATCH(F195,EF!$C$2:$C$112,0))) -> 
D196: =IF(F196="","",INDEX(EF!$A$2:$A$112,MATCH(F196,EF!$C$2:$C$112,0))) ->  | E196: =IF(F196="","",INDEX(EF!$B$2:$B$112,MATCH(F196,EF!$C$2:$C$112,0))) -> 
D197: =IF(F197="","",INDEX(EF!$A$2:$A$112,MATCH(F197,EF!$C$2:$C$112,0))) ->  | E197: =IF(F197="","",INDEX(EF!$B$2:$B$112,MATCH(F197,EF!$C$2:$C$112,0))) -> 
D198: =IF(F198="","",INDEX(EF!$A$2:$A$112,MATCH(F198,EF!$C$2:$C$112,0))) ->  | E198: =IF(F198="","",INDEX(EF!$B$2:$B$112,MATCH(F198,EF!$C$2:$C$112,0))) -> 
D199: =IF(F199="","",INDEX(EF!$A$2:$A$112,MATCH(F199,EF!$C$2:$C$112,0))) ->  | E199: =IF(F199="","",INDEX(EF!$B$2:$B$112,MATCH(F199,EF!$C$2:$C$112,0))) -> 
D200: =IF(F200="","",INDEX(EF!$A$2:$A$112,MATCH(F200,EF!$C$2:$C$112,0))) ->  | E200: =IF(F200="","",INDEX(EF!$B$2:$B$112,MATCH(F200,EF!$C$2:$C$112,0))) -> 
... 806 more rows

Sheet F18A (hidden)
A1: ="NOMBRE DEL ENTE PÚBLICO: "&Validacion!A2 -> NOMBRE DEL ENTE PÚBLICO: Ixtlahuacán de los Membrillos
A2: Estado Analítico del Ejercicio del Presupuesto de Egresos Detallado - LDF
A3: Clasificación Administrativa
A4: ='F6'!A3 -> DEL 1° DE ENERO AL 31 DE ENERO DE 2025
A5: (PESOS)
A6: Concepto | B6: Egresos | G6: Subejercicio
B7: Aprobado | C7: Ampliación/ (Reducciones) | D7: Modificado | E7: Devengado | F7: Pagado
A8: I. Gasto No Etiquetado | B8: =SUM(B9:B33) -> 0.00 | C8: 0.00 | D8: 0.00 | E8: 0.00 | F8: 0.00 | G8: 0.00
D9: =B9+C9 -> 0.00 | G9: =D9-E9 -> 0.00
D10: 0.00 | G10: 0.00
D11: 0.00 | G11: 0.00
D12: 0.00 | G12: 0.00
D13: 0.00 | G13: 0.00
D14: 0.00 | G14: 0.00
D15: 0.00 | G15: 0.00
D16: 0.00 | G16: 0.00
D17: 0.00 | G17: 0.00
D18: 0.00 | G18: 0.00
D19: 0.00 | G19: 0.00
D20: 0.00 | G20: 0.00
D21: 0.00 | G21: 0.00
D22: 0.00 | G22: 0.00
D23: 0.00 | G23: 0.00
D24: 0.00 | G24: 0.00
D25: 0.00 | G25: 0.00
D26: 0.00 | G26: 0.00
D27: 0.00 | G27: 0.00
D28: 0.00 | G28: 0.00
D29: 0.00 | G29: 0.00
D30: 0.00 | G30: 0.00
D31: 0.00 | G31: 0.00
D32: 0.00 | G32: 0.00
D33: 0.00 | G33: 0.00
A35: II. Gasto Etiqutado | B35: =SUM(B36:B60) -> 0.00 | C35: 0.00 | D35: 0.00 | E35: 0.00 | F35: 0.00 | G35: 0.00
D36: =B36+C36 -> 0.00 | G36: =D36-E36 -> 0.00
D37: 0.00 | G37: 0.00
D38: 0.00 | G38: 0.00
D39: 0.00 | G39: 0.00
D40: 0.00 | G40: 0.00
D41: 0.00 | G41: 0.00
D42: 0.00 | G42: 0.00
D43: 0.00 | G43: 0.00
D44: 0.00 | G44: 0.00
D45: 0.00 | G45: 0.00
D46: 0.00 | G46: 0.00
D47: 0.00 | G47: 0.00
D48: 0.00 | G48: 0.00
D49: 0.00 | G49: 0.00
D50: 0.00 | G50: 0.00
D51: 0.00 | G51: 0.00
D52: 0.00 | G52: 0.00
D53: 0.00 | G53: 0.00
D54: 0.00 | G54: 0.00
D55: 0.00 | G55: 0.00
D56: 0.00 | G56: 0.00
D57: 0.00 | G57: 0.00
D58: 0.00 | G58: 0.00
D59: 0.00 | G59: 0.00
D60: 0.00 | G60: 0.00
A62: III. Total de Egresos | B62: =B34+B61 -> 0.00 | C62: 0.00 | D62: 0.00 | E62: 0.00 | F62: 0.00 | G62: 0.00
A64: Bajo protesta de decir verdad declaramos que los Estados Financieros y sus notas, son razonablemente correctos y son responsabilidad del emisor.
A68: =Validacion!A7 -> LIC. JOSE HERIBERTO GARCIA MURILLO | D68: =Validacion!A9 -> LAE BRUNO GERMAN ENCISO GUILLEN
A70: Presidente Municipal o titular del ente público | D70: Encargado de la Hacienda Municipal o Responsable de las finanzas del ente público

Sheet F19A (hidden)
B1: ="NOMBRE DEL ENTE PÚBLICO: "&Validacion!A2 -> NOMBRE DEL ENTE PÚBLICO: Ixtlahuacán de los Membrillos
B2: Estado Analítico del Ejercicio del Presupuesto de Egresos Detallado - LDF
B3: Clasificación Funcional (Finalidad y Función)
C4: ='F6'!A3 -> DEL 1° DE ENERO AL 31 DE ENERO DE 2025
C5: (PESOS)
A6: Concepto | D6: Egresos | I6: Subejercicio
D7: Aprobado | E7: Ampliaciones/ (Reducciones) | F7: Modificado | G7: Devengado | H7: Pagado
A8: I. | B8: Gasto No Etiquetado | D8: =D9+D18+D26+D36 -> 0.00 | E8: 0.00 | F8: 0.00 | G8: 0.00 | H8: 0.00 | I8: 0.00
B9: A Gobierno | D9: =SUM(D10:D17) -> 0.00 | E9: 0.00 | F9: =D9+E9 -> 0.00 | G9: =SUM(G10:G17) -> 0.00 | H9: 0.00 | I9: =F9-G9 -> 0.00
C10: a1) Legislación | F10: 0.00 | I10: 0.00
C11: a2) Justicia | F11: 0.00 | I11: 0.00
C12: a3) Coordinación de la Política de Gobierno | F12: 0.00 | I12: 0.00
C13: a4) Relaciones Exteriores | F13: 0.00 | I13: 0.00
C14: a5) Asuntos Financieros y Hacendarios | F14: 0.00 | I14: 0.00
C15: a6) Seguridad Nacional | F15: 0.00 | I15: 0.00
C16: a7) Asuntos de Orden Público y de Seguridad Interior | F16: 0.00 | I16: 0.00
C17: a8) Otros Servicios Generales | F17: 0.00 | I17: 0.00
B18: B Desarrollo Social | D18: =SUM(D19:D25) -> 0.00 | E18: 0.00 | F18: 0.00 | G18: =SUM(G19:G25) -> 0.00 | H18: 0.00 | I18: 0.00
C19: b1) Protección Ambiental | F19: 0.00 | I19: 0.00
C20: b2) Vivienda y Servicios a la Comunidad | F20: 0.00 | I20: 0.00
C21: b3) Salud | F21: 0.00 | I21: 0.00
C22: b4) Recreación, Cultura y Otras Manifestaciones Sociales | F22: 0.00 | I22: 0.00
C23: b5) Educación | F23: 0.00 | I23: 0.00
C24: b6) Protección Social | F24: 0.00 | I24: 0.00
C25: b7) Otros Asuntos Sociales | F25: 0.00 | I25: 0.00
B26: C Desarrollo Económico | D26: =SUM(D27:D35) -> 0.00 | E26: 0.00 | F26: 0.00 | G26: =SUM(G27:G35) -> 0.00 | H26: 0.00 | I26: 0.00
C27: c1) Asuntos Económicos, Comerciales y Laborales en General | F27: 0.00 | I27: 0.00
C28: c2) Agropecuaria, Silvicultura, Pesca y Caza | F28: 0.00 | I28: 0.00
C29: c3) Combustibles y Energía | F29: 0.00 | I29: 0.00
C30: c4) Minería, Manufacturas y Construcción | F30: 0.00 | I30: 0.00
C31: c5) Transporte | F31: 0.00 | I31: 0.00
C32: c6) Comunicaciones | F32: 0.00 | I32: 0.00
C33: c7) Turismo | F33: 0.00 | I33: 0.00
C34: c8) Ciencia, Tecnología e Innovación | F34: 0.00 | I34: 0.00
C35: c9) Otras Industrias y Otros Asuntos Económicos | F35: 0.00 | I35: 0.00
B36: D Otras No Clasificadas en Funciones Anteriores | D36: =SUM(D37:D40) -> 0.00 | E36: 0.00 | F36: 0.00 | G36: =SUM(G37:G40) -> 0.00 | H36: 0.00 | I36: 0.00
C37: Transacciones de la Deuda Publica / Costo Financiero de la Deuda | F37: 0.00 | I37: 0.00
C38: Transferencias, Participaciones y Aportaciones Entre Diferentes Niveles y Ordenes de Gobierno | F38: 0.00 | I38: 0.00
C39: Saneamiento del Sistema Financiero | F39: 0.00 | I39: 0.00
C40: Adeudos de Ejercicios Fiscales Anteriores | F40: 0.00 | I40: 0.00
A42: II. | B42: Gasto Etiquetado | D42: =D43+D52+D60+D70 -> 0.00 | E42: 0.00 | F42: 0.00 | G42: 0.00 | H42: 0.00 | I42: 0.00
B43: A Gobierno | D43: =SUM(D44:D51) -> 0.00 | E43: 0.00 | F43: =D43+E43 -> 0.00 | G43: =SUM(G44:G51) -> 0.00 | H43: 0.00 | I43: =F43-G43 -> 0.00
C44: a1) Legislación | F44: 0.00 | I44: 0.00
C45: a2) Justicia | F45: 0.00 | I45: 0.00
C46: a3) Coordinación de la Política de Gobierno | F46: 0.00 | I46: 0.00
C47: a4) Relaciones Exteriores | F47: 0.00 | I47: 0.00
C48: a5) Asuntos Financieros y Hacendarios | F48: 0.00 | I48: 0.00
C49: a6) Seguridad Nacional | F49: 0.00 | I49: 0.00
C50: a7) Asuntos de Orden Público y de Seguridad Interior | F50: 0.00 | I50: 0.00
C51: a8) Otros Servicios Generales | F51: 0.00 | I51: 0.00
B52: B Desarrollo Social | D52: =SUM(D53:D59) -> 0.00 | E52: 0.00 | F52: 0.00 | G52: =SUM(G53:G59) -> 0.00 | H52: 0.00 | I52: 0.00
C53: b1) Protección Ambiental | F53: 0.00 | I53: 0.00
C54: b2) Vivienda y Servicios a la Comunidad | F54: 0.00 | I54: 0.00
C55: b3) Salud | F55: 0.00 | I55: 0.00
C56: b4) Recreación, Cultura y Otras Manifestaciones Sociales | F56: 0.00 | I56: 0.00
C57: b5) Educación | F57: 0.00 | I57: 0.00
C58: b6) Protección Social | F58: 0.00 | I58: 0.00
C59: b7) Otros Asuntos Sociales | F59: 0.00 | I59: 0.00
B60: C Desarrollo Económico | D60: =SUM(D61:D69) -> 0.00 | E60: 0.00 | F60: 0.00 | G60: =SUM(G61:G69) -> 0.00 | H60: 0.00 | I60: 0.00
C61: c1) Asuntos Económicos, Comerciales y Laborales en General | F61: 0.00 | I61: 0.00
C62: c2) Agropecuaria, Silvicultura, Pesca y Caza | F62: 0.00 | I62: 0.00
C63: c3) Combustibles y Energía | F63: 0.00 | I63: 0.00
C64: c4) Minería, Manufacturas y Construcción | F64: 0.00 | I64: 0.00
C65: c5) Transporte | F65: 0.00 | I65: 0.00
C66: c6) Comunicaciones | F66: 0.00 | I66: 0.00
C67: c7) Turismo | F67: 0.00 | I67: 0.00
C68: c8) Ciencia, Tecnología e Innovación | F68: 0.00 | I68: 0.00
C69: c9) Otras Industrias y Otros Asuntos Económicos | F69: 0.00 | I69: 0.00
B70: D Otras No Clasificadas en Funciones Anteriores | D70: =SUM(D71:D74) -> 0.00 | E70: 0.00 | F70: 0.00 | G70: =SUM(G71:G74) -> 0.00 | H70: 0.00 | I70: 0.00
C71: Transacciones de la Deuda Publica / Costo Financiero de la Deuda | F71: 0.00 | I71: 0.00
C72: Transferencias, Participaciones y Aportaciones Entre Diferentes Niveles y Ordenes de Gobierno | F72: 0.00 | I72: 0.00
C73: Saneamiento del Sistema Financiero | F73: 0.00 | I73: 0.00
C74: Adeudos de Ejercicios Fiscales Anteriores | F74: 0.00 | I74: 0.00
B76: III. Total de Egresos | D76: =D41+D75 -> 0.00 | E76: 0.00 | F76: 0.00 | G76: 0.00 | H76: 0.00 | I76: 0.00
B78: Bajo protesta de decir verdad declaramos que los Estados Financieros y sus notas, son razonablemente correctos y son responsabilidad del emisor.
C81: =Validacion!A7 -> LIC. JOSE HERIBERTO GARCIA MURILLO | E81: =Validacion!A9 -> LAE BRUNO GERMAN ENCISO GUILLEN
C83: Presidente Municipal o titular del ente público | E83: Encargado de la Hacienda Municipal o Responsable de las finanzas del ente público

Sheet F21 (hidden)
A1: ="NOMBRE DEL ENTE PÚBLICO: "&Validacion!A2 -> NOMBRE DEL ENTE PÚBLICO: Ixtlahuacán de los Membrillos
A2: Estado Analítico del Ejercicio del Presupuesto de Egresos Detallado - LDF
A3: Clasificación de Servicos Personales por Categoría
A4: ='F6'!A3 -> DEL 1° DE ENERO AL 31 DE ENERO DE 2025
A5: (PESOS)
A6: Concepto | D6: Egresos | I6: Subejercicio
D7: Aprobado | E7: Ampliaciones/ (Reducciones) | F7: Modificado | G7: Devengado | H7: Pagado
B8: I. Gasto No Etiquetado | D8: =D9+D10+D11+D14+D15+D18 -> 0.00 | E8: 0.00 | F8: 0.00 | G8: 0.00 | H8: 0.00 | I8: 0.00
B9: A. Personal Administrativo y de Servicio Público | F9: =D9+E9 -> 0.00 | I9: =F9-G9 -> 0.00
B10: B. Magisterio | F10: 0.00 | I10: 0.00
B11: C. Servicios de Salud | D11: =D12+D13 -> 0.00 | E11: 0.00 | F11: 0.00 | G11: =G12+G13 -> 0.00 | H11: 0.00 | I11: 0.00
C12: c1) Personal Administrativo | F12: 0.00 | I12: 0.00
C13: c2) Personal Médico, Paramédico y afín | F13: 0.00 | I13: 0.00
B14: D. Seguridad Pública | F14: 0.00 | I14: 0.00
B15: E. Gastos asociados a la implementación de nuevas leyes federales o reformas a las mismas | D15: =D16+D17 -> 0.00 | E15: 0.00 | F15: 0.00 | G15: =G16+G17 -> 0.00 | H15: 0.00 | I15: 0.00
C16: e1) Nombre del Programa o Ley | F16: 0.00 | I16: 0.00
C17: e2) Nombre del Programa o Ley | F17: 0.00 | I17: 0.00
B18: F. Sentencias laborales definitivas | F18: 0.00 | I18: 0.00
B20: II. Gasto Etiquetado | D20: =D21+D22+D23+D26+D27+D30 -> 0.00 | E20: 0.00 | F20: 0.00 | G20: 0.00 | H20: 0.00 | I20: 0.00
B21: A. Personal Administrativo y de Servicio Público | F21: =D21+E21 -> 0.00 | I21: =F21-G21 -> 0.00
B22: B. Magisterio | F22: 0.00 | I22: 0.00
B23: C. Servicios de Salud | D23: =D24+D25 -> 0.00 | E23: 0.00 | F23: 0.00 | G23: =G24+G25 -> 0.00 | H23: 0.00 | I23: 0.00
C24: c1) Personal Administrativo | F24: 0.00 | I24: 0.00
C25: c2) Personal Médico, Paramédico y afín | F25: 0.00 | I25: 0.00
B26: D. Seguridad Pública | F26: 0.00 | I26: 0.00
B27: E. Gastos asociados a la implementación de nuevas leyes federales o reformas a las mismas | D27: =D28+D29 -> 0.00 | E27: 0.00 | F27: 0.00 | G27: =G28+G29 -> 0.00 | H27: 0.00 | I27: 0.00
C28: e1) Nombre del Programa o Ley | F28: 0.00 | I28: 0.00
C29: e2) Nombre del Programa o Ley | F29: 0.00 | I29: 0.00
B30: F. Sentencias laborales definitivas | F30: 0.00 | I30: 0.00
B32: III. Total del Gasto en Servicios Personales | D32: =D19+D31 -> 0.00 | E32: 0.00 | F32: 0.00 | G32: 0.00 | H32: 0.00 | I32: =F32-G32 -> 0.00
A34: Bajo protesta de decir verdad declaramos que los Estados Financieros y sus notas, son razonablemente correctos y son responsabilidad del emisor.
C37: =Validacion!A7 -> LIC. JOSE HERIBERTO GARCIA MURILLO | F37: =Validacion!A9 -> LAE BRUNO GERMAN ENCISO GUILLEN
C39: Presidente Municipal o titular del ente público | F39: Encargado de la Hacienda Municipal o Responsable de las finanzas del ente público

Sheet F22 (hidden)
A1: ="NOMBRE DEL ENTE PÚBLICO: "&Validacion!A2 -> NOMBRE DEL ENTE PÚBLICO: Ixtlahuacán de los Membrillos
A2: Balance Presupuestario - LDF
A3: ='F6'!A3 -> DEL 1° DE ENERO AL 31 DE ENERO DE 2025
A4: (PESOS)
A5: Concepto | E5: Estimado/ Aprobado | F5: Devengado | G5: Recaudado/ Pagado
B6: A. Ingresos Totales | E6: =SUM(E7:E9) -> 0.00 | F6: 0.00 | G6: 0.00
C7: A1. Ingresos de Libre Disposición | E7: =F7B!C39 -> 0.00 | F7: =F7B!F39 -> 0.00 | G7: =F7B!G39 -> 0.00
C8: A2.Transferencias Federales Etiquetadas | E8: =F7B!C61 -> 0.00 | F8: =F7B!F61 -> 0.00 | G8: =F7B!G61 -> 0.00
C9: A3. Financiamiento Neto | E9: =E33 -> 0.00 | F9: 0.00 | G9: 0.00
B10: B. Egresos Presupuestarios | E10: =SUM(E11:E12) -> 0.00 | F10: 0.00 | G10: 0.00
C11: B1. Gastos No Etiquetado (sin incluir Amortización de la Deuda Pública) | E11: =F8B!D80-E31 -> 0.00 | F11: =F8B!G80-F31 -> 0.00 | G11: =F8B!H80-G31 -> 0.00
C12: B2. Gasto Etiquetado (sin incluir Amortización de la Deuda Pública) | E12: =F8B!D154-E32 -> 0.00 | F12: =F8B!G154-F32 -> 0.00 | G12: =F8B!H154-G32 -> 0.00
B13: C. Remanentes del Ejercicio Anterior | F13: =SUM(F14:F15) -> 0.00 | G13: 0.00
C14: C1. Remanentes de Ingresos de Libre Disposición aplicados en el periodo
C15: C2. Remanentes de Transferencias Federales Etiquetadas aplicados en el periodo
B16: I. Balance Presupuestario | E16: =E6-E10+E13 -> 0.00 | F16: 0.00 | G16: 0.00
B17: II. Balance Presupuestario sin Financiamiento Beto | E17: =E16-E9 -> 0.00 | F17: 0.00 | G17: 0.00
B18: III. Balance Presupuestario sin Financiamiento Neto y sin Remanentes del Ejercicio Anterior | E18: =E17-E13 -> 0.00 | F18: 0.00 | G18: 0.00
A20: Concepto | E20: Aprobado | F20: Devengado | G20: Pagado
B21: E. Intereses, Comisiones y Gastos de la Deuda | E21: =SUM(E22:E23) -> 0.00 | F21: 0.00 | G21: 0.00
C22: E1. Intereses, Comisiones y Gastos de la Deuda con Gasto No Etiquetado | E22: =SUM(F8B!D74:D77) -> 0.00 | F22: =SUM(F8B!G74:G77) -> 0.00 | G22: =SUM(F8B!H74:H77) -> 0.00
C23: E2. Intereses, Comisiones y Gastos de la Deuda con Gasto Etiquetado | E23: =SUM(F8B!D148:D151) -> 0.00 | F23: =SUM(F8B!G148:G151) -> 0.00 | G23: =SUM(F8B!H148:H151) -> 0.00
B24: IV. Balance Primario | E24: =E18+E21 -> 0.00 | F24: 0.00 | G24: 0.00
A26: Concepto | E26: Estimado/ Aprobado | F26: Devengado | G26: Recaudado/ Pagado
B27: F. Financiamiento | E27: =SUM(E28:E29) -> 0.00 | F27: 0.00 | G27: 0.00
C28: F1. Financiamiento con Fuente de Pago de Ingresos de Libre Disposición | E28: =F7B!C66 -> 0.00 | F28: =F7B!F66 ->  | G28: =F7B!G66 -> 0.00
C29: F2. Financiamiento con Fuente de Pago de Transferencias Federales Etiquetadas | E29: =F7B!C67 -> 0.00 | F29: =F7B!F67 ->  | G29: =F7B!G67 -> 0.00
B30: G. Amortización de la Deuda | E30: =SUM(E31:E32) -> 0.00 | F30: 0.00 | G30: 0.00
C31: G1. Amortización de la Deuda Pública con Gasto No Etiquetado | E31: =F8B!D73 -> 0.00 | F31: =F8B!G73 ->  | G31: =F8B!H73 -> 0.00
C32: G2. Amortización de la Deuda Pública con Gasto Etiquetado | E32: =F8B!D147 -> 0.00 | F32: =F8B!G147 ->  | G32: =F8B!H147 -> 0.00
B33: A3.Financiamiento Neto | E33: =E27-E30 -> 0.00 | F33: 0.00 | G33: 0.00
A35: Concepto | E35: Estimado/ Aprobado | F35: Devengado | G35: Recaudado/ Pagado
B36: A1. Ingresos de Libre Disposición | E36: =E7 -> 0.00 | F36: 0.00 | G36: 0.00
B37: A3.1 Financiamiento Neto con Fuente de Pago de Ingresos de Libre Disposición | E37: =E38-E39 -> 0.00 | F37: 0.00 | G37: 0.00
C38: F1. Financiamiento con Fuente de Pago de Ingresos de Libre Disposición | E38: =E28 -> 0.00 | G38: 0.00
C39: G1. Amortización de la Deuda Pública con Gasto Etiquetado | E39: =E31 -> 0.00 | G39: 0.00
B40: B1. Gasto No Etiquetado (sin incluir Amortización de la Deuda Pública) | E40: =E11 -> 0.00 | F40: 0.00 | G40: 0.00
B41: C1. Remanente de ingresos de libre disposición aplicados en el periodo | F41: =F14 -> 
B42: V. Balance Presupuestario de Recursos Disponibles | E42: =E36+E37-E40+E41 -> 0.00 | F42: 0.00 | G42: 0.00
B43: VI. Balance Presupuestario de Recursos Disponibles sin Financiamiento Neto | E43: =E42-E37 -> 0.00 | F43: 0.00 | G43: 0.00
A45: Concepto | E45: Estimado/ Aprobado | F45: Devengado | G45: Recaudado/ Pagado
B46: A2. Transferencias Federales Etiquetadas | E46: =E8 -> 0.00 | F46: 0.00 | G46: 0.00
B47: A3.2 Financiamiento Neto con Fuente de Pago de Transferencias Federales Etiquetadas | E47: =E48-E49 -> 0.00 | F47: 0.00 | G47: 0.00
C48: F2. Financiamiento con Fuente de Pago de Transferencias Federales Etiquetadas | E48: =E29 -> 0.00 | G48: 0.00
C49: G2. Amortización de la Deuda Pública con Gasto Etiquetado | E49: =E32 -> 0.00 | G49: 0.00
B50: B2. Gasto Etiquetado (sin incluir Amortización de la Deuda Pública) | E50: =E12 -> 0.00 | F50: 0.00 | G50: 0.00
B51: C2. Remanente de Transferencias Federales Etiquetadas aplicados en el periodo | F51: =F15 -> 
B52: VII. Balance Presupuestario de Recursos Etiquetados | E52: =E46+E47-E50+E51 -> 0.00 | F52: 0.00 | G52: 0.00
B53: VIII. Balance Presupuestario de Recursos Etiquetados sin Financiamiento Neto | E53: =E52-E47 -> 0.00 | F53: 0.00 | G53: 0.00
A55: Bajo protesta de decir verdad declaramos que los Estados Financieros y sus notas, son razonablemente correctos y son responsabilidad del emisor.
C59: =Validacion!A7 -> LIC. JOSE HERIBERTO GARCIA MURILLO | E59: =Validacion!A9 -> LAE BRUNO GERMAN ENCISO GUILLEN
C61: Presidente Municipal o titular del ente público | E61: Encargado de la Hacienda Municipal o Responsable de las finanzas del ente público

Sheet F23 (hidden)
A1: ="Nombre del Ente Público: "&Validacion!A2 -> Nombre del Ente Público: Ixtlahuacán de los Membrillos
A2: Informativa Anual de Obras
A3: ='F6'!A3 -> DEL 1° DE ENERO AL 31 DE ENERO DE 2025
A4: (Cifra en pesos)
A5: NOMBRE DE OBRA O NÚMERO DE ORDEN DE TRABAJO | B5: LOCALIDAD | C5: DESCRIPCIÓN DE LA OBRA U OBJETO DEL CONTRATO | D5: NOMBRE DEL EJECUTOR DE LA OBRA | E5: UBICACIÓN GEOGRÁFICA | G5: MODALIDAD DE EJECUCIÓN | K5: PLAZO DE EJECUCIÓN | N5: PRORROGA Y/O DIFERIMIENTO | P5: ORIGEN DEL RECURSO (MONTO) | T5: IMPORTE TOTAL DEL PAGO | U5: ESTATUS DE LA OBRA | V5: ENTREGA RECEPCIÓN Y/O MINUTA DE TERMINACIÓIN
G7: ADMÓN. DIRECTA | H7: CONTRATO
E8: LATITUD | F8: LONGITUD | H8: ADJ. DIRECTA | I8: CONCURSO SIMPL. | J8: LICITA. PÚBLICA | K8: INICIO | L8: TERMINO | M8: DÍAS NATURALES | N8: SI | O8: NO | P8: PROPIOS | Q8: ESTATAL | R8: FISMDF | S8: CONVENIO FEDERAL | V8: SI | W8: NO
M9: =L9-K9 -> 0 | T9: =SUM(P9:S9) -> 0.00
M10: 0 | T10: 0.00
M11: 0 | T11: 0.00
M12: 0 | T12: 0.00
M13: 0 | T13: 0.00
M14: 0 | T14: 0.00
M15: 0 | T15: 0.00
M16: 0 | T16: 0.00
M17: 0 | T17: 0.00
M18: 0 | T18: 0.00
M19: 0 | T19: 0.00
M20: 0 | T20: 0.00
M21: 0 | T21: 0.00
M22: 0 | T22: 0.00
M23: 0 | T23: 0.00
M24: 0 | T24: 0.00
M25: 0 | T25: 0.00
M26: 0 | T26: 0.00
M27: 0 | T27: 0.00
M28: 0 | T28: 0.00
M29: 0 | T29: 0.00
M30: 0 | T30: 0.00
M31: 0 | T31: 0.00
M32: 0 | T32: 0.00
M33: 0 | T33: 0.00
M34: 0 | T34: 0.00
M35: 0 | T35: 0.00
M36: 0 | T36: 0.00
M37: 0 | T37: 0.00
M38: 0 | T38: 0.00
M39: 0 | T39: 0.00
M40: 0 | T40: 0.00
M41: 0 | T41: 0.00
M42: 0 | T42: 0.00
M43: 0 | T43: 0.00
M44: 0 | T44: 0.00
M45: 0 | T45: 0.00
M46: 0 | T46: 0.00
M47: 0 | T47: 0.00
M48: 0 | T48: 0.00
M49: 0 | T49: 0.00
M50: 0 | T50: 0.00
M51: 0 | T51: 0.00
M52: 0 | T52: 0.00
M53: 0 | T53: 0.00
M54: 0 | T54: 0.00
M55: 0 | T55: 0.00
M56: 0 | T56: 0.00
M57: 0 | T57: 0.00
M58: 0 | T58: 0.00
M59: 0 | T59: 0.00
M60: 0 | T60: 0.00
M61: 0 | T61: 0.00
M62: 0 | T62: 0.00
M63: 0 | T63: 0.00
M64: 0 | T64: 0.00
M65: 0 | T65: 0.00
M66: 0 | T66: 0.00
M67: 0 | T67: 0.00
M68: 0 | T68: 0.00
M69: 0 | T69: 0.00
M70: 0 | T70: 0.00
M71: 0 | T71: 0.00
M72: 0 | T72: 0.00
M73: 0 | T73: 0.00
M74: 0 | T74: 0.00
M75: 0 | T75: 0.00
M76: 0 | T76: 0.00
M77: 0 | T77: 0.00
M78: 0 | T78: 0.00
M79: 0 | T79: 0.00
M80: 0 | T80: 0.00
M81: 0 | T81: 0.00
M82: 0 | T82: 0.00
M83: 0 | T83: 0.00
M84: 0 | T84: 0.00
M85: 0 | T85: 0.00
M86: 0 | T86: 0.00
M87: 0 | T87: 0.00
M88: 0 | T88: 0.00
M89: 0 | T89: 0.00
M90: 0 | T90: 0.00
M91: 0 | T91: 0.00
M92: 0 | T92: 0.00
M93: 0 | T93: 0.00
M94: 0 | T94: 0.00
M95: 0 | T95: 0.00
M96: 0 | T96: 0.00
M97: 0 | T97: 0.00
M98: 0 | T98: 0.00
M99: 0 | T99: 0.00
M100: 0 | T100: 0.00
M101: 0 | T101: 0.00
M102: 0 | T102: 0.00
M103: 0 | T103: 0.00
M104: 0 | T104: 0.00
M105: 0 | T105: 0.00
M106: 0 | T106: 0.00
M107: 0 | T107: 0.00
M108: 0 | T108: 0.00
M109: 0 | T109: 0.00
M110: 0 | T110: 0.00
M111: 0 | T111: 0.00
M112: 0 | T112: 0.00
M113: 0 | T113: 0.00
M114: 0 | T114: 0.00
M115: 0 | T115: 0.00
M116: 0 | T116: 0.00
M117: 0 | T117: 0.00
M118: 0 | T118: 0.00
M119: 0 | T119: 0.00
M120: 0 | T120: 0.00
M121: 0 | T121: 0.00
M122: 0 | T122: 0.00
M123: 0 | T123: 0.00
M124: 0 | T124: 0.00
M125: 0 | T125: 0.00
M126: 0 | T126: 0.00
M127: 0 | T127: 0.00
M128: 0 | T128: 0.00
M129: 0 | T129: 0.00
M130: 0 | T130: 0.00
M131: 0 | T131: 0.00
M132: 0 | T132: 0.00
M133: 0 | T133: 0.00
M134: 0 | T134: 0.00
M135: 0 | T135: 0.00
M136: 0 | T136: 0.00
M137: 0 | T137: 0.00
M138: 0 | T138: 0.00
M139: 0 | T139: 0.00
M140: 0 | T140: 0.00
M141: 0 | T141: 0.00
M142: 0 | T142: 0.00
M143: 0 | T143: 0.00
M144: 0 | T144: 0.00
M145: 0 | T145: 0.00
M146: 0 | T146: 0.00
M147: 0 | T147: 0.00
M148: 0 | T148: 0.00
M149: 0 | T149: 0.00
M150: 0 | T150: 0.00
M151: 0 | T151: 0.00
M152: 0 | T152: 0.00
M153: 0 | T153: 0.00
M154: 0 | T154: 0.00
M155: 0 | T155: 0.00
M156: 0 | T156: 0.00
M157: 0 | T157: 0.00
M158: 0 | T158: 0.00
M159: 0 | T159: 0.00
M160: 0 | T160: 0.00
M161: 0 | T161: 0.00
M162: 0 | T162: 0.00
M163: 0 | T163: 0.00
M164: 0 | T164: 0.00
M165: 0 | T165: 0.00
M166: 0 | T166: 0.00
M167: 0 | T167: 0.00
M168: 0 | T168: 0.00
M169: 0 | T169: 0.00
M170: 0 | T170: 0.00
M171: 0 | T171: 0.00
M172: 0 | T172: 0.00
M173: 0 | T173: 0.00
M174: 0 | T174: 0.00
M175: 0 | T175: 0.00
M176: 0 | T176: 0.00
M177: 0 | T177: 0.00
M178: 0 | T178: 0.00
M179: 0 | T179: 0.00
M180: 0 | T180: 0.00
M181: 0 | T181: 0.00
M182: 0 | T182: 0.00
M183: 0 | T183: 0.00
M184: 0 | T184: 0.00
M185: 0 | T185: 0.00
M186: 0 | T186: 0.00
M187: 0 | T187: 0.00
M188: 0 | T188: 0.00
M189: 0 | T189: 0.00
M190: 0 | T190: 0.00
M191: 0 | T191: 0.00
M192: 0 | T192: 0.00
M193: 0 | T193: 0.00
M194: 0 | T194: 0.00
M195: 0 | T195: 0.00
M196: 0 | T196: 0.00
M197: 0 | T197: 0.00
M198: 0 | T198: 0.00
M199: 0 | T199: 0.00
M200: 0 | T200: 0.00
M201: 0 | T201: 0.00
... 299 more rows

Sheet F1 (hidden)
B1: ="Nombre del Ente Público: "&Validacion!A2 -> Nombre del Ente Público: Ixtlahuacán de los Membrillos
B2: Estado Analítico de Situación Financiera
B3: ="Al "&INDEX(Validacion!D185:D196,MATCH(Validacion!A11,Validacion!C185:C196,0)) -> Al 31 de Enero de 2025
B4: (Cifra en pesos)
B5: Concepto | AF5: =Validacion!F185 -> 2025 | AG5: =Validacion!F186 -> 2024 | AI5: Concepto | BM5: =Validacion!F185 -> 2025 | BN5: =Validacion!F186 -> 2024
B6: ACTIVO | AI6: PASIVO
B7: ACTIVO CIRCULANTE | AI7: PASIVO CIRCULANTE
B8: EFECTIVO Y EQUIVALENTES | AF8: =SUM(AF9:AF15) -> 77,664,477.99 | AG8: 62,441,985.37 | AI8: CUENTAS POR PAGAR A CORTO PLAZO | BM8: =SUM(BM9:BM17) -> -1,229,153.88 | BN8: -990,005.15
B9: Efectivo | AF9: =Balanza!G6 -> 297,939.06 | AG9: =Balanza!C6 -> 297,939.06 | AI9: Servicios personales por pagar a corto plazo | BM9: =Balanza!H104 -> 0.00 | BN9: =Balanza!D104 -> 
B10: Bancos/Tesorería | AF10: =Balanza!G7 -> 72,531,938.93 | AG10: =Balanza!C7 -> 57,309,446.31 | AI10: Proveedores por pagar a corto plazo | BM10: =Balanza!H105 -> 17,734.19 | BN10: =Balanza!D105 -> 256,699.13
B11: Bancos/Dependencias y otros | AF11: =Balanza!G8 -> 0.00 | AG11: =Balanza!C8 ->  | AI11: Contratistas por obras públicas por pagar a corto plazo | BM11: =Balanza!H106 -> 0.00 | BN11: =Balanza!D106 -> 
B12: Inversiones temporales (hasta 3 meses) | AF12: =Balanza!G9 -> 0.00 | AG12: =Balanza!C9 ->  | AI12: Participaciones y aportaciones por pagar a corto plazo | BM12: =Balanza!H107 -> 0.00 | BN12: =Balanza!D107 -> 
B13: Fondos con afectación específica | AF13: =Balanza!G10 -> 0.00 | AG13: =Balanza!C10 ->  | AI13: Transferencias otorgadas por pagar a corto plazo | BM13: =Balanza!H108 -> 0.00 | BN13: =Balanza!D108 -> 
B14: Depósitos de fondos de terceros en garantía y/o administración | AF14: =Balanza!G11 -> 0.00 | AG14: =Balanza!C11 ->  | AI14: Intereses, comisiones y otros gastos de la deuda pública por pagar a corto plazo | BM14: =Balanza!H109 -> 0.00 | BN14: =Balanza!D109 -> 
B15: Otros efectivos y equivalentes | AF15: =Balanza!G12 -> 4,834,600.00 | AG15: =Balanza!C12 -> 4,834,600.00 | AI15: Retenciones y contribuciones por pagar a corto plazo | BM15: =Balanza!H110 -> -1,246,888.07 | BN15: =Balanza!D110 -> -1,246,704.28
B16: DERECHOS A RECIBIR EFECTIVO O EQUIVALENTES | AF16: =SUM(AF17:AF23) -> 5,706,024.88 | AG16: 5,216,121.51 | AI16: Devoluciones de la ley de ingresos por pagar a corto plazo | BM16: =Balanza!H111 -> 0.00 | BN16: =Balanza!D111 -> 
B17: Inversiones financieras de corto plazo | AF17: =Balanza!G14 -> 0.00 | AG17: =Balanza!C14 ->  | AI17: Otras cuentas por pagar a corto plazo | BM17: =Balanza!H112 -> 0.00 | BN17: =Balanza!D112 -> 
B18: Cuentas por cobrar a corto plazo | AF18: =Balanza!G15 -> 0.00 | AG18: =Balanza!C15 ->  | AI18: DOCUMENTOS POR PAGAR A CORTO PLAZO | BM18: =SUM(BM19:BM21) -> 961.53 | BN18: 961.53
B19: Deudores diversos por cobrar a corto plazo | AF19: =Balanza!G16 -> 3,851,900.82 | AG19: =Balanza!C16 -> 4,056,968.30 | AI19: Documentos comerciales por pagar a corto plazo | BM19: =Balanza!H114 -> 0.00 | BN19: =Balanza!D114 -> 
B20: Ingresos por recuperar a corto plazo | AF20: =Balanza!G17 -> 0.00 | AG20: =Balanza!C17 ->  | AI20: Documentos con contratistas por obras públicas por pagar a corto plazo | BM20: =Balanza!H115 -> 961.53 | BN20: =Balanza!D115 -> 961.53
B21: Deudores por anticipos de la tesorería a corto plazo | AF21: =Balanza!G18 -> -25,130.33 | AG21: =Balanza!C18 -> -25,130.33 | AI21: Otros documentos por pagar a corto plazo | BM21: =Balanza!H116 -> 0.00 | BN21: =Balanza!D116 -> 
B22: Préstamos otorgados a corto plazo | AF22: =Balanza!G19 -> 1,879,254.39 | AG22: =Balanza!C19 -> 1,184,283.54 | AI22: PORCIÓN A CORTO PLAZO DE LA DEUDA PÚBLICA A LARGO PLAZO | BM22: =SUM(BM23:BM25) -> 731,441.12 | BN22: 0.00
B23: Otros derechos a recibir efectivo o equivalentes a corto plazo | AF23: =Balanza!G20 -> 0.00 | AG23: =Balanza!C20 ->  | AI23: Porción a corto plazo de la deuda pública interna | BM23: =Balanza!H118 -> 731,441.12 | BN23: =Balanza!D118 -> 
B24: DERECHOS A RECIBIR BIENES O SERVICIOS | AF24: =SUM(AF25:AF29) -> 5,073,657.56 | AG24: 5,496,349.91 | AI24: Porción a corto plazo de la deuda pública externa | BM24: =Balanza!H119 ->  | BN24: =Balanza!D119 -> 
B25: Anticipo a proveedores por adquisición de bienes y prestación de servicios a corto plazo | AF25: =Balanza!G22 -> 3,436,915.71 | AG25: =Balanza!C22 -> 3,110,726.83 | AI25: Porción a corto plazo de arrendamiento financiero | BM25: =Balanza!H120 -> 0.00 | BN25: =Balanza!D120 -> 
B26: Anticipo a proveedores por adquisición de bienes inmuebles y muebles a corto plazo | AF26: =Balanza!G23 -> 0.00 | AG26: =Balanza!C23 ->  | AI26: TÍTULOS Y VALORES A CORTO PLAZO | BM26: =SUM(BM27:BM28) -> 0.00 | BN26: 0.00
B27: Anticipo a proveedores por adquisición de bienes intangibles a corto plazo | AF27: =Balanza!G24 -> 0.00 | AG27: =Balanza!C24 ->  | AI27: Títulos y valores de la deuda pública interna a corto plazo | BM27: =Balanza!H122 -> 0.00 | BN27: =Balanza!D122 -> 
B28: Anticipo a contratistas por obras públicas a corto plazo | AF28: =Balanza!G25 -> 1,636,741.85 | AG28: =Balanza!C25 -> 2,385,623.08 | AI28: Títulos y valores de la deuda pública externa a corto plazo | BM28: =Balanza!H123 ->  | BN28: =Balanza!D123 -> 
B29: Otros derechos a recibir bienes o servicios a corto plazo | AF29: =Balanza!G26 -> 0.00 | AG29: =Balanza!C26 ->  | AI29: PASIVOS DIFERIDOS A CORTO PLAZO | BM29: =SUM(BM30:BM32) -> 0.00 | BN29: 0.00
B30: INVENTARIOS | AF30: =SUM(AF31:AF35) -> 0.00 | AG30: 0.00 | AI30: Ingresos cobrados por adelantado a corto plazo | BM30: =Balanza!H125 -> 0.00 | BN30: =Balanza!D125 -> 
B31: Inventario de mercancías para venta | AF31: =Balanza!G28 ->  | AG31: =Balanza!C28 ->  | AI31: Intereses cobrados por adelantado a corto plazo | BM31: =Balanza!H126 -> 0.00 | BN31: =Balanza!D126 -> 
B32: Inventario de mercancías terminadas | AF32: =Balanza!G29 ->  | AG32: =Balanza!C29 ->  | AI32: Otros pasivos diferidos a corto plazo | BM32: =Balanza!H127 -> 0.00 | BN32: =Balanza!D127 -> 
B33: Inventario de mercancías en proceso de elaboración | AF33: =Balanza!G30 ->  | AG33: =Balanza!C30 ->  | AI33: FONDOS Y BIENES DE TERCEROS EN GARANTÍA Y/O ADMINISTRACIÓN A CORTO PLAZO | BM33: =SUM(BM34:BM39) -> 0.00 | BN33: 0.00
B34: Inventario de materias primas, materiales y suministros para producción | AF34: =Balanza!G31 ->  | AG34: =Balanza!C31 ->  | AI34: Fondos en garantía a corto plazo | BM34: =Balanza!H129 -> 0.00 | BN34: =Balanza!D129 -> 
B35: Bienes en tránsito | AF35: =Balanza!G32 ->  | AG35: =Balanza!C32 ->  | AI35: Fondos en administración a corto plazo | BM35: =Balanza!H130 -> 0.00 | BN35: =Balanza!D130 -> 
B36: ALMACENES | AF36: =AF37 -> 0.00 | AI36: Fondos contingentes a corto plazo | BM36: =Balanza!H131 -> 0.00 | BN36: =Balanza!D131 -> 
B37: Almacén de materiales y suministro para el consumo | AF37: =Balanza!G34 -> 0.00 | AG37: =Balanza!C34 ->  | AI37: Fondos de fideicomisos, mandatos y contratos análogos a corto plazo | BM37: =Balanza!H132 -> 0.00 | BN37: =Balanza!D132 -> 
B38: ESTIMACIÓN POR PÉRDIDA O DETERIORO DE ACTIVOS CIRCULANTES | AF38: =SUM(AF39:AF40) -> 0.00 | AG38: 0.00 | AI38: Otros fondos de terceros en garantía y/o administración a corto plazo | BM38: =Balanza!H133 -> 0.00 | BN38: =Balanza!D133 -> 
B39: Estimaciones para cuentas incobrables por derechos a recibir efectivo o equivalentes | AF39: =Balanza!G36 -> 0.00 | AG39: =Balanza!C36 ->  | AI39: Valores y bienes en garantía a corto plazo | BM39: =Balanza!H134 -> 0.00 | BN39: =Balanza!D134 -> 
B40: Estimación por deterioro de inventarios | AF40: =Balanza!G37 -> 0.00 | AG40: =Balanza!C37 ->  | AI40: PROVISIONES A CORTO PLAZO | BM40: =SUM(BM41:BM43) -> 0.00 | BN40: 0.00
B41: OTROS ACTIVOS CIRCULANTES | AF41: =SUM(AF42:AF45) -> 0.00 | AG41: 0.00 | AI41: Provisión para demandas y juicios a corto plazo | BM41: =Balanza!H136 -> 0.00 | BN41: =Balanza!D136 -> 
B42: Valores en garantía | AF42: =Balanza!G39 -> 0.00 | AG42: =Balanza!C39 ->  | AI42: Provisión para contingencias a corto plazo | BM42: =Balanza!H137 -> 0.00 | BN42: =Balanza!D137 -> 
B43: Bienes en garantía (excluye depósitos de fondos) | AF43: =Balanza!G40 -> 0.00 | AG43: =Balanza!C40 ->  | AI43: Otras provisiones a corto plazo | BM43: =Balanza!H138 -> 0.00 | BN43: =Balanza!D138 -> 
B44: Bienes derivados de embargos, decomisos, aseguramientos y dación en pago | AF44: =Balanza!G41 -> 0.00 | AG44: =Balanza!C41 ->  | AI44: OTROS PASIVOS A CORTO PLAZO | BM44: =SUM(BM45:BM47) -> 0.00 | BN44: 0.00
B45: Adquisición con fondos de terceros | AF45: =Balanza!G42 -> 0.00 | AG45: =Balanza!C42 ->  | AI45: Ingresos por clasificar | BM45: =Balanza!H140 -> 0.00 | BN45: =Balanza!D140 -> 
B46: ACTIVOS CIRCULANTES | AF46: =AF8+AF16+AF24+AF30+AF36+AF38+AF41 -> 88,444,160.43 | AG46: 73,154,456.79 | AI46: Recaudación por participar | BM46: =Balanza!H141 -> 0.00 | BN46: =Balanza!D141 -> 
B47: ACTIVO NO CIRCULANTE | AI47: Otros pasivos circulantes | BM47: =Balanza!H142 -> 0.00 | BN47: =Balanza!D142 -> 
B48: INVERSIONES FINANCIERAS A LARGO PLAZO | AF48: =SUM(AF49:AF52) -> -168,473.67 | AG48: -187,388.76 | AI48: PASIVOS CIRCULANTES | BM48: =BM8+BM18+BM22+BM26+BM29+BM33+BM40+BM44 -> -496,751.23 | BN48: -989,043.62
B49: Inversiones a largo plazo | AF49: =Balanza!G45 -> 0.00 | AG49: =Balanza!C45 ->  | AI49: PASIVO NO CIRCULANTE
B50: Títulos y valores a largo plazo | AF50: =Balanza!G46 -> 0.00 | AG50: =Balanza!C46 ->  | AI50: CUENTAS POR PAGAR A LARGO PLAZO | BM50: =SUM(BM51:BM52) -> 0.00 | BN50: 0.00
B51: Fideicomisos, mandatos y contratos análogos | AF51: =Balanza!G47 -> -168,473.67 | AG51: =Balanza!C47 -> -187,388.76 | AI51: Proveedores por pagar a largo plazo | BM51: =Balanza!H145 -> 0.00 | BN51: =Balanza!D145 -> 
B52: Participaciones y aportaciones de capital | AF52: =Balanza!G48 -> 0.00 | AG52: =Balanza!C48 ->  | AI52: Contratistas por obras públicas por pagar a largo plazo | BM52: =Balanza!H146 -> 0.00 | BN52: =Balanza!D146 -> 
B53: DERECHOS A RECIBIR EFECTIVO O EQUIVALENTES A LARGO PLAZO | AF53: =SUM(AF54:AF58) -> 0.00 | AG53: 0.00 | AI53: DOCUMENTOS POR PAGAR A LARGO PLAZO | BM53: =SUM(BM54:BM56) -> 0.00 | BN53: 0.00
B54: Documentos por cobrar a largo plazo | AF54: =Balanza!G50 -> 0.00 | AG54: =Balanza!C50 ->  | AI54: Documentos comerciales por pagar a largo plazo | BM54: =Balanza!H148 -> 0.00 | BN54: =Balanza!D148 -> 
B55: Deudores diversos a largo plazo | AF55: =Balanza!G51 -> 0.00 | AG55: =Balanza!C51 ->  | AI55: Documentos con contratistas por obras públicas por pagar a largo plazo | BM55: =Balanza!H149 -> 0.00 | BN55: =Balanza!D149 -> 
B56: Ingresos por recuperar a largo plazo | AF56: =Balanza!G52 -> 0.00 | AG56: =Balanza!C52 ->  | AI56: Otros documentos por pagar a largo plazo | BM56: =Balanza!H150 -> 0.00 | BN56: =Balanza!D150 -> 
B57: Préstamos otorgados a largo plazo | AF57: =Balanza!G53 -> 0.00 | AG57: =Balanza!C53 ->  | AI57: DEUDA PÚBLICA A LARGO PLAZO | BM57: =SUM(BM58:BM62) -> 28,533,916.26 | BN57: 29,327,028.44
B58: Otros derechos a recibir efectivo o equivalentes a largo plazo | AF58: =Balanza!G54 -> 0.00 | AG58: =Balanza!C54 ->  | AI58: Títulos y valores de la deuda pública interna a largo plazo | BM58: =Balanza!H152 -> 0.00 | BN58: =Balanza!D152 -> 
B59: BIENES INMUEBLES, INFRAESTRUCTURA Y CONSTRUCCIONES EN PROCESO | AF59: =SUM(AF60:AF66) -> 338,661,390.80 | AG59: 334,935,354.20 | AI59: Títulos y valores de la deuda pública externa a largo plazo | BM59: =Balanza!H153 ->  | BN59: =Balanza!D153 -> 
B60: Terrenos | AF60: =Balanza!G56 -> 26,661,195.01 | AG60: =Balanza!C56 -> 26,661,195.01 | AI60: Préstamos de la deuda pública interna por pagar a largo plazo | BM60: =Balanza!H154 -> 28,533,916.26 | BN60: =Balanza!D154 -> 29,327,028.44
B61: Viviendas | AF61: =Balanza!G57 -> 0.00 | AG61: =Balanza!C57 ->  | AI61: Préstamos de la deuda pública externa por pagar a largo plazo | BM61: =Balanza!H155 ->  | BN61: =Balanza!D155 -> 
B62: Edificios no habitacionales | AF62: =Balanza!G58 -> 32,456,577.20 | AG62: =Balanza!C58 -> 32,456,577.20 | AI62: Arrendamiento financiero por pagar a largo plazo | BM62: =Balanza!H156 -> 0.00 | BN62: =Balanza!D156 -> 
B63: Infraestructura | AF63: =Balanza!G59 -> 51,753,242.47 | AG63: =Balanza!C59 -> 51,753,242.47 | AI63: PASIVOS DIFERIDOS A LARGO PLAZO | BM63: =SUM(BM64:BM66) -> 0.00 | BN63: 0.00
B64: Construcciones en proceso en bienes de dominio público | AF64: =Balanza!G60 -> 227,790,376.10 | AG64: =Balanza!C60 -> 224,064,339.50 | AI64: Créditos diferidos a largo plazo | BM64: =Balanza!H158 -> 0.00 | BN64: =Balanza!D158 -> 
B65: Construcciones en proceso en bienes propios | AF65: =Balanza!G61 -> 0.00 | AG65: =Balanza!C61 ->  | AI65: Intereses cobrados por adelantado a largo plazo | BM65: =Balanza!H159 -> 0.00 | BN65: =Balanza!D159 -> 
B66: Otros bienes inmuebles | AF66: =Balanza!G62 -> 0.00 | AG66: =Balanza!C62 ->  | AI66: Otros pasivos diferidos a largo plazo | BM66: =Balanza!H160 -> 0.00 | BN66: =Balanza!D160 -> 
B67: BIENES MUEBLES | AF67: =SUM(AF68:AF75) -> 44,440,593.41 | AG67: 43,684,658.30 | AI67: FONDOS Y BIENES DE TERCEROS EN GARANTÍA Y/O ADMINISTRACIÓN A LARGO PLAZO | BM67: =SUM(BM68:BM73) -> 0.00 | BN67: 0.00
B68: Mobiliario y equipo de administración | AF68: =Balanza!G64 -> 5,238,965.54 | AG68: =Balanza!C64 -> 5,169,365.54 | AI68: Fondos en garantía a largo plazo | BM68: =Balanza!H162 -> 0.00 | BN68: =Balanza!D162 -> 
B69: Mobiliario y equipo educacional y recreativo | AF69: =Balanza!G65 -> 894,882.14 | AG69: =Balanza!C65 -> 894,882.14 | AI69: Fondos en administración a largo plazo | BM69: =Balanza!H163 -> 0.00 | BN69: =Balanza!D163 -> 
B70: Equipo e instrumental médico y de laboratorio | AF70: =Balanza!G66 -> 1,921,564.96 | AG70: =Balanza!C66 -> 1,921,564.96 | AI70: Fondos contingentes a largo plazo | BM70: =Balanza!H164 -> 0.00 | BN70: =Balanza!D164 -> 
B71: Vehículos y equipo de transporte | AF71: =Balanza!G67 -> 29,148,659.02 | AG71: =Balanza!C67 -> 28,833,659.02 | AI71: Fondos de fideicomisos, mandatos y contratos análogos a largo plazo | BM71: =Balanza!H165 -> 0.00 | BN71: =Balanza!D165 -> 
B72: Equipo de defensa y seguridad | AF72: =Balanza!G68 -> 867,562.13 | AG72: =Balanza!C68 -> 867,562.13 | AI72: Otros fondos de terceros en garantía y/o administración a largo plazo | BM72: =Balanza!H166 -> 0.00 | BN72: =Balanza!D166 -> 
B73: Maquinaria, otros equipos y herramientas | AF73: =Balanza!G69 -> 5,961,841.16 | AG73: =Balanza!C69 -> 5,590,506.05 | AI73: Valores y bienes en garantía a largo plazo | BM73: =Balanza!H167 -> 0.00 | BN73: =Balanza!D167 -> 
B74: Colecciones, obras de arte y objetos valiosos | AF74: =Balanza!G70 -> 407,118.46 | AG74: =Balanza!C70 -> 407,118.46 | AI74: PROVISIONES A LARGO PLAZO | BM74: =SUM(BM75:BM78) -> 0.00 | BN74: 0.00
B75: Activos biológicos | AF75: =Balanza!G71 -> 0.00 | AG75: =Balanza!C71 ->  | AI75: Provisión para demandas y juicios a largo plazo | BM75: =Balanza!H169 -> 0.00 | BN75: =Balanza!D169 -> 
B76: ACTIVOS INTANGIBLES | AF76: =SUM(AF77:AF81) -> 2,757,222.70 | AG76: 2,757,222.70 | AI76: Provisión para pensiones a largo plazo | BM76: =Balanza!H170 -> 0.00 | BN76: =Balanza!D170 -> 
B77: Software | AF77: =Balanza!G73 -> 34,678.20 | AG77: =Balanza!C73 -> 34,678.20 | AI77: Provisión para contingencias a largo plazo | BM77: =Balanza!H171 -> 0.00 | BN77: =Balanza!D171 -> 
B78: Patentes, marcas y derechos | AF78: =Balanza!G74 -> 0.00 | AG78: =Balanza!C74 ->  | AI78: Otras provisiones a largo plazo | BM78: =Balanza!H172 -> 0.00 | BN78: =Balanza!D172 -> 
B79: Concesiones y franquicias | AF79: =Balanza!G75 -> 0.00 | AG79: =Balanza!C75 ->  | AI79: PASIVOS NO CIRCULANTES | BM79: =BM50+BM53+BM57+BM63+BM67+BM74 -> 28,533,916.26 | BN79: 29,327,028.44
B80: Licencias | AF80: =Balanza!G76 -> 2,722,544.50 | AG80: =Balanza!C76 -> 2,722,544.50 | AI80: TOTAL DE PASIVOS | BM80: =BM48+BM79 -> 28,037,165.03 | BN80: 28,337,984.82
B81: Otros activos intangibles | AF81: =Balanza!G77 -> 0.00 | AG81: =Balanza!C77 ->  | AI81: HACIENDA PÚBLICA/ PATRIMONIO
B82: DEPRECIACIÓN, DETERIORO Y AMORTIZACIÓN ACUMULADA DE BIENES | AF82: =SUM(AF83:AF87) -> -18,350,457.80 | AG82: -18,350,457.80 | AI82: HACIENDA PÚBLICA/ PATRIMONIO CONTRIBUIDO | BM82: =SUM(BM83:BM85) -> 0.00 | BN82: 0.00
B83: Depreciación acumulada de bienes inmuebles | AF83: =(Balanza!H79)*-1 -> -120,623.78 | AG83: =(Balanza!D79)*-1 -> -120,623.78 | AI83: Aportaciones | BM83: =Balanza!H175 -> 0.00 | BN83: =Balanza!D175 -> 
B84: Depreciación acumulada de infraestructura | AF84: =(Balanza!H80)*-1 -> 0.00 | AG84: =(Balanza!D80)*-1 -> 0.00 | AI84: Donaciones de capítal | BM84: =Balanza!H176 -> 0.00 | BN84: =Balanza!D176 -> 
B85: Depreciación acumulada de bienes muebles | AF85: =(Balanza!H81)*-1 -> -17,893,932.55 | AG85: =(Balanza!D81)*-1 -> -17,893,932.55 | AI85: Actualización de la hacienda pública/patrimonio | BM85: =Balanza!H177 -> 0.00 | BN85: =Balanza!D177 -> 
B86: Deterioro acumulado de bienes | AF86: =(Balanza!H82)*-1 -> 0.00 | AG86: =(Balanza!D82)*-1 -> 0.00 | AI86: HACIENDA PÚBLICA/PATRIMONIO GENERADO | BM86: =BM87+BM88+BM89+BM94+BM98 -> 427,747,270.90 | BN86: 407,655,860.60
B87: Amortización acumulada de activos intangibles | AF87: =(Balanza!H83)*-1 -> -335,901.47 | AG87: =(Balanza!D83)*-1 -> -335,901.47 | AI87: Resultado del ejercicio (ahorro/desahorro) | BM87: =Balanza!H179 -> 20,091,410.26 | BN87: =Balanza!D179 -> 84,783,666.63
B88: ACTIVOS DIFERIDOS | AF88: =SUM(AF89:AF94) -> 0.00 | AG88: 0.00 | AI88: Resultado de ejercicios anteriores | BM88: =Balanza!H180 -> 407,655,860.60 | BN88: =Balanza!D180 -> 322,872,194.00
B89: Estudios, formulación y evaluación de proyectos | AF89: =Balanza!G85 -> 0.00 | AG89: =Balanza!C85 ->  | AI89: REVALÚOS | BM89: =SUM(BM90:BM93) -> 0.00 | BN89: 0.00
B90: Derechos sobre bienes en régimen de arrendamiento financiero | AF90: =Balanza!G86 -> 0.00 | AG90: =Balanza!C86 ->  | AI90: Revalúo de bienes inmuebles | BM90: =Balanza!H182 -> 0.00 | BN90: =Balanza!D182 -> 
B91: Gastos pagados por adelantado a largo plazo | AF91: =Balanza!G87 -> 0.00 | AG91: =Balanza!C87 ->  | AI91: Revalúo de bienes muebles | BM91: =Balanza!H183 -> 0.00 | BN91: =Balanza!D183 -> 
B92: Anticipos a largo plazo | AF92: =Balanza!G88 -> 0.00 | AG92: =Balanza!C88 ->  | AI92: Revalúo de bienes intangibles | BM92: =Balanza!H184 -> 0.00 | BN92: =Balanza!D184 -> 
B93: Beneficios al retiro de empleados pagados por adelantado | AF93: =Balanza!G89 -> 0.00 | AG93: =Balanza!C89 ->  | AI93: Otros revalúos | BM93: =Balanza!H185 -> 0.00 | BN93: =Balanza!D185 -> 
B94: Otros activos diferidos | AF94: =Balanza!G90 -> 0.00 | AG94: =Balanza!C90 ->  | AI94: RESERVAS | BM94: =SUM(BM95:BM97) -> 0.00 | BN94: 0.00
B95: ESTIMACIÓN POR PÉRDIDA O DETERIORO DE ACTIVOS NO CIRCULANTES | AF95: =SUM(AF96:AF100) -> 0.00 | AG95: 0.00 | AI95: Reservas de patrimonio | BM95: =Balanza!H187 -> 0.00 | BN95: =Balanza!D187 -> 
B96: Estimaciones por pérdida de cuentas incobrables de documentos por cobrar a largo plazo | AF96: =(Balanza!H92)*-1 -> 0.00 | AG96: =(Balanza!D92)*-1 -> 0.00 | AI96: Reservas territoriales | BM96: =Balanza!H188 -> 0.00 | BN96: =Balanza!D188 -> 
B97: Estimaciones por pérdida de cuentas incobrables de deudores diversos por cobrar a largo plazo | AF97: =(Balanza!H93)*-1 -> 0.00 | AG97: =(Balanza!D93)*-1 -> 0.00 | AI97: Reservas por contingencias | BM97: =Balanza!H189 -> 0.00 | BN97: =Balanza!D189 -> 
B98: Estimaciones por pérdida de cuentas incobrables de ingresos por cobrar a largo plazo | AF98: =(Balanza!H94)*-1 -> 0.00 | AG98: =(Balanza!D94)*-1 -> 0.00 | AI98: RECTIFICACIONES DE RESULTADOS DE EJERCICIOS ANTERIORES | BM98: =SUM(BM99:BM101) -> 0.00 | BN98: 0.00
B99: Estimaciones por pérdida de cuentas incobrables de préstamos otorgados a largo plazo | AF99: =(Balanza!H95)*-1 -> 0.00 | AG99: =(Balanza!D95)*-1 -> 0.00 | AI99: Cambios en políticas contables | BM99: =Balanza!H191 -> 0.00 | BN99: =Balanza!D191 -> 
B100: Estimaciones por pérdida de otras cuentas incobrables a largo plazo | AF100: =(Balanza!H96)*-1 -> 0.00 | AG100: =(Balanza!D96)*-1 -> 0.00 | AI100: Cambios por errores contables | BM100: =Balanza!H192 -> 0.00 | BN100: =Balanza!D192 -> 
B101: OTROS ACTIVOS NO CIRCULANTES | AF101: =SUM(AF102:AF104) -> 0.00 | AG101: 0.00 | AI101: Cambios en estimaciones contables | BM101: =Balanza!H193 -> 0.00 | BN101: =Balanza!D193 -> 
B102: Bienes en concesión | AF102: =Balanza!G98 -> 0.00 | AG102: =Balanza!C98 ->  | AI102: EXCESO O INSUFICIENCIA EN LA ACTUALIZACIÓN DE LA HACIENDA PÚBLICA / PATRIMONIO | BM102: =SUM(BM103:BM104) -> 0.00 | BN102: 0.00
B103: Bienes en arrendamiento financiero | AF103: =Balanza!G99 -> 0.00 | AG103: =Balanza!C99 ->  | AI103: Resultado por posición monetaria | BM103: =Balanza!H195 -> 0.00 | BN103: =Balanza!D195 -> 
B104: Bienes en comodato | AF104: =Balanza!G100 -> 0.00 | AG104: =Balanza!C100 ->  | AI104: Resultado por tenencia de activos no monetarios | BM104: =Balanza!H196 -> 0.00 | BN104: =Balanza!D196 -> 
B105: ACTIVOS NO CIRCULANTES | AF105: =AF48+AF53+AF59+AF67+AF76+AF82+AF88+AF95+AF101 -> 367,340,275.50 | AG105: 362,839,388.60 | BL105: TOTAL HACIENDA PUBLICA / PATRIMONIO | BM105: =BM82+BM86+BM102 -> 427,747,270.90 | BN105: 407,655,860.60
B106: TOTAL DEL ACTIVO | AF106: =AF46+AF105 -> 455,784,435.90 | AG106: 435,993,845.40 | AI106: SUMA DE PASIVO Y PATRIMONIO / HACIENDA PÚBLICA | BM106: =BM80+BM105 -> 455,784,435.90 | BN106: 435,993,845.40
B109: Bajo protesta de decir verdad declaramos que los estados financieros y sus notas, son razonablemente correctos y son responsabilidad del emisor.
Q118: =Validacion!A7 -> LIC. JOSE HERIBERTO GARCIA MURILLO | AW118: =Validacion!A9 -> LAE BRUNO GERMAN ENCISO GUILLEN
Q120: Presidente Municipal o Títular del ente público | AW120: Encargado de la Hacienda Pública Municipal o Responsable de las finanzas del ente público

Sheet F1A
B1: MUNICIPIO IXTLAHUACÁN DE LOS MEMBRILLOS
B2: Estado de Situación Financiera
B3: AL 31 DE ENERO DE 2025
B4: (Cifras en pesos)
B5: Concepto | AF5: =Validacion!F185 -> 2025 | AG5: =Validacion!F186 -> 2024 | AI5: Concepto | BM5: =Validacion!F185 -> 2025 | BN5: =Validacion!F186 -> 2024
B6: ACTIVO | AI6: PASIVO
B7: Activo Circulante | AI7: Pasivo Circulante
B8: Efectivo y Equivalentes | AF8: =Balanza!G5 -> 77,664,477.99 | AG8: =Balanza!C5 -> 62,441,985.37 | AI8: Cuentas por Pagar a Corto Plazo | BM8: =Balanza!H103 -> -1,229,153.88 | BN8: =Balanza!D103 -> -990,005.15
B9: Derechos a Recibir Efectivo o Equivalentes | AF9: =Balanza!G13 -> 5,706,024.88 | AG9: =Balanza!C13 -> 5,216,121.51 | AI9: Documentos por Pagar a Corto Plazo | BM9: =Balanza!H113 -> 961.53 | BN9: =Balanza!D113 -> 961.53
B10: Derechos a Recibir Bienes o Servicios | AF10: =Balanza!G21 -> 5,073,657.56 | AG10: =Balanza!C21 -> 5,496,349.91 | AI10: Porción a Corto Plazo de la Deuda Pública a Largo Plazo | BM10: =Balanza!H117 -> 731,441.12 | BN10: =Balanza!D117 -> 0.00
B11: Inventarios | AF11: =Balanza!G27 -> 0.00 | AG11: =Balanza!C27 -> 0.00 | AI11: Títulos y Valores a Corto Plazo | BM11: =Balanza!H121 -> 0.00 | BN11: =Balanza!D121 -> 0.00
B12: Almacenes | AF12: =Balanza!G33 -> 0.00 | AG12: =Balanza!C33 -> 0.00 | AI12: Pasivos Diferidos a Corto Plazo | BM12: =Balanza!H124 -> 0.00 | BN12: =Balanza!D124 -> 0.00
B13: Estimación por Pérdida o Deterioro de Activos Circulantes | AF13: =Balanza!G35 -> 0.00 | AG13: =Balanza!C35 -> 0.00 | AI13: Fondos y Bienes de Terceros en Garantía y/o Administración a Corto Plazo | BM13: =Balanza!H128 -> 0.00 | BN13: =Balanza!D128 -> 0.00
B14: Otros Activos Circulantes | AF14: =Balanza!G38 -> 0.00 | AG14: =Balanza!C38 -> 0.00 | AI14: Provisiones a Corto Plazo | BM14: =Balanza!H135 -> 0.00 | BN14: =Balanza!D135 -> 0.00
B15: Total de Activos Circulantes | AF15: =AF8+AF9+AF10+AF11+AF12+AF13+AF14 -> 88,444,160.43 | AG15: 73,154,456.79 | AI15: Otros Pasivos a Corto Plazo | BM15: =Balanza!H139 -> 0.00 | BN15: =Balanza!D139 -> 0.00
B16: Activo No Circulantes | AI16: Total de Pasivos Circulante | BM16: =BM8+BM9+BM10+BM11+BM12+BM13+BM14+BM15 -> -496,751.23 | BN16: -989,043.62
B17: Inversiones Financieras a Largo Plazo | AF17: =Balanza!G44 -> -168,473.67 | AG17: =Balanza!C44 -> -187,388.76 | AI17: Pasivos No Circulante
B18: Derechos a Recibir Efectivo o Equivalentes a Largo Plazo | AF18: =Balanza!G49 -> 0.00 | AG18: =Balanza!C49 -> 0.00 | AI18: Cuentas por Pagar a Largo Plazo | BM18: =Balanza!H144 -> 0.00 | BN18: =Balanza!D144 -> 0.00
B19: Bienes Inmuebles, Infraestructura y Construcciones en Proceso | AF19: =Balanza!G55 -> 338,661,390.80 | AG19: =Balanza!C55 -> 334,935,354.20 | AI19: Documentos por Pagar a Largo Plazo | BM19: =Balanza!H147 -> 0.00 | BN19: =Balanza!D147 -> 0.00
B20: Bienes Muebles | AF20: =Balanza!G63 -> 44,440,593.41 | AG20: =Balanza!C63 -> 43,684,658.30 | AI20: Deuda Pública a Largo Plazo | BM20: =Balanza!H151 -> 28,533,916.26 | BN20: =Balanza!D151 -> 29,327,028.44
B21: Activos Intangibles | AF21: =Balanza!G72 -> 2,757,222.70 | AG21: =Balanza!C72 -> 2,757,222.70 | AI21: Pasivos Diferidos a Largo Plazo | BM21: =Balanza!H157 -> 0.00 | BN21: =Balanza!D157 -> 0.00
B22: Depreciación, Deterioro y Amortización Acumulada de Bienes | AF22: =(Balanza!H78)*-1 -> -18,350,457.80 | AG22: =(Balanza!D78)*-1 -> -18,350,457.80 | AI22: Fondos y Bienes de Terceros en Garantía y/o Administración a Largo Plazo | BM22: =Balanza!H161 -> 0.00 | BN22: =Balanza!D161 -> 0.00
B23: Activos Diferidos | AF23: =Balanza!G84 -> 0.00 | AG23: =Balanza!C84 -> 0.00 | AI23: Provisiones a Largo Plazo | BM23: =Balanza!H168 -> 0.00 | BN23: =Balanza!D168 -> 0.00
B24: Estimación por Pérdida o Deterioro de Activos no Circulantes | AF24: =(Balanza!H91)*-1 -> 0.00 | AG24: =(Balanza!D91)*-1 -> 0.00 | AI24: Total de Pasivos No Circulantes | BM24: =BM18+BM19+BM20+BM21+BM22+BM23 -> 28,533,916.26 | BN24: 29,327,028.44
B25: Otros Activos no Circulantes | AF25: =Balanza!G97 -> 0.00 | AG25: =Balanza!C97 -> 0.00 | AI25: Total del Pasivo | BM25: =BM16+BM24 -> 28,037,165.03 | BN25: 28,337,984.82
B26: Total de Activos No Circulantes | AF26: =AF17+AF18+AF19+AF20+AF21+AF22+AF23+AF24+AF25 -> 367,340,275.50 | AG26: 362,839,388.60 | AI26: HACIENDA PÚBLICA/PATRIMONIO
B27: Total del Activo | AF27: =AF15+AF26 -> 455,784,435.90 | AG27: 435,993,845.40 | AI27: Hacienda Pública/Patrimonio Contribuido | BM27: =SUM(BM28:BM30) -> 0.00 | BN27: 0.00
AI28: Aportaciones | BM28: =Balanza!H175 -> 0.00 | BN28: =Balanza!D175 -> 
AI29: Donaciones de Capital | BM29: =Balanza!H176 -> 0.00 | BN29: =Balanza!D176 -> 
AI30: Actualización de la Hacienda Pública/Patrimonio | BM30: =Balanza!H177 -> 0.00 | BN30: =Balanza!D177 -> 
AI31: Hacienda Pública/Patrimonio Generado | BM31: =BM32+BM33+BM34+BM35+BM36 -> 427,747,270.90 | BN31: 407,655,860.60
AI32: Resultado del Ejercicio (Ahorro/Desahorro) | BM32: =Balanza!H179 -> 20,091,410.26 | BN32: =Balanza!D179 -> 84,783,666.63
AI33: Resultado de Ejercicios Anteriores | BM33: =Balanza!H180 -> 407,655,860.60 | BN33: =Balanza!D180 -> 322,872,194.00
AI34: Revalúos | BM34: =Balanza!H181 -> 0.00 | BN34: =Balanza!D181 -> 0.00
AI35: Reservas | BM35: =Balanza!H186 -> 0.00 | BN35: =Balanza!D186 -> 0.00
AI36: Rectificaciones de Resultados de Ejercicios Anteriores | BM36: =Balanza!H190 -> 0.00 | BN36: =Balanza!D190 -> 0.00
AI37: Exceso o Insuficiencia en la Actualización de la Hacienda Pública/Patrimonio | BM37: =SUM(BM38:BM39) -> 0.00 | BN37: 0.00
AI38: Resultado por Posición Monetaria | BM38: =Balanza!H195 -> 0.00 | BN38: =Balanza!D195 -> 
AI39: Resultado por Tenencia de Activos no Monetarios | BM39: =Balanza!H196 -> 0.00 | BN39: =Balanza!D196 -> 
AI40: Total Hacienda Pública/Patrimonio | BM40: =BM27+BM31+BM37 -> 427,747,270.90 | BN40: 407,655,860.60
AI41: Total del Pasivo y Hacienda Pública/Patrimonio | BM41: =BM25+BM40 -> 455,784,435.90 | BN41: 435,993,845.40
B44: Bajo protesta de decir verdad declaramos que los Estados Financieros y sus notas, son razonablemente correctos y son responsabilidad del emisor.
AG47: ASEJ2025-01-19-03-2025-1
Q48: LIC. JOSE HERIBERTO GARCIA MURILLO | AW48: LAE BRUNO GERMAN ENCISO GUILLEN
Q50: PRESIDENTE MUNICIPAL | AW50: ENCRAGADO DE LA HACIENDA MUNICIPAL

Sheet F1LDF (hidden)
B1: ="NOMBRE DEL ENTE PÚBLICO: "&Validacion!A2 -> NOMBRE DEL ENTE PÚBLICO: Ixtlahuacán de los Membrillos
B2: Estado de Situación Financiera Detallado - LDF
B3: ="Al "&INDEX(Validacion!D185:D196,MATCH(Validacion!A11,Validacion!C185:C196,0)) -> Al 31 de Enero de 2025
B4: (PESOS)
B5: Concepto | AF5: =Validacion!F185 -> 2025 | AG5: ="31 DE DICIEMBRE DE "&Validacion!F186 -> 31 DE DICIEMBRE DE 2024 | AI5: Concepto | BM5: =Validacion!F185 -> 2025 | BN5: ="31 DE DICIEMBRE DE "&Validacion!F186 -> 31 DE DICIEMBRE DE 2024
B6: ACTIVO | AI6: PASIVO
B7: Activo Circulante | AI7: Pasivo Circulante
B8: a. Efectivo y Equivalentes | AF8: =SUM(AF9:AF15) -> 77,664,477.99 | AG8: 62,441,985.37 | AI8: a. Cuentas por Pagar a Corto Plazo | BM8: =SUM(BM9:BM17) -> -1,229,153.88 | BN8: -990,005.15
B9: a1) Efectivo | AF9: =Balanza!G6 -> 297,939.06 | AG9: =Balanza!C6 -> 297,939.06 | AI9: a1) Servicios Personales por Pagar a Corto Plazo | BM9: =Balanza!H104 -> 0.00 | BN9: =Balanza!D104 -> 
B10: a2) Bancos/Tesorería | AF10: =Balanza!G7 -> 72,531,938.93 | AG10: =Balanza!C7 -> 57,309,446.31 | AI10: a2) Proveedores por Pagar a Corto Plazo | BM10: =Balanza!H105 -> 17,734.19 | BN10: =Balanza!D105 -> 256,699.13
B11: a3) Bancos/Dependencias y Otros | AF11: =Balanza!G8 -> 0.00 | AG11: =Balanza!C8 ->  | AI11: a3) Contratistas por Obras Públicas por Pagar a Corto Plazo | BM11: =Balanza!H106 -> 0.00 | BN11: =Balanza!D106 -> 
B12: a4) Inversiones Temporales (Hasta 3 meses) | AF12: =Balanza!G9 -> 0.00 | AG12: =Balanza!C9 ->  | AI12: a4) Participaciones y Aportaciones por Pagar a Corto Plazo | BM12: =Balanza!H107 -> 0.00 | BN12: =Balanza!D107 -> 
B13: a5) Fondos con Afectación Específica | AF13: =Balanza!G10 -> 0.00 | AG13: =Balanza!C10 ->  | AI13: a5) Transferencias Otorgadas por Pagar a Corto Plazo | BM13: =Balanza!H108 -> 0.00 | BN13: =Balanza!D108 -> 
B14: a6) Depósitos de Fondos de Terceros en Garantía y/o Administración | AF14: =Balanza!G11 -> 0.00 | AG14: =Balanza!C11 ->  | AI14: a6) Intereses, Comisiones y Otros Gastos de la Deuda Pública por Pagar a Corto Plazo | BM14: =Balanza!H109 -> 0.00 | BN14: =Balanza!D109 -> 
B15: a7) Otros Efectivos y Equivalentes | AF15: =Balanza!G12 -> 4,834,600.00 | AG15: =Balanza!C12 -> 4,834,600.00 | AI15: a7) Retenciones y Contribuciones por Pagar a Corto Plazo | BM15: =Balanza!H110 -> -1,246,888.07 | BN15: =Balanza!D110 -> -1,246,704.28
B16: b. Derechos a Recibir Efectivo o Equivalentes | AF16: =SUM(AF17:AF23) -> 5,706,024.88 | AG16: 5,216,121.51 | AI16: a8) Devoluciones de la Ley de Ingresos por Pagar a Corto Plazo | BM16: =Balanza!H111 -> 0.00 | BN16: =Balanza!D111 -> 
B17: b1) Inversiones Financieras de Corto Plazo | AF17: =Balanza!G14 -> 0.00 | AG17: =Balanza!C14 ->  | AI17: a9) Otras Cuentas por Pagar a Corto Plazo | BM17: =Balanza!H112 -> 0.00 | BN17: =Balanza!D112 -> 
B18: b2) Cuentas por Cobrar a Corto Plazo | AF18: =Balanza!G15 -> 0.00 | AG18: =Balanza!C15 ->  | AI18: b. Documentos por Pagar a Corto Plazo | BM18: =SUM(BM19:BM21) -> 961.53 | BN18: 961.53
B19: b3) Deudores Diversos por Cobrar a Corto Plazo | AF19: =Balanza!G16 -> 3,851,900.82 | AG19: =Balanza!C16 -> 4,056,968.30 | AI19: b1) Documentos Comerciales por Pagar a Corto Plazo | BM19: =Balanza!H114 -> 0.00 | BN19: =Balanza!D114 -> 
B20: b4) Ingresos por Recuperar a Corto Plazo | AF20: =Balanza!G17 -> 0.00 | AG20: =Balanza!C17 ->  | AI20: b2) Documentos con Contratistas por Obras Públicas por Pagar a Corto Plazo | BM20: =Balanza!H115 -> 961.53 | BN20: =Balanza!D115 -> 961.53
B21: b5) Deudores por Anticipos de la Tesorería a Corto Plazo | AF21: =Balanza!G18 -> -25,130.33 | AG21: =Balanza!C18 -> -25,130.33 | AI21: b3) Otros Documentos por Pagar a Corto Plazo | BM21: =Balanza!H116 -> 0.00 | BN21: =Balanza!D116 -> 
B22: b6) Préstamos Otorgados a Corto Plazo | AF22: =Balanza!G19 -> 1,879,254.39 | AG22: =Balanza!C19 -> 1,184,283.54 | AI22: c. Porción a Corto Plazo de la Deuda Pública a Largo Plazo | BM22: =SUM(BM23:BM24) -> 731,441.12 | BN22: 0.00
B23: b7) Otros Derechos a Recibir Efectivo o Equivalentes a Corto Plazo | AF23: =Balanza!G20 -> 0.00 | AG23: =Balanza!C20 ->  | AI23: c1) Porción a Corto Plazo de la Deuda Pública Interna | BM23: =Balanza!H118 -> 731,441.12 | BN23: =Balanza!D118 -> 
B24: c. Derechos a Recibir Bienes o Servicios | AF24: =SUM(AF25:AF29) -> 5,073,657.56 | AG24: 5,496,349.91 | AI24: c2) Porción a Corto Plazo de Arrendamiento Financiero | BM24: =Balanza!H120 -> 0.00 | BN24: =Balanza!D120 -> 
B25: c1) Anticipo a Proveedores por Adquisición de Bienes y Prestación de Servicios a Corto Plazo | AF25: =Balanza!G22 -> 3,436,915.71 | AG25: =Balanza!C22 -> 3,110,726.83 | AI25: d. Títulos y Valores a Corto Plazo | BM25: =Balanza!H121 -> 0.00 | BN25: =Balanza!D121 -> 0.00
B26: c2) Anticipo a Proveedores por Adquisición de Bienes Inmuebles y Muebles a Corto Plazo | AF26: =Balanza!G23 -> 0.00 | AG26: =Balanza!C23 ->  | AI26: e. Pasivos Diferidos a Corto Plazo | BM26: =SUM(BM27:BM29) -> 0.00 | BN26: 0.00
B27: c3) Anticipo a Proveedores por Adquisición de Bienes Intangibles a Corto Plazo | AF27: =Balanza!G24 -> 0.00 | AG27: =Balanza!C24 ->  | AI27: e1) Ingresos Cobrados por Adelantado a Corto Plazo | BM27: =Balanza!H125 -> 0.00 | BN27: =Balanza!D125 -> 
B28: c4) Anticipo a Contratistas por Obras Públicas a Corto Plazo | AF28: =Balanza!G25 -> 1,636,741.85 | AG28: =Balanza!C25 -> 2,385,623.08 | AI28: e2) Intereses Cobrados por Adelantado a Corto Plazo | BM28: =Balanza!H126 -> 0.00 | BN28: =Balanza!D126 -> 
B29: c5) Otros Derechos a Recibir Bienes o Servicios a Corto Plazo | AF29: =Balanza!G26 -> 0.00 | AG29: =Balanza!C26 ->  | AI29: e3) Otros Pasivos Diferidos a Corto Plazo | BM29: =Balanza!H127 -> 0.00 | BN29: =Balanza!D127 -> 
B30: d. Inventarios | AF30: =SUM(AF31:AF35) -> 0.00 | AG30: 0.00 | AI30: f. Fondos y Bienes de Terceros en Garantía y/o Administración a Corto Plazo | BM30: =SUM(BM31:BM36) -> 0.00 | BN30: 0.00
B31: d1) Inventario de Mercancías para Venta | AF31: =Balanza!G28 ->  | AG31: =Balanza!C28 ->  | AI31: f1) Fondos en Garantía a Corto Plazo | BM31: =Balanza!H129 -> 0.00 | BN31: =Balanza!D129 -> 
B32: d2) Inventario de Mercancías Terminadas | AF32: =Balanza!G29 ->  | AG32: =Balanza!C29 ->  | AI32: f2) Fondos en Administración a Corto Plazo | BM32: =Balanza!H130 -> 0.00 | BN32: =Balanza!D130 -> 
B33: d3) Inventario de Mercancías en Proceso de Elaboración | AF33: =Balanza!G30 ->  | AG33: =Balanza!C30 ->  | AI33: f3) Fondos Contingentes a Corto Plazo | BM33: =Balanza!H131 -> 0.00 | BN33: =Balanza!D131 -> 
B34: d4) Inventario de Materias Primas, Materiales y Suministros para Producción | AF34: =Balanza!G31 ->  | AG34: =Balanza!C31 ->  | AI34: f4) Fondos de Fideicomisos, Mandatos y Contratos Análogos a Corto Plazo | BM34: =Balanza!H132 -> 0.00 | BN34: =Balanza!D132 -> 
B35: d5) Bienes en Tránsito | AF35: =Balanza!G32 ->  | AG35: =Balanza!C32 ->  | AI35: f5) Otros Fondos de Terceros en Garantía y/o Administración a Corto Plazo | BM35: =Balanza!H133 -> 0.00 | BN35: =Balanza!D133 -> 
B36: e. Almacenes | AF36: =Balanza!G34 -> 0.00 | AG36: =Balanza!C34 ->  | AI36: f6) Valores y Bienes en Garantía a Corto Plazo | BM36: =Balanza!H134 -> 0.00 | BN36: =Balanza!D134 -> 
B37: f. Estimación por Pérdida o Deterioro de Activos Circulantes | AF37: =SUM(AF38:AF39) -> 0.00 | AG37: 0.00 | AI37: g. Provisiones a Corto Plazo | BM37: =SUM(BM38:BM40) -> 0.00 | BN37: 0.00
B38: f1) Estimaciones para Cuentas Incobrables por Derechos a Recibir Efectivo o Equivalentes | AF38: =Balanza!G36 -> 0.00 | AG38: =Balanza!C36 ->  | AI38: g1) Provisión para Demandas y Juicios a Corto Plazo | BM38: =Balanza!H136 -> 0.00 | BN38: =Balanza!D136 -> 
B39: f2) Estimación por Deterioro de Inventarios | AF39: =Balanza!G37 -> 0.00 | AG39: =Balanza!C37 ->  | AI39: g2) Provisión para Contingencias a Corto Plazo | BM39: =Balanza!H137 -> 0.00 | BN39: =Balanza!D137 -> 
B40: g. Otros Activos Circulantes | AF40: =SUM(AF41:AF44) -> 0.00 | AG40: 0.00 | AI40: g3) Otras Provisiones a Corto Plazo | BM40: =Balanza!H138 -> 0.00 | BN40: =Balanza!D138 -> 
B41: g1) Valores en Garantía | AF41: =Balanza!G39 -> 0.00 | AG41: =Balanza!C39 ->  | AI41: h. Otros Pasivos a Corto Plazo | BM41: =SUM(BM42:BM44) -> 0.00 | BN41: 0.00
B42: g2) Bienes en Garantía (excluye depósitos de fondos) | AF42: =Balanza!G40 -> 0.00 | AG42: =Balanza!C40 ->  | AI42: h1) Ingresos por Clasificar | BM42: =Balanza!H140 -> 0.00 | BN42: =Balanza!D140 -> 
B43: g3) Bienes Derivados de Embargos, Decomisos, Aseguramientos y Dación en Pago | AF43: =Balanza!G41 -> 0.00 | AG43: =Balanza!C41 ->  | AI43: h2) Recaudación por Participar | BM43: =Balanza!H141 -> 0.00 | BN43: =Balanza!D141 -> 
B44: g4) Adquisición con Fondos de Terceros | AF44: =Balanza!G42 -> 0.00 | AG44: =Balanza!C42 ->  | AI44: h3) Otros Pasivos Circulantes | BM44: =Balanza!H142 -> 0.00 | BN44: =Balanza!D142 -> 
B45: IA. Total de Activos Circulantes | AF45: =AF8+AF16+AF24+AF30+AF36+AF37+AF40 -> 88,444,160.43 | AG45: 73,154,456.79 | AI45: IIA. Total de Pasivos Circulantes | BM45: =BM8+BM18+BM22+BM25+BM26+BM30+BM37+BM41 -> -496,751.23 | BN45: -989,043.62
B46: Activos No Circulantes | AI46: Pasivos No Circulantes
B47: a. Inversiones Financieras a Largo Plazo | AF47: =Balanza!G44 -> -168,473.67 | AG47: =Balanza!C44 -> -187,388.76 | AI47: a. Cuentas por Pagar a Largo Plazo | BM47: =Balanza!H144 -> 0.00 | BN47: =Balanza!D144 -> 0.00
B48: b. Derechos a Recibir Efectivo o Equivalentes a Largo Plazo | AF48: =Balanza!G49 -> 0.00 | AG48: =Balanza!C49 -> 0.00 | AI48: b. Documentos por Pagar a Largo Plazo | BM48: =Balanza!H147 -> 0.00 | BN48: =Balanza!D147 -> 0.00
B49: c. Bienes Inmuebles, Infraestructura y Construcciones en Proceso | AF49: =Balanza!G55 -> 338,661,390.80 | AG49: =Balanza!C55 -> 334,935,354.20 | AI49: c. Deuda Pública a Largo Plazo | BM49: =Balanza!H151 -> 28,533,916.26 | BN49: =Balanza!D151 -> 29,327,028.44
B50: d. Bienes Muebles | AF50: =Balanza!G63 -> 44,440,593.41 | AG50: =Balanza!C63 -> 43,684,658.30 | AI50: d. Pasivos Diferidos a Largo Plazo | BM50: =Balanza!H157 -> 0.00 | BN50: =Balanza!D157 -> 0.00
B51: e. Activos Intangibles | AF51: =Balanza!G72 -> 2,757,222.70 | AG51: =Balanza!C72 -> 2,757,222.70 | AI51: e. Fondos y Bienes de Terceros en Garantía y/o Administración a Largo Plazo | BM51: =Balanza!H161 -> 0.00 | BN51: =Balanza!D161 -> 0.00
B52: f. Depreciación, Deterioro y Amortización Acumulada de Bienes | AF52: =(Balanza!H78)*-1 -> -18,350,457.80 | AG52: =(Balanza!D78)*-1 -> -18,350,457.80 | AI52: f. Provisiones a Largo Plazo | BM52: =Balanza!H168 -> 0.00 | BN52: =Balanza!D168 -> 0.00
B53: g. Activos Diferidos | AF53: =Balanza!G84 -> 0.00 | AG53: =Balanza!C84 -> 0.00 | AI53: IIB. Total de Pasivos No Circulantes | BM53: =BM47+BM48+BM49+BM50+BM51+BM52 -> 28,533,916.26 | BN53: 29,327,028.44
B54: h. Estimación por Pérdida o Deterioro de Activos no Circulantes | AF54: =(Balanza!H91)*-1 -> 0.00 | AG54: =(Balanza!D91)*-1 -> 0.00 | AI54: II. Total del Pasivo | BM54: =BM45+BM53 -> 28,037,165.03 | BN54: 28,337,984.82
B55: i. Otros Activos no Circulantes | AF55: =Balanza!G97 -> 0.00 | AG55: =Balanza!C97 -> 0.00 | AI55: HACIENDA PÚBLICA/PATRIMONIO
B56: IB. Total de Activos No Circulantes | AF56: =AF47+AF48+AF49+AF50+AF51+AF52+AF53+AF54+AF55 -> 367,340,275.50 | AG56: 362,839,388.60 | AI56: IIIA. Hacienda Pública/Patrimonio Contribuido | BM56: =SUM(BM57:BM59) -> 0.00 | BN56: 0.00
B57: I. Total del Activo | AF57: =AF45+AF56 -> 455,784,435.90 | AG57: 435,993,845.40 | AI57: a. Aportaciones | BM57: =Balanza!H175 -> 0.00 | BN57: =Balanza!D175 -> 
AI58: b. Donaciones de Capital | BM58: =Balanza!H176 -> 0.00 | BN58: =Balanza!D176 -> 
AI59: c. Actualización de la Hacienda Pública/Patrimonio | BM59: =Balanza!H177 -> 0.00 | BN59: =Balanza!D177 -> 
AI60: IIIB. Hacienda Pública/Patrimonio Generado | BM60: =BM61+BM62+BM63+BM64+BM65 -> 427,747,270.90 | BN60: 407,655,860.60
AI61: a. Resultado del Ejercicio (Ahorro/Desahorro) | BM61: =Balanza!H179 -> 20,091,410.26 | BN61: =Balanza!D179 -> 84,783,666.63
AI62: b. Resultado de Ejercicios Anteriores | BM62: =Balanza!H180 -> 407,655,860.60 | BN62: =Balanza!D180 -> 322,872,194.00
AI63: c. Revalúos | BM63: =Balanza!H181 -> 0.00 | BN63: =Balanza!D181 -> 0.00
AI64: d. Reservas | BM64: =Balanza!H186 -> 0.00 | BN64: =Balanza!D186 -> 0.00
AI65: e. Rectificaciones de Resultados de Ejercicios Anteriores | BM65: =Balanza!H190 -> 0.00 | BN65: =Balanza!D190 -> 0.00
AI66: IIIC. Exceso o Insuficiencia en la Actualización de la Hacienda Pública/Patrimonio | BM66: =SUM(BM67:BM68) -> 0.00 | BN66: 0.00
AI67: a. Resultado por Posición Monetaria | BM67: =Balanza!H195 -> 0.00 | BN67: =Balanza!D195 -> 
AI68: b. Resultado por Tenencia de Activos no Monetarios | BM68: =Balanza!H196 -> 0.00 | BN68: =Balanza!D196 -> 
AI69: III. Total Hacienda Pública/Patrimonio | BM69: =BM56+BM60+BM66 -> 427,747,270.90 | BN69: 407,655,860.60
AI70: IV. Total del Pasivo y Hacienda Pública/Patrimonio | BM70: =BM54+BM69 -> 455,784,435.90 | BN70: 435,993,845.40
B72: Bajo protesta de decir verdad declaramos que los estados financieros y sus notas, son razonablemente correctos y son responsabilidad del emisor.
Q76: =Validacion!A7 -> LIC. JOSE HERIBERTO GARCIA MURILLO | AW76: =Validacion!A9 -> LAE BRUNO GERMAN ENCISO GUILLEN
Q78: Presidente Municipal o Títular del ente público | AW78: Encargado de la Hacienda Pública Municipal o Responsable de las finanzas del ente público

Sheet F6 (hidden)
A1: ="Nombre del Ente Público: "&Validacion!A2 -> Nombre del Ente Público: Ixtlahuacán de los Membrillos
A2: Estado Analítico del Actividades
A3: ='F9-EDP'!A3 -> DEL 1° DE ENERO AL 31 DE ENERO DE 2025
A4: (Cifras en pesos)
B5: Concepto | AX5: =Validacion!F185 -> 2025 | AY5: =Validacion!F186 -> 2024
B6: INGRESOS Y OTROS BENEFICIOS
B7: INGRESOS DE GESTIÓN | AX7: =AX8+AX29+AX35+AX40+AX72+AX81+AX102 -> 17,127,648.98 | AY7: 116,292,811.90
B8: IMPUESTOS | AX8: =AX9+AX11+AX15+AX16+AX17+AX18+AX19+AX25+AX27 -> 8,334,338.87 | AY8: 55,545,174.20
B9: Impuestos sobre los ingresos | AX9: =SUM(AX10) -> 0.00 | AY9: 4,000.00
B10: Impuestos sobre espectáculos públicos | AX10: =Balanza!H201 -> 0.00 | AY10: =Balanza!D201 -> 4,000.00
B11: Impuestos sobre el patrimonio | AX11: =SUM(AX12:AX14) -> 8,051,886.58 | AY11: 54,036,865.32
B12: Impuesto predial | AX12: =Balanza!H203 -> 6,960,333.00 | AY12: =Balanza!D203 -> 18,827,209.59
B13: Impuestos sobre transmisiones patrimoniales | AX13: =Balanza!H204 -> 1,068,073.53 | AY13: =Balanza!D204 -> 34,826,355.31
B14: Impuestos sobre negocios jurídicos | AX14: =Balanza!H205 -> 23,480.05 | AY14: =Balanza!D205 -> 383,300.42
B15: Impuestos sobre la producción, el consumo y las transacciones | AX15: 0.00 | AY15: 0.00
B16: Impuestos al comercio exterior | AX16: 0.00 | AY16: 0.00
B17: Impuestos sobre nóminas y asimilables | AX17: 0.00 | AY17: 0.00
B18: Impuestos ecológicos | AX18: 0.00 | AY18: 0.00
B19: Accesorios de impuestos | AX19: =SUM(AX20:AX24) -> 282,452.29 | AY19: 1,504,308.88
B20: Recargos | AX20: =Balanza!H211 -> 175,934.16 | AY20: =Balanza!D211 -> 776,050.68
B21: Actualizaciones | AX21: =Balanza!H212 -> 0.00 | AY21: =Balanza!D212 -> 
B22: Multas | AX22: =Balanza!H213 -> 106,518.13 | AY22: =Balanza!D213 -> 726,943.55
B23: Gastos de ejecución | AX23: =Balanza!H214 -> 0.00 | AY23: =Balanza!D214 -> 1,314.65
B24: Otros no especificados | AX24: =Balanza!H215 -> 0.00 | AY24: =Balanza!D215 -> 
B25: Impuestos no comprendidos en la ley de ingresos vigente, causados en ejercicio fiscales anteriores pendientes de liquidar o pago | AX25: =SUM(AX26) -> 0.00 | AY25: 0.00
B26: Impuestos no comprendidos en la ley de ingresos vigente, causados en ejercicio fiscales anteriores pendientes de liquidar o pago | AX26: =Balanza!H217 -> 0.00 | AY26: =Balanza!D217 -> 
B27: Otros Impuestos | AX27: =SUM(AX28) -> 0.00 | AY27: 0.00
B28: Otros impuestos | AX28: =Balanza!H219 -> 0.00 | AY28: =Balanza!D219 -> 
B29: CUOTAS Y APORTACIONES DE SEGURIDAD SOCIAL | AX29: =SUM(AX30:AX34) -> 0.00 | AY29: 0.00
B30: Aportaciones para fondos de vivienda | AX30: 0.00 | AY30: 0.00
B31: Cuotas para la seguridad social | AX31: 0.00 | AY31: 0.00
B32: Cuotas de ahorro para el retiro | AX32: 0.00 | AY32: 0.00
B33: Accesorios de cuotas y aportaciones de seguridad social | AX33: 0.00 | AY33: 0.00
B34: Otras cuotas y aportaciones para la seguridad social | AX34: 0.00 | AY34: 0.00
B35: CONTRIBUCIONES DE MEJORAS | AX35: =AX36+AX38 -> 0.00 | AY35: 0.00
B36: Contribuciones de mejoras por obras públicas | AX36: =SUM(AX37) -> 0.00 | AY36: 0.00
B37: Contribuciones de mejoras por obras públicas | AX37: =Balanza!H228 -> 0.00 | AY37: =Balanza!D228 -> 
B38: Contribuciones de mejoras no comprendidas en la ley de ing. vigente, causadas en ejercicios fiscales anteriores pendientes de liq. o pago | AX38: =SUM(AX39) -> 0.00 | AY38: 0.00
B39: Contribuciones de mejoras no comprendidas en la ley de ing. vigente, causadas en ejercicios fiscales anteriores pendientes de liq. o pago | AX39: =Balanza!H230 -> 0.00 | AY39: =Balanza!D230 -> 
B40: DERECHOS | AX40: =AX41+AX46+AX47+AX62+AX68+AX70 -> 8,559,716.30 | AY40: 58,417,564.96
B41: Derechos por el uso, goce, aprovechamiento o explotación de bienes de dominio público | AX41: =SUM(AX42:AX45) -> 652,522.78 | AY41: 2,241,649.77
B42: Derechos por el uso del piso | AX42: =Balanza!H233 -> 105,000.00 | AY42: =Balanza!D233 -> 1,490,990.50
B43: Derechos por el uso de los estacionamientos | AX43: =Balanza!H234 -> 240,040.00 | AY43: =Balanza!D234 -> 12,367.50
B44: Derechos de uso de cementerios y panteones municipales | AX44: =Balanza!H235 -> 307,482.78 | AY44: =Balanza!D235 -> 738,291.77
B45: Derechos de concesiones y demás inmuebles de propiedad municipal | AX45: =Balanza!H236 -> 0.00 | AY45: =Balanza!D236 -> 
B46: Derechos a los hidrocarburos (derogada) | AX46: 0.00 | AY46: 0.00
B47: Derechos por prestación de servicios | AX47: =SUM(AX48:AX61) -> 7,475,280.52 | AY47: 53,312,913.25
B48: Derechos de licencias y permisos de giros | AX48: =Balanza!H239 -> 896,140.67 | AY48: =Balanza!D239 -> 3,332,515.65
B49: Derechos de licencias y permisos de anuncios | AX49: =Balanza!H240 -> 315,000.00 | AY49: =Balanza!D240 -> 862,600.57
B50: Derechos de licencias de construcción, reconstrucción, reparación o demolición de obras | AX50: =Balanza!H241 -> 188,722.62 | AY50: =Balanza!D241 -> 20,299,332.89
B51: Derechos de regularizaciones de los registros de obra | AX51: =Balanza!H242 -> 0.00 | AY51: =Balanza!D242 -> 
B52: Derechos de alineamiento, designación de número oficial e inspección | AX52: =Balanza!H243 -> 87,243.46 | AY52: =Balanza!D243 -> 190,283.60
B53: Derechos de licencias de cambio de régimen de propiedad y urbanización | AX53: =Balanza!H244 -> 5,069,834.12 | AY53: =Balanza!D244 -> 24,825,441.31
B54: Derechos de servicios de obra | AX54: =Balanza!H245 -> 0.00 | AY54: =Balanza!D245 -> 
B55: Derechos de servicios de sanidad | AX55: =Balanza!H246 -> 1,987.50 | AY55: =Balanza!D246 -> 22,275.10
B56: Derechos de servicio de limpieza, recolección, traslado, tratamiento y disposición final de residuos | AX56: =Balanza!H247 -> 247,030.00 | AY56: =Balanza!D247 -> 747,019.18
B57: Derechos de agua potable, drenaje, alcantarillado, tratamiento y disposición final de aguas residuales | AX57: =Balanza!H248 -> 0.00 | AY57: =Balanza!D248 -> 
B58: Derechos del rastro | AX58: =Balanza!H249 -> 13,632.00 | AY58: =Balanza!D249 -> 138,569.47
B59: Derechos del registro civil | AX59: =Balanza!H250 -> 71,376.80 | AY59: =Balanza!D250 -> 489,914.23
B60: Derechos de las certificaciones | AX60: =Balanza!H251 -> 507,612.00 | AY60: =Balanza!D251 -> 1,465,650.67
B61: Derechos de los servicios de catastro | AX61: =Balanza!H252 -> 76,701.35 | AY61: =Balanza!D252 -> 939,310.58
B62: Accesorios de derecho | AX62: =SUM(AX63:AX67) -> 27,300.00 | AY62: 2,863,001.94
B63: Recargos | AX63: =Balanza!H254 -> 300.00 | AY63: =Balanza!D254 -> 4,364.00
B64: Actualizaciones | AX64: =Balanza!H255 -> 0.00 | AY64: =Balanza!D255 -> 
B65: Multas | AX65: =Balanza!H256 -> 27,000.00 | AY65: =Balanza!D256 -> 53,521.94
B66: Gastos de ejecución | AX66: =Balanza!H257 -> 0.00 | AY66: =Balanza!D257 -> 
B67: Otros no especificados | AX67: =Balanza!H258 -> 0.00 | AY67: =Balanza!D258 -> 2,805,116.00
B68: Derechos no comprendidos en la ley de ingresos vigente, causados en ejercicios fiscales anteriores pendientes de liquidación o pago | AX68: =SUM(AX69) -> 0.00 | AY68: 0.00
B69: Derechos no comprendidos en la ley de ingresos vigente, causados en ejercicios fiscales anteriores pendientes de liquidación o pago | AX69: =Balanza!H260 -> 0.00 | AY69: =Balanza!D260 -> 
B70: Otros derechos | AX70: =SUM(AX71) -> 404,613.00 | AY70: 0.00
B71: Otros derechos | AX71: =Balanza!H262 -> 404,613.00 | AY71: =Balanza!D262 -> 
B72: PRODUCTOS | AX72: =AX73+AX76+AX77+AX78+AX80 -> 50,916.67 | AY72: 517,090.10
B73: Productos | AX73: =SUM(AX74:AX75) -> 50,916.67 | AY73: 517,090.10
B74: Uso, goce, aprovechamiento o explotación de bienes de dominio privado | AX74: =Balanza!H265 -> 650.00 | AY74: =Balanza!D265 -> 19,129.00
B75: Productos diversos | AX75: =Balanza!H266 -> 50,266.67 | AY75: =Balanza!D266 -> 497,961.10
B76: Enajenación de bienes muebles no sujetos a ser inventariados (derogada) | AX76: 0.00 | AY76: 0.00
B77: Accesorios de productos (derogada) | AX77: 0.00 | AY77: 0.00
B78: Productos no comprendidos en la ley de ingresos vigente, causados en ejercicios fiscales anteriores pendientes de liquidación o pago | AX78: =SUM(AX79) -> 0.00 | AY78: 0.00
B79: Productos no comprendidos en la ley de ingresos vigente, causadas en ejercicios fiscales anteriores pendientes de liquidación o pago | AX79: =Balanza!H270 -> 0.00 | AY79: =Balanza!D270 -> 
B80: Otros productos que generan ingresos corrientes (derogada) | AX80: 0.00 | AY80: 0.00
B81: APROVECHAMIENTOS | AX81: =AX82+AX83+AX85+AX87+AX89+AX91+AX93+AX94+AX100 -> 182,677.14 | AY81: 1,812,982.62
B82: Incentivos derivados de la colaboración fiscal (derogada) | AX82: 0.00 | AY82: 0.00
B83: Multas | AX83: =SUM(AX84) -> 81,501.04 | AY83: 211,723.08
B84: Multas | AX84: =Balanza!H275 -> 81,501.04 | AY84: =Balanza!D275 -> 211,723.08
B85: Indemnizaciones | AX85: =SUM(AX86) -> 0.00 | AY85: 0.00
B86: Indemnizaciones | AX86: =Balanza!H277 -> 0.00 | AY86: =Balanza!D277 -> 
B87: Reintegros | AX87: =SUM(AX88) -> 0.00 | AY87: 36,358.21
B88: Reintegros | AX88: =Balanza!H279 -> 0.00 | AY88: =Balanza!D279 -> 36,358.21
B89: Aprovechamientos provenientes de obras públicas | AX89: =SUM(AX90) -> 0.00 | AY89: 554,187.64
B90: Aprovechamientos provenientes de obras públicas | AX90: =Balanza!H281 -> 0.00 | AY90: =Balanza!D281 -> 554,187.64
B91: Aprovechamientos no comprendidos en la ley de ing. vigente, causados en ejercicios fiscales anteriores pendientes de liquidación o pago | AX91: =SUM(AX92) -> 0.00 | AY91: 126,322.37
B92: Aprovechamientos no comprendidos en la ley de ing. vigente, causados en ejercicios fiscales anteriores pendientes de liquidación o pago | AX92: =Balanza!H283 -> 0.00 | AY92: =Balanza!D283 -> 126,322.37
B93: Aprovechamientos por aportaciones y cooperaciones (derogada) | AX93: 0.00 | AY93: 0.00
B94: Accesorios de aprovechamiento | AX94: =SUM(AX95:AX99) -> 0.00 | AY94: 789,964.85
B95: Recargos | AX95: =Balanza!H286 -> 0.00 | AY95: =Balanza!D286 -> 
B96: Actualizaciones | AX96: =Balanza!H287 -> 0.00 | AY96: =Balanza!D287 -> 
B97: Multas | AX97: =Balanza!H288 -> 0.00 | AY97: =Balanza!D288 -> 
B98: Gastos de ejecución | AX98: =Balanza!H289 -> 0.00 | AY98: =Balanza!D289 -> 
B99: Otros no especificados | AX99: =Balanza!H290 -> 0.00 | AY99: =Balanza!D290 -> 789,964.85
B100: Otros aprovechamientos | AX100: =SUM(AX101) -> 101,176.10 | AY100: 94,426.47
B101: Otros aprovechamientos | AX101: =Balanza!H292 -> 101,176.10 | AY101: =Balanza!D292 -> 94,426.47
B102: INGRESOS POR VENTAS DE BIENES Y PRESTACIÓN DE SERVICIOS | AX102: =AX103+AX105+AX106+AX108+AX109+AX110+AX111+AX113 -> 0.00 | AY102: 0.00
B103: Ingresos por venta de bienes y prestación de servicios de instituciones públicas de seguridad social | AX103: =SUM(AX104) -> 0.00 | AY103: 0.00
B104: Ingresos por venta de bienes y prestación de servicios de instituciones públicas de seguridad social | AX104: =Balanza!H295 -> 0.00 | AY104: =Balanza!D295 -> 
B105: Ingresos por venta de bienes y prestación de servicios de empresas productivas del estado | AX105: 0.00 | AY105: 0.00
B106: Ingresos por venta de bienes y prestación de servicios de entidades paraestatales y fideicomisos no empresariales y no financieros | AX106: =SUM(AX107) -> 0.00 | AY106: 0.00
B107: Ingresos por venta de bienes y prestación de servicios de entidades paraestatales y fideicomisos no empresariales y no financieros | AX107: =Balanza!H298 -> 0.00 | AY107: =Balanza!D298 -> 
B108: Ingresos por venta de bienes y prestación de servicios de entidades paraestatales empresariales no financieras con participación estatal mayoritaria | AX108: 0.00 | AY108: 0.00
B109: Ing. por vta. de bienes y prestación de servicios de entidades paraestatales empresariales financieras monetarias con participación estatal mayoritaria | AX109: 0.00 | AY109: 0.00
B110: Ing. por vta. de bienes y prestación de servicios de entidades paraestatales empresariales financ. no monetarias con participación estatal mayoritaria | AX110: 0.00 | AY110: 0.00
B111: Ingresos por venta de bienes y prestación de servicios de fideicomisos financieros públicos con participación estatal mayoritaria | AX111: =SUM(AX112) -> 0.00 | AY111: 0.00
B112: Ingresos por venta de bienes y prestación de servicios de fideicomisos financieros públicos con participación estatal mayoritaria | AX112: =Balanza!H303 -> 0.00 | AY112: =Balanza!D303 -> 
B113: Ingresos por venta de bienes y prestación de servicios de los poderes legislativo y judicial, y de los órganos autónomos | AX113: 0.00 | AY113: 0.00
B114: ING. NO COMPRENDIDOS EN LAS FRACC. DE LA LEY DE ING. CAUSADAS EN EJERCICIOS FISCALES ANTERIORES PENDIENTES DE LIQUIDACIÓN O PAGO (DEROGADA) | AX114: =AX115+AX116 -> 0.00 | AY114: 0.00 | AZ114: =AZ115+AZ117+AZ118+AZ120+AZ121+AZ122+AZ123+AZ125 -> 0.00
B115: Ingresos no comprendidos en las fracciones de la ley de ingresos causadas en ejercicios fiscales anteriores pendientes de liquidación o pago (Derogada) | AX115: 0.00 | AY115: 0.00
B116: Cont. de mejoras, derechos, productos, y aprovechamientos no compren. en las fracc. de la ley de ing. caus. en ejer. fisc. ant. pen. de liqui. o pago (Derogada) | AX116: 0.00 | AY116: 0.00
B117: PART, APORT, CONV, INCEN. DERIV. DE LA COLAB. FISC, FONDOS DISTINTOS DE APORT, TRANSF, ASIG, SUB Y SUBVE, Y PENS. Y JUB. | AX117: =AX118+AX149 -> 18,724,346.49 | AY117: 215,390,400.80
B118: PARTIC. APORT. CONVENIOS, INCENTIVOS DERIVADOS DE LA COLABORACIÓN FISCAL Y FONDOS DISTINTOS DE APORTACIONES. | AX118: =AX119+AX132+AX135+AX140+AX146 -> 18,724,346.49 | AY118: 215,390,400.80
B119: Participaciones | AX119: =SUM(AX120:AX131) -> 12,765,335.94 | AY119: 133,437,545.10
B120: Fondo general de participaciones (federal) | AX120: =Balanza!H311 -> 7,418,001.08 | AY120: =Balanza!D311 -> 76,447,611.67
B121: Fondo de fomento municipal (federal) | AX121: =Balanza!H312 -> 3,141,139.83 | AY121: =Balanza!D312 -> 29,378,087.15
B122: Fondo de fiscalización y recaudación (federal) | AX122: =Balanza!H313 -> 571,822.32 | AY122: =Balanza!D313 -> 3,785,694.81
B123: Fondo de compensación (federal) | AX123: =Balanza!H314 -> 0.00 | AY123: =Balanza!D314 -> 
B124: Fondo de extracción de hidrocarburos (federal) | AX124: =Balanza!H315 -> 0.00 | AY124: =Balanza!D315 -> 
B125: Impuesto especial sobre producción y servicios (federal) | AX125: =Balanza!H316 -> 137,484.98 | AY125: =Balanza!D316 -> 1,789,344.60
B126: 0.136% de la recaudación federal participable (federal) | AX126: =Balanza!H317 -> 0.00 | AY126: =Balanza!D317 -> 
B127: 3.17% sobre extracción de petróleo (federal) | AX127: =Balanza!H318 -> 0.00 | AY127: =Balanza!D318 -> 
B128: Gasolinas y diésel (federal) | AX128: =Balanza!H319 -> 212,989.03 | AY128: =Balanza!D319 -> 2,027,525.07
B129: Fondo del impuesto sobre la renta (federal) | AX129: =Balanza!H320 -> 0.00 | AY129: =Balanza!D320 -> 4,333,249.82
B130: Fondo de estabilización de los ingresos de las entidades federativas (federal) | AX130: =Balanza!H321 -> 0.00 | AY130: =Balanza!D321 -> 1,763,420.09
B131: Participaciones del estado | AX131: =Balanza!H322 -> 1,283,898.70 | AY131: =Balanza!D322 -> 13,912,611.88
B132: Aportaciones | AX132: =SUM(AX133:AX134) -> 5,628,356.82 | AY132: 73,628,307.20
B133: Fondo de aportaciones para la infraestructura social municipal | AX133: =Balanza!H324 -> 0.00 | AY133: =Balanza!D324 -> 11,195,663.00
B134: Fondo de aportaciones para el fortalecimiento municipal | AX134: =Balanza!H325 -> 5,628,356.82 | AY134: =Balanza!D325 -> 62,432,644.20
B135: Convenios | AX135: =SUM(AX136:AX139) -> 0.00 | AY135: 7,243,068.82
B136: Convenios de protección social en salud | AX136: =Balanza!H327 -> 0.00 | AY136: =Balanza!D327 -> 
B137: Convenios de descentralizados | AX137: =Balanza!H328 -> 0.00 | AY137: =Balanza!D328 -> 
B138: Convenio de reasignación | AX138: =Balanza!H329 -> 0.00 | AY138: =Balanza!D329 -> 
B139: Otros convenios y subsidios | AX139: =Balanza!H330+Balanza!H331+Balanza!H332 -> 0.00 | AY139: =Balanza!D330+Balanza!D331+Balanza!D332 -> 7,243,068.82
B140: Incentivos derivados de la colaboración fiscal | AX140: =SUM(AX141:AX145) -> 330,653.73 | AY140: 1,081,479.73
B141: Tenencia o uso de vehículos | AX141: =Balanza!H334 -> 0.00 | AY141: =Balanza!D334 -> 173,138.85
B142: Fondo de compensación ISAN | AX142: =Balanza!H335 -> 31,913.15 | AY142: =Balanza!D335 -> 250,682.25
B143: Impuesto sobre automóviles nuevos | AX143: =Balanza!H336 -> 183,384.55 | AY143: =Balanza!D336 -> 390,321.75
B144: Fondo de compensación de repecos-intermedios | AX144: =Balanza!H337 -> 0.00 | AY144: =Balanza!D337 -> 
B145: Otros incentivos económicos | AX145: =Balanza!H338 -> 115,356.03 | AY145: =Balanza!D338 -> 267,336.88
B146: Fondos distintos de aportaciones | AX146: =SUM(AX147:AX148) -> 0.00 | AY146: 0.00
B147: Fondo para entidades federativas y municipios productores de hidrocarburos | AX147: =Balanza!H340 -> 0.00 | AY147: =Balanza!D340 -> 
B148: Fondo minero | AX148: =Balanza!H341 -> 0.00 | AY148: =Balanza!D341 -> 
B149: TRANSFERENCIAS, ASIGNACIONES, SUBSIDIOS Y SUBVENCIONES, PENSIONES Y JUBILACIONES | AX149: =AX150+AX152+AX153+AX155+AX156+AX158+AX159 -> 0.00 | AY149: 0.00
B150: Transferencias y asignaciones | AX150: =SUM(AX151) -> 0.00 | AY150: 0.00
B151: Transferencias y asignaciones | AX151: =Balanza!H344+Balanza!H345 -> 0.00 | AY151: =Balanza!D344+Balanza!D345 -> 0.00
B152: Transferencias del sector público (derogada) | AX152: 0.00 | AY152: 0.00
B153: Subsidios y subvenciones | AX153: =SUM(AX154) -> 0.00 | AY153: 0.00
B154: Subsidios y subvenciones | AX154: =Balanza!H348+Balanza!H349 -> 0.00 | AY154: =Balanza!D348+Balanza!D349 -> 0.00
B155: Ayudas sociales (derogada) | AX155: 0.00 | AY155: 0.00
B156: Pensiones y jubilaciones | AX156: =SUM(AX157) -> 0.00 | AY156: 0.00
B157: Pensiones y jubilaciones | AX157: =Balanza!H352 -> 0.00 | AY157: =Balanza!D352 -> 
B158: Transferencias del exterior (derogada) | AX158: 0.00 | AY158: 0.00
B159: Transferencias del fondo mexicano del petróleo para la estabilización y el desarrollo | AX159: =SUM(AX160) -> 0.00 | AY159: 0.00
B160: Transferencias del fondo mexicano del petróleo para la estabilización y el desarrollo | AX160: =Balanza!H355 -> 0.00 | AY160: =Balanza!D355 -> 
B161: OTROS INGRESOS Y BENEFICIOS | AX161: =AX162+AX165+AX171+AX173+AX175 -> 0.00 | AY161: 0.00
B162: INGRESOS FINANCIEROS | AX162: =SUM(AX163:AX164) -> 0.00 | AY162: 0.00
B163: Intereses ganados de títulos, valores y demás instrumentos financieros | AX163: =Balanza!H359 -> 0.00 | AY163: =Balanza!D359 -> 
B164: Otros ingresos financieros | AX164: =Balanza!H361 -> 0.00 | AY164: =Balanza!D361 -> 
B165: INCREMENTO POR VARIACIÓN DE INVENTARIOS | AX165: =SUM(AX166:AX170) -> 0.00 | AY165: 0.00
B166: Incremento por varación de inventarios de mercancías para venta | AX166: 0.00 | AY166: 0.00
B167: Incremento por variación de inventarios de mercancías terminadas | AX167: 0.00 | AY167: 0.00
B168: Incremento por variación de inventarios de mercancías en proceso de elaboración | AX168: 0.00 | AY168: 0.00
B169: Incremento por variación de inventarios de materias primas, materiales y suministros para producción | AX169: 0.00 | AY169: 0.00
B170: Incremento por variación de almacén de mercancías primas, materiales y suministros de consumo | AX170: 0.00 | AY170: 0.00
B171: DISMINUCIÓN DEL EXCESO DE ESTIMACIONES POR PÉRDIDA O DETERIORO U OBSOLESCENCIA | AX171: =SUM(AX172) -> 0.00 | AY171: 0.00
B172: Disminución del Exceso de Estimaciones por Pérdida o Deterioro u Obsolescencia | AX172: =Balanza!H370 -> 0.00 | AY172: =Balanza!D370 -> 
B173: DISMINUCIÓN DEL EXCESO DE PROVISIONES | AX173: =AX174 -> 0.00
B174: Disminución del exceso de provisiones | AX174: =Balanza!H373 -> 0.00 | AY174: =Balanza!D373 -> 
B175: OTROS INGRESOS Y BENEFICIOS VARIOS | AX175: =SUM(AX176:AX183) -> 0.00 | AY175: 0.00
B176: Otros ingresos de ejercicios anteriores (derogada) | AX176: 0.00 | AY176: 0.00
B177: Bonificaciónes y descuentos obtenidos | AX177: =Balanza!H377 -> 0.00 | AY177: =Balanza!D377 -> 
B178: Diferencias por tipo de cambio a favor | AX178: =Balanza!H379 -> 0.00 | AY178: =Balanza!D379 -> 
B179: Diferencias de cotizaciones a favor en valores negociables | AX179: =Balanza!H381 -> 0.00 | AY179: =Balanza!D381 -> 
B180: Resultado por posición monetaria | AX180: =Balanza!H383 -> 0.00 | AY180: =Balanza!D383 -> 
B181: Utilidades por participación patrimonial | AX181: =Balanza!H385 -> 0.00 | AY181: =Balanza!D385 -> 
B182: Diferencias por reestructuración de deuda pública a favor | AX182: =Balanza!H387 -> 0.00 | AY182: =Balanza!D387 -> 
B183: Otros ingresos y beneficios varios | AX183: =Balanza!H389 -> 0.00 | AY183: =Balanza!D389 -> 
B184: TOTAL DE INGRESOS | AX184: =AX7+AX117+AX161 -> 35,851,995.47 | AY184: 331,683,212.70
B185: GASTOS Y OTRAS PÉRDIDAS
B186: GASTOS DE FUNCIONAMIENTO | AX186: =AX187+AX222+AX287 -> 14,293,364.56 | AY186: 195,289,600.10
B187: SERVICIOS PERSONALES | AX187: =AX188+AX193+AX198+AX207+AX212+AX219 -> 5,796,814.83 | AY187: 74,457,050.48
B188: Remuneraciones al personal de carácter permanente | AX188: =SUM(AX189:AX192) -> 3,773,579.84 | AY188: 39,983,379.42
B189: Dietas | AX189: =Balanza!G394 -> 495,622.56 | AY189: =Balanza!C394 -> 4,197,428.64
B190: Haberes | AX190: =Balanza!G395 ->  | AY190: =Balanza!C395 -> 
B191: Sueldos base al personal permanente | AX191: =Balanza!G396 -> 3,277,957.28 | AY191: =Balanza!C396 -> 35,785,950.78
B192: Remuneraciones por adscripción laboral en el extranjero | AX192: =Balanza!G397 ->  | AY192: =Balanza!C397 -> 
B193: Remuneraciones al personal de carácter transitorio | AX193: =SUM(AX194:AX197) -> 1,557,657.76 | AY193: 16,604,062.30
B194: Honorarios asimilables a salarios | AX194: =Balanza!G399 -> 0.00 | AY194: =Balanza!C399 -> 
B195: Sueldos base al personal eventual | AX195: =Balanza!G400 -> 1,557,657.76 | AY195: =Balanza!C400 -> 16,604,062.30
B196: Retribuciones por servicios de carácter social | AX196: =Balanza!G401 -> 0.00 | AY196: =Balanza!C401 -> 
B197: Retribución a los representantes de los trabajadores y de los patrones en la Junta de Conciliación y Arbitraje | AX197: =Balanza!G402 -> 0.00 | AY197: =Balanza!C402 -> 
B198: Remuneraciones adicionales y especiales | AX198: =SUM(AX199:AX206) -> 74,344.68 | AY198: 8,924,254.95
B199: Primas por años de servicios efectivos prestados | AX199: =Balanza!G404 -> 0.00 | AY199: =Balanza!C404 -> 2,071.12
B200: Primas de vacaciones, dominical y gratificación de fin de año | AX200: =Balanza!G405 -> 905.93 | AY200: =Balanza!C405 -> 8,109,980.67
... 343 more rows

Sheet F6A
A1: MUNICIPIO IXTLAHUACÁN DE LOS MEMBRILLOS
A2: Estado de Actividades
A3: DEL 1° DE ENERO AL 31 DE ENERO DE 2025
A4: (Cifras en pesos)
B5: Concepto | AX5: =Validacion!F185 -> 2025 | AY5: =Validacion!F186 -> 2024
B6: INGRESOS Y OTROS BENEFICIOS
B7: Ingresos de Gestión | AX7: =AX8+AX9+AX10+AX11+AX12+AX13+AX14 -> 17,127,648.98 | AY7: 116,292,811.90
B8: Impuestos | AX8: =Balanza!H199 -> 8,334,338.87 | AY8: =Balanza!D199 -> 55,545,174.20
B9: Cuotas y Aportaciones de Seguridad Social | AX9: =Balanza!H220 -> 0.00 | AY9: =Balanza!D220 -> 0.00
B10: Contribuciones de Mejoras | AX10: =Balanza!H226 -> 0.00 | AY10: =Balanza!D226 -> 0.00
B11: Derechos | AX11: =Balanza!H231 -> 8,559,716.30 | AY11: =Balanza!D231 -> 58,417,564.96
B12: Productos | AX12: =Balanza!H263 -> 50,916.67 | AY12: =Balanza!D263 -> 517,090.10
B13: Aprovechamientos | AX13: =Balanza!H272 -> 182,677.14 | AY13: =Balanza!D272 -> 1,812,982.62
B14: Ingresos por Venta de Bienes y Prestación de Servicios | AX14: =Balanza!H293 -> 0.00 | AY14: =Balanza!D293 -> 0.00
B15: Participaciones, Aportaciones, Convenios, Incentivos Derivados de la Colaboración Fiscal, Fondos Distintos de Aportaciones, Transferencias, Asignaciones, Subsidios y Subvenciones, y Pensiones y Jubilaciones | AX15: =AX16+AX17 -> 18,724,346.49 | AY15: 215,390,400.80
B16: Participaciones, Aportaciones, Convenios, Incentivos Derivados de la Colaboración Fiscal y Fondos Distintos de Aportaciones | AX16: =Balanza!H309 -> 18,724,346.49 | AY16: =Balanza!D309 -> 215,390,400.80
B17: Transferencias, Asignaciones, Subsidios y Subvenciones, Pensiones y Jubilaciones | AX17: =Balanza!H342 -> 0.00 | AY17: =Balanza!D342 -> 0.00
B18: Otros Ingresos y Beneficios | AX18: =AX19+AX20+AX21+AX22+AX23 -> 0.00 | AY18: 0.00
B19: Ingresos Financieros | AX19: =Balanza!H357 -> 0.00 | AY19: =Balanza!D357 -> 0.00
B20: Incremento por Variación de Inventarios | AX20: =Balanza!H362 -> 0.00 | AY20: =Balanza!D362 -> 0.00
B21: Disminución del Exceso de Estimaciones por Pérdida o Deterioro u Obsolescencia | AX21: =Balanza!H368 -> 0.00 | AY21: =Balanza!D368 -> 0.00
B22: Disminución del Exceso de Provisiones | AX22: =Balanza!H371 -> 0.00 | AY22: =Balanza!D371 -> 0.00
B23: Otros Ingresos y Beneficios Varios | AX23: =Balanza!H374 -> 0.00 | AY23: =Balanza!D374 -> 0.00
B24: Total de Ingresos y Otros Beneficios | AX24: =AX7+AX15+AX18 -> 35,851,995.47 | AY24: 331,683,212.70
B25: GASTOS Y OTRAS PÉRDIDAS
B26: Gastos de Funcionamiento | AX26: =AX27+AX28+AX29 -> 14,293,364.56 | AY26: 195,289,600.10
B27: Servicios Personales | AX27: =Balanza!G392 -> 5,796,814.83 | AY27: =Balanza!C392 -> 74,457,050.48
B28: Materiales y Suministros | AX28: =Balanza!G427 -> 3,997,950.22 | AY28: =Balanza!C427 -> 52,940,411.71
B29: Servicios Generales | AX29: =Balanza!G492 -> 4,498,599.51 | AY29: =Balanza!C492 -> 67,892,137.88
B30: Transferencias, Asignaciones, Subsidios y Otras ayudas | AX30: =AX31+AX32+AX33+AX34+AX35+AX36+AX37+AX38+AX39 -> 1,170,667.45 | AY30: 16,237,393.16
B31: Transferencias Internas y Asignaciones al Sector Público | AX31: =Balanza!G578 -> 0.00 | AY31: =Balanza!C578 -> 0.00
B32: Transferencias al Resto del Sector Público | AX32: =Balanza!G590 -> 88,474.25 | AY32: =Balanza!C590 -> 1,630,830.25
B33: Subsidios y Subvenciones | AX33: =Balanza!G598 -> 1,053,635.20 | AY33: =Balanza!C598 -> 13,347,230.40
B34: Ayudas Sociales | AX34: =Balanza!G610 -> 21,839.20 | AY34: =Balanza!C610 -> 1,170,497.19
B35: Pensiones y Jubilaciones | AX35: =Balanza!G623 -> 6,718.80 | AY35: =Balanza!C623 -> 88,835.32
B36: Transferencias a Fideicomisos, Mandatos y Contratos Análogos | AX36: =Balanza!G630 -> 0.00 | AY36: =Balanza!C630 -> 0.00
B37: Transferencias a la Seguridad Social | AX37: =Balanza!G640 -> 0.00 | AY37: =Balanza!C640 -> 0.00
B38: Donativos | AX38: =Balanza!G643 -> 0.00 | AY38: =Balanza!C643 -> 0.00
B39: Transferencias al Exterior | AX39: =Balanza!G654 -> 0.00 | AY39: =Balanza!C654 -> 0.00
